{"text_format":"1","workbook":"xlsx","n_sheets":19,"sheets":["Instructions","Preferences","Scores","Results","Itinerary Chart","Program Chart","Itinerary Details","Itinerary Xref Chart","Tables","Detail Informaton","itineraryCamps","ItineraryPrograms","Descriptions","Calculator","Itineraries","Programs","Camp Programs","Camp Elevations","UteParkPassAlternatives"],"not_rendered":{"charts":8,"images":4,"macros":1,"external_links":0,"defined_names":167,"comments":2,"pivot_tables":0},"unopened":[{"sheet":"Itinerary Chart","index":4,"reason":"not_a_worksheet"},{"sheet":"Program Chart","index":5,"reason":"not_a_worksheet"}],"bounds":{"document_bytes":16777216,"sheet_cells":100000,"rows_first":2000,"rows_last":500,"rows_between":2000,"halvings":0,"cell_chars":16384,"cell_head_chars":4096},"cells_cut":0,"cells_raw":0,"read":"whole","date_system":"1900"}

{"sheet":"Instructions","index":0,"n_rows":8,"n_cols":6,"rows_kept":8,"cut":false,"hidden":false,"merged":[[5,1,5,16],[3,1,3,15],[0,0,0,16]]}
["Philmont 2024 Itineraries - 7 Day Treks"]
[]
[]
[null,"Questions or suggestions regarding this spreadsheet may be e-mailed to the author Sid Covington at sid_c@swbell.net"]
[]
[null,{"$f":"\"Updated \"&getlastsavedate()&\" - Revision \" & getSpreadsheetProperty(\"Revision\")","v":"Updated 1/3/2024 1:48PM - Revision 2024_1-0"}]
[null,"     Revision History:",null,null,null,"Note:  Use Ctrl-F1 to show/hide the Excel ribbon"]
[null,"2023-12-31","2024_1-0","Original 2024 Update"]

{"sheet":"Preferences","index":1,"n_rows":36,"n_cols":7,"rows_kept":36,"cut":false,"hidden":false,"merged":[[0,0,0,7],[3,4,5,7],[12,4,16,7],[9,6,9,7],[8,6,8,7],[7,6,7,7],[29,0,30,2],[24,0,25,2],[26,0,26,2],[17,0,17,2],[10,0,10,2],[21,0,21,2],[19,0,20,2]]}
["Set Crew preferences below"]
[]
["Philmont is divided into four areas.  Is it important to you",null,null,null,"Altitude Factors:"]
["which area you go to?","n",{"$f":"IF(UPPER(B4)=\"Y\",\"\",IF(UPPER(B4)=\"N\",\"\",\"ERROR-Must be Y or N\"))","v":""},null,"Altitude factors may be included or excluded from the calculations.  There are three different factors in the calculation that relate to altitude."]
["If it is important, rank your preference in 1, 2, 3, 4 order with"]
["  1 being the most preferred, 4 being least."]
["    South Country",3,{"$f":"IF(B7<1,\"ERROR-Must be in 1-4 range\",IF(B7>4,\"ERROR-Must be in 1-4 range\",\"\"))","v":""},null,"   Factor:","Include?"]
["    Central Country",4,{"$f":"IF(B8<1,\"ERROR-Must be in 1-4 range\",IF(B8>4,\"ERROR-Must be in 1-4 range\",\"\"))","v":""},null,"     Highest camp elevation:","n",{"$f":"IF(UPPER(F8)=\"Y\",\"\",IF(UPPER(F8)=\"N\",\"\",\"ERROR-enter a 'y' or 'n'\"))","v":""}]
["    North Country",1,{"$f":"IF(B9<1,\"ERROR-Must be in 1-4 range\",IF(B9>4,\"ERROR-Must be in 1-4 range\",\"\"))","v":""},null,"     Trek camp elevation change:","n",{"$f":"IF(UPPER(F9)=\"Y\",\"\",IF(UPPER(F9)=\"N\",\"\",\"ERROR-enter a 'y' or 'n'\"))","v":""}]
["    Valle Vidal",2,{"$f":"IF(B10<1,\"ERROR-Must be in 1-4 range\",IF(B10>4,\"ERROR-Must be in 1-4 range\",\"\"))","v":""},null,"     Average daily change:","y",{"$f":"IF(UPPER(F10)=\"Y\",\"\",IF(UPPER(F10)=\"N\",\"\",\"ERROR-enter a 'y' or 'n'\"))","v":""}]
[{"$f":"IF(LOWER(areaImportant)=\"y\",(IF(validAreaRanking(),\"\",\"ERROR—rank preferences 1 to 4\")),\"\")","v":""}]
[]
["Rate the capability of your crew on a scale of 1 to 10 with",null,null,null,"How much more important are programs than the other factors such as distance, country, altitude, Tooth of Time, etc. in your selection of an itinerary?  Enter y if programs are more important, n if should be treated as lower priority than other factors."]
["1 indicating a young crew with little backpacking experience"]
["and 10 indicating an older crew with a lot of experience."]
[]
["    Capability",3]
[{"$f":"IF(B17>0,IF(B17<11,\"\",\"ERROR-must be less than 10\"),\"ERROR-must be greater than 0\")","v":""},null,null,null,"  Programs more important?","y"]
[]
["Many itineraries return to Base Camp via bus but some hike in (not necessarily over the Tooth of Time)."]
[null,null,null,null,"Include Itineraries with an Itinerary Rating of:"]
["Is it important to hike into Base Camp?",null,null,null,null,null,"Include?"]
[null,"n",null,null,"Challenging","C","y"]
[null,null,null,null,"Rugged","R","y"]
["Most itineraries depart Base Camp to the trailhead by bus.  There are some that hike out of Base Camp to the first camp.",null,null,null,"Strenuous","S","y"]
[null,null,null,null,"Super Strenuous","SS","y"]
["Is it important to hike out of Base Camp?"]
[null,"n"]
[]
["A key part of a Philmont Trek is climbing peaks.  Is it important to you to climb the following peaks?"]
[]
["Baldy Peak","y"]
["Mount Phillips","y"]
["Tooth of Time","y"]
["Trail Peak","n"]
["Others (Mountaineering)","n"]

{"sheet":"Scores","index":2,"n_rows":44,"n_cols":13,"rows_kept":44,"cut":false,"hidden":false,"merged":[]}
["Program:","Crewmember 1","Crewmember 2","Crewmember 3","Crewmember 4","Crewmember 5","Crewmember 6","Crewmember 7","Crewmember 8","Crewmember 9","Crewmember 10","Crewmember 11","Crewmember 12"]
[{"$f":"INDEX(program_table,ROW()-1)","v":"Archaeology"},15,15,15,15,15,15,15,15,15,15,2,0]
[{"$f":"INDEX(program_table,ROW()-1)","v":"Archery - 3 Dimensional"},20,20,20,20,20,20,20,19,18,17,16,15]
[{"$f":"INDEX(program_table,ROW()-1)","v":"Atlatl (Dart-throwing)"},2,13,10,2,0,7,13,10,2,0,7,10]
[{"$f":"INDEX(program_table,ROW()-1)","v":"Baldy Mountain"},18,18,18,18,18,18,18,18,18,18,5,3]
[{"$f":"INDEX(program_table,ROW()-1)","v":"Blacksmithing"},2,0,15,0,18,20,0,15,0,18,20,0]
[{"$f":"INDEX(program_table,ROW()-1)","v":"Bouldering"},2,20,0,14,6,10,20,0,14,6,10,9]
[{"$f":"INDEX(program_table,ROW()-1)","v":"Campfire (evening)"},2,20,0,14,6,10,20,0,14,6,10,9]
[{"$f":"INDEX(program_table,ROW()-1)","v":"Cantina"},2,5,15,0,20,7,5,15,0,0,7,8]
[{"$f":"INDEX(program_table,ROW()-1)","v":"Challenge Events"},2,19,0,0,9,9,19,0,0,9,9,11]
[{"$f":"INDEX(program_table,ROW()-1)","v":"Chuckwagon Dinner"},2,10,5,0,0,7,10,5,0,null,7,15]
[{"$f":"INDEX(program_table,ROW()-1)","v":"Cowboy Action Shooting"},2,20,5,0,0,5,20,5,0,null,5,11]
[{"$f":"INDEX(program_table,ROW()-1)","v":"Demonstration Forest"},2,11,null,13,null,4,10,null,15,0,null,18]
[{"$f":"INDEX(program_table,ROW()-1)","v":"Fishing"},2,10,0,13,0,4,10,0,13,0,4,18]
[{"$f":"INDEX(program_table,ROW()-1)","v":"Fly Tying"},2,13,10,2,null,7,13,10,2,0,7,10]
[{"$f":"INDEX(program_table,ROW()-1)","v":"Fur Trapper Rendezvous"},2,12,5,3,null,10,12,5,3,0,10,20]
[{"$f":"INDEX(program_table,ROW()-1)","v":"Gold Mining & Panning"},2,8,0,16,5,8,0,8,16,8,3,10]
[{"$f":"INDEX(program_table,ROW()-1)","v":"High Ropes & Climbing Tower"},2,1,1,17,6,4,1,1,17,6,4,11]
[{"$f":"INDEX(program_table,ROW()-1)","v":"Historic Chase Ranch"},2,10,6,15,10,5,10,0,null,1,20,18]
[{"$f":"INDEX(program_table,ROW()-1)","v":"Homesteading"},2,3,5,0,0,5,20,5,0,0,7,15]
[{"$f":"INDEX(program_table,ROW()-1)","v":"Horse Rides"},2,2,15,18,0,10,2,15,18,0,10,12]
[{"$f":"INDEX(program_table,ROW()-1)","v":"Inspiration Point Hike"},2,19,0,6,0,12,19,0,6,0,12,0]
[{"$f":"INDEX(program_table,ROW()-1)","v":"Laser Shot Shooting Range"},15,2,0,12,0,12,2,10,8,0,20,5]
[{"$f":"INDEX(program_table,ROW()-1)","v":"Lodge/Cabin Tours"},2,6,5,8,9,10,7,7,3,2,1,9]
[{"$f":"INDEX(program_table,ROW()-1)","v":"Low Impact Camping"},18,17,6,null,12,13,5,16,3,13,14,18]
[{"$f":"INDEX(program_table,ROW()-1)","v":"Mexican Dinner"},10,0,5,null,16,9,0,5,0,16,null,0]
[{"$f":"INDEX(program_table,ROW()-1)","v":"Mine Tour"},19,20,null,14,7,10,20,null,14,7,2,8]
[{"$f":"INDEX(program_table,ROW()-1)","v":"Mount Phillips"},19,20,0,14,7,10,20,18,14,7,10,8]
[{"$f":"INDEX(program_table,ROW()-1)","v":"Mountaineering"},18,5,10,5,19,20,null,10,15,5,14,19]
[{"$f":"INDEX(program_table,ROW()-1)","v":"Muzzle Loading Rifle"},20,5,16,20,20,1,15,15,null,18,20,20]
[{"$f":"INDEX(program_table,ROW()-1)","v":"New Mexico Homestead"},14,15,10,17,20,4,20,15,17,null,5,20]
[{"$f":"INDEX(program_table,ROW()-1)","v":"Petroglyph Tour"},19,20,null,14,7,10,20,null,14,7,10,8]
[{"$f":"INDEX(program_table,ROW()-1)","v":"Post Civil War Encampment"},8,2,10,20,0,12,2,10,15,0,12,10]
[{"$f":"INDEX(program_table,ROW()-1)","v":"Railroading"},10,5,5,7,4,12,5,5,7,4,12,15]
[{"$f":"INDEX(program_table,ROW()-1)","v":"Rock Climbing & Rappelling"},18,17,6,null,12,13,5,16,3,13,14,18]
[{"$f":"INDEX(program_table,ROW()-1)","v":"Rocky Mountain Fur Co."},15,10,20,15,12,20,10,6,10,5," ",15]
[{"$f":"INDEX(program_table,ROW()-1)","v":"Shooting/Reloading - .30-06"},15,10,20,15,12,20,10,6,10,5," ",15]
[{"$f":"INDEX(program_table,ROW()-1)","v":"Shotgun Shooting/Reloading - 12 Gauge"},15,10,20,15,12,20,10,6,10,5," ",15]
[{"$f":"INDEX(program_table,ROW()-1)","v":"Spar Pole Climbing"},10,0,5,null,16,9,0,5,0,16,null,0]
[{"$f":"INDEX(program_table,ROW()-1)","v":"Tie Making & Crosscut Saws"},11,18,20,15,null,10,20,null,15,18,10,20]
[{"$f":"INDEX(program_table,ROW()-1)","v":"Tomahawk Throwing"},11,18,null,0,null,10,20,null,0,null,10,20]
[{"$f":"INDEX(program_table,ROW()-1)","v":"Tooth of Time"},20,14,16,20,20,null,15,15,12,18,20,20]
[{"$f":"INDEX(program_table,ROW()-1)","v":"Trail Peak"},11,5,null,null,null,10,20,null,null,0,10,20]
[{"$f":"INDEX(program_table,ROW()-1)","v":"Western Lore/Branding"},15,10," ",10,8,5,8," ",14,8,5,10]

{"sheet":"Results","index":3,"n_rows":50,"n_cols":16,"rows_kept":50,"cut":false,"hidden":false,"merged":[[16,4,16,5],[1,10,1,15],[0,0,0,15],[1,8,2,8],[1,9,2,9],[1,4,2,4],[1,5,2,5]]}
["Philmont Trek Itinerary Selection"]
[null,null,null,null,"Choice",null,null,null,"# X's","Pgm Index","Top Itinerary/Program Cross Reference"]
["Itinerary","Classification","Distance",{"$f":"IF(meanMedian=\"Mean\",\"Average\",meanMedian) & \" Score\"","v":"Total Score"},null,null,"Program","Value",null,null,"7-9","7-1","7-4","7-3","7-6","7-7"]
["7-9","Rugged",35,10635.9,"#1",null,"Archery - 3 Dimensional",225,{"$f":"COUNTIF(K4:P4,\"X\")","v":1},2,{"$f":"IF($G4=0,\"\",IF(INDEX(itineraryPrograms,numericItinerary(K$3),$J4)=\"y\",\"X\",\"\"))","v":""},{"$f":"IF($G4=0,\"\",IF(INDEX(itineraryPrograms,numericItinerary(L$3),$J4)=\"y\",\"X\",\"\"))","v":""},{"$f":"IF($G4=0,\"\",IF(INDEX(itineraryPrograms,numericItinerary(M$3),$J4)=\"y\",\"X\",\"\"))","v":""},{"$f":"IF($G4=0,\"\",IF(INDEX(itineraryPrograms,numericItinerary(N$3),$J4)=\"y\",\"X\",\"\"))","v":""},{"$f":"IF($G4=0,\"\",IF(INDEX(itineraryPrograms,numericItinerary(O$3),$J4)=\"y\",\"X\",\"\"))","v":"X"},{"$f":"IF($G4=0,\"\",IF(INDEX(itineraryPrograms,numericItinerary(P$3),$J4)=\"y\",\"X\",\"\"))","v":""}]
["7-1","Challenging",29,10392,"#2",null,"Baldy Mountain",188,2,4,{"$f":"IF($G5=0,\"\",IF(INDEX(itineraryPrograms,numericItinerary(K$3),$J5)=\"y\",\"X\",\"\"))","v":""},{"$f":"IF($G5=0,\"\",IF(INDEX(itineraryPrograms,numericItinerary(L$3),$J5)=\"y\",\"X\",\"\"))","v":""},{"$f":"IF($G5=0,\"\",IF(INDEX(itineraryPrograms,numericItinerary(M$3),$J5)=\"y\",\"X\",\"\"))","v":"X"},{"$f":"IF($G5=0,\"\",IF(INDEX(itineraryPrograms,numericItinerary(N$3),$J5)=\"y\",\"X\",\"\"))","v":"X"},{"$f":"IF($G5=0,\"\",IF(INDEX(itineraryPrograms,numericItinerary(O$3),$J5)=\"y\",\"X\",\"\"))","v":""},{"$f":"IF($G5=0,\"\",IF(INDEX(itineraryPrograms,numericItinerary(P$3),$J5)=\"y\",\"X\",\"\"))","v":""}]
["7-4","Rugged",32,9931.2000000000007,"#3",null,"Muzzle Loading Rifle",170,4,29,{"$f":"IF($G6=0,\"\",IF(INDEX(itineraryPrograms,numericItinerary(K$3),$J6)=\"y\",\"X\",\"\"))","v":""},{"$f":"IF($G6=0,\"\",IF(INDEX(itineraryPrograms,numericItinerary(L$3),$J6)=\"y\",\"X\",\"\"))","v":"X"},{"$f":"IF($G6=0,\"\",IF(INDEX(itineraryPrograms,numericItinerary(M$3),$J6)=\"y\",\"X\",\"\"))","v":"X"},{"$f":"IF($G6=0,\"\",IF(INDEX(itineraryPrograms,numericItinerary(N$3),$J6)=\"y\",\"X\",\"\"))","v":"X"},{"$f":"IF($G6=0,\"\",IF(INDEX(itineraryPrograms,numericItinerary(O$3),$J6)=\"y\",\"X\",\"\"))","v":""},{"$f":"IF($G6=0,\"\",IF(INDEX(itineraryPrograms,numericItinerary(P$3),$J6)=\"y\",\"X\",\"\"))","v":"X"}]
["7-3","Challenging",27,9726,"#4",null,"Shooting/Reloading - .30-06",170,0,36,{"$f":"IF($G7=0,\"\",IF(INDEX(itineraryPrograms,numericItinerary(K$3),$J7)=\"y\",\"X\",\"\"))","v":""},{"$f":"IF($G7=0,\"\",IF(INDEX(itineraryPrograms,numericItinerary(L$3),$J7)=\"y\",\"X\",\"\"))","v":""},{"$f":"IF($G7=0,\"\",IF(INDEX(itineraryPrograms,numericItinerary(M$3),$J7)=\"y\",\"X\",\"\"))","v":""},{"$f":"IF($G7=0,\"\",IF(INDEX(itineraryPrograms,numericItinerary(N$3),$J7)=\"y\",\"X\",\"\"))","v":""},{"$f":"IF($G7=0,\"\",IF(INDEX(itineraryPrograms,numericItinerary(O$3),$J7)=\"y\",\"X\",\"\"))","v":""},{"$f":"IF($G7=0,\"\",IF(INDEX(itineraryPrograms,numericItinerary(P$3),$J7)=\"y\",\"X\",\"\"))","v":""}]
["7-6","Rugged",35,9694.2000000000007,"#5",null,"New Mexico Homestead",157,2,30,{"$f":"IF($G8=0,\"\",IF(INDEX(itineraryPrograms,numericItinerary(K$3),$J8)=\"y\",\"X\",\"\"))","v":"X"},{"$f":"IF($G8=0,\"\",IF(INDEX(itineraryPrograms,numericItinerary(L$3),$J8)=\"y\",\"X\",\"\"))","v":""},{"$f":"IF($G8=0,\"\",IF(INDEX(itineraryPrograms,numericItinerary(M$3),$J8)=\"y\",\"X\",\"\"))","v":""},{"$f":"IF($G8=0,\"\",IF(INDEX(itineraryPrograms,numericItinerary(N$3),$J8)=\"y\",\"X\",\"\"))","v":""},{"$f":"IF($G8=0,\"\",IF(INDEX(itineraryPrograms,numericItinerary(O$3),$J8)=\"y\",\"X\",\"\"))","v":""},{"$f":"IF($G8=0,\"\",IF(INDEX(itineraryPrograms,numericItinerary(P$3),$J8)=\"y\",\"X\",\"\"))","v":"X"}]
["7-7","Rugged",33,9554.9,"#6",null,"Shotgun Shooting/Reloading - 12 Gauge",157,0,37,{"$f":"IF($G9=0,\"\",IF(INDEX(itineraryPrograms,numericItinerary(K$3),$J9)=\"y\",\"X\",\"\"))","v":""},{"$f":"IF($G9=0,\"\",IF(INDEX(itineraryPrograms,numericItinerary(L$3),$J9)=\"y\",\"X\",\"\"))","v":""},{"$f":"IF($G9=0,\"\",IF(INDEX(itineraryPrograms,numericItinerary(M$3),$J9)=\"y\",\"X\",\"\"))","v":""},{"$f":"IF($G9=0,\"\",IF(INDEX(itineraryPrograms,numericItinerary(N$3),$J9)=\"y\",\"X\",\"\"))","v":""},{"$f":"IF($G9=0,\"\",IF(INDEX(itineraryPrograms,numericItinerary(O$3),$J9)=\"y\",\"X\",\"\"))","v":""},{"$f":"IF($G9=0,\"\",IF(INDEX(itineraryPrograms,numericItinerary(P$3),$J9)=\"y\",\"X\",\"\"))","v":""}]
["7-2","Challenging",28,9492.7999999999993,null,null,"Archaeology",152,1,1,{"$f":"IF($G10=0,\"\",IF(INDEX(itineraryPrograms,numericItinerary(K$3),$J10)=\"y\",\"X\",\"\"))","v":""},{"$f":"IF($G10=0,\"\",IF(INDEX(itineraryPrograms,numericItinerary(L$3),$J10)=\"y\",\"X\",\"\"))","v":"X"},{"$f":"IF($G10=0,\"\",IF(INDEX(itineraryPrograms,numericItinerary(M$3),$J10)=\"y\",\"X\",\"\"))","v":""},{"$f":"IF($G10=0,\"\",IF(INDEX(itineraryPrograms,numericItinerary(N$3),$J10)=\"y\",\"X\",\"\"))","v":""},{"$f":"IF($G10=0,\"\",IF(INDEX(itineraryPrograms,numericItinerary(O$3),$J10)=\"y\",\"X\",\"\"))","v":""},{"$f":"IF($G10=0,\"\",IF(INDEX(itineraryPrograms,numericItinerary(P$3),$J10)=\"y\",\"X\",\"\"))","v":""}]
["7-8","Rugged",34,9365.9,null,null,"Mount Phillips",147,3,27,{"$f":"IF($G11=0,\"\",IF(INDEX(itineraryPrograms,numericItinerary(K$3),$J11)=\"y\",\"X\",\"\"))","v":""},{"$f":"IF($G11=0,\"\",IF(INDEX(itineraryPrograms,numericItinerary(L$3),$J11)=\"y\",\"X\",\"\"))","v":"X"},{"$f":"IF($G11=0,\"\",IF(INDEX(itineraryPrograms,numericItinerary(M$3),$J11)=\"y\",\"X\",\"\"))","v":"X"},{"$f":"IF($G11=0,\"\",IF(INDEX(itineraryPrograms,numericItinerary(N$3),$J11)=\"y\",\"X\",\"\"))","v":"X"},{"$f":"IF($G11=0,\"\",IF(INDEX(itineraryPrograms,numericItinerary(O$3),$J11)=\"y\",\"X\",\"\"))","v":""},{"$f":"IF($G11=0,\"\",IF(INDEX(itineraryPrograms,numericItinerary(P$3),$J11)=\"y\",\"X\",\"\"))","v":""}]
["7-5","Challenging",31,9254.5,null,null,"Rock Climbing & Rappelling",147,1,34,{"$f":"IF($G12=0,\"\",IF(INDEX(itineraryPrograms,numericItinerary(K$3),$J12)=\"y\",\"X\",\"\"))","v":"X"},{"$f":"IF($G12=0,\"\",IF(INDEX(itineraryPrograms,numericItinerary(L$3),$J12)=\"y\",\"X\",\"\"))","v":""},{"$f":"IF($G12=0,\"\",IF(INDEX(itineraryPrograms,numericItinerary(M$3),$J12)=\"y\",\"X\",\"\"))","v":""},{"$f":"IF($G12=0,\"\",IF(INDEX(itineraryPrograms,numericItinerary(N$3),$J12)=\"y\",\"X\",\"\"))","v":""},{"$f":"IF($G12=0,\"\",IF(INDEX(itineraryPrograms,numericItinerary(O$3),$J12)=\"y\",\"X\",\"\"))","v":""},{"$f":"IF($G12=0,\"\",IF(INDEX(itineraryPrograms,numericItinerary(P$3),$J12)=\"y\",\"X\",\"\"))","v":""}]
["7-10","Rugged",34,9196.9,null,null,"Mountaineering",140,6,28,{"$f":"IF($G13=0,\"\",IF(INDEX(itineraryPrograms,numericItinerary(K$3),$J13)=\"y\",\"X\",\"\"))","v":"X"},{"$f":"IF($G13=0,\"\",IF(INDEX(itineraryPrograms,numericItinerary(L$3),$J13)=\"y\",\"X\",\"\"))","v":"X"},{"$f":"IF($G13=0,\"\",IF(INDEX(itineraryPrograms,numericItinerary(M$3),$J13)=\"y\",\"X\",\"\"))","v":"X"},{"$f":"IF($G13=0,\"\",IF(INDEX(itineraryPrograms,numericItinerary(N$3),$J13)=\"y\",\"X\",\"\"))","v":"X"},{"$f":"IF($G13=0,\"\",IF(INDEX(itineraryPrograms,numericItinerary(O$3),$J13)=\"y\",\"X\",\"\"))","v":"X"},{"$f":"IF($G13=0,\"\",IF(INDEX(itineraryPrograms,numericItinerary(P$3),$J13)=\"y\",\"X\",\"\"))","v":"X"}]
["7-13","Strenuous",39,9130.1,null,null,"Rocky Mountain Fur Co.",140,null,35]
["7-16","Super Strenuous",42,9028.7999999999993,null,null,"Trail Peak",138,null,42]
["7-14","Super Strenuous",40,8679.7999999999993,null,null,"Western Lore/Branding",138,6,43,{"$f":"IF($G16=0,\"\",IF(INDEX(itineraryPrograms,numericItinerary(K$3),$J16)=\"y\",\"X\",\"\"))","v":"X"},{"$f":"IF($G16=0,\"\",IF(INDEX(itineraryPrograms,numericItinerary(L$3),$J16)=\"y\",\"X\",\"\"))","v":"X"},{"$f":"IF($G16=0,\"\",IF(INDEX(itineraryPrograms,numericItinerary(M$3),$J16)=\"y\",\"X\",\"\"))","v":"X"},{"$f":"IF($G16=0,\"\",IF(INDEX(itineraryPrograms,numericItinerary(N$3),$J16)=\"y\",\"X\",\"\"))","v":"X"},{"$f":"IF($G16=0,\"\",IF(INDEX(itineraryPrograms,numericItinerary(O$3),$J16)=\"y\",\"X\",\"\"))","v":"X"},{"$f":"IF($G16=0,\"\",IF(INDEX(itineraryPrograms,numericItinerary(P$3),$J16)=\"y\",\"X\",\"\"))","v":"X"}]
["7-15","Super Strenuous",41,8677.7999999999993,{"$f":"meanMedian & \" Score Selected\"","v":"Total Score Selected"},null,"Low Impact Camping",135,1,24,{"$f":"IF($G17=0,\"\",IF(INDEX(itineraryPrograms,numericItinerary(K$3),$J17)=\"y\",\"X\",\"\"))","v":""},{"$f":"IF($G17=0,\"\",IF(INDEX(itineraryPrograms,numericItinerary(L$3),$J17)=\"y\",\"X\",\"\"))","v":""},{"$f":"IF($G17=0,\"\",IF(INDEX(itineraryPrograms,numericItinerary(M$3),$J17)=\"y\",\"X\",\"\"))","v":""},{"$f":"IF($G17=0,\"\",IF(INDEX(itineraryPrograms,numericItinerary(N$3),$J17)=\"y\",\"X\",\"\"))","v":""},{"$f":"IF($G17=0,\"\",IF(INDEX(itineraryPrograms,numericItinerary(O$3),$J17)=\"y\",\"X\",\"\"))","v":"X"},{"$f":"IF($G17=0,\"\",IF(INDEX(itineraryPrograms,numericItinerary(P$3),$J17)=\"y\",\"X\",\"\"))","v":""}]
["7-11","Strenuous",38,8505.7999999999993,null,null,"Tooth of Time",135,2,41,{"$f":"IF($G18=0,\"\",IF(INDEX(itineraryPrograms,numericItinerary(K$3),$J18)=\"y\",\"X\",\"\"))","v":"X"},{"$f":"IF($G18=0,\"\",IF(INDEX(itineraryPrograms,numericItinerary(L$3),$J18)=\"y\",\"X\",\"\"))","v":""},{"$f":"IF($G18=0,\"\",IF(INDEX(itineraryPrograms,numericItinerary(M$3),$J18)=\"y\",\"X\",\"\"))","v":""},{"$f":"IF($G18=0,\"\",IF(INDEX(itineraryPrograms,numericItinerary(N$3),$J18)=\"y\",\"X\",\"\"))","v":""},{"$f":"IF($G18=0,\"\",IF(INDEX(itineraryPrograms,numericItinerary(O$3),$J18)=\"y\",\"X\",\"\"))","v":""},{"$f":"IF($G18=0,\"\",IF(INDEX(itineraryPrograms,numericItinerary(P$3),$J18)=\"y\",\"X\",\"\"))","v":"X"}]
["7-12","Strenuous",39,8376.7999999999993,null,null,"Spar Pole Climbing",129,1,38,{"$f":"IF($G19=0,\"\",IF(INDEX(itineraryPrograms,numericItinerary(K$3),$J19)=\"y\",\"X\",\"\"))","v":""},{"$f":"IF($G19=0,\"\",IF(INDEX(itineraryPrograms,numericItinerary(L$3),$J19)=\"y\",\"X\",\"\"))","v":""},{"$f":"IF($G19=0,\"\",IF(INDEX(itineraryPrograms,numericItinerary(M$3),$J19)=\"y\",\"X\",\"\"))","v":""},{"$f":"IF($G19=0,\"\",IF(INDEX(itineraryPrograms,numericItinerary(N$3),$J19)=\"y\",\"X\",\"\"))","v":""},{"$f":"IF($G19=0,\"\",IF(INDEX(itineraryPrograms,numericItinerary(O$3),$J19)=\"y\",\"X\",\"\"))","v":"X"},{"$f":"IF($G19=0,\"\",IF(INDEX(itineraryPrograms,numericItinerary(P$3),$J19)=\"y\",\"X\",\"\"))","v":""}]
["PREFERENCES:",null,null,null,null,null,"Petroglyph Tour",129,1,31,{"$f":"IF($G20=0,\"\",IF(INDEX(itineraryPrograms,numericItinerary(K$3),$J20)=\"y\",\"X\",\"\"))","v":""},{"$f":"IF($G20=0,\"\",IF(INDEX(itineraryPrograms,numericItinerary(L$3),$J20)=\"y\",\"X\",\"\"))","v":"X"},{"$f":"IF($G20=0,\"\",IF(INDEX(itineraryPrograms,numericItinerary(M$3),$J20)=\"y\",\"X\",\"\"))","v":""},{"$f":"IF($G20=0,\"\",IF(INDEX(itineraryPrograms,numericItinerary(N$3),$J20)=\"y\",\"X\",\"\"))","v":""},{"$f":"IF($G20=0,\"\",IF(INDEX(itineraryPrograms,numericItinerary(O$3),$J20)=\"y\",\"X\",\"\"))","v":""},{"$f":"IF($G20=0,\"\",IF(INDEX(itineraryPrograms,numericItinerary(P$3),$J20)=\"y\",\"X\",\"\"))","v":""}]
["Area Important?",{"$f":"UPPER(areaImportant)","v":"N"},null,null,null,null,"Mine Tour",121,2,26,{"$f":"IF($G21=0,\"\",IF(INDEX(itineraryPrograms,numericItinerary(K$3),$J21)=\"y\",\"X\",\"\"))","v":""},{"$f":"IF($G21=0,\"\",IF(INDEX(itineraryPrograms,numericItinerary(L$3),$J21)=\"y\",\"X\",\"\"))","v":"X"},{"$f":"IF($G21=0,\"\",IF(INDEX(itineraryPrograms,numericItinerary(M$3),$J21)=\"y\",\"X\",\"\"))","v":"X"},{"$f":"IF($G21=0,\"\",IF(INDEX(itineraryPrograms,numericItinerary(N$3),$J21)=\"y\",\"X\",\"\"))","v":""},{"$f":"IF($G21=0,\"\",IF(INDEX(itineraryPrograms,numericItinerary(O$3),$J21)=\"y\",\"X\",\"\"))","v":""},{"$f":"IF($G21=0,\"\",IF(INDEX(itineraryPrograms,numericItinerary(P$3),$J21)=\"y\",\"X\",\"\"))","v":""}]
["      South:",{"$f":"IF(UPPER(areaImportant)=\"Y\",Preferences!B7,\"\")","v":""},null,null,null,null,"Railroading",121,0,33,{"$f":"IF($G22=0,\"\",IF(INDEX(itineraryPrograms,numericItinerary(K$3),$J22)=\"y\",\"X\",\"\"))","v":""},{"$f":"IF($G22=0,\"\",IF(INDEX(itineraryPrograms,numericItinerary(L$3),$J22)=\"y\",\"X\",\"\"))","v":""},{"$f":"IF($G22=0,\"\",IF(INDEX(itineraryPrograms,numericItinerary(M$3),$J22)=\"y\",\"X\",\"\"))","v":""},{"$f":"IF($G22=0,\"\",IF(INDEX(itineraryPrograms,numericItinerary(N$3),$J22)=\"y\",\"X\",\"\"))","v":""},{"$f":"IF($G22=0,\"\",IF(INDEX(itineraryPrograms,numericItinerary(O$3),$J22)=\"y\",\"X\",\"\"))","v":""},{"$f":"IF($G22=0,\"\",IF(INDEX(itineraryPrograms,numericItinerary(P$3),$J22)=\"y\",\"X\",\"\"))","v":""}]
["      Central:",{"$f":"IF(UPPER(areaImportant)=\"Y\",Preferences!B8,\"\")","v":""},null,null,null,null,"Bouldering",111,0,6,{"$f":"IF($G23=0,\"\",IF(INDEX(itineraryPrograms,numericItinerary(K$3),$J23)=\"y\",\"X\",\"\"))","v":""},{"$f":"IF($G23=0,\"\",IF(INDEX(itineraryPrograms,numericItinerary(L$3),$J23)=\"y\",\"X\",\"\"))","v":""},{"$f":"IF($G23=0,\"\",IF(INDEX(itineraryPrograms,numericItinerary(M$3),$J23)=\"y\",\"X\",\"\"))","v":""},{"$f":"IF($G23=0,\"\",IF(INDEX(itineraryPrograms,numericItinerary(N$3),$J23)=\"y\",\"X\",\"\"))","v":""},{"$f":"IF($G23=0,\"\",IF(INDEX(itineraryPrograms,numericItinerary(O$3),$J23)=\"y\",\"X\",\"\"))","v":""},{"$f":"IF($G23=0,\"\",IF(INDEX(itineraryPrograms,numericItinerary(P$3),$J23)=\"y\",\"X\",\"\"))","v":""}]
["      North:",{"$f":"IF(UPPER(areaImportant)=\"Y\",Preferences!B9,\"\")","v":""},null,null,null,null,"Campfire (evening)",111,4,7,{"$f":"IF($G24=0,\"\",IF(INDEX(itineraryPrograms,numericItinerary(K$3),$J24)=\"y\",\"X\",\"\"))","v":"X"},{"$f":"IF($G24=0,\"\",IF(INDEX(itineraryPrograms,numericItinerary(L$3),$J24)=\"y\",\"X\",\"\"))","v":"X"},{"$f":"IF($G24=0,\"\",IF(INDEX(itineraryPrograms,numericItinerary(M$3),$J24)=\"y\",\"X\",\"\"))","v":""},{"$f":"IF($G24=0,\"\",IF(INDEX(itineraryPrograms,numericItinerary(N$3),$J24)=\"y\",\"X\",\"\"))","v":""},{"$f":"IF($G24=0,\"\",IF(INDEX(itineraryPrograms,numericItinerary(O$3),$J24)=\"y\",\"X\",\"\"))","v":"X"},{"$f":"IF($G24=0,\"\",IF(INDEX(itineraryPrograms,numericItinerary(P$3),$J24)=\"y\",\"X\",\"\"))","v":"X"}]
["      Valle Vidal:",{"$f":"IF(UPPER(areaImportant)=\"Y\",Preferences!B10,\"\")","v":""},null,null,null,null,"Blacksmithing",108,3,5,{"$f":"IF($G25=0,\"\",IF(INDEX(itineraryPrograms,numericItinerary(K$3),$J25)=\"y\",\"X\",\"\"))","v":""},{"$f":"IF($G25=0,\"\",IF(INDEX(itineraryPrograms,numericItinerary(L$3),$J25)=\"y\",\"X\",\"\"))","v":"X"},{"$f":"IF($G25=0,\"\",IF(INDEX(itineraryPrograms,numericItinerary(M$3),$J25)=\"y\",\"X\",\"\"))","v":"X"},{"$f":"IF($G25=0,\"\",IF(INDEX(itineraryPrograms,numericItinerary(N$3),$J25)=\"y\",\"X\",\"\"))","v":""},{"$f":"IF($G25=0,\"\",IF(INDEX(itineraryPrograms,numericItinerary(O$3),$J25)=\"y\",\"X\",\"\"))","v":""},{"$f":"IF($G25=0,\"\",IF(INDEX(itineraryPrograms,numericItinerary(P$3),$J25)=\"y\",\"X\",\"\"))","v":"X"}]
["Capability:",{"$f":"skillLevel","v":3},null,null,null,null,"Horse Rides",104,2,20,{"$f":"IF($G26=0,\"\",IF(INDEX(itineraryPrograms,numericItinerary(K$3),$J26)=\"y\",\"X\",\"\"))","v":"X"},{"$f":"IF($G26=0,\"\",IF(INDEX(itineraryPrograms,numericItinerary(L$3),$J26)=\"y\",\"X\",\"\"))","v":""},{"$f":"IF($G26=0,\"\",IF(INDEX(itineraryPrograms,numericItinerary(M$3),$J26)=\"y\",\"X\",\"\"))","v":""},{"$f":"IF($G26=0,\"\",IF(INDEX(itineraryPrograms,numericItinerary(N$3),$J26)=\"y\",\"X\",\"\"))","v":""},{"$f":"IF($G26=0,\"\",IF(INDEX(itineraryPrograms,numericItinerary(O$3),$J26)=\"y\",\"X\",\"\"))","v":""},{"$f":"IF($G26=0,\"\",IF(INDEX(itineraryPrograms,numericItinerary(P$3),$J26)=\"y\",\"X\",\"\"))","v":"X"}]
["Hike Out?",{"$f":"UPPER(hikeOut)","v":"N"},null,null,null,null,"Tie Making & Crosscut Saws",101,2,39,{"$f":"IF($G27=0,\"\",IF(INDEX(itineraryPrograms,numericItinerary(K$3),$J27)=\"y\",\"X\",\"\"))","v":""},{"$f":"IF($G27=0,\"\",IF(INDEX(itineraryPrograms,numericItinerary(L$3),$J27)=\"y\",\"X\",\"\"))","v":"X"},{"$f":"IF($G27=0,\"\",IF(INDEX(itineraryPrograms,numericItinerary(M$3),$J27)=\"y\",\"X\",\"\"))","v":""},{"$f":"IF($G27=0,\"\",IF(INDEX(itineraryPrograms,numericItinerary(N$3),$J27)=\"y\",\"X\",\"\"))","v":""},{"$f":"IF($G27=0,\"\",IF(INDEX(itineraryPrograms,numericItinerary(O$3),$J27)=\"y\",\"X\",\"\"))","v":"X"},{"$f":"IF($G27=0,\"\",IF(INDEX(itineraryPrograms,numericItinerary(P$3),$J27)=\"y\",\"X\",\"\"))","v":""}]
["Hike In/Tooth?",{"$f":"UPPER(hikeIn)","v":"N"},null,null,null,null,"Historic Chase Ranch",97,0,18,{"$f":"IF($G28=0,\"\",IF(INDEX(itineraryPrograms,numericItinerary(K$3),$J28)=\"y\",\"X\",\"\"))","v":""},{"$f":"IF($G28=0,\"\",IF(INDEX(itineraryPrograms,numericItinerary(L$3),$J28)=\"y\",\"X\",\"\"))","v":""},{"$f":"IF($G28=0,\"\",IF(INDEX(itineraryPrograms,numericItinerary(M$3),$J28)=\"y\",\"X\",\"\"))","v":""},{"$f":"IF($G28=0,\"\",IF(INDEX(itineraryPrograms,numericItinerary(N$3),$J28)=\"y\",\"X\",\"\"))","v":""},{"$f":"IF($G28=0,\"\",IF(INDEX(itineraryPrograms,numericItinerary(O$3),$J28)=\"y\",\"X\",\"\"))","v":""},{"$f":"IF($G28=0,\"\",IF(INDEX(itineraryPrograms,numericItinerary(P$3),$J28)=\"y\",\"X\",\"\"))","v":""}]
["Max Altitude?",{"$f":"UPPER(altitudeMax)","v":"N"},null,null,null,null,"Tomahawk Throwing",91,null,40,{"$f":"IF($G29=0,\"\",IF(INDEX(itineraryPrograms,numericItinerary(K$3),$J29)=\"y\",\"X\",\"\"))","v":""},{"$f":"IF($G29=0,\"\",IF(INDEX(itineraryPrograms,numericItinerary(L$3),$J29)=\"y\",\"X\",\"\"))","v":"X"},{"$f":"IF($G29=0,\"\",IF(INDEX(itineraryPrograms,numericItinerary(M$3),$J29)=\"y\",\"X\",\"\"))","v":"X"},{"$f":"IF($G29=0,\"\",IF(INDEX(itineraryPrograms,numericItinerary(N$3),$J29)=\"y\",\"X\",\"\"))","v":"X"},{"$f":"IF($G29=0,\"\",IF(INDEX(itineraryPrograms,numericItinerary(O$3),$J29)=\"y\",\"X\",\"\"))","v":"X"},{"$f":"IF($G29=0,\"\",IF(INDEX(itineraryPrograms,numericItinerary(P$3),$J29)=\"y\",\"X\",\"\"))","v":""}]
["Total elevation?",{"$f":"UPPER(altitudeChange)","v":"N"},null,null,null,null,"Challenge Events",87,null,9,{"$f":"IF($G30=0,\"\",IF(INDEX(itineraryPrograms,numericItinerary(K$3),$J30)=\"y\",\"X\",\"\"))","v":""},{"$f":"IF($G30=0,\"\",IF(INDEX(itineraryPrograms,numericItinerary(L$3),$J30)=\"y\",\"X\",\"\"))","v":""},{"$f":"IF($G30=0,\"\",IF(INDEX(itineraryPrograms,numericItinerary(M$3),$J30)=\"y\",\"X\",\"\"))","v":"X"},{"$f":"IF($G30=0,\"\",IF(INDEX(itineraryPrograms,numericItinerary(N$3),$J30)=\"y\",\"X\",\"\"))","v":"X"},{"$f":"IF($G30=0,\"\",IF(INDEX(itineraryPrograms,numericItinerary(O$3),$J30)=\"y\",\"X\",\"\"))","v":"X"},{"$f":"IF($G30=0,\"\",IF(INDEX(itineraryPrograms,numericItinerary(P$3),$J30)=\"y\",\"X\",\"\"))","v":""}]
["Daily change?",{"$f":"UPPER(altitudeDaily)","v":"Y"},null,null,null,null,"Laser Shot Shooting Range",86,null,22,{"$f":"IF($G31=0,\"\",IF(INDEX(itineraryPrograms,numericItinerary(K$3),$J31)=\"y\",\"X\",\"\"))","v":""},{"$f":"IF($G31=0,\"\",IF(INDEX(itineraryPrograms,numericItinerary(L$3),$J31)=\"y\",\"X\",\"\"))","v":""},{"$f":"IF($G31=0,\"\",IF(INDEX(itineraryPrograms,numericItinerary(M$3),$J31)=\"y\",\"X\",\"\"))","v":""},{"$f":"IF($G31=0,\"\",IF(INDEX(itineraryPrograms,numericItinerary(N$3),$J31)=\"y\",\"X\",\"\"))","v":""},{"$f":"IF($G31=0,\"\",IF(INDEX(itineraryPrograms,numericItinerary(O$3),$J31)=\"y\",\"X\",\"\"))","v":"X"},{"$f":"IF($G31=0,\"\",IF(INDEX(itineraryPrograms,numericItinerary(P$3),$J31)=\"y\",\"X\",\"\"))","v":""}]
["Programs?",{"$f":"UPPER(programsImportant)","v":"Y"},null,null,null,null,"Gold Mining & Panning",84,null,16,{"$f":"IF($G32=0,\"\",IF(INDEX(itineraryPrograms,numericItinerary(K$3),$J32)=\"y\",\"X\",\"\"))","v":""},{"$f":"IF($G32=0,\"\",IF(INDEX(itineraryPrograms,numericItinerary(L$3),$J32)=\"y\",\"X\",\"\"))","v":"X"},{"$f":"IF($G32=0,\"\",IF(INDEX(itineraryPrograms,numericItinerary(M$3),$J32)=\"y\",\"X\",\"\"))","v":"X"},{"$f":"IF($G32=0,\"\",IF(INDEX(itineraryPrograms,numericItinerary(N$3),$J32)=\"y\",\"X\",\"\"))","v":"X"},{"$f":"IF($G32=0,\"\",IF(INDEX(itineraryPrograms,numericItinerary(O$3),$J32)=\"y\",\"X\",\"\"))","v":""},{"$f":"IF($G32=0,\"\",IF(INDEX(itineraryPrograms,numericItinerary(P$3),$J32)=\"y\",\"X\",\"\"))","v":""}]
[null,null,null,null,null,null,"Cantina",84,null,8,{"$f":"IF($G33=0,\"\",IF(INDEX(itineraryPrograms,numericItinerary(K$3),$J33)=\"y\",\"X\",\"\"))","v":"X"},{"$f":"IF($G33=0,\"\",IF(INDEX(itineraryPrograms,numericItinerary(L$3),$J33)=\"y\",\"X\",\"\"))","v":"X"},{"$f":"IF($G33=0,\"\",IF(INDEX(itineraryPrograms,numericItinerary(M$3),$J33)=\"y\",\"X\",\"\"))","v":"X"},{"$f":"IF($G33=0,\"\",IF(INDEX(itineraryPrograms,numericItinerary(N$3),$J33)=\"y\",\"X\",\"\"))","v":"X"},{"$f":"IF($G33=0,\"\",IF(INDEX(itineraryPrograms,numericItinerary(O$3),$J33)=\"y\",\"X\",\"\"))","v":"X"},{"$f":"IF($G33=0,\"\",IF(INDEX(itineraryPrograms,numericItinerary(P$3),$J33)=\"y\",\"X\",\"\"))","v":"X"}]
[null,null,null,null,null,null,"Fur Trapper Rendezvous",82,null,15,{"$f":"IF($G34=0,\"\",IF(INDEX(itineraryPrograms,numericItinerary(K$3),$J34)=\"y\",\"X\",\"\"))","v":""},{"$f":"IF($G34=0,\"\",IF(INDEX(itineraryPrograms,numericItinerary(L$3),$J34)=\"y\",\"X\",\"\"))","v":"X"},{"$f":"IF($G34=0,\"\",IF(INDEX(itineraryPrograms,numericItinerary(M$3),$J34)=\"y\",\"X\",\"\"))","v":"X"},{"$f":"IF($G34=0,\"\",IF(INDEX(itineraryPrograms,numericItinerary(N$3),$J34)=\"y\",\"X\",\"\"))","v":"X"},{"$f":"IF($G34=0,\"\",IF(INDEX(itineraryPrograms,numericItinerary(O$3),$J34)=\"y\",\"X\",\"\"))","v":""},{"$f":"IF($G34=0,\"\",IF(INDEX(itineraryPrograms,numericItinerary(P$3),$J34)=\"y\",\"X\",\"\"))","v":""}]
[null,null,null,{"$f":"MIN(rankedScore)","v":8376.7999999999993},null,null,"Fly Tying",76,null,14]
[null,null,null,{"$f":"MAX(rankedScore)","v":10635.9},null,null,"Inspiration Point Hike",76,null,21]
[null,null,null,null,null,null,"Atlatl (Dart-throwing)",76,null,3]
[null,null,null,null,null,null,"Fishing",74,null,13]
[null,null,null,null,null,null,"Cowboy Action Shooting",73,null,11,{"$f":"IF($G39=0,\"\",IF(INDEX(itineraryPrograms,numericItinerary(K$3),$J39)=\"y\",\"X\",\"\"))","v":""},{"$f":"IF($G39=0,\"\",IF(INDEX(itineraryPrograms,numericItinerary(L$3),$J39)=\"y\",\"X\",\"\"))","v":""},{"$f":"IF($G39=0,\"\",IF(INDEX(itineraryPrograms,numericItinerary(M$3),$J39)=\"y\",\"X\",\"\"))","v":""},{"$f":"IF($G39=0,\"\",IF(INDEX(itineraryPrograms,numericItinerary(N$3),$J39)=\"y\",\"X\",\"\"))","v":""},{"$f":"IF($G39=0,\"\",IF(INDEX(itineraryPrograms,numericItinerary(O$3),$J39)=\"y\",\"X\",\"\"))","v":"X"},{"$f":"IF($G39=0,\"\",IF(INDEX(itineraryPrograms,numericItinerary(P$3),$J39)=\"y\",\"X\",\"\"))","v":""}]
[null,null,null,null,null,null,"Demonstration Forest",73,null,12,{"$f":"IF($G40=0,\"\",IF(INDEX(itineraryPrograms,numericItinerary(K$3),$J40)=\"y\",\"X\",\"\"))","v":""},{"$f":"IF($G40=0,\"\",IF(INDEX(itineraryPrograms,numericItinerary(L$3),$J40)=\"y\",\"X\",\"\"))","v":""},{"$f":"IF($G40=0,\"\",IF(INDEX(itineraryPrograms,numericItinerary(M$3),$J40)=\"y\",\"X\",\"\"))","v":""},{"$f":"IF($G40=0,\"\",IF(INDEX(itineraryPrograms,numericItinerary(N$3),$J40)=\"y\",\"X\",\"\"))","v":""},{"$f":"IF($G40=0,\"\",IF(INDEX(itineraryPrograms,numericItinerary(O$3),$J40)=\"y\",\"X\",\"\"))","v":""},{"$f":"IF($G40=0,\"\",IF(INDEX(itineraryPrograms,numericItinerary(P$3),$J40)=\"y\",\"X\",\"\"))","v":""}]
[null,null,null,null,null,null,"High Ropes & Climbing Tower",71,null,17,{"$f":"IF($G41=0,\"\",IF(INDEX(itineraryPrograms,numericItinerary(K$3),$J41)=\"y\",\"X\",\"\"))","v":""},{"$f":"IF($G41=0,\"\",IF(INDEX(itineraryPrograms,numericItinerary(L$3),$J41)=\"y\",\"X\",\"\"))","v":""},{"$f":"IF($G41=0,\"\",IF(INDEX(itineraryPrograms,numericItinerary(M$3),$J41)=\"y\",\"X\",\"\"))","v":""},{"$f":"IF($G41=0,\"\",IF(INDEX(itineraryPrograms,numericItinerary(N$3),$J41)=\"y\",\"X\",\"\"))","v":""},{"$f":"IF($G41=0,\"\",IF(INDEX(itineraryPrograms,numericItinerary(O$3),$J41)=\"y\",\"X\",\"\"))","v":""},{"$f":"IF($G41=0,\"\",IF(INDEX(itineraryPrograms,numericItinerary(P$3),$J41)=\"y\",\"X\",\"\"))","v":""}]
[null,null,null,null,null,null,"Lodge/Cabin Tours",69,null,23,{"$f":"IF($G42=0,\"\",IF(INDEX(itineraryPrograms,numericItinerary(K$3),$J42)=\"y\",\"X\",\"\"))","v":"X"},{"$f":"IF($G42=0,\"\",IF(INDEX(itineraryPrograms,numericItinerary(L$3),$J42)=\"y\",\"X\",\"\"))","v":""},{"$f":"IF($G42=0,\"\",IF(INDEX(itineraryPrograms,numericItinerary(M$3),$J42)=\"y\",\"X\",\"\"))","v":""},{"$f":"IF($G42=0,\"\",IF(INDEX(itineraryPrograms,numericItinerary(N$3),$J42)=\"y\",\"X\",\"\"))","v":""},{"$f":"IF($G42=0,\"\",IF(INDEX(itineraryPrograms,numericItinerary(O$3),$J42)=\"y\",\"X\",\"\"))","v":"X"},{"$f":"IF($G42=0,\"\",IF(INDEX(itineraryPrograms,numericItinerary(P$3),$J42)=\"y\",\"X\",\"\"))","v":"X"}]
[null,null,null,null,null,null,"Homesteading",62,null,19,{"$f":"IF($G43=0,\"\",IF(INDEX(itineraryPrograms,numericItinerary(K$3),$J43)=\"y\",\"X\",\"\"))","v":""},{"$f":"IF($G43=0,\"\",IF(INDEX(itineraryPrograms,numericItinerary(L$3),$J43)=\"y\",\"X\",\"\"))","v":""},{"$f":"IF($G43=0,\"\",IF(INDEX(itineraryPrograms,numericItinerary(M$3),$J43)=\"y\",\"X\",\"\"))","v":""},{"$f":"IF($G43=0,\"\",IF(INDEX(itineraryPrograms,numericItinerary(N$3),$J43)=\"y\",\"X\",\"\"))","v":""},{"$f":"IF($G43=0,\"\",IF(INDEX(itineraryPrograms,numericItinerary(O$3),$J43)=\"y\",\"X\",\"\"))","v":"X"},{"$f":"IF($G43=0,\"\",IF(INDEX(itineraryPrograms,numericItinerary(P$3),$J43)=\"y\",\"X\",\"\"))","v":""}]
[null,null,null,null,null,null,"Post Civil War Encampment",61,null,32,{"$f":"IF($G44=0,\"\",IF(INDEX(itineraryPrograms,numericItinerary(K$3),$J44)=\"y\",\"X\",\"\"))","v":""},{"$f":"IF($G44=0,\"\",IF(INDEX(itineraryPrograms,numericItinerary(L$3),$J44)=\"y\",\"X\",\"\"))","v":""},{"$f":"IF($G44=0,\"\",IF(INDEX(itineraryPrograms,numericItinerary(M$3),$J44)=\"y\",\"X\",\"\"))","v":""},{"$f":"IF($G44=0,\"\",IF(INDEX(itineraryPrograms,numericItinerary(N$3),$J44)=\"y\",\"X\",\"\"))","v":""},{"$f":"IF($G44=0,\"\",IF(INDEX(itineraryPrograms,numericItinerary(O$3),$J44)=\"y\",\"X\",\"\"))","v":""},{"$f":"IF($G44=0,\"\",IF(INDEX(itineraryPrograms,numericItinerary(P$3),$J44)=\"y\",\"X\",\"\"))","v":"X"}]
[null,null,null,null,null,null,"Chuckwagon Dinner",61,{"$f":"COUNTIF(K45:P45,\"X\")","v":3},10,{"$f":"IF($G45=0,\"\",IF(INDEX(itineraryPrograms,numericItinerary(K$3),$J45)=\"y\",\"X\",\"\"))","v":"X"},{"$f":"IF($G45=0,\"\",IF(INDEX(itineraryPrograms,numericItinerary(L$3),$J45)=\"y\",\"X\",\"\"))","v":""},{"$f":"IF($G45=0,\"\",IF(INDEX(itineraryPrograms,numericItinerary(M$3),$J45)=\"y\",\"X\",\"\"))","v":""},{"$f":"IF($G45=0,\"\",IF(INDEX(itineraryPrograms,numericItinerary(N$3),$J45)=\"y\",\"X\",\"\"))","v":""},{"$f":"IF($G45=0,\"\",IF(INDEX(itineraryPrograms,numericItinerary(O$3),$J45)=\"y\",\"X\",\"\"))","v":"X"},{"$f":"IF($G45=0,\"\",IF(INDEX(itineraryPrograms,numericItinerary(P$3),$J45)=\"y\",\"X\",\"\"))","v":"X"}]
[null,null,null,null,null,null,"Mexican Dinner",61,{"$f":"COUNTIF(K46:P46,\"X\")","v":1},25,{"$f":"IF($G46=0,\"\",IF(INDEX(itineraryPrograms,numericItinerary(K$3),$J46)=\"y\",\"X\",\"\"))","v":"X"},{"$f":"IF($G46=0,\"\",IF(INDEX(itineraryPrograms,numericItinerary(L$3),$J46)=\"y\",\"X\",\"\"))","v":""},{"$f":"IF($G46=0,\"\",IF(INDEX(itineraryPrograms,numericItinerary(M$3),$J46)=\"y\",\"X\",\"\"))","v":""},{"$f":"IF($G46=0,\"\",IF(INDEX(itineraryPrograms,numericItinerary(N$3),$J46)=\"y\",\"X\",\"\"))","v":""},{"$f":"IF($G46=0,\"\",IF(INDEX(itineraryPrograms,numericItinerary(O$3),$J46)=\"y\",\"X\",\"\"))","v":""},{"$f":"IF($G46=0,\"\",IF(INDEX(itineraryPrograms,numericItinerary(P$3),$J46)=\"y\",\"X\",\"\"))","v":""}]
[null,null,null,null,null,null,"Trail Peak",93,null,49,{"$f":"COUNTIF(K3:K45,\"X\")","v":10},14,12,10,15,12]
[null,null,null,null,null,null,"Western Lore/Branding",0,null,50,{"$f":"K3","v":"7-9"},"7-1","7-4","7-3","7-6","7-7"]
[null,null,null,null,null,null,null,{"$f":"MIN(H4:H46)","v":61},"Min"]
[null,null,null,null,null,null,null,{"$f":"MAX(H4:H46)","v":225},"Max"]

{"sheet":"Itinerary Details","index":6,"n_rows":24,"n_cols":34,"rows_kept":24,"cut":false,"hidden":false,"merged":[[21,1,21,2],[22,11,22,13],[19,12,19,13],[20,12,20,13],[21,12,21,13],[21,4,21,9],[19,4,19,9],[20,4,20,9],[19,1,19,2],[20,1,20,2],[0,0,0,18],[15,4,15,9],[16,4,16,9],[5,0,5,1],[6,0,6,1],[7,0,7,1],[8,0,8,1],[9,0,9,1],[10,0,10,1],[4,4,4,5],[5,4,5,5],[14,4,14,8],[1,3,1,18],[6,4,6,5],[16,12,16,13],[17,1,17,2],[18,1,18,2],[15,12,15,13],[5,10,5,11],[9,3,10,6],[17,4,17,9],[18,4,18,9],[15,1,15,2],[16,1,16,2],[17,12,17,13],[18,12,18,13],[4,14,4,16],[5,14,5,16],[14,15,14,17],[11,1,11,18],[12,1,12,18],[7,4,7,5],[8,4,8,5],[14,12,14,13],[13,10,13,13],[7,10,7,14],[4,10,4,11],[18,15,18,17],[19,15,19,17],[20,15,20,17],[21,15,21,17],[15,15,15,17],[16,15,16,17],[17,15,17,17]]}
["Itinerary Information"]
["Itinerary Number:",null,"7-1"]
["Expedition Number:",null,"608-7A"]
[null,null," "]
["Classification:",null,{"$f":"VLOOKUP(INDEX(classification,numericItinerary(itineraryNumber)),difficultyTable,2)","v":"Challenging"},null,"Staffed Camps:",null,{"$f":"getNcamps(\"Staff\",itineraryNumber)","v":"2"},null,null,"Area(s):",{"$f":"getCountry(numericItinerary(itineraryNumber))","v":"North"},null,null,"Starting:",{"$f":"AA23","v":"Six Mile Gate Trailhead"}]
["Distance:",null,{"$f":"INDEX(distance,numericItinerary(itineraryNumber))","v":29},null,"Trail Camps:",null,{"$f":"getNcamps(\"Trail\",itineraryNumber)","v":"8"},null,null,"Map(s):",{"$f":"getMaps(numericItinerary(itineraryNumber))","v":"North"},null,null,"Ending:",{"$f":"AB23","v":"Hike In"}]
["Initial/Max Days Food:",null,{"$f":"getFoodDays(itineraryNumber)","v":"2/2"},null,"Layovers:",null,{"$f":"getNcamps(\"Layover\",itineraryNumber)","v":"4"}]
["Return via Tooth:",null,{"$f":"IF(INDEX(viaTooth,numericItinerary(itineraryNumber))=\"y\",\"Yes\",\"No\")","v":"No"},null,"Dry Camps",null,{"$f":"getNcamps(\"Dry\",itineraryNumber)","v":"0"},null,null,"Peaks:",{"$f":"getPeakS(numericItinerary(itineraryNumber))","v":"Mt. Phillips, Trail Peak"}]
["Min/Max Altitude:",null,{"$f":"getAltitude(\"Min\",itineraryNumber) & \"/\" & getAltitude(\"Max\",itineraryNumber)","v":"6,979/9,635"},null,"Showers",null,{"$f":"COUNTIF(nShowers,\"y\")","v":1}]
["Total Altitude Change:",null,{"$f":"getAltitude(\"Chg\",itineraryNumber)","v":"2,656"},"Elevation information shown here is based on beginning/ending campsite altitudes, not any peaks or side hikes."]
["Daily Altitude Change:",null,{"$f":"getAltitude(\"Avg\",itineraryNumber)","v":"904"}]
["Description:",{"$f":"INDEX(descriptions,numericItinerary(itineraryNumber))","v":"Take a trip back in time with this itinerary that is chock full of unique programs and relics from the past! Start your journey through this timeline after getting off the bus at the Six-Mile Gate Trailhead for a visit to the first confirmed T-Rex track in the world. Look for other fossils and footprints as you head upstream to Indian Writings where you will tour the fascinating petroglyphs left by the Ancestral Puebloan people prior to 1300 CE and work on an archaeological dig to discover more clues of their activities on Philmont property. Your climb over Hart Peak will be rewarded with fantastic views of the Ponil Complex! Make your way down to Ponil where you will be taken back to the old west! Try your hand at branding and roping, then reward yourself with a cold root beer in the Cantina. The next step of your journey in time takes you to Elkhorn, via the Dean Skyline trail. Drop down into the Middle Ponil and pass through Pueblano and into the early 1900s, where the loggers of the Continental Tie & Lumber Co. will teach you how to use a crosscut saw and a broad axe. Make your way through Pueblano Ruins and up to French Henry and into the historical Baldy Mining district. Tour the Aztec Ponil mine, do some blacksmithing, and try your luck at panning for gold. Your final destination is Touch-Me-Not Creek, but not before you stop at Miranda, where you will be transported to 1838 and a fur trapper rendezvous. Shoot muzzle loading rifles, throw tomahawks and be regaled with the many tall tales the trappers will share with you. Your journey through time is almost over as you hike down to the Maxwell Trailhead to meet your bus for your trip back to Base Camp."}]
["Programs:",{"$f":"getPrograms(numericItinerary(itineraryNumber))","v":"Archaeology, Atlatl (Dart-throwing), Blacksmithing, Campfire (evening), Cantina, Fur Trapper Rendezvous, Gold Mining & Panning, Mine Tour, Mount Phillips, Mountaineering, Muzzle Loading Rifle, Petroglyph Tour, Tie Making & Crosscut Saws, Tomahawk Throwing, Western Lore/Branding"}]
[null,null,null,null,null,null,null,null,null,null,"UTM Coordinates"]
[null,"Date:",null,"Day","Campsite",null,null,null,null,null,"Elevation","Easting","Northing",null,"Food Pickup","Cross US-64",null,null,null,null,null,null,null,"Elevation","Change","Date","Day","CAMP","Type","Dry","Showers","Commissary","Trading Post","Map"]
[null,{"$f":"AA16 & \" (\" & TEXT(Z16,\"m/d/yyyy\") & \")\"","v":"Saturday (6/8/2024)"},null,1,"Camping HQ",null,null,null,null,null,{"$f":"TEXT(INDEX(campLocation,MATCH(AB16,camps,0),5),\"##,##0\")","v":"6,696"},{"$f":"INDEX(campInfo,MATCH(AB16,camps),3)","v":503848},{"$f":"INDEX(campInfo,MATCH(AB16,camps),4)","v":4034364},null,null,{"$f":"getUS64crossingdirection(itineraryNumber,D16)","v":""},null,null,null,null,null,null,null,{"$f":"INT(K16)","v":6696},0,{"$f":"expeditionStartDate(itinExpeditionNo)","v":"2024-06-08"},{"$f":"INDEX({\"Sunday\",\"Monday\",\"Tuesday\",\"Wednesday\",\"Thursday\",\"Friday\",\"Saturday\"},WEEKDAY(Z16))","v":"Saturday"},"Camping HQ",null,{"$f":"INDEX(campInfo,MATCH($AB16,camps),10)","v":""},{"$f":"INDEX(campInfo,MATCH($AB16,camps),11)","v":""},{"$f":"INDEX(campInfo,MATCH($AB16,camps),6)","v":""},{"$f":"INDEX(campInfo,MATCH($AB16,camps),7)","v":""},{"$f":"VLOOKUP($AB16,campInfo,12)","v":"South"}]
[null,{"$f":"AA17 & \" (\" & TEXT(Z17,\"m/d/yyyy\") & \")\"","v":"Sunday (6/9/2024)"},null,{"$f":"D16+1","v":2},{"$f":"getCampWithInfo(AB17,AC17,AD17,AE17,AF17,AG17)","v":"House Canyon"},null,null,null,null,null,"7,157",502969,4051149,null,{"$f":"INDEX(foodPickups,numericItinerary(itineraryNumber),D17-1)","v":"Camping HQ"},{"$f":"getUS64crossingdirection(itineraryNumber,D17)","v":""},null,null,null,null,null,null,null,7157,{"$f":"X17-X16","v":461},{"$f":"Z16+1","v":"2024-06-09"},{"$f":"INDEX({\"Sunday\",\"Monday\",\"Tuesday\",\"Wednesday\",\"Thursday\",\"Friday\",\"Saturday\"},WEEKDAY(Z17))","v":"Sunday"},"House Canyon",{"$f":"IF(VLOOKUP($AB17,campInfo,8)=\"Y\",\"Staff\",\"Trail\")","v":"Trail"},{"$f":"VLOOKUP($AB17,campInfo,10)","v":""},{"$f":"VLOOKUP($AB17,campInfo,11)","v":""},{"$f":"VLOOKUP($AB17,campInfo,6)","v":""},{"$f":"VLOOKUP($AB17,campInfo,7)","v":""},"North"]
[null,{"$f":"AA18 & \" (\" & TEXT(Z18,\"m/d/yyyy\") & \")\"","v":"Monday (6/10/2024)"},null,{"$f":"D17+1","v":3},{"$f":"getCampWithInfo(AB18,AC18,AD18,AE18,AF18,AG18)","v":"INDIAN WRITINGS (Showers)"},null,null,null,null,null,"6,979",500421,4053139,null,{"$f":"INDEX(foodPickups,numericItinerary(itineraryNumber),D18-1)","v":0},{"$f":"getUS64crossingdirection(itineraryNumber,D18)","v":""},null,null,null,null,null,null,null,6979,{"$f":"X18-X17","v":-178},{"$f":"Z17+1","v":"2024-06-10"},{"$f":"INDEX({\"Sunday\",\"Monday\",\"Tuesday\",\"Wednesday\",\"Thursday\",\"Friday\",\"Saturday\"},WEEKDAY(Z18))","v":"Monday"},"Indian Writings","Staff","","Y","","","North"]
[null,"Tuesday (6/11/2024)",null,4,{"$f":"getCampWithInfo(AB19,AC19,AD19,AE19,AF19,AG19)","v":"Elkhorn"},null,null,null,null,null,"8,496",492424,4051874,null,{"$f":"INDEX(foodPickups,numericItinerary(itineraryNumber),D19-1)","v":"Ponil"},{"$f":"getUS64crossingdirection(itineraryNumber,D19)","v":""},null,null,null,null,null,null,null,8496,1517,"2024-06-11",{"$f":"INDEX({\"Sunday\",\"Monday\",\"Tuesday\",\"Wednesday\",\"Thursday\",\"Friday\",\"Saturday\"},WEEKDAY(Z19))","v":"Tuesday"},"Elkhorn","Trail","","","","","North"]
[null,"Wednesday (6/12/2024)",null,5,{"$f":"getCampWithInfo(AB20,AC20,AD20,AE20,AF20,AG20)","v":"FRENCH HENRY"},null,null,null,null,null,"9,635",483471,4054519,null,{"$f":"INDEX(foodPickups,numericItinerary(itineraryNumber),D20-1)","v":0},{"$f":"getUS64crossingdirection(itineraryNumber,D20)","v":""},null,null,null,null,null,null,null,9635,1139,"2024-06-12",{"$f":"INDEX({\"Sunday\",\"Monday\",\"Tuesday\",\"Wednesday\",\"Thursday\",\"Friday\",\"Saturday\"},WEEKDAY(Z20))","v":"Wednesday"},"French Henry","Staff","","","","","North"]
[null,"Thursday (6/13/2024)",null,6,{"$f":"getCampWithInfo(AB21,AC21,AD21,AE21,AF21,AG21)","v":"Touch-Me-Not Creek"},null,null,null,null,null,"8,855",484936.67660000001,4050860.9983999999,null,{"$f":"INDEX(foodPickups,numericItinerary(itineraryNumber),D21-1)","v":0},{"$f":"getUS64crossingdirection(itineraryNumber,D21)","v":""},null,null,null,null,null,null,null,8855,-780,"2024-06-13",{"$f":"INDEX({\"Sunday\",\"Monday\",\"Tuesday\",\"Wednesday\",\"Thursday\",\"Friday\",\"Saturday\"},WEEKDAY(Z21))","v":"Thursday"},"Touch-Me-Not Creek","Trail","",0,0,0,"North"]
[null,"Friday (6/14/2024)",null,7,"Camping HQ",null,null,null,null,null,"6,696",503848,4034364,null,null,{"$f":"getUS64crossingdirection(itineraryNumber,D22)","v":""},null,null,null,null,null,null,null,6696,-2159,"2024-06-14",{"$f":"INDEX({\"Sunday\",\"Monday\",\"Tuesday\",\"Wednesday\",\"Thursday\",\"Friday\",\"Saturday\"},WEEKDAY(Z22))","v":"Friday"},"Camping HQ",null,{"$f":"INDEX(campInfo,MATCH($AB22,camps),10)","v":""},{"$f":"INDEX(campInfo,MATCH($AB22,camps),11)","v":""},{"$f":"INDEX(campInfo,MATCH($AB22,camps),6)","v":""},{"$f":"INDEX(campInfo,MATCH($AB22,camps),7)","v":""},"South"]
[null,null,null,null,null,null,null,null,null,null,null,"NAD 3/Zone 13\n* Estimated coordinates",null,null,null,null,null,null,null,null,null,null,null,null,null,null,{"$f":"getstartendinfo(\"S\",itineraryNumber)","v":"Six Mile Gate Trailhead"},"Hike In"]
[null,null,null,null,null,null,null,null,null,null,null,null,null,null,null,null,null,null,null,null,null,null,null,null,null,null,null,"BASE"]

{"sheet":"Itinerary Xref Chart","index":7,"n_rows":52,"n_cols":20,"rows_kept":52,"cut":false,"hidden":false,"merged":[[0,1,4,1],[48,0,48,1]]}
["ITINERARY NUMBERS:","# times in \nItineraries",{"$f":"INDEX(itineraryNumbers,COLUMN()-2)","v":"7-1"},{"$f":"INDEX(itineraryNumbers,COLUMN()-2)","v":"7-2"},{"$f":"INDEX(itineraryNumbers,COLUMN()-2)","v":"7-3"},{"$f":"INDEX(itineraryNumbers,COLUMN()-2)","v":"7-4"},{"$f":"INDEX(itineraryNumbers,COLUMN()-2)","v":"7-5"},{"$f":"INDEX(itineraryNumbers,COLUMN()-2)","v":"7-6"},{"$f":"INDEX(itineraryNumbers,COLUMN()-2)","v":"7-7"},{"$f":"INDEX(itineraryNumbers,COLUMN()-2)","v":"7-8"},{"$f":"INDEX(itineraryNumbers,COLUMN()-2)","v":"7-9"},{"$f":"INDEX(itineraryNumbers,COLUMN()-2)","v":"7-10"},{"$f":"INDEX(itineraryNumbers,COLUMN()-2)","v":"7-11"},{"$f":"INDEX(itineraryNumbers,COLUMN()-2)","v":"7-12"},{"$f":"INDEX(itineraryNumbers,COLUMN()-2)","v":"7-13"},{"$f":"INDEX(itineraryNumbers,COLUMN()-2)","v":"7-14"},{"$f":"INDEX(itineraryNumbers,COLUMN()-2)","v":"7-15"},{"$f":"INDEX(itineraryNumbers,COLUMN()-2)","v":"7-16"},null,"Check"]
["Hiking Difficulty",null,{"$f":"INDEX(classification,numericItinerary(C1))","v":"C"},{"$f":"INDEX(classification,numericItinerary(D1))","v":"C"},{"$f":"INDEX(classification,numericItinerary(E1))","v":"C"},{"$f":"INDEX(classification,numericItinerary(F1))","v":"R"},{"$f":"INDEX(classification,numericItinerary(G1))","v":"C"},{"$f":"INDEX(classification,numericItinerary(H1))","v":"R"},{"$f":"INDEX(classification,numericItinerary(I1))","v":"R"},{"$f":"INDEX(classification,numericItinerary(J1))","v":"R"},{"$f":"INDEX(classification,numericItinerary(K1))","v":"R"},{"$f":"INDEX(classification,numericItinerary(L1))","v":"R"},{"$f":"INDEX(classification,numericItinerary(M1))","v":"S"},{"$f":"INDEX(classification,numericItinerary(N1))","v":"S"},{"$f":"INDEX(classification,numericItinerary(O1))","v":"S"},{"$f":"INDEX(classification,numericItinerary(P1))","v":"SS"},{"$f":"INDEX(classification,numericItinerary(Q1))","v":"SS"},{"$f":"INDEX(classification,numericItinerary(R1))","v":"SS"}]
["Distance (Approximately)",null,{"$f":"INDEX(distance,numericItinerary(C1))","v":29},{"$f":"INDEX(distance,numericItinerary(D1))","v":28},{"$f":"INDEX(distance,numericItinerary(E1))","v":27},{"$f":"INDEX(distance,numericItinerary(F1))","v":32},{"$f":"INDEX(distance,numericItinerary(G1))","v":31},{"$f":"INDEX(distance,numericItinerary(H1))","v":35},{"$f":"INDEX(distance,numericItinerary(I1))","v":33},{"$f":"INDEX(distance,numericItinerary(J1))","v":34},{"$f":"INDEX(distance,numericItinerary(K1))","v":35},{"$f":"INDEX(distance,numericItinerary(L1))","v":34},{"$f":"INDEX(distance,numericItinerary(M1))","v":38},{"$f":"INDEX(distance,numericItinerary(N1))","v":39},{"$f":"INDEX(distance,numericItinerary(O1))","v":39},{"$f":"INDEX(distance,numericItinerary(P1))","v":40},{"$f":"INDEX(distance,numericItinerary(Q1))","v":41},{"$f":"INDEX(distance,numericItinerary(R1))","v":42},null,{"$f":"SUM(C3:R3)","v":557}]
["Trail Camps",null,{"$f":"countcamps(itineraryTrail,numericItinerary(C$1))","v":8},{"$f":"countcamps(itineraryTrail,numericItinerary(D$1))","v":7},{"$f":"countcamps(itineraryTrail,numericItinerary(E$1))","v":8},{"$f":"countcamps(itineraryTrail,numericItinerary(F$1))","v":7},{"$f":"countcamps(itineraryTrail,numericItinerary(G$1))","v":7},{"$f":"countcamps(itineraryTrail,numericItinerary(H$1))","v":7},{"$f":"countcamps(itineraryTrail,numericItinerary(I$1))","v":8},{"$f":"countcamps(itineraryTrail,numericItinerary(J$1))","v":8},{"$f":"countcamps(itineraryTrail,numericItinerary(K$1))","v":7},{"$f":"countcamps(itineraryTrail,numericItinerary(L$1))","v":8},{"$f":"countcamps(itineraryTrail,numericItinerary(M$1))","v":7},{"$f":"countcamps(itineraryTrail,numericItinerary(N$1))","v":8},{"$f":"countcamps(itineraryTrail,numericItinerary(O$1))","v":9},{"$f":"countcamps(itineraryTrail,numericItinerary(P$1))","v":8},{"$f":"countcamps(itineraryTrail,numericItinerary(Q$1))","v":7},{"$f":"countcamps(itineraryTrail,numericItinerary(R$1))","v":7},null,{"$f":"SUM(C4:R4)","v":121}]
["Dry Camps",null,{"$f":"countcamps(itineraryStaff,numericItinerary(C$1))","v":2},{"$f":"countcamps(itineraryStaff,numericItinerary(D$1))","v":3},{"$f":"countcamps(itineraryStaff,numericItinerary(E$1))","v":2},{"$f":"countcamps(itineraryStaff,numericItinerary(F$1))","v":3},{"$f":"countcamps(itineraryStaff,numericItinerary(G$1))","v":3},{"$f":"countcamps(itineraryStaff,numericItinerary(H$1))","v":3},{"$f":"countcamps(itineraryStaff,numericItinerary(I$1))","v":2},{"$f":"countcamps(itineraryStaff,numericItinerary(J$1))","v":2},{"$f":"countcamps(itineraryStaff,numericItinerary(K$1))","v":3},{"$f":"countcamps(itineraryStaff,numericItinerary(L$1))","v":2},{"$f":"countcamps(itineraryStaff,numericItinerary(M$1))","v":3},{"$f":"countcamps(itineraryStaff,numericItinerary(N$1))","v":2},{"$f":"countcamps(itineraryStaff,numericItinerary(O$1))","v":1},{"$f":"countcamps(itineraryStaff,numericItinerary(P$1))","v":2},{"$f":"countcamps(itineraryStaff,numericItinerary(Q$1))","v":3},{"$f":"countcamps(itineraryStaff,numericItinerary(R$1))","v":3},null,{"$f":"SUM(C5:R5)","v":39}]
[{"$f":"INDEX(program_table,ROW()-5)","v":"Archaeology"},{"$f":"COUNTIF(C6:R6,\"X\")","v":2},{"$f":"getProgramXref($A6,numericItinerary(C$1))","v":"x"},{"$f":"getProgramXref($A6,numericItinerary(D$1))","v":""},{"$f":"getProgramXref($A6,numericItinerary(E$1))","v":""},{"$f":"getProgramXref($A6,numericItinerary(F$1))","v":""},{"$f":"getProgramXref($A6,numericItinerary(G$1))","v":""},{"$f":"getProgramXref($A6,numericItinerary(H$1))","v":""},{"$f":"getProgramXref($A6,numericItinerary(I$1))","v":""},{"$f":"getProgramXref($A6,numericItinerary(J$1))","v":""},{"$f":"getProgramXref($A6,numericItinerary(K$1))","v":""},{"$f":"getProgramXref($A6,numericItinerary(L$1))","v":""},{"$f":"getProgramXref($A6,numericItinerary(M$1))","v":""},{"$f":"getProgramXref($A6,numericItinerary(N$1))","v":"x"},{"$f":"getProgramXref($A6,numericItinerary(O$1))","v":""},{"$f":"getProgramXref($A6,numericItinerary(P$1))","v":""},{"$f":"getProgramXref($A6,numericItinerary(Q$1))","v":""},{"$f":"getProgramXref($A6,numericItinerary(R$1))","v":""},null,{"$f":"COUNTIF(C6:R6,\"X\")","v":2}]
[{"$f":"INDEX(program_table,ROW()-5)","v":"Archery - 3 Dimensional"},1,{"$f":"getProgramXref($A7,numericItinerary(C$1))","v":""},{"$f":"getProgramXref($A7,numericItinerary(D$1))","v":""},{"$f":"getProgramXref($A7,numericItinerary(E$1))","v":""},{"$f":"getProgramXref($A7,numericItinerary(F$1))","v":""},{"$f":"getProgramXref($A7,numericItinerary(G$1))","v":""},{"$f":"getProgramXref($A7,numericItinerary(H$1))","v":"x"},{"$f":"getProgramXref($A7,numericItinerary(I$1))","v":""},{"$f":"getProgramXref($A7,numericItinerary(J$1))","v":""},{"$f":"getProgramXref($A7,numericItinerary(K$1))","v":""},{"$f":"getProgramXref($A7,numericItinerary(L$1))","v":""},{"$f":"getProgramXref($A7,numericItinerary(M$1))","v":""},{"$f":"getProgramXref($A7,numericItinerary(N$1))","v":""},{"$f":"getProgramXref($A7,numericItinerary(O$1))","v":""},{"$f":"getProgramXref($A7,numericItinerary(P$1))","v":""},{"$f":"getProgramXref($A7,numericItinerary(Q$1))","v":""},{"$f":"getProgramXref($A7,numericItinerary(R$1))","v":""},null,1]
[{"$f":"INDEX(program_table,ROW()-5)","v":"Atlatl (Dart-throwing)"},2,{"$f":"getProgramXref($A8,numericItinerary(C$1))","v":"x"},{"$f":"getProgramXref($A8,numericItinerary(D$1))","v":""},{"$f":"getProgramXref($A8,numericItinerary(E$1))","v":""},{"$f":"getProgramXref($A8,numericItinerary(F$1))","v":""},{"$f":"getProgramXref($A8,numericItinerary(G$1))","v":""},{"$f":"getProgramXref($A8,numericItinerary(H$1))","v":""},{"$f":"getProgramXref($A8,numericItinerary(I$1))","v":""},{"$f":"getProgramXref($A8,numericItinerary(J$1))","v":""},{"$f":"getProgramXref($A8,numericItinerary(K$1))","v":""},{"$f":"getProgramXref($A8,numericItinerary(L$1))","v":""},{"$f":"getProgramXref($A8,numericItinerary(M$1))","v":""},{"$f":"getProgramXref($A8,numericItinerary(N$1))","v":"x"},{"$f":"getProgramXref($A8,numericItinerary(O$1))","v":""},{"$f":"getProgramXref($A8,numericItinerary(P$1))","v":""},{"$f":"getProgramXref($A8,numericItinerary(Q$1))","v":""},{"$f":"getProgramXref($A8,numericItinerary(R$1))","v":""},null,2]
[{"$f":"INDEX(program_table,ROW()-5)","v":"Baldy Mountain"},2,{"$f":"getProgramXref($A9,numericItinerary(C$1))","v":""},{"$f":"getProgramXref($A9,numericItinerary(D$1))","v":""},{"$f":"getProgramXref($A9,numericItinerary(E$1))","v":"x"},{"$f":"getProgramXref($A9,numericItinerary(F$1))","v":"x"},{"$f":"getProgramXref($A9,numericItinerary(G$1))","v":""},{"$f":"getProgramXref($A9,numericItinerary(H$1))","v":""},{"$f":"getProgramXref($A9,numericItinerary(I$1))","v":""},{"$f":"getProgramXref($A9,numericItinerary(J$1))","v":""},{"$f":"getProgramXref($A9,numericItinerary(K$1))","v":""},{"$f":"getProgramXref($A9,numericItinerary(L$1))","v":""},{"$f":"getProgramXref($A9,numericItinerary(M$1))","v":""},{"$f":"getProgramXref($A9,numericItinerary(N$1))","v":""},{"$f":"getProgramXref($A9,numericItinerary(O$1))","v":""},{"$f":"getProgramXref($A9,numericItinerary(P$1))","v":""},{"$f":"getProgramXref($A9,numericItinerary(Q$1))","v":""},{"$f":"getProgramXref($A9,numericItinerary(R$1))","v":""},null,2]
[{"$f":"INDEX(program_table,ROW()-5)","v":"Blacksmithing"},7,{"$f":"getProgramXref($A10,numericItinerary(C$1))","v":"x"},{"$f":"getProgramXref($A10,numericItinerary(D$1))","v":""},{"$f":"getProgramXref($A10,numericItinerary(E$1))","v":""},{"$f":"getProgramXref($A10,numericItinerary(F$1))","v":"x"},{"$f":"getProgramXref($A10,numericItinerary(G$1))","v":""},{"$f":"getProgramXref($A10,numericItinerary(H$1))","v":""},{"$f":"getProgramXref($A10,numericItinerary(I$1))","v":"x"},{"$f":"getProgramXref($A10,numericItinerary(J$1))","v":""},{"$f":"getProgramXref($A10,numericItinerary(K$1))","v":""},{"$f":"getProgramXref($A10,numericItinerary(L$1))","v":""},{"$f":"getProgramXref($A10,numericItinerary(M$1))","v":"x"},{"$f":"getProgramXref($A10,numericItinerary(N$1))","v":"x"},{"$f":"getProgramXref($A10,numericItinerary(O$1))","v":"x"},{"$f":"getProgramXref($A10,numericItinerary(P$1))","v":"x"},{"$f":"getProgramXref($A10,numericItinerary(Q$1))","v":""},{"$f":"getProgramXref($A10,numericItinerary(R$1))","v":""},null,7]
[{"$f":"INDEX(program_table,ROW()-5)","v":"Bouldering"},1,{"$f":"getProgramXref($A11,numericItinerary(C$1))","v":""},{"$f":"getProgramXref($A11,numericItinerary(D$1))","v":""},{"$f":"getProgramXref($A11,numericItinerary(E$1))","v":""},{"$f":"getProgramXref($A11,numericItinerary(F$1))","v":""},{"$f":"getProgramXref($A11,numericItinerary(G$1))","v":""},{"$f":"getProgramXref($A11,numericItinerary(H$1))","v":""},{"$f":"getProgramXref($A11,numericItinerary(I$1))","v":""},{"$f":"getProgramXref($A11,numericItinerary(J$1))","v":""},{"$f":"getProgramXref($A11,numericItinerary(K$1))","v":""},{"$f":"getProgramXref($A11,numericItinerary(L$1))","v":""},{"$f":"getProgramXref($A11,numericItinerary(M$1))","v":"x"},{"$f":"getProgramXref($A11,numericItinerary(N$1))","v":""},{"$f":"getProgramXref($A11,numericItinerary(O$1))","v":""},{"$f":"getProgramXref($A11,numericItinerary(P$1))","v":""},{"$f":"getProgramXref($A11,numericItinerary(Q$1))","v":""},{"$f":"getProgramXref($A11,numericItinerary(R$1))","v":""},null,1]
[{"$f":"INDEX(program_table,ROW()-5)","v":"Campfire (evening)"},12,{"$f":"getProgramXref($A12,numericItinerary(C$1))","v":"x"},{"$f":"getProgramXref($A12,numericItinerary(D$1))","v":"x"},{"$f":"getProgramXref($A12,numericItinerary(E$1))","v":""},{"$f":"getProgramXref($A12,numericItinerary(F$1))","v":""},{"$f":"getProgramXref($A12,numericItinerary(G$1))","v":"x"},{"$f":"getProgramXref($A12,numericItinerary(H$1))","v":"x"},{"$f":"getProgramXref($A12,numericItinerary(I$1))","v":"x"},{"$f":"getProgramXref($A12,numericItinerary(J$1))","v":"x"},{"$f":"getProgramXref($A12,numericItinerary(K$1))","v":"x"},{"$f":"getProgramXref($A12,numericItinerary(L$1))","v":""},{"$f":"getProgramXref($A12,numericItinerary(M$1))","v":"x"},{"$f":"getProgramXref($A12,numericItinerary(N$1))","v":"x"},{"$f":"getProgramXref($A12,numericItinerary(O$1))","v":"x"},{"$f":"getProgramXref($A12,numericItinerary(P$1))","v":""},{"$f":"getProgramXref($A12,numericItinerary(Q$1))","v":"x"},{"$f":"getProgramXref($A12,numericItinerary(R$1))","v":"x"},null,12]
[{"$f":"INDEX(program_table,ROW()-5)","v":"Cantina"},11,{"$f":"getProgramXref($A13,numericItinerary(C$1))","v":"x"},{"$f":"getProgramXref($A13,numericItinerary(D$1))","v":""},{"$f":"getProgramXref($A13,numericItinerary(E$1))","v":"x"},{"$f":"getProgramXref($A13,numericItinerary(F$1))","v":"x"},{"$f":"getProgramXref($A13,numericItinerary(G$1))","v":""},{"$f":"getProgramXref($A13,numericItinerary(H$1))","v":"x"},{"$f":"getProgramXref($A13,numericItinerary(I$1))","v":"x"},{"$f":"getProgramXref($A13,numericItinerary(J$1))","v":"x"},{"$f":"getProgramXref($A13,numericItinerary(K$1))","v":"x"},{"$f":"getProgramXref($A13,numericItinerary(L$1))","v":"x"},{"$f":"getProgramXref($A13,numericItinerary(M$1))","v":"x"},{"$f":"getProgramXref($A13,numericItinerary(N$1))","v":"x"},{"$f":"getProgramXref($A13,numericItinerary(O$1))","v":""},{"$f":"getProgramXref($A13,numericItinerary(P$1))","v":"x"},{"$f":"getProgramXref($A13,numericItinerary(Q$1))","v":""},{"$f":"getProgramXref($A13,numericItinerary(R$1))","v":""},null,11]
[{"$f":"INDEX(program_table,ROW()-5)","v":"Challenge Events"},7,{"$f":"getProgramXref($A14,numericItinerary(C$1))","v":""},{"$f":"getProgramXref($A14,numericItinerary(D$1))","v":"x"},{"$f":"getProgramXref($A14,numericItinerary(E$1))","v":"x"},{"$f":"getProgramXref($A14,numericItinerary(F$1))","v":"x"},{"$f":"getProgramXref($A14,numericItinerary(G$1))","v":"x"},{"$f":"getProgramXref($A14,numericItinerary(H$1))","v":"x"},{"$f":"getProgramXref($A14,numericItinerary(I$1))","v":""},{"$f":"getProgramXref($A14,numericItinerary(J$1))","v":""},{"$f":"getProgramXref($A14,numericItinerary(K$1))","v":""},{"$f":"getProgramXref($A14,numericItinerary(L$1))","v":""},{"$f":"getProgramXref($A14,numericItinerary(M$1))","v":"x"},{"$f":"getProgramXref($A14,numericItinerary(N$1))","v":"x"},{"$f":"getProgramXref($A14,numericItinerary(O$1))","v":""},{"$f":"getProgramXref($A14,numericItinerary(P$1))","v":""},{"$f":"getProgramXref($A14,numericItinerary(Q$1))","v":""},{"$f":"getProgramXref($A14,numericItinerary(R$1))","v":""},null,7]
[{"$f":"INDEX(program_table,ROW()-5)","v":"Chuckwagon Dinner"},8,{"$f":"getProgramXref($A15,numericItinerary(C$1))","v":""},{"$f":"getProgramXref($A15,numericItinerary(D$1))","v":"x"},{"$f":"getProgramXref($A15,numericItinerary(E$1))","v":""},{"$f":"getProgramXref($A15,numericItinerary(F$1))","v":""},{"$f":"getProgramXref($A15,numericItinerary(G$1))","v":""},{"$f":"getProgramXref($A15,numericItinerary(H$1))","v":"x"},{"$f":"getProgramXref($A15,numericItinerary(I$1))","v":"x"},{"$f":"getProgramXref($A15,numericItinerary(J$1))","v":"x"},{"$f":"getProgramXref($A15,numericItinerary(K$1))","v":"x"},{"$f":"getProgramXref($A15,numericItinerary(L$1))","v":""},{"$f":"getProgramXref($A15,numericItinerary(M$1))","v":""},{"$f":"getProgramXref($A15,numericItinerary(N$1))","v":""},{"$f":"getProgramXref($A15,numericItinerary(O$1))","v":""},{"$f":"getProgramXref($A15,numericItinerary(P$1))","v":"x"},{"$f":"getProgramXref($A15,numericItinerary(Q$1))","v":"x"},{"$f":"getProgramXref($A15,numericItinerary(R$1))","v":"x"},null,8]
[{"$f":"INDEX(program_table,ROW()-5)","v":"Cowboy Action Shooting"},1,{"$f":"getProgramXref($A16,numericItinerary(C$1))","v":""},{"$f":"getProgramXref($A16,numericItinerary(D$1))","v":""},{"$f":"getProgramXref($A16,numericItinerary(E$1))","v":""},{"$f":"getProgramXref($A16,numericItinerary(F$1))","v":""},{"$f":"getProgramXref($A16,numericItinerary(G$1))","v":""},{"$f":"getProgramXref($A16,numericItinerary(H$1))","v":"x"},{"$f":"getProgramXref($A16,numericItinerary(I$1))","v":""},{"$f":"getProgramXref($A16,numericItinerary(J$1))","v":""},{"$f":"getProgramXref($A16,numericItinerary(K$1))","v":""},{"$f":"getProgramXref($A16,numericItinerary(L$1))","v":""},{"$f":"getProgramXref($A16,numericItinerary(M$1))","v":""},{"$f":"getProgramXref($A16,numericItinerary(N$1))","v":""},{"$f":"getProgramXref($A16,numericItinerary(O$1))","v":""},{"$f":"getProgramXref($A16,numericItinerary(P$1))","v":""},{"$f":"getProgramXref($A16,numericItinerary(Q$1))","v":""},{"$f":"getProgramXref($A16,numericItinerary(R$1))","v":""},null,1]
[{"$f":"INDEX(program_table,ROW()-5)","v":"Demonstration Forest"},2,{"$f":"getProgramXref($A17,numericItinerary(C$1))","v":""},{"$f":"getProgramXref($A17,numericItinerary(D$1))","v":""},{"$f":"getProgramXref($A17,numericItinerary(E$1))","v":""},{"$f":"getProgramXref($A17,numericItinerary(F$1))","v":""},{"$f":"getProgramXref($A17,numericItinerary(G$1))","v":""},{"$f":"getProgramXref($A17,numericItinerary(H$1))","v":""},{"$f":"getProgramXref($A17,numericItinerary(I$1))","v":""},{"$f":"getProgramXref($A17,numericItinerary(J$1))","v":""},{"$f":"getProgramXref($A17,numericItinerary(K$1))","v":""},{"$f":"getProgramXref($A17,numericItinerary(L$1))","v":""},{"$f":"getProgramXref($A17,numericItinerary(M$1))","v":""},{"$f":"getProgramXref($A17,numericItinerary(N$1))","v":""},{"$f":"getProgramXref($A17,numericItinerary(O$1))","v":"x"},{"$f":"getProgramXref($A17,numericItinerary(P$1))","v":"x"},{"$f":"getProgramXref($A17,numericItinerary(Q$1))","v":""},{"$f":"getProgramXref($A17,numericItinerary(R$1))","v":""},null,2]
[{"$f":"INDEX(program_table,ROW()-5)","v":"Fishing"},2,{"$f":"getProgramXref($A18,numericItinerary(C$1))","v":""},{"$f":"getProgramXref($A18,numericItinerary(D$1))","v":""},{"$f":"getProgramXref($A18,numericItinerary(E$1))","v":""},{"$f":"getProgramXref($A18,numericItinerary(F$1))","v":""},{"$f":"getProgramXref($A18,numericItinerary(G$1))","v":""},{"$f":"getProgramXref($A18,numericItinerary(H$1))","v":""},{"$f":"getProgramXref($A18,numericItinerary(I$1))","v":""},{"$f":"getProgramXref($A18,numericItinerary(J$1))","v":""},{"$f":"getProgramXref($A18,numericItinerary(K$1))","v":""},{"$f":"getProgramXref($A18,numericItinerary(L$1))","v":"x"},{"$f":"getProgramXref($A18,numericItinerary(M$1))","v":""},{"$f":"getProgramXref($A18,numericItinerary(N$1))","v":""},{"$f":"getProgramXref($A18,numericItinerary(O$1))","v":""},{"$f":"getProgramXref($A18,numericItinerary(P$1))","v":"x"},{"$f":"getProgramXref($A18,numericItinerary(Q$1))","v":""},{"$f":"getProgramXref($A18,numericItinerary(R$1))","v":""},null,2]
[{"$f":"INDEX(program_table,ROW()-5)","v":"Fly Tying"},2,{"$f":"getProgramXref($A19,numericItinerary(C$1))","v":""},{"$f":"getProgramXref($A19,numericItinerary(D$1))","v":""},{"$f":"getProgramXref($A19,numericItinerary(E$1))","v":""},{"$f":"getProgramXref($A19,numericItinerary(F$1))","v":""},{"$f":"getProgramXref($A19,numericItinerary(G$1))","v":""},{"$f":"getProgramXref($A19,numericItinerary(H$1))","v":""},{"$f":"getProgramXref($A19,numericItinerary(I$1))","v":""},{"$f":"getProgramXref($A19,numericItinerary(J$1))","v":""},{"$f":"getProgramXref($A19,numericItinerary(K$1))","v":""},{"$f":"getProgramXref($A19,numericItinerary(L$1))","v":"x"},{"$f":"getProgramXref($A19,numericItinerary(M$1))","v":""},{"$f":"getProgramXref($A19,numericItinerary(N$1))","v":""},{"$f":"getProgramXref($A19,numericItinerary(O$1))","v":""},{"$f":"getProgramXref($A19,numericItinerary(P$1))","v":"x"},{"$f":"getProgramXref($A19,numericItinerary(Q$1))","v":""},{"$f":"getProgramXref($A19,numericItinerary(R$1))","v":""},null,2]
[{"$f":"INDEX(program_table,ROW()-5)","v":"Fur Trapper Rendezvous"},3,{"$f":"getProgramXref($A20,numericItinerary(C$1))","v":"x"},{"$f":"getProgramXref($A20,numericItinerary(D$1))","v":""},{"$f":"getProgramXref($A20,numericItinerary(E$1))","v":"x"},{"$f":"getProgramXref($A20,numericItinerary(F$1))","v":"x"},{"$f":"getProgramXref($A20,numericItinerary(G$1))","v":""},{"$f":"getProgramXref($A20,numericItinerary(H$1))","v":""},{"$f":"getProgramXref($A20,numericItinerary(I$1))","v":""},{"$f":"getProgramXref($A20,numericItinerary(J$1))","v":""},{"$f":"getProgramXref($A20,numericItinerary(K$1))","v":""},{"$f":"getProgramXref($A20,numericItinerary(L$1))","v":""},{"$f":"getProgramXref($A20,numericItinerary(M$1))","v":""},{"$f":"getProgramXref($A20,numericItinerary(N$1))","v":""},{"$f":"getProgramXref($A20,numericItinerary(O$1))","v":""},{"$f":"getProgramXref($A20,numericItinerary(P$1))","v":""},{"$f":"getProgramXref($A20,numericItinerary(Q$1))","v":""},{"$f":"getProgramXref($A20,numericItinerary(R$1))","v":""},null,3]
[{"$f":"INDEX(program_table,ROW()-5)","v":"Gold Mining & Panning"},6,{"$f":"getProgramXref($A21,numericItinerary(C$1))","v":"x"},{"$f":"getProgramXref($A21,numericItinerary(D$1))","v":""},{"$f":"getProgramXref($A21,numericItinerary(E$1))","v":"x"},{"$f":"getProgramXref($A21,numericItinerary(F$1))","v":"x"},{"$f":"getProgramXref($A21,numericItinerary(G$1))","v":""},{"$f":"getProgramXref($A21,numericItinerary(H$1))","v":""},{"$f":"getProgramXref($A21,numericItinerary(I$1))","v":""},{"$f":"getProgramXref($A21,numericItinerary(J$1))","v":""},{"$f":"getProgramXref($A21,numericItinerary(K$1))","v":""},{"$f":"getProgramXref($A21,numericItinerary(L$1))","v":""},{"$f":"getProgramXref($A21,numericItinerary(M$1))","v":""},{"$f":"getProgramXref($A21,numericItinerary(N$1))","v":""},{"$f":"getProgramXref($A21,numericItinerary(O$1))","v":"x"},{"$f":"getProgramXref($A21,numericItinerary(P$1))","v":"x"},{"$f":"getProgramXref($A21,numericItinerary(Q$1))","v":"x"},{"$f":"getProgramXref($A21,numericItinerary(R$1))","v":""},null,6]
[{"$f":"INDEX(program_table,ROW()-5)","v":"High Ropes & Climbing Tower"},1,{"$f":"getProgramXref($A22,numericItinerary(C$1))","v":""},{"$f":"getProgramXref($A22,numericItinerary(D$1))","v":""},{"$f":"getProgramXref($A22,numericItinerary(E$1))","v":""},{"$f":"getProgramXref($A22,numericItinerary(F$1))","v":""},{"$f":"getProgramXref($A22,numericItinerary(G$1))","v":""},{"$f":"getProgramXref($A22,numericItinerary(H$1))","v":""},{"$f":"getProgramXref($A22,numericItinerary(I$1))","v":""},{"$f":"getProgramXref($A22,numericItinerary(J$1))","v":""},{"$f":"getProgramXref($A22,numericItinerary(K$1))","v":""},{"$f":"getProgramXref($A22,numericItinerary(L$1))","v":""},{"$f":"getProgramXref($A22,numericItinerary(M$1))","v":""},{"$f":"getProgramXref($A22,numericItinerary(N$1))","v":""},{"$f":"getProgramXref($A22,numericItinerary(O$1))","v":""},{"$f":"getProgramXref($A22,numericItinerary(P$1))","v":""},{"$f":"getProgramXref($A22,numericItinerary(Q$1))","v":""},{"$f":"getProgramXref($A22,numericItinerary(R$1))","v":"x"},null,1]
[{"$f":"INDEX(program_table,ROW()-5)","v":"Historic Chase Ranch"},1,{"$f":"getProgramXref($A23,numericItinerary(C$1))","v":""},{"$f":"getProgramXref($A23,numericItinerary(D$1))","v":""},{"$f":"getProgramXref($A23,numericItinerary(E$1))","v":""},{"$f":"getProgramXref($A23,numericItinerary(F$1))","v":""},{"$f":"getProgramXref($A23,numericItinerary(G$1))","v":""},{"$f":"getProgramXref($A23,numericItinerary(H$1))","v":""},{"$f":"getProgramXref($A23,numericItinerary(I$1))","v":""},{"$f":"getProgramXref($A23,numericItinerary(J$1))","v":""},{"$f":"getProgramXref($A23,numericItinerary(K$1))","v":""},{"$f":"getProgramXref($A23,numericItinerary(L$1))","v":""},{"$f":"getProgramXref($A23,numericItinerary(M$1))","v":"x"},{"$f":"getProgramXref($A23,numericItinerary(N$1))","v":""},{"$f":"getProgramXref($A23,numericItinerary(O$1))","v":""},{"$f":"getProgramXref($A23,numericItinerary(P$1))","v":""},{"$f":"getProgramXref($A23,numericItinerary(Q$1))","v":""},{"$f":"getProgramXref($A23,numericItinerary(R$1))","v":""},null,1]
[{"$f":"INDEX(program_table,ROW()-5)","v":"Homesteading"},4,{"$f":"getProgramXref($A24,numericItinerary(C$1))","v":""},{"$f":"getProgramXref($A24,numericItinerary(D$1))","v":""},{"$f":"getProgramXref($A24,numericItinerary(E$1))","v":""},{"$f":"getProgramXref($A24,numericItinerary(F$1))","v":""},{"$f":"getProgramXref($A24,numericItinerary(G$1))","v":""},{"$f":"getProgramXref($A24,numericItinerary(H$1))","v":"x"},{"$f":"getProgramXref($A24,numericItinerary(I$1))","v":""},{"$f":"getProgramXref($A24,numericItinerary(J$1))","v":"x"},{"$f":"getProgramXref($A24,numericItinerary(K$1))","v":""},{"$f":"getProgramXref($A24,numericItinerary(L$1))","v":""},{"$f":"getProgramXref($A24,numericItinerary(M$1))","v":"x"},{"$f":"getProgramXref($A24,numericItinerary(N$1))","v":"x"},{"$f":"getProgramXref($A24,numericItinerary(O$1))","v":""},{"$f":"getProgramXref($A24,numericItinerary(P$1))","v":""},{"$f":"getProgramXref($A24,numericItinerary(Q$1))","v":""},{"$f":"getProgramXref($A24,numericItinerary(R$1))","v":""},null,4]
[{"$f":"INDEX(program_table,ROW()-5)","v":"Horse Rides"},4,{"$f":"getProgramXref($A25,numericItinerary(C$1))","v":""},{"$f":"getProgramXref($A25,numericItinerary(D$1))","v":"x"},{"$f":"getProgramXref($A25,numericItinerary(E$1))","v":""},{"$f":"getProgramXref($A25,numericItinerary(F$1))","v":""},{"$f":"getProgramXref($A25,numericItinerary(G$1))","v":""},{"$f":"getProgramXref($A25,numericItinerary(H$1))","v":""},{"$f":"getProgramXref($A25,numericItinerary(I$1))","v":"x"},{"$f":"getProgramXref($A25,numericItinerary(J$1))","v":""},{"$f":"getProgramXref($A25,numericItinerary(K$1))","v":"x"},{"$f":"getProgramXref($A25,numericItinerary(L$1))","v":""},{"$f":"getProgramXref($A25,numericItinerary(M$1))","v":""},{"$f":"getProgramXref($A25,numericItinerary(N$1))","v":""},{"$f":"getProgramXref($A25,numericItinerary(O$1))","v":""},{"$f":"getProgramXref($A25,numericItinerary(P$1))","v":"x"},{"$f":"getProgramXref($A25,numericItinerary(Q$1))","v":""},{"$f":"getProgramXref($A25,numericItinerary(R$1))","v":""},null,4]
[{"$f":"INDEX(program_table,ROW()-5)","v":"Inspiration Point Hike"},2,{"$f":"getProgramXref($A26,numericItinerary(C$1))","v":""},{"$f":"getProgramXref($A26,numericItinerary(D$1))","v":"x"},{"$f":"getProgramXref($A26,numericItinerary(E$1))","v":""},{"$f":"getProgramXref($A26,numericItinerary(F$1))","v":""},{"$f":"getProgramXref($A26,numericItinerary(G$1))","v":"x"},{"$f":"getProgramXref($A26,numericItinerary(H$1))","v":""},{"$f":"getProgramXref($A26,numericItinerary(I$1))","v":""},{"$f":"getProgramXref($A26,numericItinerary(J$1))","v":""},{"$f":"getProgramXref($A26,numericItinerary(K$1))","v":""},{"$f":"getProgramXref($A26,numericItinerary(L$1))","v":""},{"$f":"getProgramXref($A26,numericItinerary(M$1))","v":""},{"$f":"getProgramXref($A26,numericItinerary(N$1))","v":""},{"$f":"getProgramXref($A26,numericItinerary(O$1))","v":""},{"$f":"getProgramXref($A26,numericItinerary(P$1))","v":""},{"$f":"getProgramXref($A26,numericItinerary(Q$1))","v":""},{"$f":"getProgramXref($A26,numericItinerary(R$1))","v":""},null,2]
[{"$f":"INDEX(program_table,ROW()-5)","v":"Laser Shot Shooting Range"},1,{"$f":"getProgramXref($A27,numericItinerary(C$1))","v":""},{"$f":"getProgramXref($A27,numericItinerary(D$1))","v":""},{"$f":"getProgramXref($A27,numericItinerary(E$1))","v":""},{"$f":"getProgramXref($A27,numericItinerary(F$1))","v":""},{"$f":"getProgramXref($A27,numericItinerary(G$1))","v":""},{"$f":"getProgramXref($A27,numericItinerary(H$1))","v":"x"},{"$f":"getProgramXref($A27,numericItinerary(I$1))","v":""},{"$f":"getProgramXref($A27,numericItinerary(J$1))","v":""},{"$f":"getProgramXref($A27,numericItinerary(K$1))","v":""},{"$f":"getProgramXref($A27,numericItinerary(L$1))","v":""},{"$f":"getProgramXref($A27,numericItinerary(M$1))","v":""},{"$f":"getProgramXref($A27,numericItinerary(N$1))","v":""},{"$f":"getProgramXref($A27,numericItinerary(O$1))","v":""},{"$f":"getProgramXref($A27,numericItinerary(P$1))","v":""},{"$f":"getProgramXref($A27,numericItinerary(Q$1))","v":""},{"$f":"getProgramXref($A27,numericItinerary(R$1))","v":""},null,1]
[{"$f":"INDEX(program_table,ROW()-5)","v":"Lodge/Cabin Tours"},9,{"$f":"getProgramXref($A28,numericItinerary(C$1))","v":""},{"$f":"getProgramXref($A28,numericItinerary(D$1))","v":""},{"$f":"getProgramXref($A28,numericItinerary(E$1))","v":""},{"$f":"getProgramXref($A28,numericItinerary(F$1))","v":""},{"$f":"getProgramXref($A28,numericItinerary(G$1))","v":""},{"$f":"getProgramXref($A28,numericItinerary(H$1))","v":"x"},{"$f":"getProgramXref($A28,numericItinerary(I$1))","v":"x"},{"$f":"getProgramXref($A28,numericItinerary(J$1))","v":""},{"$f":"getProgramXref($A28,numericItinerary(K$1))","v":"x"},{"$f":"getProgramXref($A28,numericItinerary(L$1))","v":"x"},{"$f":"getProgramXref($A28,numericItinerary(M$1))","v":"x"},{"$f":"getProgramXref($A28,numericItinerary(N$1))","v":"x"},{"$f":"getProgramXref($A28,numericItinerary(O$1))","v":"x"},{"$f":"getProgramXref($A28,numericItinerary(P$1))","v":"x"},{"$f":"getProgramXref($A28,numericItinerary(Q$1))","v":""},{"$f":"getProgramXref($A28,numericItinerary(R$1))","v":"x"},null,9]
[{"$f":"INDEX(program_table,ROW()-5)","v":"Low Impact Camping"},2,{"$f":"getProgramXref($A29,numericItinerary(C$1))","v":""},{"$f":"getProgramXref($A29,numericItinerary(D$1))","v":""},{"$f":"getProgramXref($A29,numericItinerary(E$1))","v":""},{"$f":"getProgramXref($A29,numericItinerary(F$1))","v":""},{"$f":"getProgramXref($A29,numericItinerary(G$1))","v":""},{"$f":"getProgramXref($A29,numericItinerary(H$1))","v":"x"},{"$f":"getProgramXref($A29,numericItinerary(I$1))","v":""},{"$f":"getProgramXref($A29,numericItinerary(J$1))","v":""},{"$f":"getProgramXref($A29,numericItinerary(K$1))","v":""},{"$f":"getProgramXref($A29,numericItinerary(L$1))","v":""},{"$f":"getProgramXref($A29,numericItinerary(M$1))","v":""},{"$f":"getProgramXref($A29,numericItinerary(N$1))","v":"x"},{"$f":"getProgramXref($A29,numericItinerary(O$1))","v":""},{"$f":"getProgramXref($A29,numericItinerary(P$1))","v":""},{"$f":"getProgramXref($A29,numericItinerary(Q$1))","v":""},{"$f":"getProgramXref($A29,numericItinerary(R$1))","v":""},null,2]
[{"$f":"INDEX(program_table,ROW()-5)","v":"Mexican Dinner"},1,{"$f":"getProgramXref($A30,numericItinerary(C$1))","v":""},{"$f":"getProgramXref($A30,numericItinerary(D$1))","v":""},{"$f":"getProgramXref($A30,numericItinerary(E$1))","v":""},{"$f":"getProgramXref($A30,numericItinerary(F$1))","v":""},{"$f":"getProgramXref($A30,numericItinerary(G$1))","v":""},{"$f":"getProgramXref($A30,numericItinerary(H$1))","v":""},{"$f":"getProgramXref($A30,numericItinerary(I$1))","v":""},{"$f":"getProgramXref($A30,numericItinerary(J$1))","v":""},{"$f":"getProgramXref($A30,numericItinerary(K$1))","v":"x"},{"$f":"getProgramXref($A30,numericItinerary(L$1))","v":""},{"$f":"getProgramXref($A30,numericItinerary(M$1))","v":""},{"$f":"getProgramXref($A30,numericItinerary(N$1))","v":""},{"$f":"getProgramXref($A30,numericItinerary(O$1))","v":""},{"$f":"getProgramXref($A30,numericItinerary(P$1))","v":""},{"$f":"getProgramXref($A30,numericItinerary(Q$1))","v":""},{"$f":"getProgramXref($A30,numericItinerary(R$1))","v":""},null,1]
[{"$f":"INDEX(program_table,ROW()-5)","v":"Mine Tour"},3,{"$f":"getProgramXref($A31,numericItinerary(C$1))","v":"x"},{"$f":"getProgramXref($A31,numericItinerary(D$1))","v":""},{"$f":"getProgramXref($A31,numericItinerary(E$1))","v":""},{"$f":"getProgramXref($A31,numericItinerary(F$1))","v":"x"},{"$f":"getProgramXref($A31,numericItinerary(G$1))","v":""},{"$f":"getProgramXref($A31,numericItinerary(H$1))","v":""},{"$f":"getProgramXref($A31,numericItinerary(I$1))","v":""},{"$f":"getProgramXref($A31,numericItinerary(J$1))","v":""},{"$f":"getProgramXref($A31,numericItinerary(K$1))","v":""},{"$f":"getProgramXref($A31,numericItinerary(L$1))","v":""},{"$f":"getProgramXref($A31,numericItinerary(M$1))","v":""},{"$f":"getProgramXref($A31,numericItinerary(N$1))","v":""},{"$f":"getProgramXref($A31,numericItinerary(O$1))","v":"x"},{"$f":"getProgramXref($A31,numericItinerary(P$1))","v":""},{"$f":"getProgramXref($A31,numericItinerary(Q$1))","v":""},{"$f":"getProgramXref($A31,numericItinerary(R$1))","v":""},null,3]
[{"$f":"INDEX(program_table,ROW()-5)","v":"Mount Phillips"},7,{"$f":"getProgramXref($A32,numericItinerary(C$1))","v":"x"},{"$f":"getProgramXref($A32,numericItinerary(D$1))","v":"x"},{"$f":"getProgramXref($A32,numericItinerary(E$1))","v":"x"},{"$f":"getProgramXref($A32,numericItinerary(F$1))","v":"x"},{"$f":"getProgramXref($A32,numericItinerary(G$1))","v":""},{"$f":"getProgramXref($A32,numericItinerary(H$1))","v":""},{"$f":"getProgramXref($A32,numericItinerary(I$1))","v":""},{"$f":"getProgramXref($A32,numericItinerary(J$1))","v":"x"},{"$f":"getProgramXref($A32,numericItinerary(K$1))","v":""},{"$f":"getProgramXref($A32,numericItinerary(L$1))","v":""},{"$f":"getProgramXref($A32,numericItinerary(M$1))","v":""},{"$f":"getProgramXref($A32,numericItinerary(N$1))","v":""},{"$f":"getProgramXref($A32,numericItinerary(O$1))","v":"x"},{"$f":"getProgramXref($A32,numericItinerary(P$1))","v":"x"},{"$f":"getProgramXref($A32,numericItinerary(Q$1))","v":""},{"$f":"getProgramXref($A32,numericItinerary(R$1))","v":""},null,7]
[{"$f":"INDEX(program_table,ROW()-5)","v":"Mountaineering"},11,{"$f":"getProgramXref($A33,numericItinerary(C$1))","v":"x"},{"$f":"getProgramXref($A33,numericItinerary(D$1))","v":"x"},{"$f":"getProgramXref($A33,numericItinerary(E$1))","v":"x"},{"$f":"getProgramXref($A33,numericItinerary(F$1))","v":"x"},{"$f":"getProgramXref($A33,numericItinerary(G$1))","v":""},{"$f":"getProgramXref($A33,numericItinerary(H$1))","v":"x"},{"$f":"getProgramXref($A33,numericItinerary(I$1))","v":"x"},{"$f":"getProgramXref($A33,numericItinerary(J$1))","v":""},{"$f":"getProgramXref($A33,numericItinerary(K$1))","v":"x"},{"$f":"getProgramXref($A33,numericItinerary(L$1))","v":""},{"$f":"getProgramXref($A33,numericItinerary(M$1))","v":""},{"$f":"getProgramXref($A33,numericItinerary(N$1))","v":""},{"$f":"getProgramXref($A33,numericItinerary(O$1))","v":"x"},{"$f":"getProgramXref($A33,numericItinerary(P$1))","v":"x"},{"$f":"getProgramXref($A33,numericItinerary(Q$1))","v":"x"},{"$f":"getProgramXref($A33,numericItinerary(R$1))","v":"x"},null,11]
[{"$f":"INDEX(program_table,ROW()-5)","v":"Muzzle Loading Rifle"},6,{"$f":"getProgramXref($A34,numericItinerary(C$1))","v":"x"},{"$f":"getProgramXref($A34,numericItinerary(D$1))","v":""},{"$f":"getProgramXref($A34,numericItinerary(E$1))","v":"x"},{"$f":"getProgramXref($A34,numericItinerary(F$1))","v":"x"},{"$f":"getProgramXref($A34,numericItinerary(G$1))","v":""},{"$f":"getProgramXref($A34,numericItinerary(H$1))","v":""},{"$f":"getProgramXref($A34,numericItinerary(I$1))","v":"x"},{"$f":"getProgramXref($A34,numericItinerary(J$1))","v":"x"},{"$f":"getProgramXref($A34,numericItinerary(K$1))","v":""},{"$f":"getProgramXref($A34,numericItinerary(L$1))","v":""},{"$f":"getProgramXref($A34,numericItinerary(M$1))","v":""},{"$f":"getProgramXref($A34,numericItinerary(N$1))","v":""},{"$f":"getProgramXref($A34,numericItinerary(O$1))","v":""},{"$f":"getProgramXref($A34,numericItinerary(P$1))","v":""},{"$f":"getProgramXref($A34,numericItinerary(Q$1))","v":""},{"$f":"getProgramXref($A34,numericItinerary(R$1))","v":"x"},null,6]
[{"$f":"INDEX(program_table,ROW()-5)","v":"New Mexico Homestead"},5,{"$f":"getProgramXref($A35,numericItinerary(C$1))","v":""},{"$f":"getProgramXref($A35,numericItinerary(D$1))","v":""},{"$f":"getProgramXref($A35,numericItinerary(E$1))","v":""},{"$f":"getProgramXref($A35,numericItinerary(F$1))","v":""},{"$f":"getProgramXref($A35,numericItinerary(G$1))","v":""},{"$f":"getProgramXref($A35,numericItinerary(H$1))","v":""},{"$f":"getProgramXref($A35,numericItinerary(I$1))","v":"x"},{"$f":"getProgramXref($A35,numericItinerary(J$1))","v":"x"},{"$f":"getProgramXref($A35,numericItinerary(K$1))","v":"x"},{"$f":"getProgramXref($A35,numericItinerary(L$1))","v":"x"},{"$f":"getProgramXref($A35,numericItinerary(M$1))","v":""},{"$f":"getProgramXref($A35,numericItinerary(N$1))","v":""},{"$f":"getProgramXref($A35,numericItinerary(O$1))","v":""},{"$f":"getProgramXref($A35,numericItinerary(P$1))","v":"x"},{"$f":"getProgramXref($A35,numericItinerary(Q$1))","v":""},{"$f":"getProgramXref($A35,numericItinerary(R$1))","v":""},null,5]
[{"$f":"INDEX(program_table,ROW()-5)","v":"Petroglyph Tour"},2,{"$f":"getProgramXref($A36,numericItinerary(C$1))","v":"x"},{"$f":"getProgramXref($A36,numericItinerary(D$1))","v":""},{"$f":"getProgramXref($A36,numericItinerary(E$1))","v":""},{"$f":"getProgramXref($A36,numericItinerary(F$1))","v":""},{"$f":"getProgramXref($A36,numericItinerary(G$1))","v":""},{"$f":"getProgramXref($A36,numericItinerary(H$1))","v":""},{"$f":"getProgramXref($A36,numericItinerary(I$1))","v":""},{"$f":"getProgramXref($A36,numericItinerary(J$1))","v":""},{"$f":"getProgramXref($A36,numericItinerary(K$1))","v":""},{"$f":"getProgramXref($A36,numericItinerary(L$1))","v":""},{"$f":"getProgramXref($A36,numericItinerary(M$1))","v":""},{"$f":"getProgramXref($A36,numericItinerary(N$1))","v":"x"},{"$f":"getProgramXref($A36,numericItinerary(O$1))","v":""},{"$f":"getProgramXref($A36,numericItinerary(P$1))","v":""},{"$f":"getProgramXref($A36,numericItinerary(Q$1))","v":""},{"$f":"getProgramXref($A36,numericItinerary(R$1))","v":""},null,2]
[{"$f":"INDEX(program_table,ROW()-5)","v":"Post Civil War Encampment"},2,{"$f":"getProgramXref($A37,numericItinerary(C$1))","v":""},{"$f":"getProgramXref($A37,numericItinerary(D$1))","v":""},{"$f":"getProgramXref($A37,numericItinerary(E$1))","v":""},{"$f":"getProgramXref($A37,numericItinerary(F$1))","v":""},{"$f":"getProgramXref($A37,numericItinerary(G$1))","v":""},{"$f":"getProgramXref($A37,numericItinerary(H$1))","v":""},{"$f":"getProgramXref($A37,numericItinerary(I$1))","v":"x"},{"$f":"getProgramXref($A37,numericItinerary(J$1))","v":""},{"$f":"getProgramXref($A37,numericItinerary(K$1))","v":""},{"$f":"getProgramXref($A37,numericItinerary(L$1))","v":""},{"$f":"getProgramXref($A37,numericItinerary(M$1))","v":""},{"$f":"getProgramXref($A37,numericItinerary(N$1))","v":""},{"$f":"getProgramXref($A37,numericItinerary(O$1))","v":""},{"$f":"getProgramXref($A37,numericItinerary(P$1))","v":""},{"$f":"getProgramXref($A37,numericItinerary(Q$1))","v":""},{"$f":"getProgramXref($A37,numericItinerary(R$1))","v":"x"},null,2]
[{"$f":"INDEX(program_table,ROW()-5)","v":"Railroading"},2,{"$f":"getProgramXref($A38,numericItinerary(C$1))","v":""},{"$f":"getProgramXref($A38,numericItinerary(D$1))","v":""},{"$f":"getProgramXref($A38,numericItinerary(E$1))","v":""},{"$f":"getProgramXref($A38,numericItinerary(F$1))","v":""},{"$f":"getProgramXref($A38,numericItinerary(G$1))","v":""},{"$f":"getProgramXref($A38,numericItinerary(H$1))","v":""},{"$f":"getProgramXref($A38,numericItinerary(I$1))","v":""},{"$f":"getProgramXref($A38,numericItinerary(J$1))","v":""},{"$f":"getProgramXref($A38,numericItinerary(K$1))","v":""},{"$f":"getProgramXref($A38,numericItinerary(L$1))","v":""},{"$f":"getProgramXref($A38,numericItinerary(M$1))","v":"x"},{"$f":"getProgramXref($A38,numericItinerary(N$1))","v":"x"},{"$f":"getProgramXref($A38,numericItinerary(O$1))","v":""},{"$f":"getProgramXref($A38,numericItinerary(P$1))","v":""},{"$f":"getProgramXref($A38,numericItinerary(Q$1))","v":""},{"$f":"getProgramXref($A38,numericItinerary(R$1))","v":""},null,2]
[{"$f":"INDEX(program_table,ROW()-5)","v":"Rock Climbing & Rappelling"},7,{"$f":"getProgramXref($A39,numericItinerary(C$1))","v":""},{"$f":"getProgramXref($A39,numericItinerary(D$1))","v":"x"},{"$f":"getProgramXref($A39,numericItinerary(E$1))","v":""},{"$f":"getProgramXref($A39,numericItinerary(F$1))","v":""},{"$f":"getProgramXref($A39,numericItinerary(G$1))","v":"x"},{"$f":"getProgramXref($A39,numericItinerary(H$1))","v":""},{"$f":"getProgramXref($A39,numericItinerary(I$1))","v":""},{"$f":"getProgramXref($A39,numericItinerary(J$1))","v":""},{"$f":"getProgramXref($A39,numericItinerary(K$1))","v":"x"},{"$f":"getProgramXref($A39,numericItinerary(L$1))","v":"x"},{"$f":"getProgramXref($A39,numericItinerary(M$1))","v":"x"},{"$f":"getProgramXref($A39,numericItinerary(N$1))","v":""},{"$f":"getProgramXref($A39,numericItinerary(O$1))","v":""},{"$f":"getProgramXref($A39,numericItinerary(P$1))","v":""},{"$f":"getProgramXref($A39,numericItinerary(Q$1))","v":"x"},{"$f":"getProgramXref($A39,numericItinerary(R$1))","v":"x"},null,7]
[{"$f":"INDEX(program_table,ROW()-5)","v":"Rocky Mountain Fur Co."},2,{"$f":"getProgramXref($A40,numericItinerary(C$1))","v":""},{"$f":"getProgramXref($A40,numericItinerary(D$1))","v":""},{"$f":"getProgramXref($A40,numericItinerary(E$1))","v":""},{"$f":"getProgramXref($A40,numericItinerary(F$1))","v":""},{"$f":"getProgramXref($A40,numericItinerary(G$1))","v":""},{"$f":"getProgramXref($A40,numericItinerary(H$1))","v":""},{"$f":"getProgramXref($A40,numericItinerary(I$1))","v":""},{"$f":"getProgramXref($A40,numericItinerary(J$1))","v":"x"},{"$f":"getProgramXref($A40,numericItinerary(K$1))","v":""},{"$f":"getProgramXref($A40,numericItinerary(L$1))","v":""},{"$f":"getProgramXref($A40,numericItinerary(M$1))","v":""},{"$f":"getProgramXref($A40,numericItinerary(N$1))","v":""},{"$f":"getProgramXref($A40,numericItinerary(O$1))","v":"x"},{"$f":"getProgramXref($A40,numericItinerary(P$1))","v":""},{"$f":"getProgramXref($A40,numericItinerary(Q$1))","v":""},{"$f":"getProgramXref($A40,numericItinerary(R$1))","v":""},null,2]
[{"$f":"INDEX(program_table,ROW()-5)","v":"Shooting/Reloading - .30-06"},2,{"$f":"getProgramXref($A41,numericItinerary(C$1))","v":""},{"$f":"getProgramXref($A41,numericItinerary(D$1))","v":""},{"$f":"getProgramXref($A41,numericItinerary(E$1))","v":""},{"$f":"getProgramXref($A41,numericItinerary(F$1))","v":""},{"$f":"getProgramXref($A41,numericItinerary(G$1))","v":""},{"$f":"getProgramXref($A41,numericItinerary(H$1))","v":""},{"$f":"getProgramXref($A41,numericItinerary(I$1))","v":""},{"$f":"getProgramXref($A41,numericItinerary(J$1))","v":""},{"$f":"getProgramXref($A41,numericItinerary(K$1))","v":""},{"$f":"getProgramXref($A41,numericItinerary(L$1))","v":""},{"$f":"getProgramXref($A41,numericItinerary(M$1))","v":""},{"$f":"getProgramXref($A41,numericItinerary(N$1))","v":""},{"$f":"getProgramXref($A41,numericItinerary(O$1))","v":"x"},{"$f":"getProgramXref($A41,numericItinerary(P$1))","v":""},{"$f":"getProgramXref($A41,numericItinerary(Q$1))","v":"x"},{"$f":"getProgramXref($A41,numericItinerary(R$1))","v":""},null,2]
[{"$f":"INDEX(program_table,ROW()-5)","v":"Shotgun Shooting/Reloading - 12 Gauge"},2,{"$f":"getProgramXref($A42,numericItinerary(C$1))","v":""},{"$f":"getProgramXref($A42,numericItinerary(D$1))","v":""},{"$f":"getProgramXref($A42,numericItinerary(E$1))","v":""},{"$f":"getProgramXref($A42,numericItinerary(F$1))","v":""},{"$f":"getProgramXref($A42,numericItinerary(G$1))","v":"x"},{"$f":"getProgramXref($A42,numericItinerary(H$1))","v":""},{"$f":"getProgramXref($A42,numericItinerary(I$1))","v":""},{"$f":"getProgramXref($A42,numericItinerary(J$1))","v":""},{"$f":"getProgramXref($A42,numericItinerary(K$1))","v":""},{"$f":"getProgramXref($A42,numericItinerary(L$1))","v":""},{"$f":"getProgramXref($A42,numericItinerary(M$1))","v":""},{"$f":"getProgramXref($A42,numericItinerary(N$1))","v":""},{"$f":"getProgramXref($A42,numericItinerary(O$1))","v":""},{"$f":"getProgramXref($A42,numericItinerary(P$1))","v":""},{"$f":"getProgramXref($A42,numericItinerary(Q$1))","v":"x"},{"$f":"getProgramXref($A42,numericItinerary(R$1))","v":""},null,2]
[{"$f":"INDEX(program_table,ROW()-5)","v":"Spar Pole Climbing"},2,{"$f":"getProgramXref($A43,numericItinerary(C$1))","v":""},{"$f":"getProgramXref($A43,numericItinerary(D$1))","v":""},{"$f":"getProgramXref($A43,numericItinerary(E$1))","v":""},{"$f":"getProgramXref($A43,numericItinerary(F$1))","v":""},{"$f":"getProgramXref($A43,numericItinerary(G$1))","v":""},{"$f":"getProgramXref($A43,numericItinerary(H$1))","v":"x"},{"$f":"getProgramXref($A43,numericItinerary(I$1))","v":""},{"$f":"getProgramXref($A43,numericItinerary(J$1))","v":""},{"$f":"getProgramXref($A43,numericItinerary(K$1))","v":""},{"$f":"getProgramXref($A43,numericItinerary(L$1))","v":""},{"$f":"getProgramXref($A43,numericItinerary(M$1))","v":""},{"$f":"getProgramXref($A43,numericItinerary(N$1))","v":""},{"$f":"getProgramXref($A43,numericItinerary(O$1))","v":""},{"$f":"getProgramXref($A43,numericItinerary(P$1))","v":""},{"$f":"getProgramXref($A43,numericItinerary(Q$1))","v":""},{"$f":"getProgramXref($A43,numericItinerary(R$1))","v":"x"},null,2]
[{"$f":"INDEX(program_table,ROW()-5)","v":"Tie Making & Crosscut Saws"},5,{"$f":"getProgramXref($A44,numericItinerary(C$1))","v":"x"},{"$f":"getProgramXref($A44,numericItinerary(D$1))","v":""},{"$f":"getProgramXref($A44,numericItinerary(E$1))","v":""},{"$f":"getProgramXref($A44,numericItinerary(F$1))","v":""},{"$f":"getProgramXref($A44,numericItinerary(G$1))","v":""},{"$f":"getProgramXref($A44,numericItinerary(H$1))","v":"x"},{"$f":"getProgramXref($A44,numericItinerary(I$1))","v":""},{"$f":"getProgramXref($A44,numericItinerary(J$1))","v":""},{"$f":"getProgramXref($A44,numericItinerary(K$1))","v":""},{"$f":"getProgramXref($A44,numericItinerary(L$1))","v":"x"},{"$f":"getProgramXref($A44,numericItinerary(M$1))","v":""},{"$f":"getProgramXref($A44,numericItinerary(N$1))","v":"x"},{"$f":"getProgramXref($A44,numericItinerary(O$1))","v":""},{"$f":"getProgramXref($A44,numericItinerary(P$1))","v":""},{"$f":"getProgramXref($A44,numericItinerary(Q$1))","v":""},{"$f":"getProgramXref($A44,numericItinerary(R$1))","v":"x"},null,5]
[{"$f":"INDEX(program_table,ROW()-5)","v":"Tomahawk Throwing"},6,{"$f":"getProgramXref($A45,numericItinerary(C$1))","v":"x"},{"$f":"getProgramXref($A45,numericItinerary(D$1))","v":""},{"$f":"getProgramXref($A45,numericItinerary(E$1))","v":"x"},{"$f":"getProgramXref($A45,numericItinerary(F$1))","v":"x"},{"$f":"getProgramXref($A45,numericItinerary(G$1))","v":""},{"$f":"getProgramXref($A45,numericItinerary(H$1))","v":"x"},{"$f":"getProgramXref($A45,numericItinerary(I$1))","v":""},{"$f":"getProgramXref($A45,numericItinerary(J$1))","v":""},{"$f":"getProgramXref($A45,numericItinerary(K$1))","v":""},{"$f":"getProgramXref($A45,numericItinerary(L$1))","v":""},{"$f":"getProgramXref($A45,numericItinerary(M$1))","v":""},{"$f":"getProgramXref($A45,numericItinerary(N$1))","v":"x"},{"$f":"getProgramXref($A45,numericItinerary(O$1))","v":""},{"$f":"getProgramXref($A45,numericItinerary(P$1))","v":""},{"$f":"getProgramXref($A45,numericItinerary(Q$1))","v":""},{"$f":"getProgramXref($A45,numericItinerary(R$1))","v":"x"},null,6]
[{"$f":"INDEX(program_table,ROW()-5)","v":"Tooth of Time"},6,{"$f":"getProgramXref($A46,numericItinerary(C$1))","v":""},{"$f":"getProgramXref($A46,numericItinerary(D$1))","v":"x"},{"$f":"getProgramXref($A46,numericItinerary(E$1))","v":""},{"$f":"getProgramXref($A46,numericItinerary(F$1))","v":""},{"$f":"getProgramXref($A46,numericItinerary(G$1))","v":""},{"$f":"getProgramXref($A46,numericItinerary(H$1))","v":""},{"$f":"getProgramXref($A46,numericItinerary(I$1))","v":"x"},{"$f":"getProgramXref($A46,numericItinerary(J$1))","v":""},{"$f":"getProgramXref($A46,numericItinerary(K$1))","v":"x"},{"$f":"getProgramXref($A46,numericItinerary(L$1))","v":"x"},{"$f":"getProgramXref($A46,numericItinerary(M$1))","v":""},{"$f":"getProgramXref($A46,numericItinerary(N$1))","v":""},{"$f":"getProgramXref($A46,numericItinerary(O$1))","v":""},{"$f":"getProgramXref($A46,numericItinerary(P$1))","v":""},{"$f":"getProgramXref($A46,numericItinerary(Q$1))","v":"x"},{"$f":"getProgramXref($A46,numericItinerary(R$1))","v":"x"},null,6]
[{"$f":"INDEX(program_table,ROW()-5)","v":"Trail Peak"},2,{"$f":"getProgramXref($A47,numericItinerary(C$1))","v":""},{"$f":"getProgramXref($A47,numericItinerary(D$1))","v":""},{"$f":"getProgramXref($A47,numericItinerary(E$1))","v":""},{"$f":"getProgramXref($A47,numericItinerary(F$1))","v":""},{"$f":"getProgramXref($A47,numericItinerary(G$1))","v":""},{"$f":"getProgramXref($A47,numericItinerary(H$1))","v":""},{"$f":"getProgramXref($A47,numericItinerary(I$1))","v":""},{"$f":"getProgramXref($A47,numericItinerary(J$1))","v":""},{"$f":"getProgramXref($A47,numericItinerary(K$1))","v":""},{"$f":"getProgramXref($A47,numericItinerary(L$1))","v":"x"},{"$f":"getProgramXref($A47,numericItinerary(M$1))","v":""},{"$f":"getProgramXref($A47,numericItinerary(N$1))","v":""},{"$f":"getProgramXref($A47,numericItinerary(O$1))","v":""},{"$f":"getProgramXref($A47,numericItinerary(P$1))","v":""},{"$f":"getProgramXref($A47,numericItinerary(Q$1))","v":""},{"$f":"getProgramXref($A47,numericItinerary(R$1))","v":"x"},null,2]
[{"$f":"INDEX(program_table,ROW()-5)","v":"Western Lore/Branding"},13,{"$f":"getProgramXref($A48,numericItinerary(C$1))","v":"x"},{"$f":"getProgramXref($A48,numericItinerary(D$1))","v":"x"},{"$f":"getProgramXref($A48,numericItinerary(E$1))","v":"x"},{"$f":"getProgramXref($A48,numericItinerary(F$1))","v":"x"},{"$f":"getProgramXref($A48,numericItinerary(G$1))","v":"x"},{"$f":"getProgramXref($A48,numericItinerary(H$1))","v":"x"},{"$f":"getProgramXref($A48,numericItinerary(I$1))","v":"x"},{"$f":"getProgramXref($A48,numericItinerary(J$1))","v":"x"},{"$f":"getProgramXref($A48,numericItinerary(K$1))","v":"x"},{"$f":"getProgramXref($A48,numericItinerary(L$1))","v":""},{"$f":"getProgramXref($A48,numericItinerary(M$1))","v":"x"},{"$f":"getProgramXref($A48,numericItinerary(N$1))","v":""},{"$f":"getProgramXref($A48,numericItinerary(O$1))","v":""},{"$f":"getProgramXref($A48,numericItinerary(P$1))","v":"x"},{"$f":"getProgramXref($A48,numericItinerary(Q$1))","v":"x"},{"$f":"getProgramXref($A48,numericItinerary(R$1))","v":"x"},null,13]
["# programs in itinerary:  ",null,{"$f":"COUNTIF(C6:C48,\"X\")","v":15},10,10,12,6,15,12,9,11,9,11,13,10,13,9,14,null,{"$f":"COUNTIF(#REF!,\"X\")","v":{"$error":"#REF!"}}]
[null,null,null,null,null,null,null,null,null,null,null,null,null,null,null,null,null,null,null,{"$f":"COUNTIF(#REF!,\"X\")","v":{"$error":"#REF!"}}]
[null,null,null,null,null,null,null,null,null,null,null,null,null,null,null,null,null,null,null,{"$f":"COUNTIF(#REF!,\"X\")","v":{"$error":"#REF!"}}]
[null,null,null,null,null,null,null,null,null,null,null,null,null,null,null,null,null,null,null,{"$f":"COUNTIF(#REF!,\"X\")","v":{"$error":"#REF!"}}]

{"sheet":"Tables","index":8,"n_rows":139,"n_cols":16,"rows_kept":139,"cut":false,"hidden":false,"merged":[[1,4,1,10],[1,11,44,11],[131,0,138,0],[95,10,95,14],[103,8,103,9],[104,8,104,9],[107,11,112,11],[107,12,112,12],[107,13,112,13],[107,14,112,14]]}
["Row","Category","Code","Value",null,"Total","Score Selected",null,null,null,"n","Index"]
[null,"programFactor","Multiply X Activity score for value to use",1.5,"This is applied to each score in the calculation. Use to make activities more/less important.",null,null,null,null,null,null,"These are the results of the \"Scores\" worksheet — from the scores entered from the Preference Survey worksheets.","Total","Average","Median","Mode"]
[1,"Program",{"$f":" INDEX(program_table,A3,1)","v":"Archaeology"},{"$f":"SUM(Scores!B2:M2)","v":152},null,null,null,null,null,null,1,null,{"$f":"SUM(Scores!$B2:M2)*programFactor","v":228},{"$f":"IF(COUNT(Scores!$B2:M2)>0,AVERAGE(Scores!$B2:M2)*programFactor,0)","v":19},{"$f":"IF(COUNT(Scores!$B2:M2)>0,MEDIAN(Scores!$B2:M2)*programFactor,0)","v":22.5},{"$f":"IF(getmode(Scores!$B2:M2)=\"\",\"\",getmode(Scores!$B2:M2)*programFactor)","v":22.5}]
[{"$f":"A3+1","v":2},"Program",{"$f":" INDEX(program_table,A4,1)","v":"Archery - 3 Dimensional"},{"$f":"SUM(Scores!B3:M3)","v":225},null,null,null,null,null,null,2,null,{"$f":"SUM(Scores!$B3:M3)*programFactor","v":337.5},{"$f":"IF(COUNT(Scores!$B3:M3)>0,AVERAGE(Scores!$B3:M3)*programFactor,0)","v":28.125},{"$f":"IF(COUNT(Scores!$B3:M3)>0,MEDIAN(Scores!$B3:M3)*programFactor,0)","v":30},{"$f":"IF(getmode(Scores!$B3:M3)=\"\",\"\",getmode(Scores!$B3:M3)*programFactor)","v":30}]
[{"$f":"A4+1","v":3},"Program",{"$f":" INDEX(program_table,A5,1)","v":"Atlatl (Dart-throwing)"},{"$f":"SUM(Scores!B4:M4)","v":76},null,null,null,null,null,null,3,null,{"$f":"SUM(Scores!$B4:M4)*programFactor","v":114},{"$f":"IF(COUNT(Scores!$B4:M4)>0,AVERAGE(Scores!$B4:M4)*programFactor,0)","v":9.5},{"$f":"IF(COUNT(Scores!$B4:M4)>0,MEDIAN(Scores!$B4:M4)*programFactor,0)","v":10.5},{"$f":"IF(getmode(Scores!$B4:M4)=\"\",\"\",getmode(Scores!$B4:M4)*programFactor)","v":3}]
[4,"Program",{"$f":" INDEX(program_table,A6,1)","v":"Baldy Mountain"},{"$f":"SUM(Scores!B5:M5)","v":188},null,null,null,null,null,null,4,null,{"$f":"SUM(Scores!$B5:M5)*programFactor","v":282},{"$f":"IF(COUNT(Scores!$B5:M5)>0,AVERAGE(Scores!$B5:M5)*programFactor,0)","v":23.5},{"$f":"IF(COUNT(Scores!$B5:M5)>0,MEDIAN(Scores!$B5:M5)*programFactor,0)","v":27},{"$f":"IF(getmode(Scores!$B5:M5)=\"\",\"\",getmode(Scores!$B5:M5)*programFactor)","v":27}]
[5,"Program",{"$f":" INDEX(program_table,A7,1)","v":"Blacksmithing"},{"$f":"SUM(Scores!B6:M6)","v":108},null,null,null,null,null,null,5,null,{"$f":"SUM(Scores!$B6:M6)*programFactor","v":162},{"$f":"IF(COUNT(Scores!$B6:M6)>0,AVERAGE(Scores!$B6:M6)*programFactor,0)","v":13.5},{"$f":"IF(COUNT(Scores!$B6:M6)>0,MEDIAN(Scores!$B6:M6)*programFactor,0)","v":12.75},{"$f":"IF(getmode(Scores!$B6:M6)=\"\",\"\",getmode(Scores!$B6:M6)*programFactor)","v":0}]
[6,"Program",{"$f":" INDEX(program_table,A8,1)","v":"Bouldering"},{"$f":"SUM(Scores!B7:M7)","v":111},null,null,null,null,null,null,6,null,{"$f":"SUM(Scores!$B7:M7)*programFactor","v":166.5},{"$f":"IF(COUNT(Scores!$B7:M7)>0,AVERAGE(Scores!$B7:M7)*programFactor,0)","v":13.875},{"$f":"IF(COUNT(Scores!$B7:M7)>0,MEDIAN(Scores!$B7:M7)*programFactor,0)","v":14.25},{"$f":"IF(getmode(Scores!$B7:M7)=\"\",\"\",getmode(Scores!$B7:M7)*programFactor)","v":0}]
[7,"Program",{"$f":" INDEX(program_table,A9,1)","v":"Campfire (evening)"},{"$f":"SUM(Scores!B8:M8)","v":111},null,null,null,null,null,null,7,null,{"$f":"SUM(Scores!$B8:M8)*programFactor","v":166.5},{"$f":"IF(COUNT(Scores!$B8:M8)>0,AVERAGE(Scores!$B8:M8)*programFactor,0)","v":13.875},{"$f":"IF(COUNT(Scores!$B8:M8)>0,MEDIAN(Scores!$B8:M8)*programFactor,0)","v":14.25},{"$f":"IF(getmode(Scores!$B8:M8)=\"\",\"\",getmode(Scores!$B8:M8)*programFactor)","v":0}]
[8,"Program",{"$f":" INDEX(program_table,A10,1)","v":"Cantina"},{"$f":"SUM(Scores!B9:M9)","v":84},null,null,null,null,null,null,8,null,{"$f":"SUM(Scores!$B9:M9)*programFactor","v":126},{"$f":"IF(COUNT(Scores!$B9:M9)>0,AVERAGE(Scores!$B9:M9)*programFactor,0)","v":10.5},{"$f":"IF(COUNT(Scores!$B9:M9)>0,MEDIAN(Scores!$B9:M9)*programFactor,0)","v":9},{"$f":"IF(getmode(Scores!$B9:M9)=\"\",\"\",getmode(Scores!$B9:M9)*programFactor)","v":0}]
[9,"Program",{"$f":" INDEX(program_table,A11,1)","v":"Challenge Events"},{"$f":"SUM(Scores!B10:M10)","v":87},null,null,null,null,null,null,9,null,{"$f":"SUM(Scores!$B10:M10)*programFactor","v":130.5},{"$f":"IF(COUNT(Scores!$B10:M10)>0,AVERAGE(Scores!$B10:M10)*programFactor,0)","v":10.875},{"$f":"IF(COUNT(Scores!$B10:M10)>0,MEDIAN(Scores!$B10:M10)*programFactor,0)","v":13.5},{"$f":"IF(getmode(Scores!$B10:M10)=\"\",\"\",getmode(Scores!$B10:M10)*programFactor)","v":0}]
[10,"Program",{"$f":" INDEX(program_table,A12,1)","v":"Chuckwagon Dinner"},{"$f":"SUM(Scores!B11:M11)","v":61},null,null,null,null,null,null,10,null,{"$f":"SUM(Scores!$B11:M11)*programFactor","v":91.5},{"$f":"IF(COUNT(Scores!$B11:M11)>0,AVERAGE(Scores!$B11:M11)*programFactor,0)","v":8.3181818181818183},{"$f":"IF(COUNT(Scores!$B11:M11)>0,MEDIAN(Scores!$B11:M11)*programFactor,0)","v":7.5},{"$f":"IF(getmode(Scores!$B11:M11)=\"\",\"\",getmode(Scores!$B11:M11)*programFactor)","v":0}]
[11,"Program",{"$f":" INDEX(program_table,A13,1)","v":"Cowboy Action Shooting"},{"$f":"SUM(Scores!B12:M12)","v":73},null,null,null,null,null,null,11,null,{"$f":"SUM(Scores!$B12:M12)*programFactor","v":109.5},{"$f":"IF(COUNT(Scores!$B12:M12)>0,AVERAGE(Scores!$B12:M12)*programFactor,0)","v":9.954545454545455},{"$f":"IF(COUNT(Scores!$B12:M12)>0,MEDIAN(Scores!$B12:M12)*programFactor,0)","v":7.5},{"$f":"IF(getmode(Scores!$B12:M12)=\"\",\"\",getmode(Scores!$B12:M12)*programFactor)","v":7.5}]
[12,"Program",{"$f":" INDEX(program_table,A14,1)","v":"Demonstration Forest"},{"$f":"SUM(Scores!B13:M13)","v":73},null,null,null,null,null,null,12,null,{"$f":"SUM(Scores!$B13:M13)*programFactor","v":109.5},{"$f":"IF(COUNT(Scores!$B13:M13)>0,AVERAGE(Scores!$B13:M13)*programFactor,0)","v":13.6875},{"$f":"IF(COUNT(Scores!$B13:M13)>0,MEDIAN(Scores!$B13:M13)*programFactor,0)","v":15.75},{"$f":"IF(getmode(Scores!$B13:M13)=\"\",\"\",getmode(Scores!$B13:M13)*programFactor)","v":0}]
[13,"Program",{"$f":" INDEX(program_table,A15,1)","v":"Fishing"},{"$f":"SUM(Scores!B14:M14)","v":74},null,null,null,null,null,null,13,null,{"$f":"SUM(Scores!$B14:M14)*programFactor","v":111},{"$f":"IF(COUNT(Scores!$B14:M14)>0,AVERAGE(Scores!$B14:M14)*programFactor,0)","v":9.25},{"$f":"IF(COUNT(Scores!$B14:M14)>0,MEDIAN(Scores!$B14:M14)*programFactor,0)","v":6},{"$f":"IF(getmode(Scores!$B14:M14)=\"\",\"\",getmode(Scores!$B14:M14)*programFactor)","v":0}]
[14,"Program",{"$f":" INDEX(program_table,A16,1)","v":"Fly Tying"},{"$f":"SUM(Scores!B15:M15)","v":76},null,null,null,null,null,null,14,null,{"$f":"SUM(Scores!$B15:M15)*programFactor","v":114},{"$f":"IF(COUNT(Scores!$B15:M15)>0,AVERAGE(Scores!$B15:M15)*programFactor,0)","v":10.363636363636363},{"$f":"IF(COUNT(Scores!$B15:M15)>0,MEDIAN(Scores!$B15:M15)*programFactor,0)","v":10.5},{"$f":"IF(getmode(Scores!$B15:M15)=\"\",\"\",getmode(Scores!$B15:M15)*programFactor)","v":3}]
[15,"Program",{"$f":" INDEX(program_table,A17,1)","v":"Fur Trapper Rendezvous"},{"$f":"SUM(Scores!B16:M16)","v":82},null,null,null,null,null,null,15,null,{"$f":"SUM(Scores!$B16:M16)*programFactor","v":123},{"$f":"IF(COUNT(Scores!$B16:M16)>0,AVERAGE(Scores!$B16:M16)*programFactor,0)","v":11.181818181818182},{"$f":"IF(COUNT(Scores!$B16:M16)>0,MEDIAN(Scores!$B16:M16)*programFactor,0)","v":7.5},{"$f":"IF(getmode(Scores!$B16:M16)=\"\",\"\",getmode(Scores!$B16:M16)*programFactor)","v":4.5}]
[16,"Program",{"$f":" INDEX(program_table,A18,1)","v":"Gold Mining & Panning"},{"$f":"SUM(Scores!B17:M17)","v":84},null,null,null,null,null,null,16,null,{"$f":"SUM(Scores!$B17:M17)*programFactor","v":126},{"$f":"IF(COUNT(Scores!$B17:M17)>0,AVERAGE(Scores!$B17:M17)*programFactor,0)","v":10.5},{"$f":"IF(COUNT(Scores!$B17:M17)>0,MEDIAN(Scores!$B17:M17)*programFactor,0)","v":12},{"$f":"IF(getmode(Scores!$B17:M17)=\"\",\"\",getmode(Scores!$B17:M17)*programFactor)","v":12}]
[17,"Program",{"$f":" INDEX(program_table,A19,1)","v":"High Ropes & Climbing Tower"},{"$f":"SUM(Scores!B18:M18)","v":71},null,null,null,null,null,null,17,null,{"$f":"SUM(Scores!$B18:M18)*programFactor","v":106.5},{"$f":"IF(COUNT(Scores!$B18:M18)>0,AVERAGE(Scores!$B18:M18)*programFactor,0)","v":8.875},{"$f":"IF(COUNT(Scores!$B18:M18)>0,MEDIAN(Scores!$B18:M18)*programFactor,0)","v":6},{"$f":"IF(getmode(Scores!$B18:M18)=\"\",\"\",getmode(Scores!$B18:M18)*programFactor)","v":1.5}]
[18,"Program",{"$f":" INDEX(program_table,A20,1)","v":"Historic Chase Ranch"},{"$f":"SUM(Scores!B19:M19)","v":97},null,null,null,null,null,null,18,null,{"$f":"SUM(Scores!$B19:M19)*programFactor","v":145.5},{"$f":"IF(COUNT(Scores!$B19:M19)>0,AVERAGE(Scores!$B19:M19)*programFactor,0)","v":13.227272727272727},{"$f":"IF(COUNT(Scores!$B19:M19)>0,MEDIAN(Scores!$B19:M19)*programFactor,0)","v":15},{"$f":"IF(getmode(Scores!$B19:M19)=\"\",\"\",getmode(Scores!$B19:M19)*programFactor)","v":15}]
[19,"Program",{"$f":" INDEX(program_table,A21,1)","v":"Homesteading"},{"$f":"SUM(Scores!B20:M20)","v":62},null,null,null,null,null,null,19,null,{"$f":"SUM(Scores!$B20:M20)*programFactor","v":93},{"$f":"IF(COUNT(Scores!$B20:M20)>0,AVERAGE(Scores!$B20:M20)*programFactor,0)","v":7.75},{"$f":"IF(COUNT(Scores!$B20:M20)>0,MEDIAN(Scores!$B20:M20)*programFactor,0)","v":6},{"$f":"IF(getmode(Scores!$B20:M20)=\"\",\"\",getmode(Scores!$B20:M20)*programFactor)","v":0}]
[20,"Program",{"$f":" INDEX(program_table,A22,1)","v":"Horse Rides"},{"$f":"SUM(Scores!B21:M21)","v":104},null,null,null,null,null,null,20,null,{"$f":"SUM(Scores!$B21:M21)*programFactor","v":156},{"$f":"IF(COUNT(Scores!$B21:M21)>0,AVERAGE(Scores!$B21:M21)*programFactor,0)","v":13},{"$f":"IF(COUNT(Scores!$B21:M21)>0,MEDIAN(Scores!$B21:M21)*programFactor,0)","v":15},{"$f":"IF(getmode(Scores!$B21:M21)=\"\",\"\",getmode(Scores!$B21:M21)*programFactor)","v":3}]
[21,"Program",{"$f":" INDEX(program_table,A23,1)","v":"Inspiration Point Hike"},{"$f":"SUM(Scores!B22:M22)","v":76},null,null,null,null,null,null,21,null,{"$f":"SUM(Scores!$B22:M22)*programFactor","v":114},{"$f":"IF(COUNT(Scores!$B22:M22)>0,AVERAGE(Scores!$B22:M22)*programFactor,0)","v":9.5},{"$f":"IF(COUNT(Scores!$B22:M22)>0,MEDIAN(Scores!$B22:M22)*programFactor,0)","v":6},{"$f":"IF(getmode(Scores!$B22:M22)=\"\",\"\",getmode(Scores!$B22:M22)*programFactor)","v":0}]
[22,"Program",{"$f":" INDEX(program_table,A24,1)","v":"Laser Shot Shooting Range"},{"$f":"SUM(Scores!B23:M23)","v":86},null,null,null,null,null,null,22,null,{"$f":"SUM(Scores!$B23:M23)*programFactor","v":129},{"$f":"IF(COUNT(Scores!$B23:M23)>0,AVERAGE(Scores!$B23:M23)*programFactor,0)","v":10.75},{"$f":"IF(COUNT(Scores!$B23:M23)>0,MEDIAN(Scores!$B23:M23)*programFactor,0)","v":9.75},{"$f":"IF(getmode(Scores!$B23:M23)=\"\",\"\",getmode(Scores!$B23:M23)*programFactor)","v":0}]
[23,"Program",{"$f":" INDEX(program_table,A25,1)","v":"Lodge/Cabin Tours"},{"$f":"SUM(Scores!B24:M24)","v":69},null,null,null,null,null,null,23,null,{"$f":"SUM(Scores!$B24:M24)*programFactor","v":103.5},{"$f":"IF(COUNT(Scores!$B24:M24)>0,AVERAGE(Scores!$B24:M24)*programFactor,0)","v":8.625},{"$f":"IF(COUNT(Scores!$B24:M24)>0,MEDIAN(Scores!$B24:M24)*programFactor,0)","v":9.75},{"$f":"IF(getmode(Scores!$B24:M24)=\"\",\"\",getmode(Scores!$B24:M24)*programFactor)","v":3}]
[24,"Program",{"$f":" INDEX(program_table,A26,1)","v":"Low Impact Camping"},{"$f":"SUM(Scores!B25:M25)","v":135},null,null,null,null,null,null,24,null,{"$f":"SUM(Scores!$B25:M25)*programFactor","v":202.5},{"$f":"IF(COUNT(Scores!$B25:M25)>0,AVERAGE(Scores!$B25:M25)*programFactor,0)","v":18.40909090909091},{"$f":"IF(COUNT(Scores!$B25:M25)>0,MEDIAN(Scores!$B25:M25)*programFactor,0)","v":19.5},{"$f":"IF(getmode(Scores!$B25:M25)=\"\",\"\",getmode(Scores!$B25:M25)*programFactor)","v":19.5}]
[25,"Program",{"$f":" INDEX(program_table,A27,1)","v":"Mexican Dinner"},{"$f":"SUM(Scores!B26:M26)","v":61},null,null,null,null,null,null,25,null,{"$f":"SUM(Scores!$B26:M26)*programFactor","v":91.5},{"$f":"IF(COUNT(Scores!$B26:M26)>0,AVERAGE(Scores!$B26:M26)*programFactor,0)","v":9.1499999999999986},{"$f":"IF(COUNT(Scores!$B26:M26)>0,MEDIAN(Scores!$B26:M26)*programFactor,0)","v":7.5},{"$f":"IF(getmode(Scores!$B26:M26)=\"\",\"\",getmode(Scores!$B26:M26)*programFactor)","v":0}]
[26,"Program",{"$f":" INDEX(program_table,A28,1)","v":"Mine Tour"},{"$f":"SUM(Scores!B27:M27)","v":121},null,null,null,null,null,null,26,null,{"$f":"SUM(Scores!$B27:M27)*programFactor","v":181.5},{"$f":"IF(COUNT(Scores!$B27:M27)>0,AVERAGE(Scores!$B27:M27)*programFactor,0)","v":18.149999999999999},{"$f":"IF(COUNT(Scores!$B27:M27)>0,MEDIAN(Scores!$B27:M27)*programFactor,0)","v":18},{"$f":"IF(getmode(Scores!$B27:M27)=\"\",\"\",getmode(Scores!$B27:M27)*programFactor)","v":10.5}]
[27,"Program",{"$f":" INDEX(program_table,A29,1)","v":"Mount Phillips"},{"$f":"SUM(Scores!B28:M28)","v":147},null,null,null,null,null,null,26,null,{"$f":"SUM(Scores!$B28:M28)*programFactor","v":220.5},{"$f":"IF(COUNT(Scores!$B28:M28)>0,AVERAGE(Scores!$B28:M28)*programFactor,0)","v":18.375},{"$f":"IF(COUNT(Scores!$B28:M28)>0,MEDIAN(Scores!$B28:M28)*programFactor,0)","v":18},{"$f":"IF(getmode(Scores!$B28:M28)=\"\",\"\",getmode(Scores!$B28:M28)*programFactor)","v":10.5}]
[28,"Program",{"$f":" INDEX(program_table,A30,1)","v":"Mountaineering"},{"$f":"SUM(Scores!B29:M29)","v":140},null,null,null,null,null,null,26,null,{"$f":"SUM(Scores!$B29:M29)*programFactor","v":210},{"$f":"IF(COUNT(Scores!$B29:M29)>0,AVERAGE(Scores!$B29:M29)*programFactor,0)","v":19.09090909090909},{"$f":"IF(COUNT(Scores!$B29:M29)>0,MEDIAN(Scores!$B29:M29)*programFactor,0)","v":21},{"$f":"IF(getmode(Scores!$B29:M29)=\"\",\"\",getmode(Scores!$B29:M29)*programFactor)","v":7.5}]
[29,"Program",{"$f":" INDEX(program_table,A31,1)","v":"Muzzle Loading Rifle"},{"$f":"SUM(Scores!B30:M30)","v":170},null,null,null,null,null,null,26,null,{"$f":"SUM(Scores!$B30:M30)*programFactor","v":255},{"$f":"IF(COUNT(Scores!$B30:M30)>0,AVERAGE(Scores!$B30:M30)*programFactor,0)","v":23.181818181818183},{"$f":"IF(COUNT(Scores!$B30:M30)>0,MEDIAN(Scores!$B30:M30)*programFactor,0)","v":27},{"$f":"IF(getmode(Scores!$B30:M30)=\"\",\"\",getmode(Scores!$B30:M30)*programFactor)","v":30}]
[30,"Program",{"$f":" INDEX(program_table,A32,1)","v":"New Mexico Homestead"},{"$f":"SUM(Scores!B31:M31)","v":157},null,null,null,null,null,null,26,null,{"$f":"SUM(Scores!$B31:M31)*programFactor","v":235.5},{"$f":"IF(COUNT(Scores!$B31:M31)>0,AVERAGE(Scores!$B31:M31)*programFactor,0)","v":21.40909090909091},{"$f":"IF(COUNT(Scores!$B31:M31)>0,MEDIAN(Scores!$B31:M31)*programFactor,0)","v":22.5},{"$f":"IF(getmode(Scores!$B31:M31)=\"\",\"\",getmode(Scores!$B31:M31)*programFactor)","v":30}]
[31,"Program",{"$f":" INDEX(program_table,A33,1)","v":"Petroglyph Tour"},{"$f":"SUM(Scores!B32:M32)","v":129},null,null,null,null,null,null,26,null,{"$f":"SUM(Scores!$B32:M32)*programFactor","v":193.5},{"$f":"IF(COUNT(Scores!$B32:M32)>0,AVERAGE(Scores!$B32:M32)*programFactor,0)","v":19.350000000000001},{"$f":"IF(COUNT(Scores!$B32:M32)>0,MEDIAN(Scores!$B32:M32)*programFactor,0)","v":18},{"$f":"IF(getmode(Scores!$B32:M32)=\"\",\"\",getmode(Scores!$B32:M32)*programFactor)","v":10.5}]
[32,"Program",{"$f":" INDEX(program_table,A34,1)","v":"Post Civil War Encampment"},{"$f":"SUM(Scores!B26:M26)","v":61},null,null,null,null,null,null,26,null,{"$f":"SUM(Scores!$B33:M33)*programFactor","v":151.5},{"$f":"IF(COUNT(Scores!$B33:M33)>0,AVERAGE(Scores!$B33:M33)*programFactor,0)","v":12.625},{"$f":"IF(COUNT(Scores!$B33:M33)>0,MEDIAN(Scores!$B33:M33)*programFactor,0)","v":15},{"$f":"IF(getmode(Scores!$B33:M33)=\"\",\"\",getmode(Scores!$B33:M33)*programFactor)","v":15}]
[33,"Program",{"$f":" INDEX(program_table,A35,1)","v":"Railroading"},{"$f":"SUM(Scores!B27:M27)","v":121},null,null,null,null,null,null,26,null,{"$f":"SUM(Scores!$B27:M27)*programFactor","v":181.5},{"$f":"IF(COUNT(Scores!$B27:M27)>0,AVERAGE(Scores!$B27:M27)*programFactor,0)","v":18.149999999999999},{"$f":"IF(COUNT(Scores!$B27:M27)>0,MEDIAN(Scores!$B27:M27)*programFactor,0)","v":18},{"$f":"IF(getmode(Scores!$B27:M27)=\"\",\"\",getmode(Scores!$B27:M27)*programFactor)","v":10.5}]
[34,"Program",{"$f":" INDEX(program_table,A36,1)","v":"Rock Climbing & Rappelling"},{"$f":"SUM(Scores!B28:M28)","v":147},null,null,null,null,null,null,26,null,{"$f":"SUM(Scores!$B28:M28)*programFactor","v":220.5},{"$f":"IF(COUNT(Scores!$B28:M28)>0,AVERAGE(Scores!$B28:M28)*programFactor,0)","v":18.375},{"$f":"IF(COUNT(Scores!$B28:M28)>0,MEDIAN(Scores!$B28:M28)*programFactor,0)","v":18},{"$f":"IF(getmode(Scores!$B28:M28)=\"\",\"\",getmode(Scores!$B28:M28)*programFactor)","v":10.5}]
[35,"Program",{"$f":" INDEX(program_table,A37,1)","v":"Rocky Mountain Fur Co."},{"$f":"SUM(Scores!B29:M29)","v":140},null,null,null,null,null,null,26,null,{"$f":"SUM(Scores!$B29:M29)*programFactor","v":210},{"$f":"IF(COUNT(Scores!$B29:M29)>0,AVERAGE(Scores!$B29:M29)*programFactor,0)","v":19.09090909090909},{"$f":"IF(COUNT(Scores!$B29:M29)>0,MEDIAN(Scores!$B29:M29)*programFactor,0)","v":21},{"$f":"IF(getmode(Scores!$B29:M29)=\"\",\"\",getmode(Scores!$B29:M29)*programFactor)","v":7.5}]
[36,"Program",{"$f":" INDEX(program_table,A38,1)","v":"Shooting/Reloading - .30-06"},{"$f":"SUM(Scores!B30:M30)","v":170},null,null,null,null,null,null,26,null,{"$f":"SUM(Scores!$B30:M30)*programFactor","v":255},{"$f":"IF(COUNT(Scores!$B30:M30)>0,AVERAGE(Scores!$B30:M30)*programFactor,0)","v":23.181818181818183},{"$f":"IF(COUNT(Scores!$B30:M30)>0,MEDIAN(Scores!$B30:M30)*programFactor,0)","v":27},{"$f":"IF(getmode(Scores!$B30:M30)=\"\",\"\",getmode(Scores!$B30:M30)*programFactor)","v":30}]
[37,"Program",{"$f":" INDEX(program_table,A39,1)","v":"Shotgun Shooting/Reloading - 12 Gauge"},{"$f":"SUM(Scores!B31:M31)","v":157},null,null,null,null,null,null,26,null,{"$f":"SUM(Scores!$B31:M31)*programFactor","v":235.5},{"$f":"IF(COUNT(Scores!$B31:M31)>0,AVERAGE(Scores!$B31:M31)*programFactor,0)","v":21.40909090909091},{"$f":"IF(COUNT(Scores!$B31:M31)>0,MEDIAN(Scores!$B31:M31)*programFactor,0)","v":22.5},{"$f":"IF(getmode(Scores!$B31:M31)=\"\",\"\",getmode(Scores!$B31:M31)*programFactor)","v":30}]
[38,"Program",{"$f":" INDEX(program_table,A40,1)","v":"Spar Pole Climbing"},{"$f":"SUM(Scores!B32:M32)","v":129},null,null,null,null,null,null,26,null,{"$f":"SUM(Scores!$B32:M32)*programFactor","v":193.5},{"$f":"IF(COUNT(Scores!$B32:M32)>0,AVERAGE(Scores!$B32:M32)*programFactor,0)","v":19.350000000000001},{"$f":"IF(COUNT(Scores!$B32:M32)>0,MEDIAN(Scores!$B32:M32)*programFactor,0)","v":18},{"$f":"IF(getmode(Scores!$B32:M32)=\"\",\"\",getmode(Scores!$B32:M32)*programFactor)","v":10.5}]
[39,"Program",{"$f":" INDEX(program_table,A41,1)","v":"Tie Making & Crosscut Saws"},{"$f":"SUM(Scores!B33:M33)","v":101},null,null,null,null,null,null,26,null,{"$f":"SUM(Scores!$B33:M33)*programFactor","v":151.5},{"$f":"IF(COUNT(Scores!$B33:M33)>0,AVERAGE(Scores!$B33:M33)*programFactor,0)","v":12.625},{"$f":"IF(COUNT(Scores!$B33:M33)>0,MEDIAN(Scores!$B33:M33)*programFactor,0)","v":15},{"$f":"IF(getmode(Scores!$B33:M33)=\"\",\"\",getmode(Scores!$B33:M33)*programFactor)","v":15}]
[40,"Program",{"$f":" INDEX(program_table,A42,1)","v":"Tomahawk Throwing"},{"$f":"SUM(Scores!B34:M34)","v":91},null,null,null,null,null,null,26,null,{"$f":"SUM(Scores!$B34:M34)*programFactor","v":136.5},{"$f":"IF(COUNT(Scores!$B34:M34)>0,AVERAGE(Scores!$B34:M34)*programFactor,0)","v":11.375},{"$f":"IF(COUNT(Scores!$B34:M34)>0,MEDIAN(Scores!$B34:M34)*programFactor,0)","v":9},{"$f":"IF(getmode(Scores!$B34:M34)=\"\",\"\",getmode(Scores!$B34:M34)*programFactor)","v":7.5}]
[41,"Program",{"$f":" INDEX(program_table,A43,1)","v":"Tooth of Time"},{"$f":"SUM(Scores!B35:M35)","v":135},null,null,null,null,null,null,26,null,{"$f":"SUM(Scores!$B35:M35)*programFactor","v":202.5},{"$f":"IF(COUNT(Scores!$B35:M35)>0,AVERAGE(Scores!$B35:M35)*programFactor,0)","v":18.40909090909091},{"$f":"IF(COUNT(Scores!$B35:M35)>0,MEDIAN(Scores!$B35:M35)*programFactor,0)","v":19.5},{"$f":"IF(getmode(Scores!$B35:M35)=\"\",\"\",getmode(Scores!$B35:M35)*programFactor)","v":19.5}]
[42,"Program",{"$f":" INDEX(program_table,A44,1)","v":"Trail Peak"},{"$f":"SUM(Scores!B36:M36)","v":138},null,null,null,null,null,null,26,null,{"$f":"SUM(Scores!$B36:M36)*programFactor","v":207},{"$f":"IF(COUNT(Scores!$B36:M36)>0,AVERAGE(Scores!$B36:M36)*programFactor,0)","v":18.818181818181817},{"$f":"IF(COUNT(Scores!$B36:M36)>0,MEDIAN(Scores!$B36:M36)*programFactor,0)","v":18},{"$f":"IF(getmode(Scores!$B36:M36)=\"\",\"\",getmode(Scores!$B36:M36)*programFactor)","v":15}]
[43,"Program",{"$f":" INDEX(program_table,A45,1)","v":"Western Lore/Branding"},{"$f":"SUM(Scores!B37:M37)","v":138},null,null,null,null,null,null,26,null,{"$f":"SUM(Scores!$B37:M37)*programFactor","v":207},{"$f":"IF(COUNT(Scores!$B37:M37)>0,AVERAGE(Scores!$B37:M37)*programFactor,0)","v":18.818181818181817},{"$f":"IF(COUNT(Scores!$B37:M37)>0,MEDIAN(Scores!$B37:M37)*programFactor,0)","v":18},{"$f":"IF(getmode(Scores!$B37:M37)=\"\",\"\",getmode(Scores!$B37:M37)*programFactor)","v":15}]
[44,"Peaks","Baldy Mountain",2]
[45,"Peaks","Mount Phillips",1.5]
[46,"Peaks","Tooth of Time",1.5]
[47,"Peaks","Trail Peak",1]
[48,"Peaks","Mountaineering",0.8]
[49,"Area","Rank 1",{"$f":"IF(UPPER(areaImportant)=\"Y\",INDEX(areaDefaults,Preferences!B7),0)","v":0}]
[50,"Area","Rank 2",{"$f":"IF(UPPER(areaImportant)=\"Y\",INDEX(areaDefaults,Preferences!B8),0)","v":0},null,null,null,null,1,1000]
[51,"Area","Rank 3",{"$f":"IF(UPPER(areaImportant)=\"Y\",INDEX(areaDefaults,Preferences!B9),0)","v":0},null,null,null,null,2,600,{"$f":"IF(areaImportant=\"y\",\"Preferences setting is that area is important\", \"Preferences setting is that area is not important\")","v":"Preferences setting is that area is not important"}]
[52,"Area","Rank 4",{"$f":"IF(UPPER(areaImportant)=\"Y\",INDEX(areaDefaults,Preferences!B10),0)","v":0},null,null,null,null,3,200,{"$f":"IF(areaImportant=\"y\",\"These are the default values — MAKE CHANGES HERE\", \"\")","v":""}]
[53,"Days Food",1,100,null,null,null,null,4,150]
[54,"Days Food",2,90]
[55,"Days Food",3,80]
[56,"Days Food",4,70]
[57,"Days Food",5,60]
[58,"Days Food",6,50]
[59,"Food from HQ",1,20]
[60,"Food from HQ",2,30]
[61,"Food from HQ",3,40]
[62,"Food from HQ",4,50]
[63,"Food from HQ",5,60]
[64,"Food from HQ",6,70]
[65,"Food from HQ",7,80]
[66,"Food from HQ",8,90]
[67,"Food from HQ",9,100]
[68,"Trail Camps",0,250]
[69,"Trail Camps",1,200]
[70,"Trail Camps",2,175]
[{"$f":"A72+1","v":71},"Trail Camps",3,150]
[{"$f":"A73+1","v":72},"Trail Camps",4,125]
[{"$f":"A74+1","v":73},"Trail Camps",5,100]
[{"$f":"A75+1","v":74},"Trail Camps",6,75]
[{"$f":"A76+1","v":75},"Trail Camps",7,50]
[76,"Trail Camps",8,25]
[77,"Dry Camps",0,300]
[78,"Dry Camps",1,250]
[79,"Dry Camps",2,225]
[80,"Dry Camps",3,200]
[81,"Dry Camps",4,150]
[82,"Dry Camps",5,100]
[83,"Dry Camps",6,50]
[84,"Dry Camps",7,20]
[85,"Total Camps",3,60]
[86,"Total Camps",4,70]
[87,"Total Camps",5,80]
[88,"Total Camps",6,90]
[89,"Total Camps",7,100]
[90,"Total Camps",8,75]
[91,"Total Camps",9,60]
[92,"Total Camps",10,50]
[93,"Difficulty","C",4000]
[94,"Difficulty","R",3166.6666666666665,null,null,null,null,null,null,"Match skill level with itinerary difficulty"]
[95,"Difficulty","S",2333.333333333333,null,null,null,null,null,null,"Skill","C","R","S","SS"]
[96,"Difficulty","SS",1500,null,null,null,null,"maxSkill:",4000,1,{"$f":"maxSkill+maxDifficult","v":5000},{"$f":"L98-((L98-O98)/3)","v":3500},{"$f":"M98-((L98-O98)/3)","v":2000},{"$f":"difficultDelta","v":500}]
[97,"Max Altitude",0,20,null,null,null,null,"maxDifficult:",1000,2,{"$f":"L98-((L$98-L$107)/9)","v":4500},{"$f":"L99-((L99-O99)/3)","v":3333.333333333333},{"$f":"M99-((L99-O99)/3)","v":2166.6666666666661},{"$f":"L106","v":1000}]
[98,"Max Altitude",9000,30,null,null,null,null,"minDifficult:",500,3,{"$f":"L99-((L$98-L$107)/9)","v":4000},3166.6666666666665,2333.333333333333,{"$f":"L105","v":1500}]
[99,"Max Altitude",9100,40,null,null,null,null,null,null,4,3500,3000,2500,{"$f":"L104","v":2000}]
[100,"Max Altitude",9200,50,null,null,null,null,null,null,5,3000,2833.3333333333335,2666.666666666667,{"$f":"L103","v":2500}]
[101,"Max Altitude",9800,60,null,null,null,null,null,null,6,2500,2666.6666666666665,2833.333333333333,{"$f":"L102","v":3000}]
[102,"Max Altitude",10000,70,null,null,null,null,{"$f":"\"Your Crew is Level \" & skillLevel","v":"Your Crew is Level 3"},null,7,2000,2500,3000,{"$f":"L101","v":3500}]
[103,"Max Altitude",10500,80,null,null,null,null,"(from Preferences)",null,8,1500,2333.3333333333335,3166.666666666667,{"$f":"L100","v":4000}]
[104,"Max Altitude",10600,90,null,null,null,null,null,null,9,1000,2166.666666666667,3333.3333333333339,{"$f":"L99","v":4500}]
[105,"Max Altitude",10800,100,null,null,null,null,null,null,10,{"$f":"difficultDelta","v":500},2000,3500,{"$f":"L98","v":5000}]
[106,"Max Altitude",11000,110,null,null,null,null,null,null,null,"Challenging","Rugged","Strenuous","Super Strenuous"]
[107,"Max Altitude",11800,120]
[108,"Max Altitude",12441,130]
[109,"Total Gain",0,40]
[110,"Total Gain",1500,50]
[111,"Total Gain",2000,60]
[112,"Total Gain",2500,70]
[113,"Total Gain",3000,80]
[114,"Total Gain",3500,90]
[115,"Total Gain",4000,100]
[116,"Total Gain",4500,90]
[117,"Total Gain",5000,80]
[118,"Total Gain",5500,70]
[119,"Total Gain",6000,60]
[120,"Total Gain",6500,50]
[121,"Daily Change",300,100]
[122,"Daily Change",600,300]
[123,"Daily Change",900,200]
[124,"Daily Change",1200,100]
[125,"Hike Out","n",0]
[126,"Hike Out","y",500]
[127,"Hike In","n",0]
[128,"Hike In","y",500]
[129,"Distance","Miles",100]
["These are used for code lookup puposes only.","Difficulty","C","Challenging"]
[null,"Difficulty","R","Rugged"]
[null,"Difficulty","S","Strenuous"]
[null,"Difficulty","SS","Super Strenuous"]
[null,"campType","D","Dry"]
[null,"campType","S","Staffed"]
[null,"campType","T","Trail"]
[null,"campType","X","No  Camping"]

{"sheet":"Detail Informaton","index":9,"n_rows":39,"n_cols":2,"rows_kept":39,"cut":false,"hidden":false,"merged":[[1,0,1,1],[2,0,2,1]]}
["This sheet provides more detailed information about this spreadsheet and may be useful for anyone wishing to modify it."]
["This spreadsheet makes extensive use of \"Protected\" and \"Hidden\" cells and \"Hidden\"  worksheets.  To \"unprotect\" or \"unhide\" any of these, put the cursor on a worksheet tab and right click it.  Click \"Unprotect Sheet...\" and select the worksheet to display.  There are no passwords locking any of the \"hidden\" or \"protected\" areas."]
["There are buttons that may be pressed to select the scoring to be used in the calculation.  These are \"Total\" for the total score, \"Average\" to select the average (or Mean) score, \"Median\" to select the most common score, or \"Mode\" (most frequently used score).  These control the actual score values used in calculation  Try all and see what the difference in the results is."]
[]
["There are a number of \"tabs\" or \"worksheets\".  The use of these is as follows:"]
["Visible:"]
["  Instructions","General use instructions for the user that does not want to make any changes to the spreadsheet."]
["  Preferences","A set of \"preferences\" that may be used to adjust the calculations based on information specific to the crew."]
["  Scores","The \"scores\" for each crewmember from the program survey form.  These are on the basis of 0 to 20."]
["  Results","The calculated \"result\" from fitting the \"scores\" to the itinerary information."]
["  Itinerary Chart","Graph of sorted itineraries — shows relative differences between selections"]
["  Program Chart","This is a graph showing what programs the crewmembers wish to participate in."]
["  Itinerary Details","This provides a snapshot of individual itineraries.  Enter the itinerary the snapship is desired for."]
["  Itinerary Xref Chart","This is the same chart that's in the in the TREKS book"]
["  Tables","This is the set of \"factors\" for each of the various metrics.  These may be modified by the user."]
["  Detail Information","This worksheet."]
["Hidden:  (Note that there are no passwords on these, the user may \"unhide\" them by right-clicking in the tab area)"]
["  Itinerary Camps","Much information updated annually by hand from the TREKS Book.  Information relating to itineraries is calculated from these entries."]
["  ItineraryPrograms","Programs available at camps.  This can be created automatically but must be checked & updated manually.  Can verify with the Itinerary Xref Chart.  This takes a lot of detailed work!"]
["  Descriptions","This is the textual description of each itinerary.  This is manually copied from the TREKS Book each year."]
["  Calculator","This brings the preferences, scores, factors from \"Tables\", and itinerary information together to calculate detailed preference values for each itinerary.  The sum of these is the \"Result\" for each itinerary."]
["  Itineraries","This is information relative to the current year's itineraries.  All is derived from tables in other worksheets."]
["  Programs","Table of Philmont's available programs.  These are specific to 12-Day (all), 9-Day (subset) and 7-Day (subset) treks."]
["  Camp Programs","This is a table of programs available at each staffed camp. Verified manually, used to develop basic info for ItineraryPrograms worksheet.  Does not often change from year to year."]
["  Camp Elevations","This is information relative to Philmont's camps.  It is used in the calculations and in the Itinerary Details printout.  Is a good source of camp names & UTM Coordinates/elevations."]
["  uteParkPassAlternatives","Alternative plans for Ute Park Pass itineraries.  Only used for 12-Day & 9-Day itineraries.  Ignored for 7-Day."]
[]
["Information in the Visible tabs is generally either documented in the worksheet or is self-evident.  Information about the worksheets that may be useful is below."]
["  Scores","Clicking the \"Clear Scores\" button erases all scores for all 12 participants.  User should enter the participant names in row 1."]
["  Results","The left side shows the itineraries that best \"fit\" the crew's desires.  On the right is a table showing the programs the crew desired in preference order.  It indicates which programs are included in each of the top 6 itineraries. "]
["  Itinerary Details","Enter the itinerary number and expedition number to get information about the itinerary including daily information."]
["  Tables","If some of the areas are more important to your crew, you can change the factors used in the calculations here.  The factors are highlighted where arbitrary values were set based on the author's preferences, they may be modified to meet your crew.   Only make changes in the unlocked cells in the Value column or the Green boxes for Area or Skill/Difficulty.  You may navigate between these with the TAB key."]
["  Itineraries","This sheet has information about the current year's itineraries.  Key information is manually updated from the TREKS books (daily campsites, first food pickup day number, method of return to base, itineraries that cross US-64, peaks hiked, etc.)  Row 1 has the columns that must be updated annually highlighted in red."]
["  itineraryXrefChart","This conforms to the Cross Reference chart in the TREKS book showing itineraries that have programs.  It is based on information in the Itinerary Programs worksheet."]
["  Calculator","This calculates a preference value for each of the metrics.  There is nothing to modify here — the value calculated will be based on values from other worksheets and any modification desired to any metric should be made in those underlying sheets, not in this one."]
["  Camp Elevations","This worksheet is a list of all the camps with details about the camp.  Note that some of the camps are not used and the information may not be complete for them.  It doesn't matter because only the camps included in the current year's itineraries is ever referenced.  All are shown here for completeness.   It is a good source of camp names & UTM Coordinates/elevations."]
["  uteParkPassAlternatives","These are the camps used for each of the alternative treks for the Ute Park Pass itineraries.  It is ignored for 7-Day Itineraries."]
["  Descriptions","These descriptions are copied from the TREKS Book and are displayed on the Itinerary Details display."]
["  Camp Programs","This is a table of staffed camps with flags for the programs offered at each.  It is used to provide much of the program inclusion information in the Itineries worksheet."]

{"sheet":"itineraryCamps","index":10,"n_rows":40,"n_cols":117,"rows_kept":40,"cut":false,"hidden":true,"merged":[[1,24,1,26],[38,31,38,35],[1,31,1,35],[1,1,1,3],[0,0,2,0],[1,4,1,13],[1,14,1,23],[1,36,1,45],[1,27,1,30],[1,115,1,116],[1,85,1,94],[1,46,1,54],[1,55,1,64],[1,65,1,74],[1,75,1,84],[1,95,1,104],[1,105,1,114]]}
["(Enter Red columns manually)\n\n\nItinerary",1,{"$f":"B1+1","v":2},3,4,5,{"$f":"F1+1","v":6},{"$f":"G1+1","v":7},{"$f":"H1+1","v":8},{"$f":"I1+1","v":9},10,11,12,13,14,15,16,{"$f":"Q1+1","v":17},18,19,20,21,22,23,24,25,26,27,{"$f":"AB1+1","v":28},29,30,31,32,33,34,35,{"$f":"X1+1","v":24},{"$f":"AK1+1","v":25},26,27,28,29,30,31,32,33,34,35,36,37,38,39,40,41,42,43,44,45,46,47,48,49,50,51,52,53,54,55,56,57,58,59,60,61,62,63,64,65,66,67,68,69,70,71,72,null,null,null,null,null,null,null,null,null,null,{"$f":"CG1+1","v":73},{"$f":"CR1+1","v":74},75,76,77,78,79,80,81,82,83,84,85,86,87,88,89,90,91,92,93,94]
[null,"Itinerary Information",null,null,"Backcountry Camps by Itinerary Day",null,null,null,null,null,null,null,null,null,"Food Pickup's",null,null,null,null,null,null,null,null,null,"Start/End",null,null,"Cross US-64 (Enter Manually)",null,null,null,"Peaks (Enter Manually)",null,null,null,null,"Camp Elevation",null,null,null,null,null,null,null,null,null,"Daily Elevation Change",null,null,null,null,null,null,null,null,"Staffed Camp",null,null,null,null,null,null,null,null,null,"Trail Camp",null,null,null,null,null,null,null,null,null,"Dry Camp",null,null,null,null,null,null,null,null,null,"Layovers",null,null,null,null,null,null,null,null,null,"Country",null,null,null,null,null,null,null,null,null,"Map",null,null,null,null,null,null,null,null,null,"Food Pickup Info"]
[null,"Itinerary Label","Difficulty","Distance","Day 2","Day 3","Day 4","Day 5","Day 6","Day 7","Day 8","Day 9","Day 10","Day 11",2,{"$f":"O3+1","v":3},{"$f":"P3+1","v":4},5,6,7,8,9,10,11,"Starting Trailhead","Ending Trailhead","Via Tooth","Itin:Day","Day","Cross At","Direction","Baldy","Phillips","Tooth","Trail","Mountaineering",{"$f":"O3","v":2},3,4,5,6,7,8,9,10,11,"2 :: 3","3 :: 4","4 :: 5","5 :: 6","6 :: 7","7 :: 8","8 :: 9","9 :: 10","10 :: 11",2,3,4,5,6,7,8,9,10,11,2,3,4,5,6,7,8,9,10,11,2,3,4,5,6,7,8,9,10,11,2,3,4,5,6,7,8,9,10,11,2,3,4,5,6,7,8,9,10,11,2,3,4,5,6,7,8,9,10,11,"Days to 1st Food PU","Max Food Days"]
[{"$f":"itineraryNoPrefix & ROW()-3","v":"7-1"},null,"C",29,"House Canyon","Indian Writings","Elkhorn","French Henry","Touch-Me-Not Creek",null,null,null,null,null,"Camping HQ",null,"Ponil",null,null,null,null,null,null,null,"Six Mile Gate","Maxwell",{"$f":"IF(Z4=\"Hike In\",\"y\",\"\")","v":""},{"$f":"IF(AC4=\"\",\"\",numericItinerary(A4) & \":\" & AC4)","v":""},null,null,null,null,null,{"$f":"IF(AA4=\"\",\"\",\"y\")","v":""},null,"y",{"$f":"IF(E4<>\"\",INDEX(Elevations,MATCH(E4,camps,0)),\"\")","v":7157},{"$f":"IF(F4<>\"\",INDEX(Elevations,MATCH(F4,camps,0)),\"\")","v":6979},{"$f":"IF(G4<>\"\",INDEX(Elevations,MATCH(G4,camps,0)),\"\")","v":8496},{"$f":"IF(H4<>\"\",INDEX(Elevations,MATCH(H4,camps,0)),\"\")","v":9635},{"$f":"IF(I4<>\"\",INDEX(Elevations,MATCH(I4,camps,0)),\"\")","v":8855},{"$f":"IF(J4<>\"\",INDEX(Elevations,MATCH(J4,camps,0)),\"\")","v":""},{"$f":"IF(K4<>\"\",INDEX(Elevations,MATCH(K4,camps,0)),\"\")","v":""},{"$f":"IF(L4<>\"\",INDEX(Elevations,MATCH(L4,camps,0)),\"\")","v":""},{"$f":"IF(M4<>\"\",INDEX(Elevations,MATCH(M4,camps,0)),\"\")","v":""},{"$f":"IF(N4<>\"\",INDEX(Elevations,MATCH(N4,camps,0)),\"\")","v":""},{"$f":"IF(AL4<>\"\",ABS(AK4-AL4),\"\")","v":178},{"$f":"IF(AM4<>\"\",ABS(AL4-AM4),\"\")","v":1517},1139,780,"","","","","",{"$f":"IF(INDEX(campsByItinerary,numericItinerary($A4),BD$3-1)=\"\",\"\",VLOOKUP(INDEX(campsByItinerary,numericItinerary($A4),BD$3-1),campInfo,8))","v":""},{"$f":"IF(INDEX(campsByItinerary,numericItinerary($A4),BE$3-1)=\"\",\"\",VLOOKUP(INDEX(campsByItinerary,numericItinerary($A4),BE$3-1),campInfo,8))","v":"Y"},{"$f":"IF(INDEX(campsByItinerary,numericItinerary($A4),BF$3-1)=\"\",\"\",VLOOKUP(INDEX(campsByItinerary,numericItinerary($A4),BF$3-1),campInfo,8))","v":""},{"$f":"IF(INDEX(campsByItinerary,numericItinerary($A4),BG$3-1)=\"\",\"\",VLOOKUP(INDEX(campsByItinerary,numericItinerary($A4),BG$3-1),campInfo,8))","v":"Y"},{"$f":"IF(INDEX(campsByItinerary,numericItinerary($A4),BH$3-1)=\"\",\"\",VLOOKUP(INDEX(campsByItinerary,numericItinerary($A4),BH$3-1),campInfo,8))","v":""},{"$f":"IF(INDEX(campsByItinerary,numericItinerary($A4),BI$3-1)=\"\",\"\",VLOOKUP(INDEX(campsByItinerary,numericItinerary($A4),BI$3-1),campInfo,8))","v":""},{"$f":"IF(INDEX(campsByItinerary,numericItinerary($A4),BJ$3-1)=\"\",\"\",VLOOKUP(INDEX(campsByItinerary,numericItinerary($A4),BJ$3-1),campInfo,8))","v":""},{"$f":"IF(INDEX(campsByItinerary,numericItinerary($A4),BK$3-1)=\"\",\"\",VLOOKUP(INDEX(campsByItinerary,numericItinerary($A4),BK$3-1),campInfo,8))","v":""},{"$f":"IF(INDEX(campsByItinerary,numericItinerary($A4),BL$3-1)=\"\",\"\",VLOOKUP(INDEX(campsByItinerary,numericItinerary($A4),BL$3-1),campInfo,8))","v":""},{"$f":"IF(INDEX(campsByItinerary,numericItinerary($A4),BM$3-1)=\"\",\"\",VLOOKUP(INDEX(campsByItinerary,numericItinerary($A4),BM$3-1),campInfo,8))","v":""},{"$f":"IF(BD4=\"Y\",\"\",\"Y\")","v":"Y"},{"$f":"IF(BE4=\"Y\",\"\",\"Y\")","v":""},"Y","","Y","Y","Y","Y","Y","Y",{"$f":"IF(INDEX(campsByItinerary,numericItinerary($A4),BD$3-1)=\"\",\"\",VLOOKUP(INDEX(campsByItinerary,numericItinerary($A4),BD$3-1),campInfo,10))","v":""},{"$f":"IF(INDEX(campsByItinerary,numericItinerary($A4),BE$3-1)=\"\",\"\",VLOOKUP(INDEX(campsByItinerary,numericItinerary($A4),BE$3-1),campInfo,10))","v":""},{"$f":"IF(INDEX(campsByItinerary,numericItinerary($A4),BF$3-1)=\"\",\"\",VLOOKUP(INDEX(campsByItinerary,numericItinerary($A4),BF$3-1),campInfo,10))","v":""},{"$f":"IF(INDEX(campsByItinerary,numericItinerary($A4),BG$3-1)=\"\",\"\",VLOOKUP(INDEX(campsByItinerary,numericItinerary($A4),BG$3-1),campInfo,10))","v":""},{"$f":"IF(INDEX(campsByItinerary,numericItinerary($A4),BH$3-1)=\"\",\"\",VLOOKUP(INDEX(campsByItinerary,numericItinerary($A4),BH$3-1),campInfo,10))","v":""},{"$f":"IF(INDEX(campsByItinerary,numericItinerary($A4),BI$3-1)=\"\",\"\",VLOOKUP(INDEX(campsByItinerary,numericItinerary($A4),BI$3-1),campInfo,10))","v":""},{"$f":"IF(INDEX(campsByItinerary,numericItinerary($A4),BJ$3-1)=\"\",\"\",VLOOKUP(INDEX(campsByItinerary,numericItinerary($A4),BJ$3-1),campInfo,10))","v":""},{"$f":"IF(INDEX(campsByItinerary,numericItinerary($A4),BK$3-1)=\"\",\"\",VLOOKUP(INDEX(campsByItinerary,numericItinerary($A4),BK$3-1),campInfo,10))","v":""},{"$f":"IF(INDEX(campsByItinerary,numericItinerary($A4),BL$3-1)=\"\",\"\",VLOOKUP(INDEX(campsByItinerary,numericItinerary($A4),BL$3-1),campInfo,10))","v":""},{"$f":"IF(INDEX(campsByItinerary,numericItinerary($A4),BM$3-1)=\"\",\"\",VLOOKUP(INDEX(campsByItinerary,numericItinerary($A4),BM$3-1),campInfo,10))","v":""},null,{"$f":"IF(E4=F4,\"Y\",\"\")","v":""},{"$f":"IF(F4=G4,\"Y\",\"\")","v":""},{"$f":"IF(G4=H4,\"Y\",\"\")","v":""},{"$f":"IF(H4=I4,\"Y\",\"\")","v":""},{"$f":"IF(I4=J4,\"Y\",\"\")","v":""},{"$f":"IF(J4=K4,\"Y\",\"\")","v":"Y"},{"$f":"IF(K4=L4,\"Y\",\"\")","v":"Y"},{"$f":"IF(L4=M4,\"Y\",\"\")","v":"Y"},{"$f":"IF(M4=N4,\"Y\",\"\")","v":"Y"},{"$f":"INDEX(campsByItinerary,numericItinerary($A4),BD$3-1)","v":"House Canyon"},{"$f":"IF(INDEX(campsByItinerary,numericItinerary($A4),BE$3-1)=\"\",\"\",VLOOKUP(INDEX(campsByItinerary,numericItinerary($A4),BE$3-1),campInfo,2))","v":"North"},{"$f":"IF(INDEX(campsByItinerary,numericItinerary($A4),BF$3-1)=\"\",\"\",VLOOKUP(INDEX(campsByItinerary,numericItinerary($A4),BF$3-1),campInfo,2))","v":"North"},{"$f":"IF(INDEX(campsByItinerary,numericItinerary($A4),BG$3-1)=\"\",\"\",VLOOKUP(INDEX(campsByItinerary,numericItinerary($A4),BG$3-1),campInfo,2))","v":"North"},{"$f":"IF(INDEX(campsByItinerary,numericItinerary($A4),BH$3-1)=\"\",\"\",VLOOKUP(INDEX(campsByItinerary,numericItinerary($A4),BH$3-1),campInfo,2))","v":"North"},{"$f":"IF(INDEX(campsByItinerary,numericItinerary($A4),BI$3-1)=\"\",\"\",VLOOKUP(INDEX(campsByItinerary,numericItinerary($A4),BI$3-1),campInfo,2))","v":""},{"$f":"IF(INDEX(campsByItinerary,numericItinerary($A4),BJ$3-1)=\"\",\"\",VLOOKUP(INDEX(campsByItinerary,numericItinerary($A4),BJ$3-1),campInfo,2))","v":""},{"$f":"IF(INDEX(campsByItinerary,numericItinerary($A4),BK$3-1)=\"\",\"\",VLOOKUP(INDEX(campsByItinerary,numericItinerary($A4),BK$3-1),campInfo,2))","v":""},{"$f":"IF(INDEX(campsByItinerary,numericItinerary($A4),BL$3-1)=\"\",\"\",VLOOKUP(INDEX(campsByItinerary,numericItinerary($A4),BL$3-1),campInfo,2))","v":""},{"$f":"IF(INDEX(campsByItinerary,numericItinerary($A4),BM$3-1)=\"\",\"\",VLOOKUP(INDEX(campsByItinerary,numericItinerary($A4),BM$3-1),campInfo,2))","v":""},{"$f":"IF(INDEX(campsByItinerary,numericItinerary($A4),BD$3-1)=\"\",\"\",VLOOKUP(INDEX(campsByItinerary,numericItinerary($A4),BD$3-1),campInfo,12))","v":"North"},{"$f":"IF(INDEX(campsByItinerary,numericItinerary($A4),BE$3-1)=\"\",\"\",VLOOKUP(INDEX(campsByItinerary,numericItinerary($A4),BE$3-1),campInfo,12))","v":"North"},{"$f":"IF(INDEX(campsByItinerary,numericItinerary($A4),BF$3-1)=\"\",\"\",VLOOKUP(INDEX(campsByItinerary,numericItinerary($A4),BF$3-1),campInfo,12))","v":"North"},{"$f":"IF(INDEX(campsByItinerary,numericItinerary($A4),BG$3-1)=\"\",\"\",VLOOKUP(INDEX(campsByItinerary,numericItinerary($A4),BG$3-1),campInfo,12))","v":"North"},{"$f":"IF(INDEX(campsByItinerary,numericItinerary($A4),BH$3-1)=\"\",\"\",VLOOKUP(INDEX(campsByItinerary,numericItinerary($A4),BH$3-1),campInfo,12))","v":"North"},{"$f":"IF(INDEX(campsByItinerary,numericItinerary($A4),BI$3-1)=\"\",\"\",VLOOKUP(INDEX(campsByItinerary,numericItinerary($A4),BI$3-1),campInfo,12))","v":""},{"$f":"IF(INDEX(campsByItinerary,numericItinerary($A4),BJ$3-1)=\"\",\"\",VLOOKUP(INDEX(campsByItinerary,numericItinerary($A4),BJ$3-1),campInfo,12))","v":""},{"$f":"IF(INDEX(campsByItinerary,numericItinerary($A4),BK$3-1)=\"\",\"\",VLOOKUP(INDEX(campsByItinerary,numericItinerary($A4),BK$3-1),campInfo,12))","v":""},{"$f":"IF(INDEX(campsByItinerary,numericItinerary($A4),BL$3-1)=\"\",\"\",VLOOKUP(INDEX(campsByItinerary,numericItinerary($A4),BL$3-1),campInfo,12))","v":""},{"$f":"IF(INDEX(campsByItinerary,numericItinerary($A4),BM$3-1)=\"\",\"\",VLOOKUP(INDEX(campsByItinerary,numericItinerary($A4),BM$3-1),campInfo,12))","v":""},{"$f":"getfoodPU(\"First\",numericItinerary($A4))","v":2},{"$f":"getfoodPU(\"Max\",numericItinerary($A4))","v":2}]
["7-2",null,"C",28,"Backache Springs","Urraca","Miners Park","Shaefers Pass","Clarks Fork",null,null,null,null,null,"Camping HQ",null,"Miners Park",null,null,null,null,null,null,null,"Zastrow","Webster",{"$f":"IF(Z5=\"Hike In\",\"y\",\"\")","v":""},{"$f":"IF(AC5=\"\",\"\",numericItinerary(A5) & \":\" & AC5)","v":""},null,null,null,null,null,"y",null,"y",7688,7968,7977,8724,7515,"","","","","",{"$f":"IF(AL5<>\"\",ABS(AK5-AL5),\"\")","v":280},{"$f":"IF(AM5<>\"\",ABS(AL5-AM5),\"\")","v":9},{"$f":"IF(AN5<>\"\",ABS(AM5-AN5),\"\")","v":747},{"$f":"IF(AO5<>\"\",ABS(AN5-AO5),\"\")","v":1209},{"$f":"IF(AP5<>\"\",ABS(AO5-AP5),\"\")","v":""},{"$f":"IF(AQ5<>\"\",ABS(AP5-AQ5),\"\")","v":""},{"$f":"IF(AR5<>\"\",ABS(AQ5-AR5),\"\")","v":""},{"$f":"IF(AS5<>\"\",ABS(AR5-AS5),\"\")","v":""},{"$f":"IF(AT5<>\"\",ABS(AS5-AT5),\"\")","v":""},{"$f":"IF(INDEX(campsByItinerary,numericItinerary($A5),BD$3-1)=\"\",\"\",VLOOKUP(INDEX(campsByItinerary,numericItinerary($A5),BD$3-1),campInfo,8))","v":""},{"$f":"IF(INDEX(campsByItinerary,numericItinerary($A5),BE$3-1)=\"\",\"\",VLOOKUP(INDEX(campsByItinerary,numericItinerary($A5),BE$3-1),campInfo,8))","v":"Y"},{"$f":"IF(INDEX(campsByItinerary,numericItinerary($A5),BF$3-1)=\"\",\"\",VLOOKUP(INDEX(campsByItinerary,numericItinerary($A5),BF$3-1),campInfo,8))","v":"Y"},{"$f":"IF(INDEX(campsByItinerary,numericItinerary($A5),BG$3-1)=\"\",\"\",VLOOKUP(INDEX(campsByItinerary,numericItinerary($A5),BG$3-1),campInfo,8))","v":""},{"$f":"IF(INDEX(campsByItinerary,numericItinerary($A5),BH$3-1)=\"\",\"\",VLOOKUP(INDEX(campsByItinerary,numericItinerary($A5),BH$3-1),campInfo,8))","v":"Y"},{"$f":"IF(INDEX(campsByItinerary,numericItinerary($A5),BI$3-1)=\"\",\"\",VLOOKUP(INDEX(campsByItinerary,numericItinerary($A5),BI$3-1),campInfo,8))","v":""},{"$f":"IF(INDEX(campsByItinerary,numericItinerary($A5),BJ$3-1)=\"\",\"\",VLOOKUP(INDEX(campsByItinerary,numericItinerary($A5),BJ$3-1),campInfo,8))","v":""},{"$f":"IF(INDEX(campsByItinerary,numericItinerary($A5),BK$3-1)=\"\",\"\",VLOOKUP(INDEX(campsByItinerary,numericItinerary($A5),BK$3-1),campInfo,8))","v":""},{"$f":"IF(INDEX(campsByItinerary,numericItinerary($A5),BL$3-1)=\"\",\"\",VLOOKUP(INDEX(campsByItinerary,numericItinerary($A5),BL$3-1),campInfo,8))","v":""},{"$f":"IF(INDEX(campsByItinerary,numericItinerary($A5),BM$3-1)=\"\",\"\",VLOOKUP(INDEX(campsByItinerary,numericItinerary($A5),BM$3-1),campInfo,8))","v":""},{"$f":"IF(BD5=\"Y\",\"\",\"Y\")","v":"Y"},{"$f":"IF(BE5=\"Y\",\"\",\"Y\")","v":""},{"$f":"IF(BF5=\"Y\",\"\",\"Y\")","v":""},{"$f":"IF(BG5=\"Y\",\"\",\"Y\")","v":"Y"},{"$f":"IF(BH5=\"Y\",\"\",\"Y\")","v":""},{"$f":"IF(BI5=\"Y\",\"\",\"Y\")","v":"Y"},{"$f":"IF(BJ5=\"Y\",\"\",\"Y\")","v":"Y"},{"$f":"IF(BK5=\"Y\",\"\",\"Y\")","v":"Y"},{"$f":"IF(BL5=\"Y\",\"\",\"Y\")","v":"Y"},{"$f":"IF(BM5=\"Y\",\"\",\"Y\")","v":"Y"},{"$f":"IF(INDEX(campsByItinerary,numericItinerary($A5),BD$3-1)=\"\",\"\",VLOOKUP(INDEX(campsByItinerary,numericItinerary($A5),BD$3-1),campInfo,10))","v":""},{"$f":"IF(INDEX(campsByItinerary,numericItinerary($A5),BE$3-1)=\"\",\"\",VLOOKUP(INDEX(campsByItinerary,numericItinerary($A5),BE$3-1),campInfo,10))","v":""},{"$f":"IF(INDEX(campsByItinerary,numericItinerary($A5),BF$3-1)=\"\",\"\",VLOOKUP(INDEX(campsByItinerary,numericItinerary($A5),BF$3-1),campInfo,10))","v":""},{"$f":"IF(INDEX(campsByItinerary,numericItinerary($A5),BG$3-1)=\"\",\"\",VLOOKUP(INDEX(campsByItinerary,numericItinerary($A5),BG$3-1),campInfo,10))","v":"Y"},{"$f":"IF(INDEX(campsByItinerary,numericItinerary($A5),BH$3-1)=\"\",\"\",VLOOKUP(INDEX(campsByItinerary,numericItinerary($A5),BH$3-1),campInfo,10))","v":""},{"$f":"IF(INDEX(campsByItinerary,numericItinerary($A5),BI$3-1)=\"\",\"\",VLOOKUP(INDEX(campsByItinerary,numericItinerary($A5),BI$3-1),campInfo,10))","v":""},{"$f":"IF(INDEX(campsByItinerary,numericItinerary($A5),BJ$3-1)=\"\",\"\",VLOOKUP(INDEX(campsByItinerary,numericItinerary($A5),BJ$3-1),campInfo,10))","v":""},{"$f":"IF(INDEX(campsByItinerary,numericItinerary($A5),BK$3-1)=\"\",\"\",VLOOKUP(INDEX(campsByItinerary,numericItinerary($A5),BK$3-1),campInfo,10))","v":""},{"$f":"IF(INDEX(campsByItinerary,numericItinerary($A5),BL$3-1)=\"\",\"\",VLOOKUP(INDEX(campsByItinerary,numericItinerary($A5),BL$3-1),campInfo,10))","v":""},{"$f":"IF(INDEX(campsByItinerary,numericItinerary($A5),BM$3-1)=\"\",\"\",VLOOKUP(INDEX(campsByItinerary,numericItinerary($A5),BM$3-1),campInfo,10))","v":""},null,"","","","","","Y","Y","Y","Y",{"$f":"INDEX(campsByItinerary,numericItinerary($A5),BD$3-1)","v":"Backache Springs"},{"$f":"IF(INDEX(campsByItinerary,numericItinerary($A5),BE$3-1)=\"\",\"\",VLOOKUP(INDEX(campsByItinerary,numericItinerary($A5),BE$3-1),campInfo,2))","v":"South"},{"$f":"IF(INDEX(campsByItinerary,numericItinerary($A5),BF$3-1)=\"\",\"\",VLOOKUP(INDEX(campsByItinerary,numericItinerary($A5),BF$3-1),campInfo,2))","v":"South"},{"$f":"IF(INDEX(campsByItinerary,numericItinerary($A5),BG$3-1)=\"\",\"\",VLOOKUP(INDEX(campsByItinerary,numericItinerary($A5),BG$3-1),campInfo,2))","v":"Central"},{"$f":"IF(INDEX(campsByItinerary,numericItinerary($A5),BH$3-1)=\"\",\"\",VLOOKUP(INDEX(campsByItinerary,numericItinerary($A5),BH$3-1),campInfo,2))","v":"Central"},{"$f":"IF(INDEX(campsByItinerary,numericItinerary($A5),BI$3-1)=\"\",\"\",VLOOKUP(INDEX(campsByItinerary,numericItinerary($A5),BI$3-1),campInfo,2))","v":""},{"$f":"IF(INDEX(campsByItinerary,numericItinerary($A5),BJ$3-1)=\"\",\"\",VLOOKUP(INDEX(campsByItinerary,numericItinerary($A5),BJ$3-1),campInfo,2))","v":""},{"$f":"IF(INDEX(campsByItinerary,numericItinerary($A5),BK$3-1)=\"\",\"\",VLOOKUP(INDEX(campsByItinerary,numericItinerary($A5),BK$3-1),campInfo,2))","v":""},{"$f":"IF(INDEX(campsByItinerary,numericItinerary($A5),BL$3-1)=\"\",\"\",VLOOKUP(INDEX(campsByItinerary,numericItinerary($A5),BL$3-1),campInfo,2))","v":""},{"$f":"IF(INDEX(campsByItinerary,numericItinerary($A5),BM$3-1)=\"\",\"\",VLOOKUP(INDEX(campsByItinerary,numericItinerary($A5),BM$3-1),campInfo,2))","v":""},{"$f":"IF(INDEX(campsByItinerary,numericItinerary($A5),BD$3-1)=\"\",\"\",VLOOKUP(INDEX(campsByItinerary,numericItinerary($A5),BD$3-1),campInfo,12))","v":"South"},{"$f":"IF(INDEX(campsByItinerary,numericItinerary($A5),BE$3-1)=\"\",\"\",VLOOKUP(INDEX(campsByItinerary,numericItinerary($A5),BE$3-1),campInfo,12))","v":"South"},{"$f":"IF(INDEX(campsByItinerary,numericItinerary($A5),BF$3-1)=\"\",\"\",VLOOKUP(INDEX(campsByItinerary,numericItinerary($A5),BF$3-1),campInfo,12))","v":"South"},{"$f":"IF(INDEX(campsByItinerary,numericItinerary($A5),BG$3-1)=\"\",\"\",VLOOKUP(INDEX(campsByItinerary,numericItinerary($A5),BG$3-1),campInfo,12))","v":"South"},{"$f":"IF(INDEX(campsByItinerary,numericItinerary($A5),BH$3-1)=\"\",\"\",VLOOKUP(INDEX(campsByItinerary,numericItinerary($A5),BH$3-1),campInfo,12))","v":"South"},{"$f":"IF(INDEX(campsByItinerary,numericItinerary($A5),BI$3-1)=\"\",\"\",VLOOKUP(INDEX(campsByItinerary,numericItinerary($A5),BI$3-1),campInfo,12))","v":""},{"$f":"IF(INDEX(campsByItinerary,numericItinerary($A5),BJ$3-1)=\"\",\"\",VLOOKUP(INDEX(campsByItinerary,numericItinerary($A5),BJ$3-1),campInfo,12))","v":""},{"$f":"IF(INDEX(campsByItinerary,numericItinerary($A5),BK$3-1)=\"\",\"\",VLOOKUP(INDEX(campsByItinerary,numericItinerary($A5),BK$3-1),campInfo,12))","v":""},{"$f":"IF(INDEX(campsByItinerary,numericItinerary($A5),BL$3-1)=\"\",\"\",VLOOKUP(INDEX(campsByItinerary,numericItinerary($A5),BL$3-1),campInfo,12))","v":""},{"$f":"IF(INDEX(campsByItinerary,numericItinerary($A5),BM$3-1)=\"\",\"\",VLOOKUP(INDEX(campsByItinerary,numericItinerary($A5),BM$3-1),campInfo,12))","v":""},{"$f":"getfoodPU(\"First\",numericItinerary($A5))","v":2},{"$f":"getfoodPU(\"Max\",numericItinerary($A5))","v":2}]
["7-3",null,"C",27,"Flume Canyon","Head of Dean","Ewells Park","Ewells Park","Miranda",null,null,null,null,null,"Camping HQ",null,null,"Baldy Towm",null,null,null,null,null,null,"Ponil","Maxwell","",{"$f":"IF(AC6=\"\",\"\",numericItinerary(A6) & \":\" & AC6)","v":""},null,null,null,"y",null,"",null,null,7715,8754,9373,9373,8898,"","","","","",1039,619,0,475,"","","","","",{"$f":"IF(INDEX(campsByItinerary,numericItinerary($A6),BD$3-1)=\"\",\"\",VLOOKUP(INDEX(campsByItinerary,numericItinerary($A6),BD$3-1),campInfo,8))","v":""},{"$f":"IF(INDEX(campsByItinerary,numericItinerary($A6),BE$3-1)=\"\",\"\",VLOOKUP(INDEX(campsByItinerary,numericItinerary($A6),BE$3-1),campInfo,8))","v":"Y"},{"$f":"IF(INDEX(campsByItinerary,numericItinerary($A6),BF$3-1)=\"\",\"\",VLOOKUP(INDEX(campsByItinerary,numericItinerary($A6),BF$3-1),campInfo,8))","v":""},{"$f":"IF(INDEX(campsByItinerary,numericItinerary($A6),BG$3-1)=\"\",\"\",VLOOKUP(INDEX(campsByItinerary,numericItinerary($A6),BG$3-1),campInfo,8))","v":""},{"$f":"IF(INDEX(campsByItinerary,numericItinerary($A6),BH$3-1)=\"\",\"\",VLOOKUP(INDEX(campsByItinerary,numericItinerary($A6),BH$3-1),campInfo,8))","v":"Y"},{"$f":"IF(INDEX(campsByItinerary,numericItinerary($A6),BI$3-1)=\"\",\"\",VLOOKUP(INDEX(campsByItinerary,numericItinerary($A6),BI$3-1),campInfo,8))","v":""},{"$f":"IF(INDEX(campsByItinerary,numericItinerary($A6),BJ$3-1)=\"\",\"\",VLOOKUP(INDEX(campsByItinerary,numericItinerary($A6),BJ$3-1),campInfo,8))","v":""},{"$f":"IF(INDEX(campsByItinerary,numericItinerary($A6),BK$3-1)=\"\",\"\",VLOOKUP(INDEX(campsByItinerary,numericItinerary($A6),BK$3-1),campInfo,8))","v":""},{"$f":"IF(INDEX(campsByItinerary,numericItinerary($A6),BL$3-1)=\"\",\"\",VLOOKUP(INDEX(campsByItinerary,numericItinerary($A6),BL$3-1),campInfo,8))","v":""},{"$f":"IF(INDEX(campsByItinerary,numericItinerary($A6),BM$3-1)=\"\",\"\",VLOOKUP(INDEX(campsByItinerary,numericItinerary($A6),BM$3-1),campInfo,8))","v":""},"Y","","Y","Y","","Y","Y","Y","Y","Y",{"$f":"IF(INDEX(campsByItinerary,numericItinerary($A6),BD$3-1)=\"\",\"\",VLOOKUP(INDEX(campsByItinerary,numericItinerary($A6),BD$3-1),campInfo,10))","v":""},{"$f":"IF(INDEX(campsByItinerary,numericItinerary($A6),BE$3-1)=\"\",\"\",VLOOKUP(INDEX(campsByItinerary,numericItinerary($A6),BE$3-1),campInfo,10))","v":""},{"$f":"IF(INDEX(campsByItinerary,numericItinerary($A6),BF$3-1)=\"\",\"\",VLOOKUP(INDEX(campsByItinerary,numericItinerary($A6),BF$3-1),campInfo,10))","v":""},{"$f":"IF(INDEX(campsByItinerary,numericItinerary($A6),BG$3-1)=\"\",\"\",VLOOKUP(INDEX(campsByItinerary,numericItinerary($A6),BG$3-1),campInfo,10))","v":""},{"$f":"IF(INDEX(campsByItinerary,numericItinerary($A6),BH$3-1)=\"\",\"\",VLOOKUP(INDEX(campsByItinerary,numericItinerary($A6),BH$3-1),campInfo,10))","v":""},{"$f":"IF(INDEX(campsByItinerary,numericItinerary($A6),BI$3-1)=\"\",\"\",VLOOKUP(INDEX(campsByItinerary,numericItinerary($A6),BI$3-1),campInfo,10))","v":""},{"$f":"IF(INDEX(campsByItinerary,numericItinerary($A6),BJ$3-1)=\"\",\"\",VLOOKUP(INDEX(campsByItinerary,numericItinerary($A6),BJ$3-1),campInfo,10))","v":""},{"$f":"IF(INDEX(campsByItinerary,numericItinerary($A6),BK$3-1)=\"\",\"\",VLOOKUP(INDEX(campsByItinerary,numericItinerary($A6),BK$3-1),campInfo,10))","v":""},{"$f":"IF(INDEX(campsByItinerary,numericItinerary($A6),BL$3-1)=\"\",\"\",VLOOKUP(INDEX(campsByItinerary,numericItinerary($A6),BL$3-1),campInfo,10))","v":""},{"$f":"IF(INDEX(campsByItinerary,numericItinerary($A6),BM$3-1)=\"\",\"\",VLOOKUP(INDEX(campsByItinerary,numericItinerary($A6),BM$3-1),campInfo,10))","v":""},null,"","","Y","","","Y","Y","Y","Y",{"$f":"INDEX(campsByItinerary,numericItinerary($A6),BD$3-1)","v":"Flume Canyon"},{"$f":"IF(INDEX(campsByItinerary,numericItinerary($A6),BE$3-1)=\"\",\"\",VLOOKUP(INDEX(campsByItinerary,numericItinerary($A6),BE$3-1),campInfo,2))","v":"North"},{"$f":"IF(INDEX(campsByItinerary,numericItinerary($A6),BF$3-1)=\"\",\"\",VLOOKUP(INDEX(campsByItinerary,numericItinerary($A6),BF$3-1),campInfo,2))","v":"North"},{"$f":"IF(INDEX(campsByItinerary,numericItinerary($A6),BG$3-1)=\"\",\"\",VLOOKUP(INDEX(campsByItinerary,numericItinerary($A6),BG$3-1),campInfo,2))","v":"North"},{"$f":"IF(INDEX(campsByItinerary,numericItinerary($A6),BH$3-1)=\"\",\"\",VLOOKUP(INDEX(campsByItinerary,numericItinerary($A6),BH$3-1),campInfo,2))","v":"North"},{"$f":"IF(INDEX(campsByItinerary,numericItinerary($A6),BI$3-1)=\"\",\"\",VLOOKUP(INDEX(campsByItinerary,numericItinerary($A6),BI$3-1),campInfo,2))","v":""},{"$f":"IF(INDEX(campsByItinerary,numericItinerary($A6),BJ$3-1)=\"\",\"\",VLOOKUP(INDEX(campsByItinerary,numericItinerary($A6),BJ$3-1),campInfo,2))","v":""},{"$f":"IF(INDEX(campsByItinerary,numericItinerary($A6),BK$3-1)=\"\",\"\",VLOOKUP(INDEX(campsByItinerary,numericItinerary($A6),BK$3-1),campInfo,2))","v":""},{"$f":"IF(INDEX(campsByItinerary,numericItinerary($A6),BL$3-1)=\"\",\"\",VLOOKUP(INDEX(campsByItinerary,numericItinerary($A6),BL$3-1),campInfo,2))","v":""},{"$f":"IF(INDEX(campsByItinerary,numericItinerary($A6),BM$3-1)=\"\",\"\",VLOOKUP(INDEX(campsByItinerary,numericItinerary($A6),BM$3-1),campInfo,2))","v":""},{"$f":"IF(INDEX(campsByItinerary,numericItinerary($A6),BD$3-1)=\"\",\"\",VLOOKUP(INDEX(campsByItinerary,numericItinerary($A6),BD$3-1),campInfo,12))","v":"North"},{"$f":"IF(INDEX(campsByItinerary,numericItinerary($A6),BE$3-1)=\"\",\"\",VLOOKUP(INDEX(campsByItinerary,numericItinerary($A6),BE$3-1),campInfo,12))","v":"North"},{"$f":"IF(INDEX(campsByItinerary,numericItinerary($A6),BF$3-1)=\"\",\"\",VLOOKUP(INDEX(campsByItinerary,numericItinerary($A6),BF$3-1),campInfo,12))","v":"North"},{"$f":"IF(INDEX(campsByItinerary,numericItinerary($A6),BG$3-1)=\"\",\"\",VLOOKUP(INDEX(campsByItinerary,numericItinerary($A6),BG$3-1),campInfo,12))","v":"North"},{"$f":"IF(INDEX(campsByItinerary,numericItinerary($A6),BH$3-1)=\"\",\"\",VLOOKUP(INDEX(campsByItinerary,numericItinerary($A6),BH$3-1),campInfo,12))","v":"North"},{"$f":"IF(INDEX(campsByItinerary,numericItinerary($A6),BI$3-1)=\"\",\"\",VLOOKUP(INDEX(campsByItinerary,numericItinerary($A6),BI$3-1),campInfo,12))","v":""},{"$f":"IF(INDEX(campsByItinerary,numericItinerary($A6),BJ$3-1)=\"\",\"\",VLOOKUP(INDEX(campsByItinerary,numericItinerary($A6),BJ$3-1),campInfo,12))","v":""},{"$f":"IF(INDEX(campsByItinerary,numericItinerary($A6),BK$3-1)=\"\",\"\",VLOOKUP(INDEX(campsByItinerary,numericItinerary($A6),BK$3-1),campInfo,12))","v":""},{"$f":"IF(INDEX(campsByItinerary,numericItinerary($A6),BL$3-1)=\"\",\"\",VLOOKUP(INDEX(campsByItinerary,numericItinerary($A6),BL$3-1),campInfo,12))","v":""},{"$f":"IF(INDEX(campsByItinerary,numericItinerary($A6),BM$3-1)=\"\",\"\",VLOOKUP(INDEX(campsByItinerary,numericItinerary($A6),BM$3-1),campInfo,12))","v":""},{"$f":"getfoodPU(\"First\",numericItinerary($A6))","v":3},{"$f":"getfoodPU(\"Max\",numericItinerary($A6))","v":3}]
["7-4",null,"R",32,"Bluestem","Baldy Skyline","Baldy Town","Baldy Town","Miranda",null,null,null,null,null,"Camping HQ",null,"Baldy Town",null,null,null,null,null,null,null,"Ponil","Maxwell","",{"$f":"IF(AC7=\"\",\"\",numericItinerary(A7) & \":\" & AC7)","v":""},null,null,null,"y",null,"",null,null,7495,9140,9851,9851,8898,"","","","","",1645,711,0,953,"","","","","",{"$f":"IF(INDEX(campsByItinerary,numericItinerary($A7),BD$3-1)=\"\",\"\",VLOOKUP(INDEX(campsByItinerary,numericItinerary($A7),BD$3-1),campInfo,8))","v":""},{"$f":"IF(INDEX(campsByItinerary,numericItinerary($A7),BE$3-1)=\"\",\"\",VLOOKUP(INDEX(campsByItinerary,numericItinerary($A7),BE$3-1),campInfo,8))","v":""},{"$f":"IF(INDEX(campsByItinerary,numericItinerary($A7),BF$3-1)=\"\",\"\",VLOOKUP(INDEX(campsByItinerary,numericItinerary($A7),BF$3-1),campInfo,8))","v":"Y"},{"$f":"IF(INDEX(campsByItinerary,numericItinerary($A7),BG$3-1)=\"\",\"\",VLOOKUP(INDEX(campsByItinerary,numericItinerary($A7),BG$3-1),campInfo,8))","v":"Y"},{"$f":"IF(INDEX(campsByItinerary,numericItinerary($A7),BH$3-1)=\"\",\"\",VLOOKUP(INDEX(campsByItinerary,numericItinerary($A7),BH$3-1),campInfo,8))","v":"Y"},{"$f":"IF(INDEX(campsByItinerary,numericItinerary($A7),BI$3-1)=\"\",\"\",VLOOKUP(INDEX(campsByItinerary,numericItinerary($A7),BI$3-1),campInfo,8))","v":""},{"$f":"IF(INDEX(campsByItinerary,numericItinerary($A7),BJ$3-1)=\"\",\"\",VLOOKUP(INDEX(campsByItinerary,numericItinerary($A7),BJ$3-1),campInfo,8))","v":""},{"$f":"IF(INDEX(campsByItinerary,numericItinerary($A7),BK$3-1)=\"\",\"\",VLOOKUP(INDEX(campsByItinerary,numericItinerary($A7),BK$3-1),campInfo,8))","v":""},{"$f":"IF(INDEX(campsByItinerary,numericItinerary($A7),BL$3-1)=\"\",\"\",VLOOKUP(INDEX(campsByItinerary,numericItinerary($A7),BL$3-1),campInfo,8))","v":""},{"$f":"IF(INDEX(campsByItinerary,numericItinerary($A7),BM$3-1)=\"\",\"\",VLOOKUP(INDEX(campsByItinerary,numericItinerary($A7),BM$3-1),campInfo,8))","v":""},"Y","Y","","","","Y","Y","Y","Y","Y",{"$f":"IF(INDEX(campsByItinerary,numericItinerary($A7),BD$3-1)=\"\",\"\",VLOOKUP(INDEX(campsByItinerary,numericItinerary($A7),BD$3-1),campInfo,10))","v":"Y"},{"$f":"IF(INDEX(campsByItinerary,numericItinerary($A7),BE$3-1)=\"\",\"\",VLOOKUP(INDEX(campsByItinerary,numericItinerary($A7),BE$3-1),campInfo,10))","v":""},{"$f":"IF(INDEX(campsByItinerary,numericItinerary($A7),BF$3-1)=\"\",\"\",VLOOKUP(INDEX(campsByItinerary,numericItinerary($A7),BF$3-1),campInfo,10))","v":""},{"$f":"IF(INDEX(campsByItinerary,numericItinerary($A7),BG$3-1)=\"\",\"\",VLOOKUP(INDEX(campsByItinerary,numericItinerary($A7),BG$3-1),campInfo,10))","v":""},{"$f":"IF(INDEX(campsByItinerary,numericItinerary($A7),BH$3-1)=\"\",\"\",VLOOKUP(INDEX(campsByItinerary,numericItinerary($A7),BH$3-1),campInfo,10))","v":""},{"$f":"IF(INDEX(campsByItinerary,numericItinerary($A7),BI$3-1)=\"\",\"\",VLOOKUP(INDEX(campsByItinerary,numericItinerary($A7),BI$3-1),campInfo,10))","v":""},{"$f":"IF(INDEX(campsByItinerary,numericItinerary($A7),BJ$3-1)=\"\",\"\",VLOOKUP(INDEX(campsByItinerary,numericItinerary($A7),BJ$3-1),campInfo,10))","v":""},{"$f":"IF(INDEX(campsByItinerary,numericItinerary($A7),BK$3-1)=\"\",\"\",VLOOKUP(INDEX(campsByItinerary,numericItinerary($A7),BK$3-1),campInfo,10))","v":""},{"$f":"IF(INDEX(campsByItinerary,numericItinerary($A7),BL$3-1)=\"\",\"\",VLOOKUP(INDEX(campsByItinerary,numericItinerary($A7),BL$3-1),campInfo,10))","v":""},{"$f":"IF(INDEX(campsByItinerary,numericItinerary($A7),BM$3-1)=\"\",\"\",VLOOKUP(INDEX(campsByItinerary,numericItinerary($A7),BM$3-1),campInfo,10))","v":""},null,"","","Y","","","Y","Y","Y","Y",{"$f":"INDEX(campsByItinerary,numericItinerary($A7),BD$3-1)","v":"Bluestem"},{"$f":"IF(INDEX(campsByItinerary,numericItinerary($A7),BE$3-1)=\"\",\"\",VLOOKUP(INDEX(campsByItinerary,numericItinerary($A7),BE$3-1),campInfo,2))","v":"North"},{"$f":"IF(INDEX(campsByItinerary,numericItinerary($A7),BF$3-1)=\"\",\"\",VLOOKUP(INDEX(campsByItinerary,numericItinerary($A7),BF$3-1),campInfo,2))","v":"North"},{"$f":"IF(INDEX(campsByItinerary,numericItinerary($A7),BG$3-1)=\"\",\"\",VLOOKUP(INDEX(campsByItinerary,numericItinerary($A7),BG$3-1),campInfo,2))","v":"North"},{"$f":"IF(INDEX(campsByItinerary,numericItinerary($A7),BH$3-1)=\"\",\"\",VLOOKUP(INDEX(campsByItinerary,numericItinerary($A7),BH$3-1),campInfo,2))","v":"North"},{"$f":"IF(INDEX(campsByItinerary,numericItinerary($A7),BI$3-1)=\"\",\"\",VLOOKUP(INDEX(campsByItinerary,numericItinerary($A7),BI$3-1),campInfo,2))","v":""},{"$f":"IF(INDEX(campsByItinerary,numericItinerary($A7),BJ$3-1)=\"\",\"\",VLOOKUP(INDEX(campsByItinerary,numericItinerary($A7),BJ$3-1),campInfo,2))","v":""},{"$f":"IF(INDEX(campsByItinerary,numericItinerary($A7),BK$3-1)=\"\",\"\",VLOOKUP(INDEX(campsByItinerary,numericItinerary($A7),BK$3-1),campInfo,2))","v":""},{"$f":"IF(INDEX(campsByItinerary,numericItinerary($A7),BL$3-1)=\"\",\"\",VLOOKUP(INDEX(campsByItinerary,numericItinerary($A7),BL$3-1),campInfo,2))","v":""},{"$f":"IF(INDEX(campsByItinerary,numericItinerary($A7),BM$3-1)=\"\",\"\",VLOOKUP(INDEX(campsByItinerary,numericItinerary($A7),BM$3-1),campInfo,2))","v":""},{"$f":"IF(INDEX(campsByItinerary,numericItinerary($A7),BD$3-1)=\"\",\"\",VLOOKUP(INDEX(campsByItinerary,numericItinerary($A7),BD$3-1),campInfo,12))","v":"North"},{"$f":"IF(INDEX(campsByItinerary,numericItinerary($A7),BE$3-1)=\"\",\"\",VLOOKUP(INDEX(campsByItinerary,numericItinerary($A7),BE$3-1),campInfo,12))","v":"North"},{"$f":"IF(INDEX(campsByItinerary,numericItinerary($A7),BF$3-1)=\"\",\"\",VLOOKUP(INDEX(campsByItinerary,numericItinerary($A7),BF$3-1),campInfo,12))","v":"North"},{"$f":"IF(INDEX(campsByItinerary,numericItinerary($A7),BG$3-1)=\"\",\"\",VLOOKUP(INDEX(campsByItinerary,numericItinerary($A7),BG$3-1),campInfo,12))","v":"North"},{"$f":"IF(INDEX(campsByItinerary,numericItinerary($A7),BH$3-1)=\"\",\"\",VLOOKUP(INDEX(campsByItinerary,numericItinerary($A7),BH$3-1),campInfo,12))","v":"North"},{"$f":"IF(INDEX(campsByItinerary,numericItinerary($A7),BI$3-1)=\"\",\"\",VLOOKUP(INDEX(campsByItinerary,numericItinerary($A7),BI$3-1),campInfo,12))","v":""},{"$f":"IF(INDEX(campsByItinerary,numericItinerary($A7),BJ$3-1)=\"\",\"\",VLOOKUP(INDEX(campsByItinerary,numericItinerary($A7),BJ$3-1),campInfo,12))","v":""},{"$f":"IF(INDEX(campsByItinerary,numericItinerary($A7),BK$3-1)=\"\",\"\",VLOOKUP(INDEX(campsByItinerary,numericItinerary($A7),BK$3-1),campInfo,12))","v":""},{"$f":"IF(INDEX(campsByItinerary,numericItinerary($A7),BL$3-1)=\"\",\"\",VLOOKUP(INDEX(campsByItinerary,numericItinerary($A7),BL$3-1),campInfo,12))","v":""},{"$f":"IF(INDEX(campsByItinerary,numericItinerary($A7),BM$3-1)=\"\",\"\",VLOOKUP(INDEX(campsByItinerary,numericItinerary($A7),BM$3-1),campInfo,12))","v":""},{"$f":"getfoodPU(\"First\",numericItinerary($A7))","v":2},{"$f":"getfoodPU(\"Max\",numericItinerary($A7))","v":2}]
["7-5",null,"C",31,"Toothache Springs","Urraca","Miners Park","Hunting Lodge","Harlan",null,null,null,null,null,"Camping HQ",null,"Miners Park",null,null,null,null,null,null,null,"Zastrow","Turkey Creek","",{"$f":"IF(AC8=\"\",\"\",numericItinerary(A8) & \":\" & AC8)","v":""},null,null,null,null,null,"",null,"y",7870,7968,7977,7776,7550,"","","","","",98,9,201,226,"","","","","",{"$f":"IF(INDEX(campsByItinerary,numericItinerary($A8),BD$3-1)=\"\",\"\",VLOOKUP(INDEX(campsByItinerary,numericItinerary($A8),BD$3-1),campInfo,8))","v":""},{"$f":"IF(INDEX(campsByItinerary,numericItinerary($A8),BE$3-1)=\"\",\"\",VLOOKUP(INDEX(campsByItinerary,numericItinerary($A8),BE$3-1),campInfo,8))","v":"Y"},{"$f":"IF(INDEX(campsByItinerary,numericItinerary($A8),BF$3-1)=\"\",\"\",VLOOKUP(INDEX(campsByItinerary,numericItinerary($A8),BF$3-1),campInfo,8))","v":"Y"},{"$f":"IF(INDEX(campsByItinerary,numericItinerary($A8),BG$3-1)=\"\",\"\",VLOOKUP(INDEX(campsByItinerary,numericItinerary($A8),BG$3-1),campInfo,8))","v":"N"},{"$f":"IF(INDEX(campsByItinerary,numericItinerary($A8),BH$3-1)=\"\",\"\",VLOOKUP(INDEX(campsByItinerary,numericItinerary($A8),BH$3-1),campInfo,8))","v":"Y"},{"$f":"IF(INDEX(campsByItinerary,numericItinerary($A8),BI$3-1)=\"\",\"\",VLOOKUP(INDEX(campsByItinerary,numericItinerary($A8),BI$3-1),campInfo,8))","v":""},{"$f":"IF(INDEX(campsByItinerary,numericItinerary($A8),BJ$3-1)=\"\",\"\",VLOOKUP(INDEX(campsByItinerary,numericItinerary($A8),BJ$3-1),campInfo,8))","v":""},{"$f":"IF(INDEX(campsByItinerary,numericItinerary($A8),BK$3-1)=\"\",\"\",VLOOKUP(INDEX(campsByItinerary,numericItinerary($A8),BK$3-1),campInfo,8))","v":""},{"$f":"IF(INDEX(campsByItinerary,numericItinerary($A8),BL$3-1)=\"\",\"\",VLOOKUP(INDEX(campsByItinerary,numericItinerary($A8),BL$3-1),campInfo,8))","v":""},{"$f":"IF(INDEX(campsByItinerary,numericItinerary($A8),BM$3-1)=\"\",\"\",VLOOKUP(INDEX(campsByItinerary,numericItinerary($A8),BM$3-1),campInfo,8))","v":""},"Y","","","Y","","Y","Y","Y","Y","Y",{"$f":"IF(INDEX(campsByItinerary,numericItinerary($A8),BD$3-1)=\"\",\"\",VLOOKUP(INDEX(campsByItinerary,numericItinerary($A8),BD$3-1),campInfo,10))","v":""},{"$f":"IF(INDEX(campsByItinerary,numericItinerary($A8),BE$3-1)=\"\",\"\",VLOOKUP(INDEX(campsByItinerary,numericItinerary($A8),BE$3-1),campInfo,10))","v":""},{"$f":"IF(INDEX(campsByItinerary,numericItinerary($A8),BF$3-1)=\"\",\"\",VLOOKUP(INDEX(campsByItinerary,numericItinerary($A8),BF$3-1),campInfo,10))","v":""},{"$f":"IF(INDEX(campsByItinerary,numericItinerary($A8),BG$3-1)=\"\",\"\",VLOOKUP(INDEX(campsByItinerary,numericItinerary($A8),BG$3-1),campInfo,10))","v":""},{"$f":"IF(INDEX(campsByItinerary,numericItinerary($A8),BH$3-1)=\"\",\"\",VLOOKUP(INDEX(campsByItinerary,numericItinerary($A8),BH$3-1),campInfo,10))","v":""},{"$f":"IF(INDEX(campsByItinerary,numericItinerary($A8),BI$3-1)=\"\",\"\",VLOOKUP(INDEX(campsByItinerary,numericItinerary($A8),BI$3-1),campInfo,10))","v":""},{"$f":"IF(INDEX(campsByItinerary,numericItinerary($A8),BJ$3-1)=\"\",\"\",VLOOKUP(INDEX(campsByItinerary,numericItinerary($A8),BJ$3-1),campInfo,10))","v":""},{"$f":"IF(INDEX(campsByItinerary,numericItinerary($A8),BK$3-1)=\"\",\"\",VLOOKUP(INDEX(campsByItinerary,numericItinerary($A8),BK$3-1),campInfo,10))","v":""},{"$f":"IF(INDEX(campsByItinerary,numericItinerary($A8),BL$3-1)=\"\",\"\",VLOOKUP(INDEX(campsByItinerary,numericItinerary($A8),BL$3-1),campInfo,10))","v":""},{"$f":"IF(INDEX(campsByItinerary,numericItinerary($A8),BM$3-1)=\"\",\"\",VLOOKUP(INDEX(campsByItinerary,numericItinerary($A8),BM$3-1),campInfo,10))","v":""},null,"","","","","","Y","Y","Y","Y",{"$f":"INDEX(campsByItinerary,numericItinerary($A8),BD$3-1)","v":"Toothache Springs"},{"$f":"IF(INDEX(campsByItinerary,numericItinerary($A8),BE$3-1)=\"\",\"\",VLOOKUP(INDEX(campsByItinerary,numericItinerary($A8),BE$3-1),campInfo,2))","v":"South"},{"$f":"IF(INDEX(campsByItinerary,numericItinerary($A8),BF$3-1)=\"\",\"\",VLOOKUP(INDEX(campsByItinerary,numericItinerary($A8),BF$3-1),campInfo,2))","v":"South"},{"$f":"IF(INDEX(campsByItinerary,numericItinerary($A8),BG$3-1)=\"\",\"\",VLOOKUP(INDEX(campsByItinerary,numericItinerary($A8),BG$3-1),campInfo,2))","v":"Central"},{"$f":"IF(INDEX(campsByItinerary,numericItinerary($A8),BH$3-1)=\"\",\"\",VLOOKUP(INDEX(campsByItinerary,numericItinerary($A8),BH$3-1),campInfo,2))","v":"Central"},{"$f":"IF(INDEX(campsByItinerary,numericItinerary($A8),BI$3-1)=\"\",\"\",VLOOKUP(INDEX(campsByItinerary,numericItinerary($A8),BI$3-1),campInfo,2))","v":""},{"$f":"IF(INDEX(campsByItinerary,numericItinerary($A8),BJ$3-1)=\"\",\"\",VLOOKUP(INDEX(campsByItinerary,numericItinerary($A8),BJ$3-1),campInfo,2))","v":""},{"$f":"IF(INDEX(campsByItinerary,numericItinerary($A8),BK$3-1)=\"\",\"\",VLOOKUP(INDEX(campsByItinerary,numericItinerary($A8),BK$3-1),campInfo,2))","v":""},{"$f":"IF(INDEX(campsByItinerary,numericItinerary($A8),BL$3-1)=\"\",\"\",VLOOKUP(INDEX(campsByItinerary,numericItinerary($A8),BL$3-1),campInfo,2))","v":""},{"$f":"IF(INDEX(campsByItinerary,numericItinerary($A8),BM$3-1)=\"\",\"\",VLOOKUP(INDEX(campsByItinerary,numericItinerary($A8),BM$3-1),campInfo,2))","v":""},{"$f":"IF(INDEX(campsByItinerary,numericItinerary($A8),BD$3-1)=\"\",\"\",VLOOKUP(INDEX(campsByItinerary,numericItinerary($A8),BD$3-1),campInfo,12))","v":"South"},{"$f":"IF(INDEX(campsByItinerary,numericItinerary($A8),BE$3-1)=\"\",\"\",VLOOKUP(INDEX(campsByItinerary,numericItinerary($A8),BE$3-1),campInfo,12))","v":"South"},{"$f":"IF(INDEX(campsByItinerary,numericItinerary($A8),BF$3-1)=\"\",\"\",VLOOKUP(INDEX(campsByItinerary,numericItinerary($A8),BF$3-1),campInfo,12))","v":"South"},{"$f":"IF(INDEX(campsByItinerary,numericItinerary($A8),BG$3-1)=\"\",\"\",VLOOKUP(INDEX(campsByItinerary,numericItinerary($A8),BG$3-1),campInfo,12))","v":"South"},{"$f":"IF(INDEX(campsByItinerary,numericItinerary($A8),BH$3-1)=\"\",\"\",VLOOKUP(INDEX(campsByItinerary,numericItinerary($A8),BH$3-1),campInfo,12))","v":"South"},{"$f":"IF(INDEX(campsByItinerary,numericItinerary($A8),BI$3-1)=\"\",\"\",VLOOKUP(INDEX(campsByItinerary,numericItinerary($A8),BI$3-1),campInfo,12))","v":""},{"$f":"IF(INDEX(campsByItinerary,numericItinerary($A8),BJ$3-1)=\"\",\"\",VLOOKUP(INDEX(campsByItinerary,numericItinerary($A8),BJ$3-1),campInfo,12))","v":""},{"$f":"IF(INDEX(campsByItinerary,numericItinerary($A8),BK$3-1)=\"\",\"\",VLOOKUP(INDEX(campsByItinerary,numericItinerary($A8),BK$3-1),campInfo,12))","v":""},{"$f":"IF(INDEX(campsByItinerary,numericItinerary($A8),BL$3-1)=\"\",\"\",VLOOKUP(INDEX(campsByItinerary,numericItinerary($A8),BL$3-1),campInfo,12))","v":""},{"$f":"IF(INDEX(campsByItinerary,numericItinerary($A8),BM$3-1)=\"\",\"\",VLOOKUP(INDEX(campsByItinerary,numericItinerary($A8),BM$3-1),campInfo,12))","v":""},{"$f":"getfoodPU(\"First\",numericItinerary($A8))","v":2},{"$f":"getfoodPU(\"Max\",numericItinerary($A8))","v":2}]
["7-6",null,"R",35,"McBride Canyon","Ponil","Rich Cabins","Pueblano","Black Jacks",null,null,null,null,null,"Camping HQ",null,"Rich Cabins",null,null,null,null,null,null,null,"Six Mile Gate","Ute Park","",{"$f":"IF(AC9=\"\",\"\",numericItinerary(A9) & \":\" & AC9)","v":"6:7"},7,"Bear Canyon","S",null,null,"",null,"y",7105,7150,7728,8069,8211,"","","","","",45,578,341,142,"","","","","",{"$f":"IF(INDEX(campsByItinerary,numericItinerary($A9),BD$3-1)=\"\",\"\",VLOOKUP(INDEX(campsByItinerary,numericItinerary($A9),BD$3-1),campInfo,8))","v":""},{"$f":"IF(INDEX(campsByItinerary,numericItinerary($A9),BE$3-1)=\"\",\"\",VLOOKUP(INDEX(campsByItinerary,numericItinerary($A9),BE$3-1),campInfo,8))","v":"Y"},{"$f":"IF(INDEX(campsByItinerary,numericItinerary($A9),BF$3-1)=\"\",\"\",VLOOKUP(INDEX(campsByItinerary,numericItinerary($A9),BF$3-1),campInfo,8))","v":"Y"},{"$f":"IF(INDEX(campsByItinerary,numericItinerary($A9),BG$3-1)=\"\",\"\",VLOOKUP(INDEX(campsByItinerary,numericItinerary($A9),BG$3-1),campInfo,8))","v":"Y"},{"$f":"IF(INDEX(campsByItinerary,numericItinerary($A9),BH$3-1)=\"\",\"\",VLOOKUP(INDEX(campsByItinerary,numericItinerary($A9),BH$3-1),campInfo,8))","v":""},{"$f":"IF(INDEX(campsByItinerary,numericItinerary($A9),BI$3-1)=\"\",\"\",VLOOKUP(INDEX(campsByItinerary,numericItinerary($A9),BI$3-1),campInfo,8))","v":""},{"$f":"IF(INDEX(campsByItinerary,numericItinerary($A9),BJ$3-1)=\"\",\"\",VLOOKUP(INDEX(campsByItinerary,numericItinerary($A9),BJ$3-1),campInfo,8))","v":""},{"$f":"IF(INDEX(campsByItinerary,numericItinerary($A9),BK$3-1)=\"\",\"\",VLOOKUP(INDEX(campsByItinerary,numericItinerary($A9),BK$3-1),campInfo,8))","v":""},{"$f":"IF(INDEX(campsByItinerary,numericItinerary($A9),BL$3-1)=\"\",\"\",VLOOKUP(INDEX(campsByItinerary,numericItinerary($A9),BL$3-1),campInfo,8))","v":""},{"$f":"IF(INDEX(campsByItinerary,numericItinerary($A9),BM$3-1)=\"\",\"\",VLOOKUP(INDEX(campsByItinerary,numericItinerary($A9),BM$3-1),campInfo,8))","v":""},"Y","","","","Y","Y","Y","Y","Y","Y",{"$f":"IF(INDEX(campsByItinerary,numericItinerary($A9),BD$3-1)=\"\",\"\",VLOOKUP(INDEX(campsByItinerary,numericItinerary($A9),BD$3-1),campInfo,10))","v":"Y"},{"$f":"IF(INDEX(campsByItinerary,numericItinerary($A9),BE$3-1)=\"\",\"\",VLOOKUP(INDEX(campsByItinerary,numericItinerary($A9),BE$3-1),campInfo,10))","v":""},{"$f":"IF(INDEX(campsByItinerary,numericItinerary($A9),BF$3-1)=\"\",\"\",VLOOKUP(INDEX(campsByItinerary,numericItinerary($A9),BF$3-1),campInfo,10))","v":""},{"$f":"IF(INDEX(campsByItinerary,numericItinerary($A9),BG$3-1)=\"\",\"\",VLOOKUP(INDEX(campsByItinerary,numericItinerary($A9),BG$3-1),campInfo,10))","v":""},{"$f":"IF(INDEX(campsByItinerary,numericItinerary($A9),BH$3-1)=\"\",\"\",VLOOKUP(INDEX(campsByItinerary,numericItinerary($A9),BH$3-1),campInfo,10))","v":""},{"$f":"IF(INDEX(campsByItinerary,numericItinerary($A9),BI$3-1)=\"\",\"\",VLOOKUP(INDEX(campsByItinerary,numericItinerary($A9),BI$3-1),campInfo,10))","v":""},{"$f":"IF(INDEX(campsByItinerary,numericItinerary($A9),BJ$3-1)=\"\",\"\",VLOOKUP(INDEX(campsByItinerary,numericItinerary($A9),BJ$3-1),campInfo,10))","v":""},{"$f":"IF(INDEX(campsByItinerary,numericItinerary($A9),BK$3-1)=\"\",\"\",VLOOKUP(INDEX(campsByItinerary,numericItinerary($A9),BK$3-1),campInfo,10))","v":""},{"$f":"IF(INDEX(campsByItinerary,numericItinerary($A9),BL$3-1)=\"\",\"\",VLOOKUP(INDEX(campsByItinerary,numericItinerary($A9),BL$3-1),campInfo,10))","v":""},{"$f":"IF(INDEX(campsByItinerary,numericItinerary($A9),BM$3-1)=\"\",\"\",VLOOKUP(INDEX(campsByItinerary,numericItinerary($A9),BM$3-1),campInfo,10))","v":""},null,"","","","","","Y","Y","Y","Y",{"$f":"INDEX(campsByItinerary,numericItinerary($A9),BD$3-1)","v":"McBride Canyon"},{"$f":"IF(INDEX(campsByItinerary,numericItinerary($A9),BE$3-1)=\"\",\"\",VLOOKUP(INDEX(campsByItinerary,numericItinerary($A9),BE$3-1),campInfo,2))","v":"North"},{"$f":"IF(INDEX(campsByItinerary,numericItinerary($A9),BF$3-1)=\"\",\"\",VLOOKUP(INDEX(campsByItinerary,numericItinerary($A9),BF$3-1),campInfo,2))","v":"Valle Vidal"},{"$f":"IF(INDEX(campsByItinerary,numericItinerary($A9),BG$3-1)=\"\",\"\",VLOOKUP(INDEX(campsByItinerary,numericItinerary($A9),BG$3-1),campInfo,2))","v":"North"},{"$f":"IF(INDEX(campsByItinerary,numericItinerary($A9),BH$3-1)=\"\",\"\",VLOOKUP(INDEX(campsByItinerary,numericItinerary($A9),BH$3-1),campInfo,2))","v":"North"},{"$f":"IF(INDEX(campsByItinerary,numericItinerary($A9),BI$3-1)=\"\",\"\",VLOOKUP(INDEX(campsByItinerary,numericItinerary($A9),BI$3-1),campInfo,2))","v":""},{"$f":"IF(INDEX(campsByItinerary,numericItinerary($A9),BJ$3-1)=\"\",\"\",VLOOKUP(INDEX(campsByItinerary,numericItinerary($A9),BJ$3-1),campInfo,2))","v":""},{"$f":"IF(INDEX(campsByItinerary,numericItinerary($A9),BK$3-1)=\"\",\"\",VLOOKUP(INDEX(campsByItinerary,numericItinerary($A9),BK$3-1),campInfo,2))","v":""},{"$f":"IF(INDEX(campsByItinerary,numericItinerary($A9),BL$3-1)=\"\",\"\",VLOOKUP(INDEX(campsByItinerary,numericItinerary($A9),BL$3-1),campInfo,2))","v":""},{"$f":"IF(INDEX(campsByItinerary,numericItinerary($A9),BM$3-1)=\"\",\"\",VLOOKUP(INDEX(campsByItinerary,numericItinerary($A9),BM$3-1),campInfo,2))","v":""},{"$f":"IF(INDEX(campsByItinerary,numericItinerary($A9),BD$3-1)=\"\",\"\",VLOOKUP(INDEX(campsByItinerary,numericItinerary($A9),BD$3-1),campInfo,12))","v":"North"},{"$f":"IF(INDEX(campsByItinerary,numericItinerary($A9),BE$3-1)=\"\",\"\",VLOOKUP(INDEX(campsByItinerary,numericItinerary($A9),BE$3-1),campInfo,12))","v":"North"},{"$f":"IF(INDEX(campsByItinerary,numericItinerary($A9),BF$3-1)=\"\",\"\",VLOOKUP(INDEX(campsByItinerary,numericItinerary($A9),BF$3-1),campInfo,12))","v":"North"},{"$f":"IF(INDEX(campsByItinerary,numericItinerary($A9),BG$3-1)=\"\",\"\",VLOOKUP(INDEX(campsByItinerary,numericItinerary($A9),BG$3-1),campInfo,12))","v":"North"},{"$f":"IF(INDEX(campsByItinerary,numericItinerary($A9),BH$3-1)=\"\",\"\",VLOOKUP(INDEX(campsByItinerary,numericItinerary($A9),BH$3-1),campInfo,12))","v":"North"},{"$f":"IF(INDEX(campsByItinerary,numericItinerary($A9),BI$3-1)=\"\",\"\",VLOOKUP(INDEX(campsByItinerary,numericItinerary($A9),BI$3-1),campInfo,12))","v":""},{"$f":"IF(INDEX(campsByItinerary,numericItinerary($A9),BJ$3-1)=\"\",\"\",VLOOKUP(INDEX(campsByItinerary,numericItinerary($A9),BJ$3-1),campInfo,12))","v":""},{"$f":"IF(INDEX(campsByItinerary,numericItinerary($A9),BK$3-1)=\"\",\"\",VLOOKUP(INDEX(campsByItinerary,numericItinerary($A9),BK$3-1),campInfo,12))","v":""},{"$f":"IF(INDEX(campsByItinerary,numericItinerary($A9),BL$3-1)=\"\",\"\",VLOOKUP(INDEX(campsByItinerary,numericItinerary($A9),BL$3-1),campInfo,12))","v":""},{"$f":"IF(INDEX(campsByItinerary,numericItinerary($A9),BM$3-1)=\"\",\"\",VLOOKUP(INDEX(campsByItinerary,numericItinerary($A9),BM$3-1),campInfo,12))","v":""},{"$f":"getfoodPU(\"First\",numericItinerary($A9))","v":2},{"$f":"getfoodPU(\"Max\",numericItinerary($A9))","v":2}]
["7-7",null,"R",33,"Rimrock Park","Lower Bonito","Beaubien","Black Mountain","Shaefers Pass",null,null,null,null,null,"Camping HQ",null,"Phillips Junction",null,null,null,null,null,null,null,"Zastrow","Hike In","y",{"$f":"IF(AC10=\"\",\"\",numericItinerary(A10) & \":\" & AC10)","v":""},null,null,null,null,null,"y",null,"y",7359,8962,9330,8991,8724,"","","","","",1603,368,339,267,"","","","","",{"$f":"IF(INDEX(campsByItinerary,numericItinerary($A10),BD$3-1)=\"\",\"\",VLOOKUP(INDEX(campsByItinerary,numericItinerary($A10),BD$3-1),campInfo,8))","v":""},{"$f":"IF(INDEX(campsByItinerary,numericItinerary($A10),BE$3-1)=\"\",\"\",VLOOKUP(INDEX(campsByItinerary,numericItinerary($A10),BE$3-1),campInfo,8))","v":""},{"$f":"IF(INDEX(campsByItinerary,numericItinerary($A10),BF$3-1)=\"\",\"\",VLOOKUP(INDEX(campsByItinerary,numericItinerary($A10),BF$3-1),campInfo,8))","v":"Y"},{"$f":"IF(INDEX(campsByItinerary,numericItinerary($A10),BG$3-1)=\"\",\"\",VLOOKUP(INDEX(campsByItinerary,numericItinerary($A10),BG$3-1),campInfo,8))","v":"Y"},{"$f":"IF(INDEX(campsByItinerary,numericItinerary($A10),BH$3-1)=\"\",\"\",VLOOKUP(INDEX(campsByItinerary,numericItinerary($A10),BH$3-1),campInfo,8))","v":""},{"$f":"IF(INDEX(campsByItinerary,numericItinerary($A10),BI$3-1)=\"\",\"\",VLOOKUP(INDEX(campsByItinerary,numericItinerary($A10),BI$3-1),campInfo,8))","v":""},{"$f":"IF(INDEX(campsByItinerary,numericItinerary($A10),BJ$3-1)=\"\",\"\",VLOOKUP(INDEX(campsByItinerary,numericItinerary($A10),BJ$3-1),campInfo,8))","v":""},{"$f":"IF(INDEX(campsByItinerary,numericItinerary($A10),BK$3-1)=\"\",\"\",VLOOKUP(INDEX(campsByItinerary,numericItinerary($A10),BK$3-1),campInfo,8))","v":""},{"$f":"IF(INDEX(campsByItinerary,numericItinerary($A10),BL$3-1)=\"\",\"\",VLOOKUP(INDEX(campsByItinerary,numericItinerary($A10),BL$3-1),campInfo,8))","v":""},{"$f":"IF(INDEX(campsByItinerary,numericItinerary($A10),BM$3-1)=\"\",\"\",VLOOKUP(INDEX(campsByItinerary,numericItinerary($A10),BM$3-1),campInfo,8))","v":""},"Y","Y","","","Y","Y","Y","Y","Y","Y",{"$f":"IF(INDEX(campsByItinerary,numericItinerary($A10),BD$3-1)=\"\",\"\",VLOOKUP(INDEX(campsByItinerary,numericItinerary($A10),BD$3-1),campInfo,10))","v":"Y"},{"$f":"IF(INDEX(campsByItinerary,numericItinerary($A10),BE$3-1)=\"\",\"\",VLOOKUP(INDEX(campsByItinerary,numericItinerary($A10),BE$3-1),campInfo,10))","v":""},{"$f":"IF(INDEX(campsByItinerary,numericItinerary($A10),BF$3-1)=\"\",\"\",VLOOKUP(INDEX(campsByItinerary,numericItinerary($A10),BF$3-1),campInfo,10))","v":""},{"$f":"IF(INDEX(campsByItinerary,numericItinerary($A10),BG$3-1)=\"\",\"\",VLOOKUP(INDEX(campsByItinerary,numericItinerary($A10),BG$3-1),campInfo,10))","v":""},{"$f":"IF(INDEX(campsByItinerary,numericItinerary($A10),BH$3-1)=\"\",\"\",VLOOKUP(INDEX(campsByItinerary,numericItinerary($A10),BH$3-1),campInfo,10))","v":"Y"},{"$f":"IF(INDEX(campsByItinerary,numericItinerary($A10),BI$3-1)=\"\",\"\",VLOOKUP(INDEX(campsByItinerary,numericItinerary($A10),BI$3-1),campInfo,10))","v":""},{"$f":"IF(INDEX(campsByItinerary,numericItinerary($A10),BJ$3-1)=\"\",\"\",VLOOKUP(INDEX(campsByItinerary,numericItinerary($A10),BJ$3-1),campInfo,10))","v":""},{"$f":"IF(INDEX(campsByItinerary,numericItinerary($A10),BK$3-1)=\"\",\"\",VLOOKUP(INDEX(campsByItinerary,numericItinerary($A10),BK$3-1),campInfo,10))","v":""},{"$f":"IF(INDEX(campsByItinerary,numericItinerary($A10),BL$3-1)=\"\",\"\",VLOOKUP(INDEX(campsByItinerary,numericItinerary($A10),BL$3-1),campInfo,10))","v":""},{"$f":"IF(INDEX(campsByItinerary,numericItinerary($A10),BM$3-1)=\"\",\"\",VLOOKUP(INDEX(campsByItinerary,numericItinerary($A10),BM$3-1),campInfo,10))","v":""},null,"","","","","","Y","Y","Y","Y",{"$f":"INDEX(campsByItinerary,numericItinerary($A10),BD$3-1)","v":"Rimrock Park"},{"$f":"IF(INDEX(campsByItinerary,numericItinerary($A10),BE$3-1)=\"\",\"\",VLOOKUP(INDEX(campsByItinerary,numericItinerary($A10),BE$3-1),campInfo,2))","v":"South"},{"$f":"IF(INDEX(campsByItinerary,numericItinerary($A10),BF$3-1)=\"\",\"\",VLOOKUP(INDEX(campsByItinerary,numericItinerary($A10),BF$3-1),campInfo,2))","v":"South"},{"$f":"IF(INDEX(campsByItinerary,numericItinerary($A10),BG$3-1)=\"\",\"\",VLOOKUP(INDEX(campsByItinerary,numericItinerary($A10),BG$3-1),campInfo,2))","v":"South"},{"$f":"IF(INDEX(campsByItinerary,numericItinerary($A10),BH$3-1)=\"\",\"\",VLOOKUP(INDEX(campsByItinerary,numericItinerary($A10),BH$3-1),campInfo,2))","v":"Central"},{"$f":"IF(INDEX(campsByItinerary,numericItinerary($A10),BI$3-1)=\"\",\"\",VLOOKUP(INDEX(campsByItinerary,numericItinerary($A10),BI$3-1),campInfo,2))","v":""},{"$f":"IF(INDEX(campsByItinerary,numericItinerary($A10),BJ$3-1)=\"\",\"\",VLOOKUP(INDEX(campsByItinerary,numericItinerary($A10),BJ$3-1),campInfo,2))","v":""},{"$f":"IF(INDEX(campsByItinerary,numericItinerary($A10),BK$3-1)=\"\",\"\",VLOOKUP(INDEX(campsByItinerary,numericItinerary($A10),BK$3-1),campInfo,2))","v":""},{"$f":"IF(INDEX(campsByItinerary,numericItinerary($A10),BL$3-1)=\"\",\"\",VLOOKUP(INDEX(campsByItinerary,numericItinerary($A10),BL$3-1),campInfo,2))","v":""},{"$f":"IF(INDEX(campsByItinerary,numericItinerary($A10),BM$3-1)=\"\",\"\",VLOOKUP(INDEX(campsByItinerary,numericItinerary($A10),BM$3-1),campInfo,2))","v":""},{"$f":"IF(INDEX(campsByItinerary,numericItinerary($A10),BD$3-1)=\"\",\"\",VLOOKUP(INDEX(campsByItinerary,numericItinerary($A10),BD$3-1),campInfo,12))","v":"South"},{"$f":"IF(INDEX(campsByItinerary,numericItinerary($A10),BE$3-1)=\"\",\"\",VLOOKUP(INDEX(campsByItinerary,numericItinerary($A10),BE$3-1),campInfo,12))","v":"South"},{"$f":"IF(INDEX(campsByItinerary,numericItinerary($A10),BF$3-1)=\"\",\"\",VLOOKUP(INDEX(campsByItinerary,numericItinerary($A10),BF$3-1),campInfo,12))","v":"South"},{"$f":"IF(INDEX(campsByItinerary,numericItinerary($A10),BG$3-1)=\"\",\"\",VLOOKUP(INDEX(campsByItinerary,numericItinerary($A10),BG$3-1),campInfo,12))","v":"South"},{"$f":"IF(INDEX(campsByItinerary,numericItinerary($A10),BH$3-1)=\"\",\"\",VLOOKUP(INDEX(campsByItinerary,numericItinerary($A10),BH$3-1),campInfo,12))","v":"South"},{"$f":"IF(INDEX(campsByItinerary,numericItinerary($A10),BI$3-1)=\"\",\"\",VLOOKUP(INDEX(campsByItinerary,numericItinerary($A10),BI$3-1),campInfo,12))","v":""},{"$f":"IF(INDEX(campsByItinerary,numericItinerary($A10),BJ$3-1)=\"\",\"\",VLOOKUP(INDEX(campsByItinerary,numericItinerary($A10),BJ$3-1),campInfo,12))","v":""},{"$f":"IF(INDEX(campsByItinerary,numericItinerary($A10),BK$3-1)=\"\",\"\",VLOOKUP(INDEX(campsByItinerary,numericItinerary($A10),BK$3-1),campInfo,12))","v":""},{"$f":"IF(INDEX(campsByItinerary,numericItinerary($A10),BL$3-1)=\"\",\"\",VLOOKUP(INDEX(campsByItinerary,numericItinerary($A10),BL$3-1),campInfo,12))","v":""},{"$f":"IF(INDEX(campsByItinerary,numericItinerary($A10),BM$3-1)=\"\",\"\",VLOOKUP(INDEX(campsByItinerary,numericItinerary($A10),BM$3-1),campInfo,12))","v":""},{"$f":"getfoodPU(\"First\",numericItinerary($A10))","v":2},{"$f":"getfoodPU(\"Max\",numericItinerary($A10))","v":2}]
["7-8",null,"R",34,"Old Abreu","Lower Bonito","Beaubien","Wild Horse","Clear Creek",null,null,null,null,null,"Camping HQ",null,null,"Phillips Junction",null,null,null,null,null,null,"Zastrow","Tolby Creek","",{"$f":"IF(AC11=\"\",\"\",numericItinerary(A11) & \":\" & AC11)","v":""},null,null,null,null,"y","",null,null,7375,8962,9330,10420,10240,"","","","","",1587,368,1090,180,"","","","","",{"$f":"IF(INDEX(campsByItinerary,numericItinerary($A11),BD$3-1)=\"\",\"\",VLOOKUP(INDEX(campsByItinerary,numericItinerary($A11),BD$3-1),campInfo,8))","v":""},{"$f":"IF(INDEX(campsByItinerary,numericItinerary($A11),BE$3-1)=\"\",\"\",VLOOKUP(INDEX(campsByItinerary,numericItinerary($A11),BE$3-1),campInfo,8))","v":""},{"$f":"IF(INDEX(campsByItinerary,numericItinerary($A11),BF$3-1)=\"\",\"\",VLOOKUP(INDEX(campsByItinerary,numericItinerary($A11),BF$3-1),campInfo,8))","v":"Y"},{"$f":"IF(INDEX(campsByItinerary,numericItinerary($A11),BG$3-1)=\"\",\"\",VLOOKUP(INDEX(campsByItinerary,numericItinerary($A11),BG$3-1),campInfo,8))","v":""},{"$f":"IF(INDEX(campsByItinerary,numericItinerary($A11),BH$3-1)=\"\",\"\",VLOOKUP(INDEX(campsByItinerary,numericItinerary($A11),BH$3-1),campInfo,8))","v":"Y"},{"$f":"IF(INDEX(campsByItinerary,numericItinerary($A11),BI$3-1)=\"\",\"\",VLOOKUP(INDEX(campsByItinerary,numericItinerary($A11),BI$3-1),campInfo,8))","v":""},{"$f":"IF(INDEX(campsByItinerary,numericItinerary($A11),BJ$3-1)=\"\",\"\",VLOOKUP(INDEX(campsByItinerary,numericItinerary($A11),BJ$3-1),campInfo,8))","v":""},{"$f":"IF(INDEX(campsByItinerary,numericItinerary($A11),BK$3-1)=\"\",\"\",VLOOKUP(INDEX(campsByItinerary,numericItinerary($A11),BK$3-1),campInfo,8))","v":""},{"$f":"IF(INDEX(campsByItinerary,numericItinerary($A11),BL$3-1)=\"\",\"\",VLOOKUP(INDEX(campsByItinerary,numericItinerary($A11),BL$3-1),campInfo,8))","v":""},{"$f":"IF(INDEX(campsByItinerary,numericItinerary($A11),BM$3-1)=\"\",\"\",VLOOKUP(INDEX(campsByItinerary,numericItinerary($A11),BM$3-1),campInfo,8))","v":""},"Y","Y","","Y","","Y","Y","Y","Y","Y",{"$f":"IF(INDEX(campsByItinerary,numericItinerary($A11),BD$3-1)=\"\",\"\",VLOOKUP(INDEX(campsByItinerary,numericItinerary($A11),BD$3-1),campInfo,10))","v":""},{"$f":"IF(INDEX(campsByItinerary,numericItinerary($A11),BE$3-1)=\"\",\"\",VLOOKUP(INDEX(campsByItinerary,numericItinerary($A11),BE$3-1),campInfo,10))","v":""},{"$f":"IF(INDEX(campsByItinerary,numericItinerary($A11),BF$3-1)=\"\",\"\",VLOOKUP(INDEX(campsByItinerary,numericItinerary($A11),BF$3-1),campInfo,10))","v":""},{"$f":"IF(INDEX(campsByItinerary,numericItinerary($A11),BG$3-1)=\"\",\"\",VLOOKUP(INDEX(campsByItinerary,numericItinerary($A11),BG$3-1),campInfo,10))","v":""},{"$f":"IF(INDEX(campsByItinerary,numericItinerary($A11),BH$3-1)=\"\",\"\",VLOOKUP(INDEX(campsByItinerary,numericItinerary($A11),BH$3-1),campInfo,10))","v":""},{"$f":"IF(INDEX(campsByItinerary,numericItinerary($A11),BI$3-1)=\"\",\"\",VLOOKUP(INDEX(campsByItinerary,numericItinerary($A11),BI$3-1),campInfo,10))","v":""},{"$f":"IF(INDEX(campsByItinerary,numericItinerary($A11),BJ$3-1)=\"\",\"\",VLOOKUP(INDEX(campsByItinerary,numericItinerary($A11),BJ$3-1),campInfo,10))","v":""},{"$f":"IF(INDEX(campsByItinerary,numericItinerary($A11),BK$3-1)=\"\",\"\",VLOOKUP(INDEX(campsByItinerary,numericItinerary($A11),BK$3-1),campInfo,10))","v":""},{"$f":"IF(INDEX(campsByItinerary,numericItinerary($A11),BL$3-1)=\"\",\"\",VLOOKUP(INDEX(campsByItinerary,numericItinerary($A11),BL$3-1),campInfo,10))","v":""},{"$f":"IF(INDEX(campsByItinerary,numericItinerary($A11),BM$3-1)=\"\",\"\",VLOOKUP(INDEX(campsByItinerary,numericItinerary($A11),BM$3-1),campInfo,10))","v":""},null,"","","","","","Y","Y","Y","Y",{"$f":"INDEX(campsByItinerary,numericItinerary($A11),BD$3-1)","v":"Old Abreu"},{"$f":"IF(INDEX(campsByItinerary,numericItinerary($A11),BE$3-1)=\"\",\"\",VLOOKUP(INDEX(campsByItinerary,numericItinerary($A11),BE$3-1),campInfo,2))","v":"South"},{"$f":"IF(INDEX(campsByItinerary,numericItinerary($A11),BF$3-1)=\"\",\"\",VLOOKUP(INDEX(campsByItinerary,numericItinerary($A11),BF$3-1),campInfo,2))","v":"South"},{"$f":"IF(INDEX(campsByItinerary,numericItinerary($A11),BG$3-1)=\"\",\"\",VLOOKUP(INDEX(campsByItinerary,numericItinerary($A11),BG$3-1),campInfo,2))","v":"South"},{"$f":"IF(INDEX(campsByItinerary,numericItinerary($A11),BH$3-1)=\"\",\"\",VLOOKUP(INDEX(campsByItinerary,numericItinerary($A11),BH$3-1),campInfo,2))","v":"Central"},{"$f":"IF(INDEX(campsByItinerary,numericItinerary($A11),BI$3-1)=\"\",\"\",VLOOKUP(INDEX(campsByItinerary,numericItinerary($A11),BI$3-1),campInfo,2))","v":""},{"$f":"IF(INDEX(campsByItinerary,numericItinerary($A11),BJ$3-1)=\"\",\"\",VLOOKUP(INDEX(campsByItinerary,numericItinerary($A11),BJ$3-1),campInfo,2))","v":""},{"$f":"IF(INDEX(campsByItinerary,numericItinerary($A11),BK$3-1)=\"\",\"\",VLOOKUP(INDEX(campsByItinerary,numericItinerary($A11),BK$3-1),campInfo,2))","v":""},{"$f":"IF(INDEX(campsByItinerary,numericItinerary($A11),BL$3-1)=\"\",\"\",VLOOKUP(INDEX(campsByItinerary,numericItinerary($A11),BL$3-1),campInfo,2))","v":""},{"$f":"IF(INDEX(campsByItinerary,numericItinerary($A11),BM$3-1)=\"\",\"\",VLOOKUP(INDEX(campsByItinerary,numericItinerary($A11),BM$3-1),campInfo,2))","v":""},{"$f":"IF(INDEX(campsByItinerary,numericItinerary($A11),BD$3-1)=\"\",\"\",VLOOKUP(INDEX(campsByItinerary,numericItinerary($A11),BD$3-1),campInfo,12))","v":"South"},{"$f":"IF(INDEX(campsByItinerary,numericItinerary($A11),BE$3-1)=\"\",\"\",VLOOKUP(INDEX(campsByItinerary,numericItinerary($A11),BE$3-1),campInfo,12))","v":"South"},{"$f":"IF(INDEX(campsByItinerary,numericItinerary($A11),BF$3-1)=\"\",\"\",VLOOKUP(INDEX(campsByItinerary,numericItinerary($A11),BF$3-1),campInfo,12))","v":"South"},{"$f":"IF(INDEX(campsByItinerary,numericItinerary($A11),BG$3-1)=\"\",\"\",VLOOKUP(INDEX(campsByItinerary,numericItinerary($A11),BG$3-1),campInfo,12))","v":"South"},{"$f":"IF(INDEX(campsByItinerary,numericItinerary($A11),BH$3-1)=\"\",\"\",VLOOKUP(INDEX(campsByItinerary,numericItinerary($A11),BH$3-1),campInfo,12))","v":"South"},{"$f":"IF(INDEX(campsByItinerary,numericItinerary($A11),BI$3-1)=\"\",\"\",VLOOKUP(INDEX(campsByItinerary,numericItinerary($A11),BI$3-1),campInfo,12))","v":""},{"$f":"IF(INDEX(campsByItinerary,numericItinerary($A11),BJ$3-1)=\"\",\"\",VLOOKUP(INDEX(campsByItinerary,numericItinerary($A11),BJ$3-1),campInfo,12))","v":""},{"$f":"IF(INDEX(campsByItinerary,numericItinerary($A11),BK$3-1)=\"\",\"\",VLOOKUP(INDEX(campsByItinerary,numericItinerary($A11),BK$3-1),campInfo,12))","v":""},{"$f":"IF(INDEX(campsByItinerary,numericItinerary($A11),BL$3-1)=\"\",\"\",VLOOKUP(INDEX(campsByItinerary,numericItinerary($A11),BL$3-1),campInfo,12))","v":""},{"$f":"IF(INDEX(campsByItinerary,numericItinerary($A11),BM$3-1)=\"\",\"\",VLOOKUP(INDEX(campsByItinerary,numericItinerary($A11),BM$3-1),campInfo,12))","v":""},{"$f":"getfoodPU(\"First\",numericItinerary($A11))","v":3},{"$f":"getfoodPU(\"Max\",numericItinerary($A11))","v":3}]
["7-9",null,"R",35,"Heck Meadow","Clarks Fork","Shaefers Pass","Miners Park","Abreu",null,null,null,null,null,"Camping HQ",null,null,"Miners Park",null,null,null,null,null,null,"Hike Out","Zastrow","",{"$f":"IF(AC12=\"\",\"\",numericItinerary(A12) & \":\" & AC12)","v":""},null,null,null,null,null,"y",null,"y",7085,7515,8724,7977,7217,"","","","","",430,1209,747,760,"","","","","",{"$f":"IF(INDEX(campsByItinerary,numericItinerary($A12),BD$3-1)=\"\",\"\",VLOOKUP(INDEX(campsByItinerary,numericItinerary($A12),BD$3-1),campInfo,8))","v":""},{"$f":"IF(INDEX(campsByItinerary,numericItinerary($A12),BE$3-1)=\"\",\"\",VLOOKUP(INDEX(campsByItinerary,numericItinerary($A12),BE$3-1),campInfo,8))","v":"Y"},{"$f":"IF(INDEX(campsByItinerary,numericItinerary($A12),BF$3-1)=\"\",\"\",VLOOKUP(INDEX(campsByItinerary,numericItinerary($A12),BF$3-1),campInfo,8))","v":""},{"$f":"IF(INDEX(campsByItinerary,numericItinerary($A12),BG$3-1)=\"\",\"\",VLOOKUP(INDEX(campsByItinerary,numericItinerary($A12),BG$3-1),campInfo,8))","v":"Y"},{"$f":"IF(INDEX(campsByItinerary,numericItinerary($A12),BH$3-1)=\"\",\"\",VLOOKUP(INDEX(campsByItinerary,numericItinerary($A12),BH$3-1),campInfo,8))","v":"Y"},{"$f":"IF(INDEX(campsByItinerary,numericItinerary($A12),BI$3-1)=\"\",\"\",VLOOKUP(INDEX(campsByItinerary,numericItinerary($A12),BI$3-1),campInfo,8))","v":""},{"$f":"IF(INDEX(campsByItinerary,numericItinerary($A12),BJ$3-1)=\"\",\"\",VLOOKUP(INDEX(campsByItinerary,numericItinerary($A12),BJ$3-1),campInfo,8))","v":""},{"$f":"IF(INDEX(campsByItinerary,numericItinerary($A12),BK$3-1)=\"\",\"\",VLOOKUP(INDEX(campsByItinerary,numericItinerary($A12),BK$3-1),campInfo,8))","v":""},{"$f":"IF(INDEX(campsByItinerary,numericItinerary($A12),BL$3-1)=\"\",\"\",VLOOKUP(INDEX(campsByItinerary,numericItinerary($A12),BL$3-1),campInfo,8))","v":""},{"$f":"IF(INDEX(campsByItinerary,numericItinerary($A12),BM$3-1)=\"\",\"\",VLOOKUP(INDEX(campsByItinerary,numericItinerary($A12),BM$3-1),campInfo,8))","v":""},"Y","","Y","","","Y","Y","Y","Y","Y",{"$f":"IF(INDEX(campsByItinerary,numericItinerary($A12),BD$3-1)=\"\",\"\",VLOOKUP(INDEX(campsByItinerary,numericItinerary($A12),BD$3-1),campInfo,10))","v":"Y"},{"$f":"IF(INDEX(campsByItinerary,numericItinerary($A12),BE$3-1)=\"\",\"\",VLOOKUP(INDEX(campsByItinerary,numericItinerary($A12),BE$3-1),campInfo,10))","v":""},{"$f":"IF(INDEX(campsByItinerary,numericItinerary($A12),BF$3-1)=\"\",\"\",VLOOKUP(INDEX(campsByItinerary,numericItinerary($A12),BF$3-1),campInfo,10))","v":"Y"},{"$f":"IF(INDEX(campsByItinerary,numericItinerary($A12),BG$3-1)=\"\",\"\",VLOOKUP(INDEX(campsByItinerary,numericItinerary($A12),BG$3-1),campInfo,10))","v":""},{"$f":"IF(INDEX(campsByItinerary,numericItinerary($A12),BH$3-1)=\"\",\"\",VLOOKUP(INDEX(campsByItinerary,numericItinerary($A12),BH$3-1),campInfo,10))","v":""},{"$f":"IF(INDEX(campsByItinerary,numericItinerary($A12),BI$3-1)=\"\",\"\",VLOOKUP(INDEX(campsByItinerary,numericItinerary($A12),BI$3-1),campInfo,10))","v":""},{"$f":"IF(INDEX(campsByItinerary,numericItinerary($A12),BJ$3-1)=\"\",\"\",VLOOKUP(INDEX(campsByItinerary,numericItinerary($A12),BJ$3-1),campInfo,10))","v":""},{"$f":"IF(INDEX(campsByItinerary,numericItinerary($A12),BK$3-1)=\"\",\"\",VLOOKUP(INDEX(campsByItinerary,numericItinerary($A12),BK$3-1),campInfo,10))","v":""},{"$f":"IF(INDEX(campsByItinerary,numericItinerary($A12),BL$3-1)=\"\",\"\",VLOOKUP(INDEX(campsByItinerary,numericItinerary($A12),BL$3-1),campInfo,10))","v":""},{"$f":"IF(INDEX(campsByItinerary,numericItinerary($A12),BM$3-1)=\"\",\"\",VLOOKUP(INDEX(campsByItinerary,numericItinerary($A12),BM$3-1),campInfo,10))","v":""},null,"","","","","","Y","Y","Y","Y",{"$f":"INDEX(campsByItinerary,numericItinerary($A12),BD$3-1)","v":"Heck Meadow"},{"$f":"IF(INDEX(campsByItinerary,numericItinerary($A12),BE$3-1)=\"\",\"\",VLOOKUP(INDEX(campsByItinerary,numericItinerary($A12),BE$3-1),campInfo,2))","v":"Central"},{"$f":"IF(INDEX(campsByItinerary,numericItinerary($A12),BF$3-1)=\"\",\"\",VLOOKUP(INDEX(campsByItinerary,numericItinerary($A12),BF$3-1),campInfo,2))","v":"Central"},{"$f":"IF(INDEX(campsByItinerary,numericItinerary($A12),BG$3-1)=\"\",\"\",VLOOKUP(INDEX(campsByItinerary,numericItinerary($A12),BG$3-1),campInfo,2))","v":"South"},{"$f":"IF(INDEX(campsByItinerary,numericItinerary($A12),BH$3-1)=\"\",\"\",VLOOKUP(INDEX(campsByItinerary,numericItinerary($A12),BH$3-1),campInfo,2))","v":"South"},{"$f":"IF(INDEX(campsByItinerary,numericItinerary($A12),BI$3-1)=\"\",\"\",VLOOKUP(INDEX(campsByItinerary,numericItinerary($A12),BI$3-1),campInfo,2))","v":""},{"$f":"IF(INDEX(campsByItinerary,numericItinerary($A12),BJ$3-1)=\"\",\"\",VLOOKUP(INDEX(campsByItinerary,numericItinerary($A12),BJ$3-1),campInfo,2))","v":""},{"$f":"IF(INDEX(campsByItinerary,numericItinerary($A12),BK$3-1)=\"\",\"\",VLOOKUP(INDEX(campsByItinerary,numericItinerary($A12),BK$3-1),campInfo,2))","v":""},{"$f":"IF(INDEX(campsByItinerary,numericItinerary($A12),BL$3-1)=\"\",\"\",VLOOKUP(INDEX(campsByItinerary,numericItinerary($A12),BL$3-1),campInfo,2))","v":""},{"$f":"IF(INDEX(campsByItinerary,numericItinerary($A12),BM$3-1)=\"\",\"\",VLOOKUP(INDEX(campsByItinerary,numericItinerary($A12),BM$3-1),campInfo,2))","v":""},{"$f":"IF(INDEX(campsByItinerary,numericItinerary($A12),BD$3-1)=\"\",\"\",VLOOKUP(INDEX(campsByItinerary,numericItinerary($A12),BD$3-1),campInfo,12))","v":"South"},{"$f":"IF(INDEX(campsByItinerary,numericItinerary($A12),BE$3-1)=\"\",\"\",VLOOKUP(INDEX(campsByItinerary,numericItinerary($A12),BE$3-1),campInfo,12))","v":"South"},{"$f":"IF(INDEX(campsByItinerary,numericItinerary($A12),BF$3-1)=\"\",\"\",VLOOKUP(INDEX(campsByItinerary,numericItinerary($A12),BF$3-1),campInfo,12))","v":"South"},{"$f":"IF(INDEX(campsByItinerary,numericItinerary($A12),BG$3-1)=\"\",\"\",VLOOKUP(INDEX(campsByItinerary,numericItinerary($A12),BG$3-1),campInfo,12))","v":"South"},{"$f":"IF(INDEX(campsByItinerary,numericItinerary($A12),BH$3-1)=\"\",\"\",VLOOKUP(INDEX(campsByItinerary,numericItinerary($A12),BH$3-1),campInfo,12))","v":"South"},{"$f":"IF(INDEX(campsByItinerary,numericItinerary($A12),BI$3-1)=\"\",\"\",VLOOKUP(INDEX(campsByItinerary,numericItinerary($A12),BI$3-1),campInfo,12))","v":""},{"$f":"IF(INDEX(campsByItinerary,numericItinerary($A12),BJ$3-1)=\"\",\"\",VLOOKUP(INDEX(campsByItinerary,numericItinerary($A12),BJ$3-1),campInfo,12))","v":""},{"$f":"IF(INDEX(campsByItinerary,numericItinerary($A12),BK$3-1)=\"\",\"\",VLOOKUP(INDEX(campsByItinerary,numericItinerary($A12),BK$3-1),campInfo,12))","v":""},{"$f":"IF(INDEX(campsByItinerary,numericItinerary($A12),BL$3-1)=\"\",\"\",VLOOKUP(INDEX(campsByItinerary,numericItinerary($A12),BL$3-1),campInfo,12))","v":""},{"$f":"IF(INDEX(campsByItinerary,numericItinerary($A12),BM$3-1)=\"\",\"\",VLOOKUP(INDEX(campsByItinerary,numericItinerary($A12),BM$3-1),campInfo,12))","v":""},{"$f":"getfoodPU(\"First\",numericItinerary($A12))","v":3},{"$f":"getfoodPU(\"Max\",numericItinerary($A12))","v":3}]
["7-10",null,"R",34,"Old Abreu","Fish Camp","Lower Bonito","Miners Park","Stockade Ridge",null,null,null,null,null,"Camping HQ",null,null,"Miners Park",null,null,null,null,null,null,"Zastrow","Hike In","y",{"$f":"IF(AC13=\"\",\"\",numericItinerary(A13) & \":\" & AC13)","v":""},null,null,null,null,null,"y","y",null,7375,8564,8962,7977,7519,"","","","","",1189,398,985,458,"","","","","",{"$f":"IF(INDEX(campsByItinerary,numericItinerary($A13),BD$3-1)=\"\",\"\",VLOOKUP(INDEX(campsByItinerary,numericItinerary($A13),BD$3-1),campInfo,8))","v":""},{"$f":"IF(INDEX(campsByItinerary,numericItinerary($A13),BE$3-1)=\"\",\"\",VLOOKUP(INDEX(campsByItinerary,numericItinerary($A13),BE$3-1),campInfo,8))","v":"Y"},{"$f":"IF(INDEX(campsByItinerary,numericItinerary($A13),BF$3-1)=\"\",\"\",VLOOKUP(INDEX(campsByItinerary,numericItinerary($A13),BF$3-1),campInfo,8))","v":""},{"$f":"IF(INDEX(campsByItinerary,numericItinerary($A13),BG$3-1)=\"\",\"\",VLOOKUP(INDEX(campsByItinerary,numericItinerary($A13),BG$3-1),campInfo,8))","v":"Y"},{"$f":"IF(INDEX(campsByItinerary,numericItinerary($A13),BH$3-1)=\"\",\"\",VLOOKUP(INDEX(campsByItinerary,numericItinerary($A13),BH$3-1),campInfo,8))","v":""},{"$f":"IF(INDEX(campsByItinerary,numericItinerary($A13),BI$3-1)=\"\",\"\",VLOOKUP(INDEX(campsByItinerary,numericItinerary($A13),BI$3-1),campInfo,8))","v":""},{"$f":"IF(INDEX(campsByItinerary,numericItinerary($A13),BJ$3-1)=\"\",\"\",VLOOKUP(INDEX(campsByItinerary,numericItinerary($A13),BJ$3-1),campInfo,8))","v":""},{"$f":"IF(INDEX(campsByItinerary,numericItinerary($A13),BK$3-1)=\"\",\"\",VLOOKUP(INDEX(campsByItinerary,numericItinerary($A13),BK$3-1),campInfo,8))","v":""},{"$f":"IF(INDEX(campsByItinerary,numericItinerary($A13),BL$3-1)=\"\",\"\",VLOOKUP(INDEX(campsByItinerary,numericItinerary($A13),BL$3-1),campInfo,8))","v":""},{"$f":"IF(INDEX(campsByItinerary,numericItinerary($A13),BM$3-1)=\"\",\"\",VLOOKUP(INDEX(campsByItinerary,numericItinerary($A13),BM$3-1),campInfo,8))","v":""},"Y","","Y","","Y","Y","Y","Y","Y","Y",{"$f":"IF(INDEX(campsByItinerary,numericItinerary($A13),BD$3-1)=\"\",\"\",VLOOKUP(INDEX(campsByItinerary,numericItinerary($A13),BD$3-1),campInfo,10))","v":""},{"$f":"IF(INDEX(campsByItinerary,numericItinerary($A13),BE$3-1)=\"\",\"\",VLOOKUP(INDEX(campsByItinerary,numericItinerary($A13),BE$3-1),campInfo,10))","v":""},{"$f":"IF(INDEX(campsByItinerary,numericItinerary($A13),BF$3-1)=\"\",\"\",VLOOKUP(INDEX(campsByItinerary,numericItinerary($A13),BF$3-1),campInfo,10))","v":""},{"$f":"IF(INDEX(campsByItinerary,numericItinerary($A13),BG$3-1)=\"\",\"\",VLOOKUP(INDEX(campsByItinerary,numericItinerary($A13),BG$3-1),campInfo,10))","v":""},{"$f":"IF(INDEX(campsByItinerary,numericItinerary($A13),BH$3-1)=\"\",\"\",VLOOKUP(INDEX(campsByItinerary,numericItinerary($A13),BH$3-1),campInfo,10))","v":"Y"},{"$f":"IF(INDEX(campsByItinerary,numericItinerary($A13),BI$3-1)=\"\",\"\",VLOOKUP(INDEX(campsByItinerary,numericItinerary($A13),BI$3-1),campInfo,10))","v":""},{"$f":"IF(INDEX(campsByItinerary,numericItinerary($A13),BJ$3-1)=\"\",\"\",VLOOKUP(INDEX(campsByItinerary,numericItinerary($A13),BJ$3-1),campInfo,10))","v":""},{"$f":"IF(INDEX(campsByItinerary,numericItinerary($A13),BK$3-1)=\"\",\"\",VLOOKUP(INDEX(campsByItinerary,numericItinerary($A13),BK$3-1),campInfo,10))","v":""},{"$f":"IF(INDEX(campsByItinerary,numericItinerary($A13),BL$3-1)=\"\",\"\",VLOOKUP(INDEX(campsByItinerary,numericItinerary($A13),BL$3-1),campInfo,10))","v":""},{"$f":"IF(INDEX(campsByItinerary,numericItinerary($A13),BM$3-1)=\"\",\"\",VLOOKUP(INDEX(campsByItinerary,numericItinerary($A13),BM$3-1),campInfo,10))","v":""},null,"","","","","","Y","Y","Y","Y",{"$f":"INDEX(campsByItinerary,numericItinerary($A13),BD$3-1)","v":"Old Abreu"},{"$f":"IF(INDEX(campsByItinerary,numericItinerary($A13),BE$3-1)=\"\",\"\",VLOOKUP(INDEX(campsByItinerary,numericItinerary($A13),BE$3-1),campInfo,2))","v":"South"},{"$f":"IF(INDEX(campsByItinerary,numericItinerary($A13),BF$3-1)=\"\",\"\",VLOOKUP(INDEX(campsByItinerary,numericItinerary($A13),BF$3-1),campInfo,2))","v":"South"},{"$f":"IF(INDEX(campsByItinerary,numericItinerary($A13),BG$3-1)=\"\",\"\",VLOOKUP(INDEX(campsByItinerary,numericItinerary($A13),BG$3-1),campInfo,2))","v":"South"},{"$f":"IF(INDEX(campsByItinerary,numericItinerary($A13),BH$3-1)=\"\",\"\",VLOOKUP(INDEX(campsByItinerary,numericItinerary($A13),BH$3-1),campInfo,2))","v":"South"},{"$f":"IF(INDEX(campsByItinerary,numericItinerary($A13),BI$3-1)=\"\",\"\",VLOOKUP(INDEX(campsByItinerary,numericItinerary($A13),BI$3-1),campInfo,2))","v":""},{"$f":"IF(INDEX(campsByItinerary,numericItinerary($A13),BJ$3-1)=\"\",\"\",VLOOKUP(INDEX(campsByItinerary,numericItinerary($A13),BJ$3-1),campInfo,2))","v":""},{"$f":"IF(INDEX(campsByItinerary,numericItinerary($A13),BK$3-1)=\"\",\"\",VLOOKUP(INDEX(campsByItinerary,numericItinerary($A13),BK$3-1),campInfo,2))","v":""},{"$f":"IF(INDEX(campsByItinerary,numericItinerary($A13),BL$3-1)=\"\",\"\",VLOOKUP(INDEX(campsByItinerary,numericItinerary($A13),BL$3-1),campInfo,2))","v":""},{"$f":"IF(INDEX(campsByItinerary,numericItinerary($A13),BM$3-1)=\"\",\"\",VLOOKUP(INDEX(campsByItinerary,numericItinerary($A13),BM$3-1),campInfo,2))","v":""},{"$f":"IF(INDEX(campsByItinerary,numericItinerary($A13),BD$3-1)=\"\",\"\",VLOOKUP(INDEX(campsByItinerary,numericItinerary($A13),BD$3-1),campInfo,12))","v":"South"},{"$f":"IF(INDEX(campsByItinerary,numericItinerary($A13),BE$3-1)=\"\",\"\",VLOOKUP(INDEX(campsByItinerary,numericItinerary($A13),BE$3-1),campInfo,12))","v":"South"},{"$f":"IF(INDEX(campsByItinerary,numericItinerary($A13),BF$3-1)=\"\",\"\",VLOOKUP(INDEX(campsByItinerary,numericItinerary($A13),BF$3-1),campInfo,12))","v":"South"},{"$f":"IF(INDEX(campsByItinerary,numericItinerary($A13),BG$3-1)=\"\",\"\",VLOOKUP(INDEX(campsByItinerary,numericItinerary($A13),BG$3-1),campInfo,12))","v":"South"},{"$f":"IF(INDEX(campsByItinerary,numericItinerary($A13),BH$3-1)=\"\",\"\",VLOOKUP(INDEX(campsByItinerary,numericItinerary($A13),BH$3-1),campInfo,12))","v":"South"},{"$f":"IF(INDEX(campsByItinerary,numericItinerary($A13),BI$3-1)=\"\",\"\",VLOOKUP(INDEX(campsByItinerary,numericItinerary($A13),BI$3-1),campInfo,12))","v":""},{"$f":"IF(INDEX(campsByItinerary,numericItinerary($A13),BJ$3-1)=\"\",\"\",VLOOKUP(INDEX(campsByItinerary,numericItinerary($A13),BJ$3-1),campInfo,12))","v":""},{"$f":"IF(INDEX(campsByItinerary,numericItinerary($A13),BK$3-1)=\"\",\"\",VLOOKUP(INDEX(campsByItinerary,numericItinerary($A13),BK$3-1),campInfo,12))","v":""},{"$f":"IF(INDEX(campsByItinerary,numericItinerary($A13),BL$3-1)=\"\",\"\",VLOOKUP(INDEX(campsByItinerary,numericItinerary($A13),BL$3-1),campInfo,12))","v":""},{"$f":"IF(INDEX(campsByItinerary,numericItinerary($A13),BM$3-1)=\"\",\"\",VLOOKUP(INDEX(campsByItinerary,numericItinerary($A13),BM$3-1),campInfo,12))","v":""},{"$f":"getfoodPU(\"First\",numericItinerary($A13))","v":3},{"$f":"getfoodPU(\"Max\",numericItinerary($A13))","v":3}]
["7-11",null,"S",38,"Dean Skyline","Sioux","Dan Beard","Metcalf Station","Chase Cow",null,null,null,null,null,"Camping HQ",null,"Rich Cabins",null,null,null,null,null,null,null,"Nine Mile","Chase","",{"$f":"IF(AC14=\"\",\"\",numericItinerary(A14) & \":\" & AC14)","v":""},null,null,null,null,null,{"$f":"IF(AA14=\"\",\"\",\"y\")","v":""},null,null,7967,7382,7896,7220,7177,"","","","","",585,514,676,43,"","","","","",{"$f":"IF(INDEX(campsByItinerary,numericItinerary($A14),BD$3-1)=\"\",\"\",VLOOKUP(INDEX(campsByItinerary,numericItinerary($A14),BD$3-1),campInfo,8))","v":""},{"$f":"IF(INDEX(campsByItinerary,numericItinerary($A14),BE$3-1)=\"\",\"\",VLOOKUP(INDEX(campsByItinerary,numericItinerary($A14),BE$3-1),campInfo,8))","v":""},{"$f":"IF(INDEX(campsByItinerary,numericItinerary($A14),BF$3-1)=\"\",\"\",VLOOKUP(INDEX(campsByItinerary,numericItinerary($A14),BF$3-1),campInfo,8))","v":"Y"},{"$f":"IF(INDEX(campsByItinerary,numericItinerary($A14),BG$3-1)=\"\",\"\",VLOOKUP(INDEX(campsByItinerary,numericItinerary($A14),BG$3-1),campInfo,8))","v":"Y"},{"$f":"IF(INDEX(campsByItinerary,numericItinerary($A14),BH$3-1)=\"\",\"\",VLOOKUP(INDEX(campsByItinerary,numericItinerary($A14),BH$3-1),campInfo,8))","v":"Y"},{"$f":"IF(INDEX(campsByItinerary,numericItinerary($A14),BI$3-1)=\"\",\"\",VLOOKUP(INDEX(campsByItinerary,numericItinerary($A14),BI$3-1),campInfo,8))","v":""},{"$f":"IF(INDEX(campsByItinerary,numericItinerary($A14),BJ$3-1)=\"\",\"\",VLOOKUP(INDEX(campsByItinerary,numericItinerary($A14),BJ$3-1),campInfo,8))","v":""},{"$f":"IF(INDEX(campsByItinerary,numericItinerary($A14),BK$3-1)=\"\",\"\",VLOOKUP(INDEX(campsByItinerary,numericItinerary($A14),BK$3-1),campInfo,8))","v":""},{"$f":"IF(INDEX(campsByItinerary,numericItinerary($A14),BL$3-1)=\"\",\"\",VLOOKUP(INDEX(campsByItinerary,numericItinerary($A14),BL$3-1),campInfo,8))","v":""},{"$f":"IF(INDEX(campsByItinerary,numericItinerary($A14),BM$3-1)=\"\",\"\",VLOOKUP(INDEX(campsByItinerary,numericItinerary($A14),BM$3-1),campInfo,8))","v":""},"Y","Y","","","","Y","Y","Y","Y","Y",{"$f":"IF(INDEX(campsByItinerary,numericItinerary($A14),BD$3-1)=\"\",\"\",VLOOKUP(INDEX(campsByItinerary,numericItinerary($A14),BD$3-1),campInfo,10))","v":"Y"},{"$f":"IF(INDEX(campsByItinerary,numericItinerary($A14),BE$3-1)=\"\",\"\",VLOOKUP(INDEX(campsByItinerary,numericItinerary($A14),BE$3-1),campInfo,10))","v":""},{"$f":"IF(INDEX(campsByItinerary,numericItinerary($A14),BF$3-1)=\"\",\"\",VLOOKUP(INDEX(campsByItinerary,numericItinerary($A14),BF$3-1),campInfo,10))","v":""},{"$f":"IF(INDEX(campsByItinerary,numericItinerary($A14),BG$3-1)=\"\",\"\",VLOOKUP(INDEX(campsByItinerary,numericItinerary($A14),BG$3-1),campInfo,10))","v":""},{"$f":"IF(INDEX(campsByItinerary,numericItinerary($A14),BH$3-1)=\"\",\"\",VLOOKUP(INDEX(campsByItinerary,numericItinerary($A14),BH$3-1),campInfo,10))","v":""},{"$f":"IF(INDEX(campsByItinerary,numericItinerary($A14),BI$3-1)=\"\",\"\",VLOOKUP(INDEX(campsByItinerary,numericItinerary($A14),BI$3-1),campInfo,10))","v":""},{"$f":"IF(INDEX(campsByItinerary,numericItinerary($A14),BJ$3-1)=\"\",\"\",VLOOKUP(INDEX(campsByItinerary,numericItinerary($A14),BJ$3-1),campInfo,10))","v":""},{"$f":"IF(INDEX(campsByItinerary,numericItinerary($A14),BK$3-1)=\"\",\"\",VLOOKUP(INDEX(campsByItinerary,numericItinerary($A14),BK$3-1),campInfo,10))","v":""},{"$f":"IF(INDEX(campsByItinerary,numericItinerary($A14),BL$3-1)=\"\",\"\",VLOOKUP(INDEX(campsByItinerary,numericItinerary($A14),BL$3-1),campInfo,10))","v":""},{"$f":"IF(INDEX(campsByItinerary,numericItinerary($A14),BM$3-1)=\"\",\"\",VLOOKUP(INDEX(campsByItinerary,numericItinerary($A14),BM$3-1),campInfo,10))","v":""},null,"","","","","","Y","Y","Y","Y",{"$f":"INDEX(campsByItinerary,numericItinerary($A14),BD$3-1)","v":"Dean Skyline"},{"$f":"IF(INDEX(campsByItinerary,numericItinerary($A14),BE$3-1)=\"\",\"\",VLOOKUP(INDEX(campsByItinerary,numericItinerary($A14),BE$3-1),campInfo,2))","v":"North"},{"$f":"IF(INDEX(campsByItinerary,numericItinerary($A14),BF$3-1)=\"\",\"\",VLOOKUP(INDEX(campsByItinerary,numericItinerary($A14),BF$3-1),campInfo,2))","v":"North"},{"$f":"IF(INDEX(campsByItinerary,numericItinerary($A14),BG$3-1)=\"\",\"\",VLOOKUP(INDEX(campsByItinerary,numericItinerary($A14),BG$3-1),campInfo,2))","v":"North"},{"$f":"IF(INDEX(campsByItinerary,numericItinerary($A14),BH$3-1)=\"\",\"\",VLOOKUP(INDEX(campsByItinerary,numericItinerary($A14),BH$3-1),campInfo,2))","v":"North"},{"$f":"IF(INDEX(campsByItinerary,numericItinerary($A14),BI$3-1)=\"\",\"\",VLOOKUP(INDEX(campsByItinerary,numericItinerary($A14),BI$3-1),campInfo,2))","v":""},{"$f":"IF(INDEX(campsByItinerary,numericItinerary($A14),BJ$3-1)=\"\",\"\",VLOOKUP(INDEX(campsByItinerary,numericItinerary($A14),BJ$3-1),campInfo,2))","v":""},{"$f":"IF(INDEX(campsByItinerary,numericItinerary($A14),BK$3-1)=\"\",\"\",VLOOKUP(INDEX(campsByItinerary,numericItinerary($A14),BK$3-1),campInfo,2))","v":""},{"$f":"IF(INDEX(campsByItinerary,numericItinerary($A14),BL$3-1)=\"\",\"\",VLOOKUP(INDEX(campsByItinerary,numericItinerary($A14),BL$3-1),campInfo,2))","v":""},{"$f":"IF(INDEX(campsByItinerary,numericItinerary($A14),BM$3-1)=\"\",\"\",VLOOKUP(INDEX(campsByItinerary,numericItinerary($A14),BM$3-1),campInfo,2))","v":""},{"$f":"IF(INDEX(campsByItinerary,numericItinerary($A14),BD$3-1)=\"\",\"\",VLOOKUP(INDEX(campsByItinerary,numericItinerary($A14),BD$3-1),campInfo,12))","v":"North"},{"$f":"IF(INDEX(campsByItinerary,numericItinerary($A14),BE$3-1)=\"\",\"\",VLOOKUP(INDEX(campsByItinerary,numericItinerary($A14),BE$3-1),campInfo,12))","v":"North"},{"$f":"IF(INDEX(campsByItinerary,numericItinerary($A14),BF$3-1)=\"\",\"\",VLOOKUP(INDEX(campsByItinerary,numericItinerary($A14),BF$3-1),campInfo,12))","v":"North"},{"$f":"IF(INDEX(campsByItinerary,numericItinerary($A14),BG$3-1)=\"\",\"\",VLOOKUP(INDEX(campsByItinerary,numericItinerary($A14),BG$3-1),campInfo,12))","v":"North"},{"$f":"IF(INDEX(campsByItinerary,numericItinerary($A14),BH$3-1)=\"\",\"\",VLOOKUP(INDEX(campsByItinerary,numericItinerary($A14),BH$3-1),campInfo,12))","v":"North"},{"$f":"IF(INDEX(campsByItinerary,numericItinerary($A14),BI$3-1)=\"\",\"\",VLOOKUP(INDEX(campsByItinerary,numericItinerary($A14),BI$3-1),campInfo,12))","v":""},{"$f":"IF(INDEX(campsByItinerary,numericItinerary($A14),BJ$3-1)=\"\",\"\",VLOOKUP(INDEX(campsByItinerary,numericItinerary($A14),BJ$3-1),campInfo,12))","v":""},{"$f":"IF(INDEX(campsByItinerary,numericItinerary($A14),BK$3-1)=\"\",\"\",VLOOKUP(INDEX(campsByItinerary,numericItinerary($A14),BK$3-1),campInfo,12))","v":""},{"$f":"IF(INDEX(campsByItinerary,numericItinerary($A14),BL$3-1)=\"\",\"\",VLOOKUP(INDEX(campsByItinerary,numericItinerary($A14),BL$3-1),campInfo,12))","v":""},{"$f":"IF(INDEX(campsByItinerary,numericItinerary($A14),BM$3-1)=\"\",\"\",VLOOKUP(INDEX(campsByItinerary,numericItinerary($A14),BM$3-1),campInfo,12))","v":""},{"$f":"getfoodPU(\"First\",numericItinerary($A14))","v":2},{"$f":"getfoodPU(\"Max\",numericItinerary($A14))","v":2}]
["7-12",null,"S",39,"House Canyon","Metcalf Station","Beatty Lakes","Rich Cabins","Elkhorn",null,null,null,null,null,"Camping HQ",null,null,"Rich Cabins",null,null,null,null,null,null,"Six Mile Gate","Ponil","",{"$f":"IF(AC15=\"\",\"\",numericItinerary(A15) & \":\" & AC15)","v":""},null,null,null,null,null,"",null,null,7157,7220,8178.6580000000004,7728,8496,"","","","","",63,958.65800000000036,450.65800000000036,768,"","","","","",{"$f":"IF(INDEX(campsByItinerary,numericItinerary($A15),BD$3-1)=\"\",\"\",VLOOKUP(INDEX(campsByItinerary,numericItinerary($A15),BD$3-1),campInfo,8))","v":""},{"$f":"IF(INDEX(campsByItinerary,numericItinerary($A15),BE$3-1)=\"\",\"\",VLOOKUP(INDEX(campsByItinerary,numericItinerary($A15),BE$3-1),campInfo,8))","v":"Y"},{"$f":"IF(INDEX(campsByItinerary,numericItinerary($A15),BF$3-1)=\"\",\"\",VLOOKUP(INDEX(campsByItinerary,numericItinerary($A15),BF$3-1),campInfo,8))","v":""},{"$f":"IF(INDEX(campsByItinerary,numericItinerary($A15),BG$3-1)=\"\",\"\",VLOOKUP(INDEX(campsByItinerary,numericItinerary($A15),BG$3-1),campInfo,8))","v":"Y"},{"$f":"IF(INDEX(campsByItinerary,numericItinerary($A15),BH$3-1)=\"\",\"\",VLOOKUP(INDEX(campsByItinerary,numericItinerary($A15),BH$3-1),campInfo,8))","v":""},{"$f":"IF(INDEX(campsByItinerary,numericItinerary($A15),BI$3-1)=\"\",\"\",VLOOKUP(INDEX(campsByItinerary,numericItinerary($A15),BI$3-1),campInfo,8))","v":""},{"$f":"IF(INDEX(campsByItinerary,numericItinerary($A15),BJ$3-1)=\"\",\"\",VLOOKUP(INDEX(campsByItinerary,numericItinerary($A15),BJ$3-1),campInfo,8))","v":""},{"$f":"IF(INDEX(campsByItinerary,numericItinerary($A15),BK$3-1)=\"\",\"\",VLOOKUP(INDEX(campsByItinerary,numericItinerary($A15),BK$3-1),campInfo,8))","v":""},{"$f":"IF(INDEX(campsByItinerary,numericItinerary($A15),BL$3-1)=\"\",\"\",VLOOKUP(INDEX(campsByItinerary,numericItinerary($A15),BL$3-1),campInfo,8))","v":""},{"$f":"IF(INDEX(campsByItinerary,numericItinerary($A15),BM$3-1)=\"\",\"\",VLOOKUP(INDEX(campsByItinerary,numericItinerary($A15),BM$3-1),campInfo,8))","v":""},"Y","","Y","","Y","Y","Y","Y","Y","Y",{"$f":"IF(INDEX(campsByItinerary,numericItinerary($A15),BD$3-1)=\"\",\"\",VLOOKUP(INDEX(campsByItinerary,numericItinerary($A15),BD$3-1),campInfo,10))","v":""},{"$f":"IF(INDEX(campsByItinerary,numericItinerary($A15),BE$3-1)=\"\",\"\",VLOOKUP(INDEX(campsByItinerary,numericItinerary($A15),BE$3-1),campInfo,10))","v":""},{"$f":"IF(INDEX(campsByItinerary,numericItinerary($A15),BF$3-1)=\"\",\"\",VLOOKUP(INDEX(campsByItinerary,numericItinerary($A15),BF$3-1),campInfo,10))","v":"Y"},{"$f":"IF(INDEX(campsByItinerary,numericItinerary($A15),BG$3-1)=\"\",\"\",VLOOKUP(INDEX(campsByItinerary,numericItinerary($A15),BG$3-1),campInfo,10))","v":""},{"$f":"IF(INDEX(campsByItinerary,numericItinerary($A15),BH$3-1)=\"\",\"\",VLOOKUP(INDEX(campsByItinerary,numericItinerary($A15),BH$3-1),campInfo,10))","v":""},{"$f":"IF(INDEX(campsByItinerary,numericItinerary($A15),BI$3-1)=\"\",\"\",VLOOKUP(INDEX(campsByItinerary,numericItinerary($A15),BI$3-1),campInfo,10))","v":""},{"$f":"IF(INDEX(campsByItinerary,numericItinerary($A15),BJ$3-1)=\"\",\"\",VLOOKUP(INDEX(campsByItinerary,numericItinerary($A15),BJ$3-1),campInfo,10))","v":""},{"$f":"IF(INDEX(campsByItinerary,numericItinerary($A15),BK$3-1)=\"\",\"\",VLOOKUP(INDEX(campsByItinerary,numericItinerary($A15),BK$3-1),campInfo,10))","v":""},{"$f":"IF(INDEX(campsByItinerary,numericItinerary($A15),BL$3-1)=\"\",\"\",VLOOKUP(INDEX(campsByItinerary,numericItinerary($A15),BL$3-1),campInfo,10))","v":""},{"$f":"IF(INDEX(campsByItinerary,numericItinerary($A15),BM$3-1)=\"\",\"\",VLOOKUP(INDEX(campsByItinerary,numericItinerary($A15),BM$3-1),campInfo,10))","v":""},null,"","","","","","Y","Y","Y","Y",{"$f":"INDEX(campsByItinerary,numericItinerary($A15),BD$3-1)","v":"House Canyon"},{"$f":"IF(INDEX(campsByItinerary,numericItinerary($A15),BE$3-1)=\"\",\"\",VLOOKUP(INDEX(campsByItinerary,numericItinerary($A15),BE$3-1),campInfo,2))","v":"North"},{"$f":"IF(INDEX(campsByItinerary,numericItinerary($A15),BF$3-1)=\"\",\"\",VLOOKUP(INDEX(campsByItinerary,numericItinerary($A15),BF$3-1),campInfo,2))","v":"Valle Vidal"},{"$f":"IF(INDEX(campsByItinerary,numericItinerary($A15),BG$3-1)=\"\",\"\",VLOOKUP(INDEX(campsByItinerary,numericItinerary($A15),BG$3-1),campInfo,2))","v":"Valle Vidal"},{"$f":"IF(INDEX(campsByItinerary,numericItinerary($A15),BH$3-1)=\"\",\"\",VLOOKUP(INDEX(campsByItinerary,numericItinerary($A15),BH$3-1),campInfo,2))","v":"North"},{"$f":"IF(INDEX(campsByItinerary,numericItinerary($A15),BI$3-1)=\"\",\"\",VLOOKUP(INDEX(campsByItinerary,numericItinerary($A15),BI$3-1),campInfo,2))","v":""},{"$f":"IF(INDEX(campsByItinerary,numericItinerary($A15),BJ$3-1)=\"\",\"\",VLOOKUP(INDEX(campsByItinerary,numericItinerary($A15),BJ$3-1),campInfo,2))","v":""},{"$f":"IF(INDEX(campsByItinerary,numericItinerary($A15),BK$3-1)=\"\",\"\",VLOOKUP(INDEX(campsByItinerary,numericItinerary($A15),BK$3-1),campInfo,2))","v":""},{"$f":"IF(INDEX(campsByItinerary,numericItinerary($A15),BL$3-1)=\"\",\"\",VLOOKUP(INDEX(campsByItinerary,numericItinerary($A15),BL$3-1),campInfo,2))","v":""},{"$f":"IF(INDEX(campsByItinerary,numericItinerary($A15),BM$3-1)=\"\",\"\",VLOOKUP(INDEX(campsByItinerary,numericItinerary($A15),BM$3-1),campInfo,2))","v":""},{"$f":"IF(INDEX(campsByItinerary,numericItinerary($A15),BD$3-1)=\"\",\"\",VLOOKUP(INDEX(campsByItinerary,numericItinerary($A15),BD$3-1),campInfo,12))","v":"North"},{"$f":"IF(INDEX(campsByItinerary,numericItinerary($A15),BE$3-1)=\"\",\"\",VLOOKUP(INDEX(campsByItinerary,numericItinerary($A15),BE$3-1),campInfo,12))","v":"North"},{"$f":"IF(INDEX(campsByItinerary,numericItinerary($A15),BF$3-1)=\"\",\"\",VLOOKUP(INDEX(campsByItinerary,numericItinerary($A15),BF$3-1),campInfo,12))","v":"North"},{"$f":"IF(INDEX(campsByItinerary,numericItinerary($A15),BG$3-1)=\"\",\"\",VLOOKUP(INDEX(campsByItinerary,numericItinerary($A15),BG$3-1),campInfo,12))","v":"North"},{"$f":"IF(INDEX(campsByItinerary,numericItinerary($A15),BH$3-1)=\"\",\"\",VLOOKUP(INDEX(campsByItinerary,numericItinerary($A15),BH$3-1),campInfo,12))","v":"North"},{"$f":"IF(INDEX(campsByItinerary,numericItinerary($A15),BI$3-1)=\"\",\"\",VLOOKUP(INDEX(campsByItinerary,numericItinerary($A15),BI$3-1),campInfo,12))","v":""},{"$f":"IF(INDEX(campsByItinerary,numericItinerary($A15),BJ$3-1)=\"\",\"\",VLOOKUP(INDEX(campsByItinerary,numericItinerary($A15),BJ$3-1),campInfo,12))","v":""},{"$f":"IF(INDEX(campsByItinerary,numericItinerary($A15),BK$3-1)=\"\",\"\",VLOOKUP(INDEX(campsByItinerary,numericItinerary($A15),BK$3-1),campInfo,12))","v":""},{"$f":"IF(INDEX(campsByItinerary,numericItinerary($A15),BL$3-1)=\"\",\"\",VLOOKUP(INDEX(campsByItinerary,numericItinerary($A15),BL$3-1),campInfo,12))","v":""},{"$f":"IF(INDEX(campsByItinerary,numericItinerary($A15),BM$3-1)=\"\",\"\",VLOOKUP(INDEX(campsByItinerary,numericItinerary($A15),BM$3-1),campInfo,12))","v":""},{"$f":"getfoodPU(\"First\",numericItinerary($A15))","v":3},{"$f":"getfoodPU(\"Max\",numericItinerary($A15))","v":3}]
["7-13",null,"S",39,"Hunting Lodge","Lamberts Mine","Sawmill","Mount Phillips","Tolby Headwaters",null,null,null,null,null,"Camping HQ",null,"Sawmill",null,null,null,null,null,null,null,"Webster","Tolby Creek","",{"$f":"IF(AC16=\"\",\"\",numericItinerary(A16) & \":\" & AC16)","v":""},null,null,null,null,"y","",null,"y",7776,8957,9193,11650,9219,"","","","","",1181,236,2457,2431,"","","","","",{"$f":"IF(INDEX(campsByItinerary,numericItinerary($A16),BD$3-1)=\"\",\"\",VLOOKUP(INDEX(campsByItinerary,numericItinerary($A16),BD$3-1),campInfo,8))","v":"N"},{"$f":"IF(INDEX(campsByItinerary,numericItinerary($A16),BE$3-1)=\"\",\"\",VLOOKUP(INDEX(campsByItinerary,numericItinerary($A16),BE$3-1),campInfo,8))","v":""},{"$f":"IF(INDEX(campsByItinerary,numericItinerary($A16),BF$3-1)=\"\",\"\",VLOOKUP(INDEX(campsByItinerary,numericItinerary($A16),BF$3-1),campInfo,8))","v":"Y"},{"$f":"IF(INDEX(campsByItinerary,numericItinerary($A16),BG$3-1)=\"\",\"\",VLOOKUP(INDEX(campsByItinerary,numericItinerary($A16),BG$3-1),campInfo,8))","v":""},{"$f":"IF(INDEX(campsByItinerary,numericItinerary($A16),BH$3-1)=\"\",\"\",VLOOKUP(INDEX(campsByItinerary,numericItinerary($A16),BH$3-1),campInfo,8))","v":""},{"$f":"IF(INDEX(campsByItinerary,numericItinerary($A16),BI$3-1)=\"\",\"\",VLOOKUP(INDEX(campsByItinerary,numericItinerary($A16),BI$3-1),campInfo,8))","v":""},{"$f":"IF(INDEX(campsByItinerary,numericItinerary($A16),BJ$3-1)=\"\",\"\",VLOOKUP(INDEX(campsByItinerary,numericItinerary($A16),BJ$3-1),campInfo,8))","v":""},{"$f":"IF(INDEX(campsByItinerary,numericItinerary($A16),BK$3-1)=\"\",\"\",VLOOKUP(INDEX(campsByItinerary,numericItinerary($A16),BK$3-1),campInfo,8))","v":""},{"$f":"IF(INDEX(campsByItinerary,numericItinerary($A16),BL$3-1)=\"\",\"\",VLOOKUP(INDEX(campsByItinerary,numericItinerary($A16),BL$3-1),campInfo,8))","v":""},{"$f":"IF(INDEX(campsByItinerary,numericItinerary($A16),BM$3-1)=\"\",\"\",VLOOKUP(INDEX(campsByItinerary,numericItinerary($A16),BM$3-1),campInfo,8))","v":""},"Y","Y","","Y","Y","Y","Y","Y","Y","Y",{"$f":"IF(INDEX(campsByItinerary,numericItinerary($A16),BD$3-1)=\"\",\"\",VLOOKUP(INDEX(campsByItinerary,numericItinerary($A16),BD$3-1),campInfo,10))","v":""},{"$f":"IF(INDEX(campsByItinerary,numericItinerary($A16),BE$3-1)=\"\",\"\",VLOOKUP(INDEX(campsByItinerary,numericItinerary($A16),BE$3-1),campInfo,10))","v":""},{"$f":"IF(INDEX(campsByItinerary,numericItinerary($A16),BF$3-1)=\"\",\"\",VLOOKUP(INDEX(campsByItinerary,numericItinerary($A16),BF$3-1),campInfo,10))","v":""},{"$f":"IF(INDEX(campsByItinerary,numericItinerary($A16),BG$3-1)=\"\",\"\",VLOOKUP(INDEX(campsByItinerary,numericItinerary($A16),BG$3-1),campInfo,10))","v":"Y"},{"$f":"IF(INDEX(campsByItinerary,numericItinerary($A16),BH$3-1)=\"\",\"\",VLOOKUP(INDEX(campsByItinerary,numericItinerary($A16),BH$3-1),campInfo,10))","v":""},{"$f":"IF(INDEX(campsByItinerary,numericItinerary($A16),BI$3-1)=\"\",\"\",VLOOKUP(INDEX(campsByItinerary,numericItinerary($A16),BI$3-1),campInfo,10))","v":""},{"$f":"IF(INDEX(campsByItinerary,numericItinerary($A16),BJ$3-1)=\"\",\"\",VLOOKUP(INDEX(campsByItinerary,numericItinerary($A16),BJ$3-1),campInfo,10))","v":""},{"$f":"IF(INDEX(campsByItinerary,numericItinerary($A16),BK$3-1)=\"\",\"\",VLOOKUP(INDEX(campsByItinerary,numericItinerary($A16),BK$3-1),campInfo,10))","v":""},{"$f":"IF(INDEX(campsByItinerary,numericItinerary($A16),BL$3-1)=\"\",\"\",VLOOKUP(INDEX(campsByItinerary,numericItinerary($A16),BL$3-1),campInfo,10))","v":""},{"$f":"IF(INDEX(campsByItinerary,numericItinerary($A16),BM$3-1)=\"\",\"\",VLOOKUP(INDEX(campsByItinerary,numericItinerary($A16),BM$3-1),campInfo,10))","v":""},null,"","","","","","Y","Y","Y","Y",{"$f":"INDEX(campsByItinerary,numericItinerary($A16),BD$3-1)","v":"Hunting Lodge"},{"$f":"IF(INDEX(campsByItinerary,numericItinerary($A16),BE$3-1)=\"\",\"\",VLOOKUP(INDEX(campsByItinerary,numericItinerary($A16),BE$3-1),campInfo,2))","v":"Central"},{"$f":"IF(INDEX(campsByItinerary,numericItinerary($A16),BF$3-1)=\"\",\"\",VLOOKUP(INDEX(campsByItinerary,numericItinerary($A16),BF$3-1),campInfo,2))","v":"Central"},{"$f":"IF(INDEX(campsByItinerary,numericItinerary($A16),BG$3-1)=\"\",\"\",VLOOKUP(INDEX(campsByItinerary,numericItinerary($A16),BG$3-1),campInfo,2))","v":"Central"},{"$f":"IF(INDEX(campsByItinerary,numericItinerary($A16),BH$3-1)=\"\",\"\",VLOOKUP(INDEX(campsByItinerary,numericItinerary($A16),BH$3-1),campInfo,2))","v":"South"},{"$f":"IF(INDEX(campsByItinerary,numericItinerary($A16),BI$3-1)=\"\",\"\",VLOOKUP(INDEX(campsByItinerary,numericItinerary($A16),BI$3-1),campInfo,2))","v":""},{"$f":"IF(INDEX(campsByItinerary,numericItinerary($A16),BJ$3-1)=\"\",\"\",VLOOKUP(INDEX(campsByItinerary,numericItinerary($A16),BJ$3-1),campInfo,2))","v":""},{"$f":"IF(INDEX(campsByItinerary,numericItinerary($A16),BK$3-1)=\"\",\"\",VLOOKUP(INDEX(campsByItinerary,numericItinerary($A16),BK$3-1),campInfo,2))","v":""},{"$f":"IF(INDEX(campsByItinerary,numericItinerary($A16),BL$3-1)=\"\",\"\",VLOOKUP(INDEX(campsByItinerary,numericItinerary($A16),BL$3-1),campInfo,2))","v":""},{"$f":"IF(INDEX(campsByItinerary,numericItinerary($A16),BM$3-1)=\"\",\"\",VLOOKUP(INDEX(campsByItinerary,numericItinerary($A16),BM$3-1),campInfo,2))","v":""},{"$f":"IF(INDEX(campsByItinerary,numericItinerary($A16),BD$3-1)=\"\",\"\",VLOOKUP(INDEX(campsByItinerary,numericItinerary($A16),BD$3-1),campInfo,12))","v":"South"},{"$f":"IF(INDEX(campsByItinerary,numericItinerary($A16),BE$3-1)=\"\",\"\",VLOOKUP(INDEX(campsByItinerary,numericItinerary($A16),BE$3-1),campInfo,12))","v":"South"},{"$f":"IF(INDEX(campsByItinerary,numericItinerary($A16),BF$3-1)=\"\",\"\",VLOOKUP(INDEX(campsByItinerary,numericItinerary($A16),BF$3-1),campInfo,12))","v":"South"},{"$f":"IF(INDEX(campsByItinerary,numericItinerary($A16),BG$3-1)=\"\",\"\",VLOOKUP(INDEX(campsByItinerary,numericItinerary($A16),BG$3-1),campInfo,12))","v":"South"},{"$f":"IF(INDEX(campsByItinerary,numericItinerary($A16),BH$3-1)=\"\",\"\",VLOOKUP(INDEX(campsByItinerary,numericItinerary($A16),BH$3-1),campInfo,12))","v":"South"},{"$f":"IF(INDEX(campsByItinerary,numericItinerary($A16),BI$3-1)=\"\",\"\",VLOOKUP(INDEX(campsByItinerary,numericItinerary($A16),BI$3-1),campInfo,12))","v":""},{"$f":"IF(INDEX(campsByItinerary,numericItinerary($A16),BJ$3-1)=\"\",\"\",VLOOKUP(INDEX(campsByItinerary,numericItinerary($A16),BJ$3-1),campInfo,12))","v":""},{"$f":"IF(INDEX(campsByItinerary,numericItinerary($A16),BK$3-1)=\"\",\"\",VLOOKUP(INDEX(campsByItinerary,numericItinerary($A16),BK$3-1),campInfo,12))","v":""},{"$f":"IF(INDEX(campsByItinerary,numericItinerary($A16),BL$3-1)=\"\",\"\",VLOOKUP(INDEX(campsByItinerary,numericItinerary($A16),BL$3-1),campInfo,12))","v":""},{"$f":"IF(INDEX(campsByItinerary,numericItinerary($A16),BM$3-1)=\"\",\"\",VLOOKUP(INDEX(campsByItinerary,numericItinerary($A16),BM$3-1),campInfo,12))","v":""},{"$f":"getfoodPU(\"First\",numericItinerary($A16))","v":2},{"$f":"getfoodPU(\"Max\",numericItinerary($A16))","v":2}]
["7-14",null,"SS",40,"Old Abreu","Fish Camp","Beaubien","Comanche Peak","Hunting Lodge",null,null,null,null,null,"Camping HQ",null,"Phillips Junction",null,null,null,null,null,null,null,"Zastrow","Webster","",{"$f":"IF(AC17=\"\",\"\",numericItinerary(A17) & \":\" & AC17)","v":""},null,null,null,null,"y","",null,"y",7375,8564,9330,11070,7776,"","","","","",1189,766,1740,3294,"","","","","",{"$f":"IF(INDEX(campsByItinerary,numericItinerary($A17),BD$3-1)=\"\",\"\",VLOOKUP(INDEX(campsByItinerary,numericItinerary($A17),BD$3-1),campInfo,8))","v":""},{"$f":"IF(INDEX(campsByItinerary,numericItinerary($A17),BE$3-1)=\"\",\"\",VLOOKUP(INDEX(campsByItinerary,numericItinerary($A17),BE$3-1),campInfo,8))","v":"Y"},{"$f":"IF(INDEX(campsByItinerary,numericItinerary($A17),BF$3-1)=\"\",\"\",VLOOKUP(INDEX(campsByItinerary,numericItinerary($A17),BF$3-1),campInfo,8))","v":"Y"},{"$f":"IF(INDEX(campsByItinerary,numericItinerary($A17),BG$3-1)=\"\",\"\",VLOOKUP(INDEX(campsByItinerary,numericItinerary($A17),BG$3-1),campInfo,8))","v":""},{"$f":"IF(INDEX(campsByItinerary,numericItinerary($A17),BH$3-1)=\"\",\"\",VLOOKUP(INDEX(campsByItinerary,numericItinerary($A17),BH$3-1),campInfo,8))","v":"N"},{"$f":"IF(INDEX(campsByItinerary,numericItinerary($A17),BI$3-1)=\"\",\"\",VLOOKUP(INDEX(campsByItinerary,numericItinerary($A17),BI$3-1),campInfo,8))","v":""},{"$f":"IF(INDEX(campsByItinerary,numericItinerary($A17),BJ$3-1)=\"\",\"\",VLOOKUP(INDEX(campsByItinerary,numericItinerary($A17),BJ$3-1),campInfo,8))","v":""},{"$f":"IF(INDEX(campsByItinerary,numericItinerary($A17),BK$3-1)=\"\",\"\",VLOOKUP(INDEX(campsByItinerary,numericItinerary($A17),BK$3-1),campInfo,8))","v":""},{"$f":"IF(INDEX(campsByItinerary,numericItinerary($A17),BL$3-1)=\"\",\"\",VLOOKUP(INDEX(campsByItinerary,numericItinerary($A17),BL$3-1),campInfo,8))","v":""},{"$f":"IF(INDEX(campsByItinerary,numericItinerary($A17),BM$3-1)=\"\",\"\",VLOOKUP(INDEX(campsByItinerary,numericItinerary($A17),BM$3-1),campInfo,8))","v":""},"Y","","","Y","Y","Y","Y","Y","Y","Y",{"$f":"IF(INDEX(campsByItinerary,numericItinerary($A17),BD$3-1)=\"\",\"\",VLOOKUP(INDEX(campsByItinerary,numericItinerary($A17),BD$3-1),campInfo,10))","v":""},{"$f":"IF(INDEX(campsByItinerary,numericItinerary($A17),BE$3-1)=\"\",\"\",VLOOKUP(INDEX(campsByItinerary,numericItinerary($A17),BE$3-1),campInfo,10))","v":""},{"$f":"IF(INDEX(campsByItinerary,numericItinerary($A17),BF$3-1)=\"\",\"\",VLOOKUP(INDEX(campsByItinerary,numericItinerary($A17),BF$3-1),campInfo,10))","v":""},{"$f":"IF(INDEX(campsByItinerary,numericItinerary($A17),BG$3-1)=\"\",\"\",VLOOKUP(INDEX(campsByItinerary,numericItinerary($A17),BG$3-1),campInfo,10))","v":"Y"},{"$f":"IF(INDEX(campsByItinerary,numericItinerary($A17),BH$3-1)=\"\",\"\",VLOOKUP(INDEX(campsByItinerary,numericItinerary($A17),BH$3-1),campInfo,10))","v":""},{"$f":"IF(INDEX(campsByItinerary,numericItinerary($A17),BI$3-1)=\"\",\"\",VLOOKUP(INDEX(campsByItinerary,numericItinerary($A17),BI$3-1),campInfo,10))","v":""},{"$f":"IF(INDEX(campsByItinerary,numericItinerary($A17),BJ$3-1)=\"\",\"\",VLOOKUP(INDEX(campsByItinerary,numericItinerary($A17),BJ$3-1),campInfo,10))","v":""},{"$f":"IF(INDEX(campsByItinerary,numericItinerary($A17),BK$3-1)=\"\",\"\",VLOOKUP(INDEX(campsByItinerary,numericItinerary($A17),BK$3-1),campInfo,10))","v":""},{"$f":"IF(INDEX(campsByItinerary,numericItinerary($A17),BL$3-1)=\"\",\"\",VLOOKUP(INDEX(campsByItinerary,numericItinerary($A17),BL$3-1),campInfo,10))","v":""},{"$f":"IF(INDEX(campsByItinerary,numericItinerary($A17),BM$3-1)=\"\",\"\",VLOOKUP(INDEX(campsByItinerary,numericItinerary($A17),BM$3-1),campInfo,10))","v":""},null,"","","","","","Y","Y","Y","Y",{"$f":"INDEX(campsByItinerary,numericItinerary($A17),BD$3-1)","v":"Old Abreu"},{"$f":"IF(INDEX(campsByItinerary,numericItinerary($A17),BE$3-1)=\"\",\"\",VLOOKUP(INDEX(campsByItinerary,numericItinerary($A17),BE$3-1),campInfo,2))","v":"South"},{"$f":"IF(INDEX(campsByItinerary,numericItinerary($A17),BF$3-1)=\"\",\"\",VLOOKUP(INDEX(campsByItinerary,numericItinerary($A17),BF$3-1),campInfo,2))","v":"South"},{"$f":"IF(INDEX(campsByItinerary,numericItinerary($A17),BG$3-1)=\"\",\"\",VLOOKUP(INDEX(campsByItinerary,numericItinerary($A17),BG$3-1),campInfo,2))","v":"Central"},{"$f":"IF(INDEX(campsByItinerary,numericItinerary($A17),BH$3-1)=\"\",\"\",VLOOKUP(INDEX(campsByItinerary,numericItinerary($A17),BH$3-1),campInfo,2))","v":"Central"},{"$f":"IF(INDEX(campsByItinerary,numericItinerary($A17),BI$3-1)=\"\",\"\",VLOOKUP(INDEX(campsByItinerary,numericItinerary($A17),BI$3-1),campInfo,2))","v":""},{"$f":"IF(INDEX(campsByItinerary,numericItinerary($A17),BJ$3-1)=\"\",\"\",VLOOKUP(INDEX(campsByItinerary,numericItinerary($A17),BJ$3-1),campInfo,2))","v":""},{"$f":"IF(INDEX(campsByItinerary,numericItinerary($A17),BK$3-1)=\"\",\"\",VLOOKUP(INDEX(campsByItinerary,numericItinerary($A17),BK$3-1),campInfo,2))","v":""},{"$f":"IF(INDEX(campsByItinerary,numericItinerary($A17),BL$3-1)=\"\",\"\",VLOOKUP(INDEX(campsByItinerary,numericItinerary($A17),BL$3-1),campInfo,2))","v":""},{"$f":"IF(INDEX(campsByItinerary,numericItinerary($A17),BM$3-1)=\"\",\"\",VLOOKUP(INDEX(campsByItinerary,numericItinerary($A17),BM$3-1),campInfo,2))","v":""},{"$f":"IF(INDEX(campsByItinerary,numericItinerary($A17),BD$3-1)=\"\",\"\",VLOOKUP(INDEX(campsByItinerary,numericItinerary($A17),BD$3-1),campInfo,12))","v":"South"},{"$f":"IF(INDEX(campsByItinerary,numericItinerary($A17),BE$3-1)=\"\",\"\",VLOOKUP(INDEX(campsByItinerary,numericItinerary($A17),BE$3-1),campInfo,12))","v":"South"},{"$f":"IF(INDEX(campsByItinerary,numericItinerary($A17),BF$3-1)=\"\",\"\",VLOOKUP(INDEX(campsByItinerary,numericItinerary($A17),BF$3-1),campInfo,12))","v":"South"},{"$f":"IF(INDEX(campsByItinerary,numericItinerary($A17),BG$3-1)=\"\",\"\",VLOOKUP(INDEX(campsByItinerary,numericItinerary($A17),BG$3-1),campInfo,12))","v":"South"},{"$f":"IF(INDEX(campsByItinerary,numericItinerary($A17),BH$3-1)=\"\",\"\",VLOOKUP(INDEX(campsByItinerary,numericItinerary($A17),BH$3-1),campInfo,12))","v":"South"},{"$f":"IF(INDEX(campsByItinerary,numericItinerary($A17),BI$3-1)=\"\",\"\",VLOOKUP(INDEX(campsByItinerary,numericItinerary($A17),BI$3-1),campInfo,12))","v":""},{"$f":"IF(INDEX(campsByItinerary,numericItinerary($A17),BJ$3-1)=\"\",\"\",VLOOKUP(INDEX(campsByItinerary,numericItinerary($A17),BJ$3-1),campInfo,12))","v":""},{"$f":"IF(INDEX(campsByItinerary,numericItinerary($A17),BK$3-1)=\"\",\"\",VLOOKUP(INDEX(campsByItinerary,numericItinerary($A17),BK$3-1),campInfo,12))","v":""},{"$f":"IF(INDEX(campsByItinerary,numericItinerary($A17),BL$3-1)=\"\",\"\",VLOOKUP(INDEX(campsByItinerary,numericItinerary($A17),BL$3-1),campInfo,12))","v":""},{"$f":"IF(INDEX(campsByItinerary,numericItinerary($A17),BM$3-1)=\"\",\"\",VLOOKUP(INDEX(campsByItinerary,numericItinerary($A17),BM$3-1),campInfo,12))","v":""},{"$f":"getfoodPU(\"First\",numericItinerary($A17))","v":2},{"$f":"getfoodPU(\"Max\",numericItinerary($A17))","v":2}]
["7-15",null,"SS",41,"Vaca","Deer Lake","Sawmill","Cimarroncito","Clarks Fork",null,null,null,null,null,"Camping HQ",null,"Cimarroncito",null,null,null,null,null,null,null,"Turkey Creek","Hike In","y",{"$f":"IF(AC18=\"\",\"\",numericItinerary(A18) & \":\" & AC18)","v":""},null,null,null,null,null,"y",null,"y",7415,8280,9193,8137,7515,"","","","","",865,913,1056,622,"","","","","",{"$f":"IF(INDEX(campsByItinerary,numericItinerary($A18),BD$3-1)=\"\",\"\",VLOOKUP(INDEX(campsByItinerary,numericItinerary($A18),BD$3-1),campInfo,8))","v":""},{"$f":"IF(INDEX(campsByItinerary,numericItinerary($A18),BE$3-1)=\"\",\"\",VLOOKUP(INDEX(campsByItinerary,numericItinerary($A18),BE$3-1),campInfo,8))","v":""},{"$f":"IF(INDEX(campsByItinerary,numericItinerary($A18),BF$3-1)=\"\",\"\",VLOOKUP(INDEX(campsByItinerary,numericItinerary($A18),BF$3-1),campInfo,8))","v":"Y"},{"$f":"IF(INDEX(campsByItinerary,numericItinerary($A18),BG$3-1)=\"\",\"\",VLOOKUP(INDEX(campsByItinerary,numericItinerary($A18),BG$3-1),campInfo,8))","v":"Y"},{"$f":"IF(INDEX(campsByItinerary,numericItinerary($A18),BH$3-1)=\"\",\"\",VLOOKUP(INDEX(campsByItinerary,numericItinerary($A18),BH$3-1),campInfo,8))","v":"Y"},{"$f":"IF(INDEX(campsByItinerary,numericItinerary($A18),BI$3-1)=\"\",\"\",VLOOKUP(INDEX(campsByItinerary,numericItinerary($A18),BI$3-1),campInfo,8))","v":""},{"$f":"IF(INDEX(campsByItinerary,numericItinerary($A18),BJ$3-1)=\"\",\"\",VLOOKUP(INDEX(campsByItinerary,numericItinerary($A18),BJ$3-1),campInfo,8))","v":""},{"$f":"IF(INDEX(campsByItinerary,numericItinerary($A18),BK$3-1)=\"\",\"\",VLOOKUP(INDEX(campsByItinerary,numericItinerary($A18),BK$3-1),campInfo,8))","v":""},{"$f":"IF(INDEX(campsByItinerary,numericItinerary($A18),BL$3-1)=\"\",\"\",VLOOKUP(INDEX(campsByItinerary,numericItinerary($A18),BL$3-1),campInfo,8))","v":""},{"$f":"IF(INDEX(campsByItinerary,numericItinerary($A18),BM$3-1)=\"\",\"\",VLOOKUP(INDEX(campsByItinerary,numericItinerary($A18),BM$3-1),campInfo,8))","v":""},"Y","Y","","","","Y","Y","Y","Y","Y",{"$f":"IF(INDEX(campsByItinerary,numericItinerary($A18),BD$3-1)=\"\",\"\",VLOOKUP(INDEX(campsByItinerary,numericItinerary($A18),BD$3-1),campInfo,10))","v":""},{"$f":"IF(INDEX(campsByItinerary,numericItinerary($A18),BE$3-1)=\"\",\"\",VLOOKUP(INDEX(campsByItinerary,numericItinerary($A18),BE$3-1),campInfo,10))","v":""},{"$f":"IF(INDEX(campsByItinerary,numericItinerary($A18),BF$3-1)=\"\",\"\",VLOOKUP(INDEX(campsByItinerary,numericItinerary($A18),BF$3-1),campInfo,10))","v":""},{"$f":"IF(INDEX(campsByItinerary,numericItinerary($A18),BG$3-1)=\"\",\"\",VLOOKUP(INDEX(campsByItinerary,numericItinerary($A18),BG$3-1),campInfo,10))","v":""},{"$f":"IF(INDEX(campsByItinerary,numericItinerary($A18),BH$3-1)=\"\",\"\",VLOOKUP(INDEX(campsByItinerary,numericItinerary($A18),BH$3-1),campInfo,10))","v":""},{"$f":"IF(INDEX(campsByItinerary,numericItinerary($A18),BI$3-1)=\"\",\"\",VLOOKUP(INDEX(campsByItinerary,numericItinerary($A18),BI$3-1),campInfo,10))","v":""},{"$f":"IF(INDEX(campsByItinerary,numericItinerary($A18),BJ$3-1)=\"\",\"\",VLOOKUP(INDEX(campsByItinerary,numericItinerary($A18),BJ$3-1),campInfo,10))","v":""},{"$f":"IF(INDEX(campsByItinerary,numericItinerary($A18),BK$3-1)=\"\",\"\",VLOOKUP(INDEX(campsByItinerary,numericItinerary($A18),BK$3-1),campInfo,10))","v":""},{"$f":"IF(INDEX(campsByItinerary,numericItinerary($A18),BL$3-1)=\"\",\"\",VLOOKUP(INDEX(campsByItinerary,numericItinerary($A18),BL$3-1),campInfo,10))","v":""},{"$f":"IF(INDEX(campsByItinerary,numericItinerary($A18),BM$3-1)=\"\",\"\",VLOOKUP(INDEX(campsByItinerary,numericItinerary($A18),BM$3-1),campInfo,10))","v":""},null,"","","","","","Y","Y","Y","Y",{"$f":"INDEX(campsByItinerary,numericItinerary($A18),BD$3-1)","v":"Vaca"},{"$f":"IF(INDEX(campsByItinerary,numericItinerary($A18),BE$3-1)=\"\",\"\",VLOOKUP(INDEX(campsByItinerary,numericItinerary($A18),BE$3-1),campInfo,2))","v":"Central"},{"$f":"IF(INDEX(campsByItinerary,numericItinerary($A18),BF$3-1)=\"\",\"\",VLOOKUP(INDEX(campsByItinerary,numericItinerary($A18),BF$3-1),campInfo,2))","v":"Central"},{"$f":"IF(INDEX(campsByItinerary,numericItinerary($A18),BG$3-1)=\"\",\"\",VLOOKUP(INDEX(campsByItinerary,numericItinerary($A18),BG$3-1),campInfo,2))","v":"Central"},{"$f":"IF(INDEX(campsByItinerary,numericItinerary($A18),BH$3-1)=\"\",\"\",VLOOKUP(INDEX(campsByItinerary,numericItinerary($A18),BH$3-1),campInfo,2))","v":"Central"},{"$f":"IF(INDEX(campsByItinerary,numericItinerary($A18),BI$3-1)=\"\",\"\",VLOOKUP(INDEX(campsByItinerary,numericItinerary($A18),BI$3-1),campInfo,2))","v":""},{"$f":"IF(INDEX(campsByItinerary,numericItinerary($A18),BJ$3-1)=\"\",\"\",VLOOKUP(INDEX(campsByItinerary,numericItinerary($A18),BJ$3-1),campInfo,2))","v":""},{"$f":"IF(INDEX(campsByItinerary,numericItinerary($A18),BK$3-1)=\"\",\"\",VLOOKUP(INDEX(campsByItinerary,numericItinerary($A18),BK$3-1),campInfo,2))","v":""},{"$f":"IF(INDEX(campsByItinerary,numericItinerary($A18),BL$3-1)=\"\",\"\",VLOOKUP(INDEX(campsByItinerary,numericItinerary($A18),BL$3-1),campInfo,2))","v":""},{"$f":"IF(INDEX(campsByItinerary,numericItinerary($A18),BM$3-1)=\"\",\"\",VLOOKUP(INDEX(campsByItinerary,numericItinerary($A18),BM$3-1),campInfo,2))","v":""},{"$f":"IF(INDEX(campsByItinerary,numericItinerary($A18),BD$3-1)=\"\",\"\",VLOOKUP(INDEX(campsByItinerary,numericItinerary($A18),BD$3-1),campInfo,12))","v":"South"},{"$f":"IF(INDEX(campsByItinerary,numericItinerary($A18),BE$3-1)=\"\",\"\",VLOOKUP(INDEX(campsByItinerary,numericItinerary($A18),BE$3-1),campInfo,12))","v":"South"},{"$f":"IF(INDEX(campsByItinerary,numericItinerary($A18),BF$3-1)=\"\",\"\",VLOOKUP(INDEX(campsByItinerary,numericItinerary($A18),BF$3-1),campInfo,12))","v":"South"},{"$f":"IF(INDEX(campsByItinerary,numericItinerary($A18),BG$3-1)=\"\",\"\",VLOOKUP(INDEX(campsByItinerary,numericItinerary($A18),BG$3-1),campInfo,12))","v":"South"},{"$f":"IF(INDEX(campsByItinerary,numericItinerary($A18),BH$3-1)=\"\",\"\",VLOOKUP(INDEX(campsByItinerary,numericItinerary($A18),BH$3-1),campInfo,12))","v":"South"},{"$f":"IF(INDEX(campsByItinerary,numericItinerary($A18),BI$3-1)=\"\",\"\",VLOOKUP(INDEX(campsByItinerary,numericItinerary($A18),BI$3-1),campInfo,12))","v":""},{"$f":"IF(INDEX(campsByItinerary,numericItinerary($A18),BJ$3-1)=\"\",\"\",VLOOKUP(INDEX(campsByItinerary,numericItinerary($A18),BJ$3-1),campInfo,12))","v":""},{"$f":"IF(INDEX(campsByItinerary,numericItinerary($A18),BK$3-1)=\"\",\"\",VLOOKUP(INDEX(campsByItinerary,numericItinerary($A18),BK$3-1),campInfo,12))","v":""},{"$f":"IF(INDEX(campsByItinerary,numericItinerary($A18),BL$3-1)=\"\",\"\",VLOOKUP(INDEX(campsByItinerary,numericItinerary($A18),BL$3-1),campInfo,12))","v":""},{"$f":"IF(INDEX(campsByItinerary,numericItinerary($A18),BM$3-1)=\"\",\"\",VLOOKUP(INDEX(campsByItinerary,numericItinerary($A18),BM$3-1),campInfo,12))","v":""},{"$f":"getfoodPU(\"First\",numericItinerary($A18))","v":2},{"$f":"getfoodPU(\"Max\",numericItinerary($A18))","v":2}]
["7-16",null,"SS",42,"Herradura","Crater Lake","Lookout Meadow","Beaubien","Miners Park",null,null,null,null,null,"Camping HQ",null,null,"Phillips Junction",null,null,null,null,null,null,null,null,"",{"$f":"IF(AC19=\"\",\"\",numericItinerary(A19) & \":\" & AC19)","v":""},null,null,null,null,null,"y","y","y",7465,8398,9419,9330,7977,"","","","","",933,1021,89,1353,"","","","","",{"$f":"IF(INDEX(campsByItinerary,numericItinerary($A19),BD$3-1)=\"\",\"\",VLOOKUP(INDEX(campsByItinerary,numericItinerary($A19),BD$3-1),campInfo,8))","v":""},{"$f":"IF(INDEX(campsByItinerary,numericItinerary($A19),BE$3-1)=\"\",\"\",VLOOKUP(INDEX(campsByItinerary,numericItinerary($A19),BE$3-1),campInfo,8))","v":"Y"},{"$f":"IF(INDEX(campsByItinerary,numericItinerary($A19),BF$3-1)=\"\",\"\",VLOOKUP(INDEX(campsByItinerary,numericItinerary($A19),BF$3-1),campInfo,8))","v":""},{"$f":"IF(INDEX(campsByItinerary,numericItinerary($A19),BG$3-1)=\"\",\"\",VLOOKUP(INDEX(campsByItinerary,numericItinerary($A19),BG$3-1),campInfo,8))","v":"Y"},{"$f":"IF(INDEX(campsByItinerary,numericItinerary($A19),BH$3-1)=\"\",\"\",VLOOKUP(INDEX(campsByItinerary,numericItinerary($A19),BH$3-1),campInfo,8))","v":"Y"},{"$f":"IF(INDEX(campsByItinerary,numericItinerary($A19),BI$3-1)=\"\",\"\",VLOOKUP(INDEX(campsByItinerary,numericItinerary($A19),BI$3-1),campInfo,8))","v":""},{"$f":"IF(INDEX(campsByItinerary,numericItinerary($A19),BJ$3-1)=\"\",\"\",VLOOKUP(INDEX(campsByItinerary,numericItinerary($A19),BJ$3-1),campInfo,8))","v":""},{"$f":"IF(INDEX(campsByItinerary,numericItinerary($A19),BK$3-1)=\"\",\"\",VLOOKUP(INDEX(campsByItinerary,numericItinerary($A19),BK$3-1),campInfo,8))","v":""},{"$f":"IF(INDEX(campsByItinerary,numericItinerary($A19),BL$3-1)=\"\",\"\",VLOOKUP(INDEX(campsByItinerary,numericItinerary($A19),BL$3-1),campInfo,8))","v":""},{"$f":"IF(INDEX(campsByItinerary,numericItinerary($A19),BM$3-1)=\"\",\"\",VLOOKUP(INDEX(campsByItinerary,numericItinerary($A19),BM$3-1),campInfo,8))","v":""},"Y","","Y","","","Y","Y","Y","Y","Y",{"$f":"IF(INDEX(campsByItinerary,numericItinerary($A19),BD$3-1)=\"\",\"\",VLOOKUP(INDEX(campsByItinerary,numericItinerary($A19),BD$3-1),campInfo,10))","v":"Y"},{"$f":"IF(INDEX(campsByItinerary,numericItinerary($A19),BE$3-1)=\"\",\"\",VLOOKUP(INDEX(campsByItinerary,numericItinerary($A19),BE$3-1),campInfo,10))","v":""},{"$f":"IF(INDEX(campsByItinerary,numericItinerary($A19),BF$3-1)=\"\",\"\",VLOOKUP(INDEX(campsByItinerary,numericItinerary($A19),BF$3-1),campInfo,10))","v":""},{"$f":"IF(INDEX(campsByItinerary,numericItinerary($A19),BG$3-1)=\"\",\"\",VLOOKUP(INDEX(campsByItinerary,numericItinerary($A19),BG$3-1),campInfo,10))","v":""},{"$f":"IF(INDEX(campsByItinerary,numericItinerary($A19),BH$3-1)=\"\",\"\",VLOOKUP(INDEX(campsByItinerary,numericItinerary($A19),BH$3-1),campInfo,10))","v":""},{"$f":"IF(INDEX(campsByItinerary,numericItinerary($A19),BI$3-1)=\"\",\"\",VLOOKUP(INDEX(campsByItinerary,numericItinerary($A19),BI$3-1),campInfo,10))","v":""},{"$f":"IF(INDEX(campsByItinerary,numericItinerary($A19),BJ$3-1)=\"\",\"\",VLOOKUP(INDEX(campsByItinerary,numericItinerary($A19),BJ$3-1),campInfo,10))","v":""},{"$f":"IF(INDEX(campsByItinerary,numericItinerary($A19),BK$3-1)=\"\",\"\",VLOOKUP(INDEX(campsByItinerary,numericItinerary($A19),BK$3-1),campInfo,10))","v":""},{"$f":"IF(INDEX(campsByItinerary,numericItinerary($A19),BL$3-1)=\"\",\"\",VLOOKUP(INDEX(campsByItinerary,numericItinerary($A19),BL$3-1),campInfo,10))","v":""},{"$f":"IF(INDEX(campsByItinerary,numericItinerary($A19),BM$3-1)=\"\",\"\",VLOOKUP(INDEX(campsByItinerary,numericItinerary($A19),BM$3-1),campInfo,10))","v":""},null,"","","","","","Y","Y","Y","Y",{"$f":"INDEX(campsByItinerary,numericItinerary($A19),BD$3-1)","v":"Herradura"},{"$f":"IF(INDEX(campsByItinerary,numericItinerary($A19),BE$3-1)=\"\",\"\",VLOOKUP(INDEX(campsByItinerary,numericItinerary($A19),BE$3-1),campInfo,2))","v":"South"},{"$f":"IF(INDEX(campsByItinerary,numericItinerary($A19),BF$3-1)=\"\",\"\",VLOOKUP(INDEX(campsByItinerary,numericItinerary($A19),BF$3-1),campInfo,2))","v":"South"},{"$f":"IF(INDEX(campsByItinerary,numericItinerary($A19),BG$3-1)=\"\",\"\",VLOOKUP(INDEX(campsByItinerary,numericItinerary($A19),BG$3-1),campInfo,2))","v":"South"},{"$f":"IF(INDEX(campsByItinerary,numericItinerary($A19),BH$3-1)=\"\",\"\",VLOOKUP(INDEX(campsByItinerary,numericItinerary($A19),BH$3-1),campInfo,2))","v":"South"},{"$f":"IF(INDEX(campsByItinerary,numericItinerary($A19),BI$3-1)=\"\",\"\",VLOOKUP(INDEX(campsByItinerary,numericItinerary($A19),BI$3-1),campInfo,2))","v":""},{"$f":"IF(INDEX(campsByItinerary,numericItinerary($A19),BJ$3-1)=\"\",\"\",VLOOKUP(INDEX(campsByItinerary,numericItinerary($A19),BJ$3-1),campInfo,2))","v":""},{"$f":"IF(INDEX(campsByItinerary,numericItinerary($A19),BK$3-1)=\"\",\"\",VLOOKUP(INDEX(campsByItinerary,numericItinerary($A19),BK$3-1),campInfo,2))","v":""},{"$f":"IF(INDEX(campsByItinerary,numericItinerary($A19),BL$3-1)=\"\",\"\",VLOOKUP(INDEX(campsByItinerary,numericItinerary($A19),BL$3-1),campInfo,2))","v":""},{"$f":"IF(INDEX(campsByItinerary,numericItinerary($A19),BM$3-1)=\"\",\"\",VLOOKUP(INDEX(campsByItinerary,numericItinerary($A19),BM$3-1),campInfo,2))","v":""},{"$f":"IF(INDEX(campsByItinerary,numericItinerary($A19),BD$3-1)=\"\",\"\",VLOOKUP(INDEX(campsByItinerary,numericItinerary($A19),BD$3-1),campInfo,12))","v":"South"},{"$f":"IF(INDEX(campsByItinerary,numericItinerary($A19),BE$3-1)=\"\",\"\",VLOOKUP(INDEX(campsByItinerary,numericItinerary($A19),BE$3-1),campInfo,12))","v":"South"},{"$f":"IF(INDEX(campsByItinerary,numericItinerary($A19),BF$3-1)=\"\",\"\",VLOOKUP(INDEX(campsByItinerary,numericItinerary($A19),BF$3-1),campInfo,12))","v":"South"},{"$f":"IF(INDEX(campsByItinerary,numericItinerary($A19),BG$3-1)=\"\",\"\",VLOOKUP(INDEX(campsByItinerary,numericItinerary($A19),BG$3-1),campInfo,12))","v":"South"},{"$f":"IF(INDEX(campsByItinerary,numericItinerary($A19),BH$3-1)=\"\",\"\",VLOOKUP(INDEX(campsByItinerary,numericItinerary($A19),BH$3-1),campInfo,12))","v":"South"},{"$f":"IF(INDEX(campsByItinerary,numericItinerary($A19),BI$3-1)=\"\",\"\",VLOOKUP(INDEX(campsByItinerary,numericItinerary($A19),BI$3-1),campInfo,12))","v":""},{"$f":"IF(INDEX(campsByItinerary,numericItinerary($A19),BJ$3-1)=\"\",\"\",VLOOKUP(INDEX(campsByItinerary,numericItinerary($A19),BJ$3-1),campInfo,12))","v":""},{"$f":"IF(INDEX(campsByItinerary,numericItinerary($A19),BK$3-1)=\"\",\"\",VLOOKUP(INDEX(campsByItinerary,numericItinerary($A19),BK$3-1),campInfo,12))","v":""},{"$f":"IF(INDEX(campsByItinerary,numericItinerary($A19),BL$3-1)=\"\",\"\",VLOOKUP(INDEX(campsByItinerary,numericItinerary($A19),BL$3-1),campInfo,12))","v":""},{"$f":"IF(INDEX(campsByItinerary,numericItinerary($A19),BM$3-1)=\"\",\"\",VLOOKUP(INDEX(campsByItinerary,numericItinerary($A19),BM$3-1),campInfo,12))","v":""},{"$f":"getfoodPU(\"First\",numericItinerary($A19))","v":3},{"$f":"getfoodPU(\"Max\",numericItinerary($A19))","v":3}]
[null,null,null,null,null,null,null,null,null,null,null,null,null,null,null,null,null,null,null,null,null,null,null,null,null,null,"",null,null,null,null,null,null,""]
[null,null,null,null,null,null,null,null,null,null,null,null,null,null,null,null,null,null,null,null,null,null,null,null,null,null,"",null,null,null,null,null,null,""]
[null,null,null,null,null,null,null,null,null,null,null,null,null,null,null,null,null,null,null,null,null,null,null,null,null,null,"",null,null,null,null,null,null,""]
[null,null,null,null,null,null,null,null,null,null,null,null,null,null,null,null,null,null,null,null,null,null,null,null,null,null,"",null,null,null,null,null,null,""]
[null,null,null,null,null,null,null,null,null,null,null,null,null,null,null,null,null,null,null,null,null,null,null,null,null,null,"",null,null,null,null,null,null,""]
[null,null,null,null,null,null,null,null,null,null,null,null,null,null,null,null,null,null,null,null,null,null,null,null,null,null,"",null,null,null,null,null,null,""]
[null,null,null,null,null,null,null,null,null,null,null,null,null,null,null,null,null,null,null,null,null,null,null,null,null,null,"",null,null,null,null,null,null,""]
[null,null,null,null,null,null,null,null,null,null,null,null,null,null,null,null,null,null,null,null,null,null,null,null,null,null,"",null,null,null,null,null,null,""]
[null,null,null,null,null,null,null,null,null,null,null,null,null,null,null,null,null,null,null,null,null,null,null,null,null,null,"",null,null,null,null,null,null,""]
[null,null,null,null,null,null,null,null,null,null,null,null,null,null,null,null,null,null,null,null,null,null,null,null,null,null,"",null,null,null,null,null,null,""]
[null,null,null,null,null,null,null,null,null,null,null,null,null,null,null,null,null,null,null,null,null,null,null,null,null,null,"",null,null,null,null,null,null,""]
[null,null,null,null,null,null,null,null,null,null,null,null,null,null,null,null,null,null,null,null,null,null,null,null,null,null,"",null,null,null,null,null,null,""]
[null,null,null,null,null,null,null,null,null,null,null,null,null,null,null,null,null,null,null,null,null,null,null,null,null,null,"",null,null,null,null,null,null,""]
[null,null,null,null,null,null,null,null,null,null,null,null,null,null,null,null,null,null,null,null,null,null,null,null,null,null,"",null,null,null,null,null,null,""]
[null,null,null,null,null,null,null,null,null,null,null,null,null,null,null,null,null,null,null,null,null,null,null,null,null,null,"",null,null,null,null,null,null,""]
[null,null,null,null,null,null,null,null,null,null,null,null,null,null,null,null,null,null,null,null,null,null,null,null,null,null,"",null,null,null,null,null,null,""]
[null,null,null,null,null,null,null,null,null,null,null,null,null,null,null,null,null,null,null,null,null,null,null,null,null,null,"",null,null,null,null,null,null,""]
[null,null,null,null,null,null,null,null,null,null,null,null,null,null,null,null,null,null,null,null,null,null,null,null,null,null,"",null,null,null,null,null,null,""]
[null,null,null,null,null,null,null,null,null,null,null,null,null,null,null,null,null,null,null,null,null,null,null,null,null,null,null,null,null,null,null,{"$f":"COUNTIF(AF4:AF37,\"y\")","v":2},{"$f":"COUNTIF(AG4:AG37,\"y\")","v":3},{"$f":"COUNTIF(AH4:AH37,\"y\")","v":6},{"$f":"COUNTIF(AI4:AI37,\"y\")","v":2},{"$f":"COUNTIF(AJ4:AJ37,\"y\")","v":10}]
[null,null,null,null,null,null,null,null,null,null,null,null,null,null,null,null,null,null,null,null,null,null,null,null,null,null,null,null,null,null,null,"Mountaineering includes itineraries that climb Big Red, Black Mountain, Bonito Peak, Comanche Peak, Hart Mountain, Little Costilla Peak, Lookout Peak, or Shaefers Peak.",null,null,null,null," ",null,null,null,null,null,null,null,null,null,null,null,null,null,null,null,null,null,null,null,null,null,null,null,null,null,null,null,null,null,null,null,null,null,null,null,null,null,null,null,null,null,null,null,null,null,null,null,null,null,null,null,null,null,null,null,null,null,null,null,null,null,null,null,null,null,null,null,null,null,null,null,null,null,null,null,null,null,"Min",{"$f":"MIN(foodPUfirst)","v":2},{"$f":"MIN(foodPUdays)","v":2}]
[null,null,null,null,null,null,null,null,null,null,null,null,null,null,null,null,null,null,null,null,null,null,null,null,null,null,null,null,null,null,null,null,null,null,null,null," ",null,null,null,null,null,null,null,null,null,null,null,null,null,null,null,null,null,null,null,null,null,null,null,null,null,null,null,null,null,null,null,null,null,null,null,null,null,null,null,null,null,null,null,null,null,null,null,null,null,null,null,null,null,null,null,null,null,null,null,null,null,null,null,null,null,null,null,null,null,null,null,null,null,null,null,null,null,"Max",{"$f":"MAX(DL5:DL37)","v":3},{"$f":"MAX(foodPUdays)","v":3}]

{"sheet":"ItineraryPrograms","index":11,"n_rows":91,"n_cols":44,"rows_kept":91,"cut":false,"hidden":true,"merged":[[0,0,1,0]]}
["Itinerary",1,{"$f":"B1+1","v":2},{"$f":"C1+1","v":3},4,5,6,7,8,9,10,11,12,13,14,15,16,17,18,19,20,21,22,23,24,25,26,27,28,29,30,31,32,33,34,35,36,37,38,39,40,41,42,43]
[null,{"$f":"INDEX(program_table,B1,1)","v":"Archaeology"},"Archery - 3 Dimensional",{"$f":"INDEX(program_table,D1,1)","v":"Atlatl (Dart-throwing)"},"Baldy Mountain","Blacksmithing","Bouldering","Campfire (evening)","Cantina","Challenge Events","Chuckwagon Dinner","Cowboy Action Shooting","Demonstration Forest","Fishing","Fly Tying","Fur Trapper Rendezvous","Gold Mining & Panning","High Ropes & Climbing Tower","Historic Chase Ranch","Homesteading","Horse Rides","Inspiration Point Hike","Laser Shot Shooting Range","Lodge/Cabin Tours","Low Impact Camping","Mexican Dinner","Mine Tour","Mount Phillips","Mountaineering","Muzzle Loading Rifle","New Mexico Homestead","Petroglyph Tour","Post Civil War Encampment","Railroading","Rock Climbing & Rappelling","Rocky Mountain Fur Co.","Shooting/Reloading - .30-06","Shotgun Shooting/Reloading - 12 Gauge","Spar Pole Climbing","Tie Making & Crosscut Saws","Tomahawk Throwing","Tooth of Time","Trail Peak","Western Lore/Branding"]
[{"$f":"Itineraries!A3","v":"7-1"},"y",null,"y",{"$f":"IF(INDEX(baldyMountainHike,numericItinerary($A3))=\"y\",\"y\",\"\")","v":""},"y",null,"y","y",null,null,null,null,null,null,"y","y",null,null,null,null,null,null,null,null,null,"y","y","y","y",null,"y",null,null,null,null,null,null,null,"y","y",{"$f":"IF(INDEX(toothOfTimeHike,numericItinerary($A3))=\"y\",\"y\",\"\")","v":""},{"$f":"IF(INDEX(trailPeakHike,numericItinerary($A3))=\"y\",\"y\",\"\")","v":""},"y"]
[{"$f":"Itineraries!A4","v":"7-2"},null,null,null,{"$f":"IF(INDEX(baldyMountainHike,numericItinerary($A4))=\"y\",\"y\",\"\")","v":""},null,null,"y",null,"y","y",null,null,null,null,null,null,null,null,null,"y","y",null,null,null,null,null,"y","y",null,null,null,null,null,"y",null,null,null,null,null,null,{"$f":"IF(INDEX(toothOfTimeHike,numericItinerary($A4))=\"y\",\"y\",\"\")","v":"y"},{"$f":"IF(INDEX(trailPeakHike,numericItinerary($A4))=\"y\",\"y\",\"\")","v":""},"y"]
[{"$f":"Itineraries!A5","v":"7-3"},null,null,null,{"$f":"IF(INDEX(baldyMountainHike,numericItinerary($A5))=\"y\",\"y\",\"\")","v":"y"},null,null,null,"y","y",null,null,null,null,null,"y","y",null,null,null,null,null,null,null,null,null,null,"y","y","y",null,null,null,null,null,null,null,null,null,null,"y",{"$f":"IF(INDEX(toothOfTimeHike,numericItinerary($A5))=\"y\",\"y\",\"\")","v":""},{"$f":"IF(INDEX(trailPeakHike,numericItinerary($A5))=\"y\",\"y\",\"\")","v":""},"y"]
[{"$f":"Itineraries!A6","v":"7-4"},null,null,null,{"$f":"IF(INDEX(baldyMountainHike,numericItinerary($A6))=\"y\",\"y\",\"\")","v":"y"},"y",null,null,"y","y",null,null,null,null,null,"y","y",null,null,null,null,null,null,null,null,null,"y","y","y","y",null,null,null,null,null,null,null,null,null,null,"y",{"$f":"IF(INDEX(toothOfTimeHike,numericItinerary($A6))=\"y\",\"y\",\"\")","v":""},{"$f":"IF(INDEX(trailPeakHike,numericItinerary($A6))=\"y\",\"y\",\"\")","v":""},"y"]
[{"$f":"Itineraries!A7","v":"7-5"},null,null,null,{"$f":"IF(INDEX(baldyMountainHike,numericItinerary($A7))=\"y\",\"y\",\"\")","v":""},null,null,"y",null,"y",null,null,"N","N",null,null,null,null,null,null,null,"y",null,"N",null,null,null,null,null,null,null,null,null,null,"y",null,null,"y",null,null,null,{"$f":"IF(INDEX(toothOfTimeHike,numericItinerary($A7))=\"y\",\"y\",\"\")","v":""},{"$f":"IF(INDEX(trailPeakHike,numericItinerary($A7))=\"y\",\"y\",\"\")","v":""},"y"]
[{"$f":"Itineraries!A8","v":"7-6"},null,"y",null,{"$f":"IF(INDEX(baldyMountainHike,numericItinerary($A8))=\"y\",\"y\",\"\")","v":""},null,null,"y","y","y","y","y",null,null,null,null,null,null,null,"y","N",null,"y","y","y",null,null,{"$f":"IF(INDEX(mountPhillipsHike,numericItinerary($A8))=\"y\",\"y\",\"\")","v":""},{"$f":"IF(INDEX(mountaineeringHike,numericItinerary($A8))=\"y\",\"y\",\"\")","v":"y"},null,null,null,null,null,null,null,null,null,"y","y","y",{"$f":"IF(INDEX(toothOfTimeHike,numericItinerary($A8))=\"y\",\"y\",\"\")","v":""},{"$f":"IF(INDEX(trailPeakHike,numericItinerary($A8))=\"y\",\"y\",\"\")","v":""},"y"]
[{"$f":"Itineraries!A9","v":"7-7"},null,null,null,{"$f":"IF(INDEX(baldyMountainHike,numericItinerary($A9))=\"y\",\"y\",\"\")","v":""},"y",null,"y","y",null,"y",null,null,null,null,null,null,null,null,null,"y",null,null,"y",null,null,null,{"$f":"IF(INDEX(mountPhillipsHike,numericItinerary($A9))=\"y\",\"y\",\"\")","v":""},{"$f":"IF(INDEX(mountaineeringHike,numericItinerary($A9))=\"y\",\"y\",\"\")","v":"y"},"y","y",null,"y",null,null,null,null,null,null,null,null,{"$f":"IF(INDEX(toothOfTimeHike,numericItinerary($A9))=\"y\",\"y\",\"\")","v":"y"},{"$f":"IF(INDEX(trailPeakHike,numericItinerary($A9))=\"y\",\"y\",\"\")","v":""},"y"]
[{"$f":"Itineraries!A10","v":"7-8"},null,null,null,{"$f":"IF(INDEX(baldyMountainHike,numericItinerary($A10))=\"y\",\"y\",\"\")","v":""},null,null,"y","y",null,"y",null,null,null,null,null,null,null,null,"y","N",null,null,null,null,null,null,{"$f":"IF(INDEX(mountPhillipsHike,numericItinerary($A10))=\"y\",\"y\",\"\")","v":"y"},{"$f":"IF(INDEX(mountaineeringHike,numericItinerary($A10))=\"y\",\"y\",\"\")","v":""},"y","y",null,null,null,null,"y",null,null,null,null,"N",{"$f":"IF(INDEX(toothOfTimeHike,numericItinerary($A10))=\"y\",\"y\",\"\")","v":""},{"$f":"IF(INDEX(trailPeakHike,numericItinerary($A10))=\"y\",\"y\",\"\")","v":""},"y"]
[{"$f":"Itineraries!A11","v":"7-9"},null,null,null,{"$f":"IF(INDEX(baldyMountainHike,numericItinerary($A11))=\"y\",\"y\",\"\")","v":""},null,null,"y","y",null,"y",null,null,null,null,null,null,null,null,null,"y",null,null,"y",null,"y",null,{"$f":"IF(INDEX(mountPhillipsHike,numericItinerary($A11))=\"y\",\"y\",\"\")","v":""},{"$f":"IF(INDEX(mountaineeringHike,numericItinerary($A11))=\"y\",\"y\",\"\")","v":"y"},null,"y",null,null,null,"y",null,null,null,null,null,null,{"$f":"IF(INDEX(toothOfTimeHike,numericItinerary($A11))=\"y\",\"y\",\"\")","v":"y"},{"$f":"IF(INDEX(trailPeakHike,numericItinerary($A11))=\"y\",\"y\",\"\")","v":""},"y"]
[{"$f":"Itineraries!A12","v":"7-10"},null,null,null,{"$f":"IF(INDEX(baldyMountainHike,numericItinerary($A12))=\"y\",\"y\",\"\")","v":""},null,null,null,"y",null,null,null,null,"y","y",null,null,null,null,null,null,null,null,"y",null,null,null,{"$f":"IF(INDEX(mountPhillipsHike,numericItinerary($A12))=\"y\",\"y\",\"\")","v":""},{"$f":"IF(INDEX(mountaineeringHike,numericItinerary($A12))=\"y\",\"y\",\"\")","v":""},null,"y",null,null,null,"y",null,null,null,null,"y",null,{"$f":"IF(INDEX(toothOfTimeHike,numericItinerary($A12))=\"y\",\"y\",\"\")","v":"y"},{"$f":"IF(INDEX(trailPeakHike,numericItinerary($A12))=\"y\",\"y\",\"\")","v":"y"}]
[{"$f":"Itineraries!A13","v":"7-11"},null,null,null,{"$f":"IF(INDEX(baldyMountainHike,numericItinerary($A13))=\"y\",\"y\",\"\")","v":""},"y","y","y","y","y",null,null,null,null,null,null,null,null,"y","y",null,null,null,"y",null,null,null,{"$f":"IF(INDEX(mountPhillipsHike,numericItinerary($A13))=\"y\",\"y\",\"\")","v":""},{"$f":"IF(INDEX(mountaineeringHike,numericItinerary($A13))=\"y\",\"y\",\"\")","v":""},null,null,null,null,"y","y",null,null,null,null,null,null,{"$f":"IF(INDEX(toothOfTimeHike,numericItinerary($A13))=\"y\",\"y\",\"\")","v":""},{"$f":"IF(INDEX(trailPeakHike,numericItinerary($A13))=\"y\",\"y\",\"\")","v":""},"y"]
[{"$f":"Itineraries!A14","v":"7-12"},"y",null,"y",{"$f":"IF(INDEX(baldyMountainHike,numericItinerary($A14))=\"y\",\"y\",\"\")","v":""},"y",null,"y","y","y",null,null,null,null,null,null,null,null,null,"y",null,null,null,"y","y",null,null,{"$f":"IF(INDEX(mountPhillipsHike,numericItinerary($A14))=\"y\",\"y\",\"\")","v":""},{"$f":"IF(INDEX(mountaineeringHike,numericItinerary($A14))=\"y\",\"y\",\"\")","v":""},null,null,"y",null,"y",null,null,null,null,null,"y","y",{"$f":"IF(INDEX(toothOfTimeHike,numericItinerary($A14))=\"y\",\"y\",\"\")","v":""},{"$f":"IF(INDEX(trailPeakHike,numericItinerary($A14))=\"y\",\"y\",\"\")","v":""}]
[{"$f":"Itineraries!A15","v":"7-13"},null,null,null,{"$f":"IF(INDEX(baldyMountainHike,numericItinerary($A15))=\"y\",\"y\",\"\")","v":""},"y",null,"y",null,null,null,null,"y","N",null,null,"y",null,null,null,null,null,null,"y",null,null,"y",{"$f":"IF(INDEX(mountPhillipsHike,numericItinerary($A15))=\"y\",\"y\",\"\")","v":"y"},{"$f":"IF(INDEX(mountaineeringHike,numericItinerary($A15))=\"y\",\"y\",\"\")","v":"y"},null,null,null,null,null,null,"y","y",null,null,null,null,{"$f":"IF(INDEX(toothOfTimeHike,numericItinerary($A15))=\"y\",\"y\",\"\")","v":""},{"$f":"IF(INDEX(trailPeakHike,numericItinerary($A15))=\"y\",\"y\",\"\")","v":""}]
[{"$f":"Itineraries!A16","v":"7-14"},null,null,null,{"$f":"IF(INDEX(baldyMountainHike,numericItinerary($A16))=\"y\",\"y\",\"\")","v":""},"y",null,"N","y",null,"y",null,"y","y","y",null,"y",null,null,null,"y",null,null,"y",null,null,null,{"$f":"IF(INDEX(mountPhillipsHike,numericItinerary($A16))=\"y\",\"y\",\"\")","v":"y"},{"$f":"IF(INDEX(mountaineeringHike,numericItinerary($A16))=\"y\",\"y\",\"\")","v":"y"},null,"y",null,null,null,null,null,null,null,null,null,null,{"$f":"IF(INDEX(toothOfTimeHike,numericItinerary($A16))=\"y\",\"y\",\"\")","v":""},{"$f":"IF(INDEX(trailPeakHike,numericItinerary($A16))=\"y\",\"y\",\"\")","v":""},"y"]
[{"$f":"Itineraries!A17","v":"7-15"},null,null,null,{"$f":"IF(INDEX(baldyMountainHike,numericItinerary($A17))=\"y\",\"y\",\"\")","v":""},null,null,"y",null,null,"y",null,null,null,null,null,"y",null,null,null,"N",null,null,null,null,null,null,{"$f":"IF(INDEX(mountPhillipsHike,numericItinerary($A17))=\"y\",\"y\",\"\")","v":""},{"$f":"IF(INDEX(mountaineeringHike,numericItinerary($A17))=\"y\",\"y\",\"\")","v":"y"},null,null,null,null,null,"y",null,"y","y",null,null,null,{"$f":"IF(INDEX(toothOfTimeHike,numericItinerary($A17))=\"y\",\"y\",\"\")","v":"y"},{"$f":"IF(INDEX(trailPeakHike,numericItinerary($A17))=\"y\",\"y\",\"\")","v":""},"y"]
[{"$f":"Itineraries!A18","v":"7-16"},null,null,null,{"$f":"IF(INDEX(baldyMountainHike,numericItinerary($A18))=\"y\",\"y\",\"\")","v":""},null,null,"y",null,null,"y",null,null,null,null,null,null,"y",null,null,"N",null,null,"y",null,null,null,{"$f":"IF(INDEX(mountPhillipsHike,numericItinerary($A18))=\"y\",\"y\",\"\")","v":""},{"$f":"IF(INDEX(mountaineeringHike,numericItinerary($A18))=\"y\",\"y\",\"\")","v":"y"},"y",null,null,"y",null,"y",null,null,null,"y","y","y",{"$f":"IF(INDEX(toothOfTimeHike,numericItinerary($A18))=\"y\",\"y\",\"\")","v":"y"},{"$f":"IF(INDEX(trailPeakHike,numericItinerary($A18))=\"y\",\"y\",\"\")","v":"y"},"y"]
[]
[]
[]
[]
[]
[]
[]
[]
[]
[]
[]
[]
[]
[]
[]
[]
[]
[]
[null,{"$f":"COUNTIF(B3:B36,\"y\")","v":2},1,2,2,7,1,12,11,7,8,1,2,2,2,3,6,1,1,4,4,2,1,9,2,1,{"$f":"COUNTIF(AA3:AA36,\"y\")","v":3},{"$f":"COUNTIF(AB3:AB36,\"y\")","v":7},11,6,5,2,2,2,7,{"$f":"COUNTIF(AJ3:AJ36,\"y\")","v":2},2,2,{"$f":"COUNTIF(AM3:AM36,\"y\")","v":2},5,6,6,2,13]
[null,{"$f":"B2","v":"Archaeology"},"Archery - 3 Dimensional","Atlatl (Dart-throwing)","Baldy Mountain","Blacksmithing","Bouldering","Campfire (evening)","Cantina","Challenge Events","Chuckwagon Dinner","Cowboy Action Shooting","Demonstration Forest","Fishing","Fly Tying","Fur Trapper Rendezvous","Gold Mining & Panning","High Ropes & Climbing Tower","Historic Chase Ranch","Homesteading","Horse Rides","Inspiration Point Hike","Laser Shot Shooting Range","Lodge/Cabin Tours","Low Impact Camping","Mexican Dinner",{"$f":"AA2","v":"Mine Tour"},{"$f":"AB2","v":"Mount Phillips"},"Mountaineering","Muzzle Loading Rifle","New Mexico Homestead","Petroglyph Tour","Post Civil War Encampment","Railroading","Rock Climbing & Rappelling",{"$f":"AJ2","v":"Rocky Mountain Fur Co."},"Shooting/Reloading - .30-06","Shotgun Shooting/Reloading - 12 Gauge",{"$f":"AM2","v":"Spar Pole Climbing"},"Tie Making & Crosscut Saws","Tomahawk Throwing",{"$f":"AP2","v":"Tooth of Time"},"Trail Peak","Western Lore/Branding"]
[]
[null,{"$f":"INDEX(pgmListTemp,B$1)","v":"Archaeology"},{"$f":"INDEX(pgmListTemp,C$1)","v":"Archery - 3 Dimensional"},{"$f":"INDEX(pgmListTemp,D$1)","v":"Astronomy"},{"$f":"INDEX(pgmListTemp,E$1)","v":"Atlatl (Dart-throwing)"},{"$f":"INDEX(pgmListTemp,F$1)","v":"Baldy Mountain"},{"$f":"INDEX(pgmListTemp,G$1)","v":"Blacksmithing"},{"$f":"INDEX(pgmListTemp,H$1)","v":"Bouldering"},{"$f":"INDEX(pgmListTemp,I$1)","v":"Burro Packing"},{"$f":"INDEX(pgmListTemp,J$1)","v":"Campfire (evening)"},{"$f":"INDEX(pgmListTemp,K$1)","v":"Cantina"},{"$f":"INDEX(pgmListTemp,L$1)","v":"Challenge Events"},{"$f":"INDEX(pgmListTemp,M$1)","v":"Chuckwagon Dinner"},{"$f":"INDEX(pgmListTemp,N$1)","v":"Cowboy Action Shooting"},{"$f":"INDEX(pgmListTemp,O$1)","v":"Demonstration Forest"},{"$f":"INDEX(pgmListTemp,P$1)","v":"Fishing"},{"$f":"INDEX(pgmListTemp,Q$1)","v":"Fly Tying"},{"$f":"INDEX(pgmListTemp,R$1)","v":"Fur Trapper Rendezvous"},{"$f":"INDEX(pgmListTemp,S$1)","v":"Gold Mining & Panning"},{"$f":"INDEX(pgmListTemp,T$1)","v":"High Ropes & Climbing Tower"},{"$f":"INDEX(pgmListTemp,U$1)","v":"Historic Chase Ranch"},{"$f":"INDEX(pgmListTemp,V$1)","v":"Homesteading"},{"$f":"INDEX(pgmListTemp,W$1)","v":"Horse Rides"},{"$f":"INDEX(pgmListTemp,X$1)","v":"Hunter Safety"},{"$f":"INDEX(pgmListTemp,Y$1)","v":"Inspiration Point Hike"},{"$f":"INDEX(pgmListTemp,Z$1)","v":"Jicarilla Apache Life"},{"$f":"INDEX(pgmListTemp,AA$1)","v":"Kit Carson/Rayado Rancho"},{"$f":"INDEX(pgmListTemp,AB$1)","v":"Laser Shot Shooting Range"},{"$f":"INDEX(pgmListTemp,AC$1)","v":"Lodge/Cabin Tours"},{"$f":"INDEX(pgmListTemp,AD$1)","v":"Low Impact Camping"},{"$f":"INDEX(pgmListTemp,AE$1)","v":"Mexican Dinner"},{"$f":"INDEX(pgmListTemp,AF$1)","v":"Mine Tour"},{"$f":"INDEX(pgmListTemp,AG$1)","v":"Mount Phillips"},{"$f":"INDEX(pgmListTemp,AH$1)","v":"Mountain Biking"},{"$f":"INDEX(pgmListTemp,AI$1)","v":"Mountaineering"},{"$f":"INDEX(pgmListTemp,AJ$1)","v":"Muzzle Loading Rifle"},{"$f":"INDEX(pgmListTemp,AK$1)","v":"New Mexico Homestead"},{"$f":"INDEX(pgmListTemp,AL$1)","v":"Petroglyph Tour"},{"$f":"INDEX(pgmListTemp,AM$1)","v":"Post Civil War Encampment"},{"$f":"INDEX(pgmListTemp,AN$1)","v":"Railroading"},{"$f":"INDEX(pgmListTemp,AO$1)","v":"Rock Climbing & Rappelling"},{"$f":"INDEX(pgmListTemp,AP$1)","v":"Rocky Mountain Fur Co."},{"$f":"INDEX(pgmListTemp,AQ$1)","v":"Search & Rescue/Wild. Medicine"},{"$f":"INDEX(pgmListTemp,AR$1)","v":"Shooting/Reloading - .30-06"}]
["#","Programs"]
[1,"Archaeology"]
[{"$f":"A42+1","v":2},"Archery - 3 Dimensional"]
[{"$f":"A43+1","v":3},"Astronomy"]
[4,"Atlatl (Dart-throwing)"]
[5,"Baldy Mountain"]
[6,"Blacksmithing"]
[7,"Bouldering"]
[8,"Burro Packing"]
[9,"Campfire (evening)"]
[10,"Cantina"]
[11,"Challenge Events"]
[12,"Chuckwagon Dinner"]
[13,"Cowboy Action Shooting"]
[14,"Demonstration Forest"]
[15,"Fishing"]
[16,"Fly Tying"]
[17,"Fur Trapper Rendezvous"]
[18,"Gold Mining & Panning"]
[19,"High Ropes & Climbing Tower"]
[20,"Historic Chase Ranch"]
[21,"Homesteading"]
[22,"Horse Rides"]
[23,"Hunter Safety"]
[24,"Inspiration Point Hike"]
[25,"Jicarilla Apache Life"]
[26,"Kit Carson/Rayado Rancho"]
[27,"Laser Shot Shooting Range"]
[28,"Lodge/Cabin Tours"]
[29,"Low Impact Camping"]
[30,"Mexican Dinner"]
[31,"Mine Tour"]
[32,"Mount Phillips"]
[33,"Mountain Biking"]
[34,"Mountaineering"]
[35,"Muzzle Loading Rifle"]
[36,"New Mexico Homestead"]
[37,"Petroglyph Tour"]
[38,"Post Civil War Encampment"]
[39,"Railroading"]
[40,"Rock Climbing & Rappelling"]
[41,"Rocky Mountain Fur Co."]
[42,"Search & Rescue/Wild. Medicine"]
[43,"Shooting/Reloading - .30-06"]
[44,"Shotgun Shooting/Reloading - 12 Gauge"]
[45,"Spar Pole Climbing"]
[46,"Tie Making & Crosscut Saws"]
[47,"Tomahawk Throwing"]
[48,"Tooth of Time"]
[49,"Trail Peak"]
[50,"Western Lore/Branding"]

{"sheet":"Descriptions","index":12,"n_rows":17,"n_cols":4,"rows_kept":17,"cut":false,"hidden":true,"merged":[]}
["Length","Itinerary","Description"," "]
[{"$f":"LEN(C2)","v":1686},{"$f":"Itineraries!A3","v":"7-1"},"Take a trip back in time with this itinerary that is chock full of unique programs and relics from the past! Start your journey through this timeline after getting off the bus at the Six-Mile Gate Trailhead for a visit to the first confirmed T-Rex track in the world. Look for other fossils and footprints as you head upstream to Indian Writings where you will tour the fascinating petroglyphs left by the Ancestral Puebloan people prior to 1300 CE and work on an archaeological dig to discover more clues of their activities on Philmont property. Your climb over Hart Peak will be rewarded with fantastic views of the Ponil Complex! Make your way down to Ponil where you will be taken back to the old west! Try your hand at branding and roping, then reward yourself with a cold root beer in the Cantina. The next step of your journey in time takes you to Elkhorn, via the Dean Skyline trail. Drop down into the Middle Ponil and pass through Pueblano and into the early 1900s, where the loggers of the Continental Tie & Lumber Co. will teach you how to use a crosscut saw and a broad axe. Make your way through Pueblano Ruins and up to French Henry and into the historical Baldy Mining district. Tour the Aztec Ponil mine, do some blacksmithing, and try your luck at panning for gold. Your final destination is Touch-Me-Not Creek, but not before you stop at Miranda, where you will be transported to 1838 and a fur trapper rendezvous. Shoot muzzle loading rifles, throw tomahawks and be regaled with the many tall tales the trappers will share with you. Your journey through time is almost over as you hike down to the Maxwell Trailhead to meet your bus for your trip back to Base Camp."," "]
[{"$f":"LEN(C3)","v":1053},{"$f":"Itineraries!A4","v":"7-2"},"For this South Country Itinerary, your crew will start at the Zastrow Trailhead and will hike up to Backache Springs for the night. Your crew will then go up and over Urraca Mesa to Urraca Camp where you can test your skills on the challenge course during the day and enjoy an evening campfire performance full of music and ghost stories about the mesa. Start the next day with a beautiful sunrise at Inspiration Point, then make your way to Miners Park. Here you will have the opportunity to participate in rock climbing and rappelling on natural rock formations, or in the remodeled climbing gym. The following day your crew will hike to Shaefers Pass to camp for the night. While at Shaefers Pass, your crew can side hike Shaefers Peak and the iconic Tooth of Time! Head on down to Clarks Fork to learn what it took to be a cowboy and do some roping, branding, horseback riding and enjoy an awesome campfire performance put on by the staff! Your journey is coming to an end as you hike to the Webster Trailhead, but the memories will last a lifetime!"," "]
[1110,{"$f":"Itineraries!A5","v":"7-3"},"This itinerary gets you through the North Country and to the top of Philmont! Begin your trek at the Ponil Trailhead, and swig down a cold root beer before heading up to Flume Canyon for the night. You’ll head up to Elkhorn for your Conservation Project before hiking to Head of Dean. Here the trained facilitators will work with your crew in their challenge course and help everyone grow and learn from the experience and help build a stronger team. Make your way over to Ewells Park for your layover and prepare yourself for the climb to the top of Baldy Mountain. After your summit, be sure to head back to Baldy Town to soak in some of the history, check out some of the artifacts, and learn about the gold assaying process. Your last full day on the trail will bring you to Miranda. It’s a short hike, but that means you will have plenty of time to enjoy the rendezvous, throw tomahawks, and, of course, shoot their booming 50 cal. muzzle loading rifles. It will be a blast! On your last morning on the trail, make your way down to the Maxwell Trailhead to meet your bus for the journey back to base camp."," "]
[1304,{"$f":"Itineraries!A6","v":"7-4"},"This exciting itinerary will get you to the highest peak on Philmont Scout Ranch and enjoy a nice variety of history and exciting programs to boot! Start your trek with a short hike through Ponil to Bluestem Camp, where your Ranger will pass on valuable skills. Head across the Dean Skyline for some tremendous views and stop by Head of Dean for some Challenge Course or team building events before bedding down at Baldy Skyline Camp. Make your way up to historic Baldy Town and visit the museum and try your hand at assaying before settling in for a night of rest. Wake up early to begin your loop up to the summit of Baldy Mountain and enjoy the tremendous 360-degree views. Continue your circle down to Copper Park and if your crew is up to it and has time, venture down into French Henry and explore Lucien Maxwell’s best gold producing Aztec Mine. Do a little blacksmithing before making your way back around to Baldy Town to reflect on your amazing day! Your last full day takes you to the Fur Trapper Rendezvous at Miranda, where you will get hands-on lessons with tomahawks and muzzle loading rifles. The next morning you will make your way to the Maxwell Trailhead for your bus pickup and your journey back to Base Camp where you can share your stories and experiences with Scouts from all over!"," "]
[1359,{"$f":"Itineraries!A7","v":"7-5"},"A wonderful adventure awaits you and your crew as this itinerary brings you from the Southernmost reaches of the ranch all the way into the central country and parts of the ranch not hiked since 2017! Your crew will be dropped off at the Zastrow trailhead and hike up to Toothache Springs where your Ranger will continue your training. Head up and over the famous Urraca Mesa where you and your crew will work through a variety of challenges and grow as a team together all facilitated by one of Philmont’s amazing staff members. End the day with a performance full of exciting music and ghostly tales of the mesa and start the next day with a beautiful sunrise hike to Inspiration Point. Head to Miners Park next, where you will have the chance to climb on some incredible rock surfaces, or perhaps some time in the outdoor climbing gym is more your speed! The next morning has you hiking up and over Shaefers Pass to Clarks Fork, where you can take a load off for a bit and enjoy some of the western flair there before making your way to Hunting Lodge for the night. Next, head to Harlan for some 12-gauge shotgun shooting, where you will get to fire ammunition you have reloaded yourself. Enjoy this last night on the trail and get up the next morning and head to the Turkey Creek trailhead where you bus will sweep you away back to base camp. What a trek!"," "]
[1531,{"$f":"Itineraries!A8","v":"7-6"},"This 7-day trek offers a variety of exciting program opportunities, on and off of Philmont property. Begin with a bus drop off at the Six Mile Gate Trailhead and a short hike to McBride Canyon trail camp. Learn important camping skills from your Ranger before waking up and climbing to the top of Hart Peak on your way to Ponil. The original headquarters of Philturn Rocky Mountain Scout Camp, it now serves as one of Philmont's three western lore camps. Try your hand at roping, branding, or Cowboy Action Shooting and don't miss the Chuckwagon Dinner or Cantina Show, either! Working your way up the Middle Ponil River, and off of Philmont property, you will come to the historic Rich Family cabin and homestead. Cow milking, cabin tours, and an entertaining family gathering will let you experience what life was like on an 1880s homestead. Make your way over scenic Wilson Mesa to visit the loggers of the Continental Tie & Lumber Co. stationed at Pueblano. Climb Spar Poles, work on a railroad tie, then be ready for their exciting Company Meeting campfire program that night! It will be a show you are not likely to forget. Test your crew’s skills on some Challenge Events at Head of Dean the next day. Enjoy your last night on the trail near the infamous Black Jack Ketchum's hideout! Your last morning on the trail has your crew hiking to the Ute Park Trailhead but be sure to stop for a visit at Cimarroncita to try out the 3-D Archery or Laser Shooting Range before loading up on your bus for your trip back to base camp."," "]
[1532,{"$f":"Itineraries!A9","v":"7-7"},"This itinerary provides tremendous views and a taste of the history of the land during your journey. It all begins as you get off the bus and hike to Rimrock Park, where your Ranger will continue to educate your crew. Be sure to visit Abreu and their New Mexican Homestead so you can enjoy some root beer and soak in the legacy of the Abreu Family before heading to Bonito Creek. Enjoy the beauty of the trail as you squeeze between Rayado Peak and Fowler Mesa for a night at Lower Bonito Trail Camp, aka “LoBo”. The next leg of your journey has you hiking alongside Lookout Peak, Webster Pass, and Burn Peak as you make your way to Beaubien. Be ready for an action-packed day of Western Lore, which includes roping, branding, horse rides, and a chuckwagon dinner, topped off with an amazing Cowboy Campfire. Make your way to Black Mountain and visit the Post Civil War Encampment and try your hand at muzzle loading rifles and blacksmithing at this camp nestled alongside the North Fork Urraca Creek. Hiking down the North Fork the next day will be a real treat, watch out for those many creek crossings, and be on the lookout for the Grizzly Tooth rock formation as well. Your last night on the trail will provide moments of reflection and feelings of reward as you look ahead to the morning’s hike up to the top of the iconic Tooth of Time. Get some rest, as you will top Shaefers Peak and the iconic Tooth of Time on the same day! Soak in the views before making your way down Tooth Ridge and back to Base Camp. You all made it!"," "]
[1861,{"$f":"Itineraries!A10","v":"7-8"},"This exciting South Country itinerary sees it all and will push your crew to the limits. Your adventure begins at the Zastrow Trailhead where you'll hike to Old Abreu as your Ranger passes on the skills you will need for the rest of the trek! On your way, be sure to visit the New Mexican homesteading program at Abreu and enjoy a nice cool glass of root beer in the Cantina. Your next challenge will be the hike up to Lower Bonito camp, but the scenery once you get there more than makes up for it. You’ll spend the following day at Beaubien where you can go enjoy the western lore program, eat a hearty chuckwagon dinner, and listen to the cowboys and cowgirls recite cowboy poetry, sing western music, and tell tales of life on the cattle trail at the campfire that night. Your next day’s hike takes you through Crooked Creek to visit the homesteading family living there. Take a tour of their rustic cabin and try your hand at some of their daily tasks to get a sense of how they live. You will camp for the night at Wild Horse Camp so you can rest up for your mountain summit the next day. Wake up early and make your way to Clear Creek so you can set up camp, hang bear bags, and side hike to the top of Philmont's second highest peak, Mount Phillips. Enjoy this unique opportunity, it is rare for 7 Day treks to make it this deep in the backcountry! Once back at Clear Creek, you can experience life as a Fur Trapper working for the Rocky Mountain Fur Co. and shoot muzzle loading rifles, throw tomahawks, and get a tour of the Trapper’s Cabin. Your last day’s hike will be very special! The hike down the Tolby Road trail is gorgeous and will allow you to enjoy magnificent panoramic views of Wheeler Peak, the tallest peak in New Mexico. Keep heading down the scenic path to the trailhead, where you will be picked up by your bus. Next stop… Base Camp!"," "]
[1516,{"$f":"Itineraries!A11","v":"7-9"},"This itinerary offers crews one of the first opportunities to hike out of base camp and into the backcountry for their wilderness experience. Make your way to your first trail camp on the edge of Heck Meadow, just below Tooth Ridge. Enjoy the wonderful views in all directions as your Ranger continues your skill training here. Be sure to get up early enough to watch the sunrise, as a New Mexico sunrise is something to behold! Your next stop is at Clarks Fork, where you will learn the ways of the west, ride horses, brand your boots, and enjoy an excellent campfire program that night. Rest up, as your next day brings you the opportunity to summit two peaks, including the iconic Tooth of Time. If you time it right, you can catch the setting sun on Shaefers Peak as you make your way back to your campsite in Shaefers Pass camp after your exciting summits! The next morning you will head down to North Fork Urraca creek and over to Miners Park for the challenging rock climbing and rappelling programs. You'll also resupply here, so load up on food and hit the trail and make your way to Abreu. Learn about this early New Mexican homestead and the family that once lived and worked in this part of the ranch. You’ll enjoy a tour of the homestead, learn how to take care of animals, and enjoy a delicious Mexican Dinner on this, your last night on the trail. The next morning you will hike to the Zastrow Trailhead where you'll load up on the bus to head back to base. What a journey it has been, enjoy the ride!"," "]
[1927,{"$f":"Itineraries!A12","v":"7-10"},"Sweep across parts of Philmont’s mountainous South Country in this adventure-filled trek. Start your trek at the Zastrow trailhead to begin your hike along the Rayado River. Take a moment to visit the New Mexican homestead at Abreu and grab a root beer before heading to Old Abreu camp for continued training from your ranger. Your first full day on the trail will have you ascending through the Rayado Canyon. It is a beautiful hike that you will never forget…the views are grand and the landscape is beautiful. You will stay at Fish Camp for the night, which was one of Waite Phillips’ favorite places on the ranch. Learn to tie flies, fish, and get a glimpse of the historical cabins at the confluence of the Agua Fria and Rayado Creeks. Make your way over Webster Pass towards Lower Bonito Camp. From “LoBo”, you can easily side hike Trail Peak. You can visit the site of the B-24 crash and pay respect to the servicemen that were on board the plane that fateful night that it crashed. Your next morning will take you to Miners Park, but first you will pass through Crater Lake. Take a pit stop here and learn how to use a crosscut saw or a broadaxe from the Loggers of the Continental Tie & Lumber Co. Miners Park will be an exciting stop to learn rock climbing and rappelling skills. The program is exciting and the view from the climbing area is tremendous as well! While you are at Miners, see if you can beat the crate stacking record for the day as well! Your final full day on the trail brings you to Stockade Ridge, just below the base of the Tooth of Time. You’ll be climbing that monolithic molar in the morning, so get your rest and prepare for a challenging hike! Once upon the top of the Tooth of Time, the 360-degree panoramic views will be a breathtaking sight to behold. Reflect on your trek and the many challenges you have overcome, then make your way down the winding trail to base camp. You all made it!"," "]
[1556,{"$f":"Itineraries!A13","v":"7-11"},"This exciting itinerary will provide your crew with a program intensive trek, a chance for scenic views, forests, unique geology and more! Starting from the Nine Mile Trailhead, you will make your way to the scenic Dean Skyline. The views to the North and South will take your breath away! Make your way down to Ponil for an experience at the original base camp of Philmont! Brand your boots, do some roping, head to the Cantina for a root beer and some wild west flair while you are passing through to your trail camp at Sioux. Be ready for more great views as you hike through the Barker Wildlife Area; have your camera ready to capture them! Your journey will take you to the historic Rich family homestead at Rich Cabins. Tour their historic home and grab your next batch of trail meals so you can make your way to Dan Beard to test your teamwork skills on their challenge course elements. Your next day will take you to the Cimarron & Northwestern Railway at Metcalf Station. They will be looking for your help in laying rail in the North Ponil Canyon for their new road. This important historical stop on your trek will allow you to learn about railroading and blacksmithing and enjoy another fantastic campfire program under the stars. This itinerary just keeps getting better as you will then head over to Chase Canyon and the Chase Cow Camp where you will have the chance to rock climb at this spectacular site. Reflect upon your amazing adventure as you head down for a tour of the Chase Main House for a tour and catch the bus back to Base Camp."," "]
[1278,{"$f":"Itineraries!A14","v":"7-12"},"This Valle Vidal itinerary will enable your crew to see an incredible assortment of wildlife, enormous grass filled vegas, gorgeous ponderosa pine stands, and rugged mountains to the north of Philmont. Start your trek by hiking past the first confirmed T-Rex track before camping at House Canyon for Ranger Training. At Metcalf Station you will learn how to build a railroad, blacksmith, and be entertained by their evening campfire. The next day you will hike through Dan Beard to build your crew’s team skills participating in the challenge events and continue to the Valle Vidal in the Carson National Forest to Beatty Lakes for the night where the views of Little Costilla and Baldy Mountain are amazing! Bushwack through the ponderosa pines and enormous meadows of the Valle to the historic homestead of the Rich Family. Help them tend to their garden and their animals. That night at Rich Cabins join the Rich Family Gathering to hear the stories and songs of their family homestead. Hike over Wilson Mesa to spend your last night on the trail at Elkhorn, enjoying the views while reflecting on your crew’s accomplishments before heading to Ponil for a quick celebratory sarsaparilla at the cantina before meeting you bus at the nearby trailhead to head back to Base Camp."," "]
[1651,{"$f":"Itineraries!A15","v":"7-13"},"This Central Country route brings you deep into the Philmont backcountry, and even into the Ute Park Fire burn scar. Begin your trek by hiking through part of that burn scar on your way to Hunting Lodge Camp. On the way, see how the regrowth and natural recovery of the land is moving forward. At Hunting Lodge, you can visit the Demonstration Forest and continue to learn more skills and important guidance from your Ranger. On the following day you'll camp at Lamberts Mine, but make sure to visit Cyphers Mine and enjoy immersion in history and hands-on opportunities to pan for gold, blacksmith, and tour an actual gold mine. All of these build up the anticipation for The Stomp evening campfire program. Head up to Sawmill the next day and see right were part of the Ute Park fire stopped! Here you will learn how to reload .30-06 cartridges and then fire them at Sawmill's steel silhouette range. Moving deeper into the backcountry brings you up and over two of Philmont's South Country peaks. First you will climb Comanche Peak, then make your way to Mount Phillips camp for the night. The next morning will bring your crew over Mount Phillips, which is Philmont's second highest peak. Make your way to Clear Creek from there, where you will work with the trappers of the Rocky Mountain Fur Co. for a tomahawk throwing competition. Camp that night on the CS Ranch's Tolby Headwaters Camp before making your way down the Tolby Road Trail the next morning. Though long, this trail brings to you some of the most glorious views of Wheeler Peak and Eagle Nest Lake, so have your cameras ready as you make your way to the trailhead and back to base."," "]
[1516,{"$f":"Itineraries!A16","v":"7-14"},"This exciting itinerary will enable your crew to explore Philmont’s South and Central Country. Begin your trek by hiking across the Rayado River, through Abreu for a quick visit with the Abreu family and a root beer, and then up to Old Abreu for continued training from your Ranger. Head upstream and take a break at the entrance into Rayado Canyon, otherwise known as 'The Notch' and enjoy the wonderful views of Rayado, Crater, and Lookout Peak while hiking to Fish Camp to see Waite Phillips’ Rayado Lodge. Learn to tie flies and fish the same waters that our great benefactor loved so much. Proceed on alongside the Rayado Creek north to Phillips Junction for resupply, then up to Beaubien for the night. Brand your boots, learn how to rope, and enjoy a hearty Chuckwagon dinner before the Cowboy campfire! Your next day has you conquering several peaks, so get some rest! You'll start the day hiking over Bonito Peak and Big Red as you make your way to Comanche Peak Camp. You are close to Mt. Phillips, so you can work in a side hike to Philmont's second highest peak if you like! The next day enjoy the hike through Cyphers Mine as you meander downhill alongside babbling creeks and then down to Waite Phillips’ other favorite retreat at Hunting Lodge and spend some time exploring the Demonstration Forest and Cimarroncito Reservoir. Hurry to Clarks Fork on your last morning to enjoy some western lore activities and join in on a trail ride. Have fun, but don’t miss your afternoon bus at Webster Trailhead!"," "]
[1375,{"$f":"Itineraries!A17","v":"7-15"},"This itinerary offers a good mix of program and hiking with the added bonus of being among the first to camp in the Ute Park Fire burn scar. After a short bus ride to the Turkey Creek trailhead you’ll make your way to Vaca via the Vaca Trail which was the very first Order of the Arrow Trail Crew project ever completed. Pay close attention during your Ranger training and marvel at Mother Nature’s recovery efforts in the burn scar. On your way to Deer Lake camp the next morning be sure to stop in at Harlan for 12-gauge shotgun shooting and reloading. After that you’re off to Sawmill for .30-06 reloading and shooting. You’re back on the trail the next morning after completing your trail building conservation project. Try your hand at panning for gold at Cyphers Mine before heading to Cimarroncito. Enjoy the climbing wall that evening and then head up to the top of the ridge for an early morning rock climbing session. Stop at the Demonstration Forest to talk with a visiting Forester as you make your way to Clarks Fork for Western Lore, branding, and a delicious Chuckwagon dinner. Hit the sack right after the campfire in preparation for your hike back to Base Camp the next morning. Celebrate your accomplishments with your crew and enjoy the incredible views from the top of the Tooth of Time and complete your trek by passing through the “We All Made It” gate!"," "]
[1557,{"$f":"Itineraries!A18","v":"7-16"},"This program intensive trek follows mountain streams, discovers mountain meadows, and traverses peaks and mesas across Philmont's South Country. Begin your trek and work through some COPE elements at the course located at Rocky Mountain Scout Camp. Continue by hiking over the Lovers Leap formation before settling into a campsite at Herradura for continued Ranger training. Your next day will have you visiting the Continental Tie & Lumber Co. at Crater Lake. After your time there, you'll head up and over Fowler Mesa to Lookout Meadow. Keep your voices low as you hike into Lookout Meadow, and you might see the small elk herd that frequents the area. Wake up early to watch the sunrise from the top of the meadow and see why it is called Lookout! From there, scale rugged Lookout Peak and view the twists and turns of Rayado Canyon below. Your next destination is where the canyon divides at Fish Camp. Learn the history of Waite Phillips’ Rayado lodge enroute to Beaubien where you will rope, brand, eat a Chuckwagon dinner, and be entertained at a cowboy campfire. The next morning, you'll have the opportunity to shoot muzzle loading rifles at Black Mountain on your way down the North Fork Urraca Creek. Do some rock climbing and rappelling at Miners Park, then rest well and be sure to fill all of your water bottles because the final challenge awaits...The Tooth of Time! Climb Shaefers Peak first, and then on to the Tooth of Time, all the while reflecting on this amazing journey as you make your way back to Base Camp by traversing Tooth Ridge."," "]

{"sheet":"Calculator","index":13,"n_rows":45,"n_cols":66,"rows_kept":45,"cut":false,"hidden":true,"merged":[[39,0,39,1]]}
["Calculate Individual Values Based on Tables & Scores",null,null,null,null,null,null,null,null,null,null,null,null,null,null,null,null,null,null,null,null,null,null,1,{"$f":"X1+1","v":2},{"$f":"Y1+1","v":3},4,5,6,7,8,9,10,11,12,13,14,15,16,17,18,19,20,21,22,23,24,25,26,27,28,29,30,31,32,33,34,35,36,37,38,39,40,41,42,43]
[{"$f":"Itineraries!A2","v":"Itinerary"},"Ranking","Difficulty","Distance","Food from HQ","Days Food","Trail Camps","Dry Camps","Total Camps","Max Altitude","Total Gain","Daily Change","Hike Out","Hike In","Baldy Mountain","Mount Phillips","Tooth of Time","Trail Peak","Mountaineering","South","Central","North","Valle Vidal",{"$f":"INDEX(program_table,X$1)","v":"Archaeology"},{"$f":"INDEX(program_table,Y$1)","v":"Archery - 3 Dimensional"},{"$f":"INDEX(program_table,Z$1)","v":"Atlatl (Dart-throwing)"},{"$f":"INDEX(program_table,AA$1)","v":"Baldy Mountain"},{"$f":"INDEX(program_table,AB$1)","v":"Blacksmithing"},{"$f":"INDEX(program_table,AC$1)","v":"Bouldering"},{"$f":"INDEX(program_table,AD$1)","v":"Campfire (evening)"},{"$f":"INDEX(program_table,AE$1)","v":"Cantina"},{"$f":"INDEX(program_table,AF$1)","v":"Challenge Events"},{"$f":"INDEX(program_table,AG$1)","v":"Chuckwagon Dinner"},{"$f":"INDEX(program_table,AH$1)","v":"Cowboy Action Shooting"},{"$f":"INDEX(program_table,AI$1)","v":"Demonstration Forest"},{"$f":"INDEX(program_table,AJ$1)","v":"Fishing"},{"$f":"INDEX(program_table,AK$1)","v":"Fly Tying"},{"$f":"INDEX(program_table,AL$1)","v":"Fur Trapper Rendezvous"},{"$f":"INDEX(program_table,AM$1)","v":"Gold Mining & Panning"},{"$f":"INDEX(program_table,AN$1)","v":"High Ropes & Climbing Tower"},{"$f":"INDEX(program_table,AO$1)","v":"Historic Chase Ranch"},{"$f":"INDEX(program_table,AP$1)","v":"Homesteading"},{"$f":"INDEX(program_table,AQ$1)","v":"Horse Rides"},{"$f":"INDEX(program_table,AR$1)","v":"Inspiration Point Hike"},{"$f":"INDEX(program_table,AS$1)","v":"Laser Shot Shooting Range"},{"$f":"INDEX(program_table,AT$1)","v":"Lodge/Cabin Tours"},{"$f":"INDEX(program_table,AU$1)","v":"Low Impact Camping"},{"$f":"INDEX(program_table,AV$1)","v":"Mexican Dinner"},{"$f":"INDEX(program_table,AW$1)","v":"Mine Tour"},{"$f":"INDEX(program_table,AX$1)","v":"Mount Phillips"},{"$f":"INDEX(program_table,AY$1)","v":"Mountaineering"},{"$f":"INDEX(program_table,AZ$1)","v":"Muzzle Loading Rifle"},{"$f":"INDEX(program_table,BA$1)","v":"New Mexico Homestead"},{"$f":"INDEX(program_table,BB$1)","v":"Petroglyph Tour"},{"$f":"INDEX(program_table,BC$1)","v":"Post Civil War Encampment"},{"$f":"INDEX(program_table,BD$1)","v":"Railroading"},{"$f":"INDEX(program_table,BE$1)","v":"Rock Climbing & Rappelling"},{"$f":"INDEX(program_table,BF$1)","v":"Rocky Mountain Fur Co."},{"$f":"INDEX(program_table,BG$1)","v":"Shooting/Reloading - .30-06"},{"$f":"INDEX(program_table,BH$1)","v":"Shotgun Shooting/Reloading - 12 Gauge"},{"$f":"INDEX(program_table,BI$1)","v":"Spar Pole Climbing"},{"$f":"INDEX(program_table,BJ$1)","v":"Tie Making & Crosscut Saws"},{"$f":"INDEX(program_table,BK$1)","v":"Tomahawk Throwing"},{"$f":"INDEX(program_table,BL$1)","v":"Tooth of Time"},{"$f":"INDEX(program_table,BM$1)","v":"Trail Peak"},{"$f":"INDEX(program_table,BN$1)","v":"Western Lore/Branding"}]
[{"$f":"Itineraries!A3","v":"7-1"},{"$f":"SUM(C3:BN3)","v":10356},{"$f":"getScoreFactor(C$2,itineraryCamps!C4)","v":4000},{"$f":"getScoreFactor(D$2,\"Miles\") *itineraryCamps!D4","v":2900},{"$f":"getScoreFactor(E$2,Itineraries!B3)","v":30},{"$f":"getScoreFactor(F$2,Itineraries!C3)","v":90},{"$f":"getScoreFactor(G$2,Itineraries!E3)","v":25},{"$f":"getScoreFactor(H$2,Itineraries!H3)","v":300},{"$f":"getScoreFactor(I$2,Itineraries!G3)","v":90},{"$f":"getScoreFactor(J$2,Itineraries!J3)","v":50},{"$f":"getScoreFactor(K$2,Itineraries!K3)","v":70},{"$f":"getScoreFactor(L$2,Itineraries!L3)","v":200},{"$f":"IF(INDEX(startingTA,numericItinerary($A3))=$M$2,getScoreFactor(M$2,\"y\"),getScoreFactor(M$2,\"n\"))","v":0},{"$f":"IF(INDEX(startingTA,numericItinerary($A3))=$M$2,getScoreFactor(N$2,\"y\"),getScoreFactor(N$2,\"n\"))","v":0},{"$f":"IF(INDEX(baldyMountainHike,numericItinerary($A3))=\"\",\"\",getPeakScore(O$2))","v":""},{"$f":"IF(INDEX(mountPhillipsHike,numericItinerary($A3))=\"\",\"\",getPeakScore(P$2))","v":""},{"$f":"IF(INDEX(toothOfTimeHike,numericItinerary($A3))=\"\",\"\",getPeakScore(Q$2))","v":""},{"$f":"IF(INDEX(trailPeakHike,numericItinerary($A3))=\"\",\"\",getPeakScore(R$2))","v":""},{"$f":"IF(INDEX(mountaineeringHike,numericItinerary($A3))=\"\",\"\",getPeakScore(S$2))","v":0},{"$f":"IF(areaImportant<>\"y\",\"\",IF(Itineraries!P3<>\"Y\",\"\",getareascore(T$2)))","v":""},{"$f":"IF(areaImportant<>\"y\",\"\",IF(Itineraries!Q3<>\"Y\",\"\",getareascore(U$2)))","v":""},{"$f":"IF(areaImportant<>\"y\",\"\",IF(Itineraries!R3<>\"Y\",\"\",getareascore(V$2)))","v":""},{"$f":"IF(areaImportant<>\"y\",\"\",IF(Itineraries!S3<>\"Y\",\"\",getareascore(W$2)))","v":""},{"$f":"IF(ItineraryPrograms!B3=\"y\",getScoreFactor(\"Program\",X$2),\"\")","v":228},{"$f":"IF(ItineraryPrograms!C3=\"y\",getScoreFactor(\"Program\",Y$2),\"\")","v":""},{"$f":"IF(ItineraryPrograms!D3=\"y\",getScoreFactor(\"Program\",Z$2),\"\")","v":114},{"$f":"IF(ItineraryPrograms!E3=\"y\",getScoreFactor(\"Program\",AA$2),\"\")","v":""},{"$f":"IF(ItineraryPrograms!F3=\"y\",getScoreFactor(\"Program\",AB$2),\"\")","v":162},{"$f":"IF(ItineraryPrograms!G3=\"y\",getScoreFactor(\"Program\",AC$2),\"\")","v":""},{"$f":"IF(ItineraryPrograms!H3=\"y\",getScoreFactor(\"Program\",AD$2),\"\")","v":166.5},{"$f":"IF(ItineraryPrograms!I3=\"y\",getScoreFactor(\"Program\",AE$2),\"\")","v":126},{"$f":"IF(ItineraryPrograms!J3=\"y\",getScoreFactor(\"Program\",AF$2),\"\")","v":""},{"$f":"IF(ItineraryPrograms!K3=\"y\",getScoreFactor(\"Program\",AG$2),\"\")","v":""},{"$f":"IF(ItineraryPrograms!L3=\"y\",getScoreFactor(\"Program\",AH$2),\"\")","v":""},{"$f":"IF(ItineraryPrograms!M3=\"y\",getScoreFactor(\"Program\",AI$2),\"\")","v":""},{"$f":"IF(ItineraryPrograms!N3=\"y\",getScoreFactor(\"Program\",AJ$2),\"\")","v":""},{"$f":"IF(ItineraryPrograms!O3=\"y\",getScoreFactor(\"Program\",AK$2),\"\")","v":""},{"$f":"IF(ItineraryPrograms!P3=\"y\",getScoreFactor(\"Program\",AL$2),\"\")","v":123},{"$f":"IF(ItineraryPrograms!Q3=\"y\",getScoreFactor(\"Program\",AM$2),\"\")","v":126},{"$f":"IF(ItineraryPrograms!R3=\"y\",getScoreFactor(\"Program\",AN$2),\"\")","v":""},{"$f":"IF(ItineraryPrograms!S3=\"y\",getScoreFactor(\"Program\",AO$2),\"\")","v":""},{"$f":"IF(ItineraryPrograms!T3=\"y\",getScoreFactor(\"Program\",AP$2),\"\")","v":""},{"$f":"IF(ItineraryPrograms!U3=\"y\",getScoreFactor(\"Program\",AQ$2),\"\")","v":""},{"$f":"IF(ItineraryPrograms!V3=\"y\",getScoreFactor(\"Program\",AR$2),\"\")","v":""},{"$f":"IF(ItineraryPrograms!W3=\"y\",getScoreFactor(\"Program\",AS$2),\"\")","v":""},{"$f":"IF(ItineraryPrograms!X3=\"y\",getScoreFactor(\"Program\",AT$2),\"\")","v":""},{"$f":"IF(ItineraryPrograms!Y3=\"y\",getScoreFactor(\"Program\",AU$2),\"\")","v":""},{"$f":"IF(ItineraryPrograms!Z3=\"y\",getScoreFactor(\"Program\",AV$2),\"\")","v":""},{"$f":"IF(ItineraryPrograms!AA3=\"y\",getScoreFactor(\"Program\",AW$2),\"\")","v":181.5},{"$f":"IF(ItineraryPrograms!AB3=\"y\",getScoreFactor(\"Program\",AX$2),\"\")","v":220.5},{"$f":"IF(ItineraryPrograms!AC3=\"y\",getScoreFactor(\"Program\",AY$2),\"\")","v":210},{"$f":"IF(ItineraryPrograms!AD3=\"y\",getScoreFactor(\"Program\",AZ$2),\"\")","v":255},{"$f":"IF(ItineraryPrograms!AE3=\"y\",getScoreFactor(\"Program\",BA$2),\"\")","v":""},{"$f":"IF(ItineraryPrograms!AF3=\"y\",getScoreFactor(\"Program\",BB$2),\"\")","v":193.5},{"$f":"IF(ItineraryPrograms!AG3=\"y\",getScoreFactor(\"Program\",BC$2),\"\")","v":""},{"$f":"IF(ItineraryPrograms!AH3=\"y\",getScoreFactor(\"Program\",BD$2),\"\")","v":""},{"$f":"IF(ItineraryPrograms!AI3=\"y\",getScoreFactor(\"Program\",BE$2),\"\")","v":""},{"$f":"IF(ItineraryPrograms!AJ3=\"y\",getScoreFactor(\"Program\",BF$2),\"\")","v":""},{"$f":"IF(ItineraryPrograms!AK3=\"y\",getScoreFactor(\"Program\",BG$2),\"\")","v":""},{"$f":"IF(ItineraryPrograms!AL3=\"y\",getScoreFactor(\"Program\",BH$2),\"\")","v":""},{"$f":"IF(ItineraryPrograms!AM3=\"y\",getScoreFactor(\"Program\",BI$2),\"\")","v":""},{"$f":"IF(ItineraryPrograms!AN3=\"y\",getScoreFactor(\"Program\",BJ$2),\"\")","v":151.5},{"$f":"IF(ItineraryPrograms!AO3=\"y\",getScoreFactor(\"Program\",BK$2),\"\")","v":136.5},{"$f":"IF(ItineraryPrograms!AP3=\"y\",getScoreFactor(\"Program\",BL$2),\"\")","v":""},{"$f":"IF(ItineraryPrograms!AQ3=\"y\",getScoreFactor(\"Program\",BM$2),\"\")","v":""},{"$f":"IF(ItineraryPrograms!AR3=\"y\",getScoreFactor(\"Program\",BN$2),\"\")","v":207}]
[{"$f":"Itineraries!A4","v":"7-2"},9492.75,{"$f":"getScoreFactor(C$2,itineraryCamps!C5)","v":4000},{"$f":"getScoreFactor(D$2,\"Miles\") *itineraryCamps!D5","v":2800},{"$f":"getScoreFactor(E$2,Itineraries!B4)","v":30},{"$f":"getScoreFactor(F$2,Itineraries!C4)","v":90},{"$f":"getScoreFactor(G$2,Itineraries!E4)","v":50},{"$f":"getScoreFactor(H$2,Itineraries!H4)","v":250},{"$f":"getScoreFactor(I$2,Itineraries!G4)","v":90},{"$f":"getScoreFactor(J$2,Itineraries!J4)","v":20},{"$f":"getScoreFactor(K$2,Itineraries!K4)","v":40},{"$f":"getScoreFactor(L$2,Itineraries!L4)","v":100},{"$f":"IF(INDEX(startingTA,numericItinerary($A4))=$M$2,getScoreFactor(M$2,\"y\"),getScoreFactor(M$2,\"n\"))","v":0},{"$f":"IF(INDEX(startingTA,numericItinerary($A4))=$M$2,getScoreFactor(N$2,\"y\"),getScoreFactor(N$2,\"n\"))","v":0},{"$f":"IF(INDEX(baldyMountainHike,numericItinerary($A4))=\"\",\"\",getPeakScore(O$2))","v":""},{"$f":"IF(INDEX(mountPhillipsHike,numericItinerary($A4))=\"\",\"\",getPeakScore(P$2))","v":""},{"$f":"IF(INDEX(toothOfTimeHike,numericItinerary($A4))=\"\",\"\",getPeakScore(Q$2))","v":303.75},{"$f":"IF(INDEX(trailPeakHike,numericItinerary($A4))=\"\",\"\",getPeakScore(R$2))","v":""},{"$f":"IF(INDEX(mountaineeringHike,numericItinerary($A4))=\"\",\"\",getPeakScore(S$2))","v":0},{"$f":"IF(areaImportant<>\"y\",\"\",IF(Itineraries!P4<>\"Y\",\"\",getareascore(T$2)))","v":""},{"$f":"IF(areaImportant<>\"y\",\"\",IF(Itineraries!Q4<>\"Y\",\"\",getareascore(U$2)))","v":""},{"$f":"IF(areaImportant<>\"y\",\"\",IF(Itineraries!R4<>\"Y\",\"\",getareascore(V$2)))","v":""},{"$f":"IF(areaImportant<>\"y\",\"\",IF(Itineraries!S4<>\"Y\",\"\",getareascore(W$2)))","v":""},{"$f":"IF(ItineraryPrograms!B4=\"y\",getScoreFactor(\"Program\",X$2),\"\")","v":""},{"$f":"IF(ItineraryPrograms!C4=\"y\",getScoreFactor(\"Program\",Y$2),\"\")","v":""},{"$f":"IF(ItineraryPrograms!D4=\"y\",getScoreFactor(\"Program\",Z$2),\"\")","v":""},{"$f":"IF(ItineraryPrograms!E4=\"y\",getScoreFactor(\"Program\",AA$2),\"\")","v":""},{"$f":"IF(ItineraryPrograms!F4=\"y\",getScoreFactor(\"Program\",AB$2),\"\")","v":""},{"$f":"IF(ItineraryPrograms!G4=\"y\",getScoreFactor(\"Program\",AC$2),\"\")","v":""},{"$f":"IF(ItineraryPrograms!H4=\"y\",getScoreFactor(\"Program\",AD$2),\"\")","v":166.5},{"$f":"IF(ItineraryPrograms!I4=\"y\",getScoreFactor(\"Program\",AE$2),\"\")","v":""},{"$f":"IF(ItineraryPrograms!J4=\"y\",getScoreFactor(\"Program\",AF$2),\"\")","v":130.5},{"$f":"IF(ItineraryPrograms!K4=\"y\",getScoreFactor(\"Program\",AG$2),\"\")","v":91.5},{"$f":"IF(ItineraryPrograms!L4=\"y\",getScoreFactor(\"Program\",AH$2),\"\")","v":""},{"$f":"IF(ItineraryPrograms!M4=\"y\",getScoreFactor(\"Program\",AI$2),\"\")","v":""},{"$f":"IF(ItineraryPrograms!N4=\"y\",getScoreFactor(\"Program\",AJ$2),\"\")","v":""},{"$f":"IF(ItineraryPrograms!O4=\"y\",getScoreFactor(\"Program\",AK$2),\"\")","v":""},{"$f":"IF(ItineraryPrograms!P4=\"y\",getScoreFactor(\"Program\",AL$2),\"\")","v":""},{"$f":"IF(ItineraryPrograms!Q4=\"y\",getScoreFactor(\"Program\",AM$2),\"\")","v":""},{"$f":"IF(ItineraryPrograms!R4=\"y\",getScoreFactor(\"Program\",AN$2),\"\")","v":""},{"$f":"IF(ItineraryPrograms!S4=\"y\",getScoreFactor(\"Program\",AO$2),\"\")","v":""},{"$f":"IF(ItineraryPrograms!T4=\"y\",getScoreFactor(\"Program\",AP$2),\"\")","v":""},{"$f":"IF(ItineraryPrograms!U4=\"y\",getScoreFactor(\"Program\",AQ$2),\"\")","v":156},{"$f":"IF(ItineraryPrograms!V4=\"y\",getScoreFactor(\"Program\",AR$2),\"\")","v":114},{"$f":"IF(ItineraryPrograms!W4=\"y\",getScoreFactor(\"Program\",AS$2),\"\")","v":""},{"$f":"IF(ItineraryPrograms!X4=\"y\",getScoreFactor(\"Program\",AT$2),\"\")","v":""},{"$f":"IF(ItineraryPrograms!Y4=\"y\",getScoreFactor(\"Program\",AU$2),\"\")","v":""},{"$f":"IF(ItineraryPrograms!Z4=\"y\",getScoreFactor(\"Program\",AV$2),\"\")","v":""},{"$f":"IF(ItineraryPrograms!AA4=\"y\",getScoreFactor(\"Program\",AW$2),\"\")","v":""},{"$f":"IF(ItineraryPrograms!AB4=\"y\",getScoreFactor(\"Program\",AX$2),\"\")","v":220.5},{"$f":"IF(ItineraryPrograms!AC4=\"y\",getScoreFactor(\"Program\",AY$2),\"\")","v":210},{"$f":"IF(ItineraryPrograms!AD4=\"y\",getScoreFactor(\"Program\",AZ$2),\"\")","v":""},{"$f":"IF(ItineraryPrograms!AE4=\"y\",getScoreFactor(\"Program\",BA$2),\"\")","v":""},{"$f":"IF(ItineraryPrograms!AF4=\"y\",getScoreFactor(\"Program\",BB$2),\"\")","v":""},{"$f":"IF(ItineraryPrograms!AG4=\"y\",getScoreFactor(\"Program\",BC$2),\"\")","v":""},{"$f":"IF(ItineraryPrograms!AH4=\"y\",getScoreFactor(\"Program\",BD$2),\"\")","v":""},{"$f":"IF(ItineraryPrograms!AI4=\"y\",getScoreFactor(\"Program\",BE$2),\"\")","v":220.5},{"$f":"IF(ItineraryPrograms!AJ4=\"y\",getScoreFactor(\"Program\",BF$2),\"\")","v":""},{"$f":"IF(ItineraryPrograms!AK4=\"y\",getScoreFactor(\"Program\",BG$2),\"\")","v":""},{"$f":"IF(ItineraryPrograms!AL4=\"y\",getScoreFactor(\"Program\",BH$2),\"\")","v":""},{"$f":"IF(ItineraryPrograms!AM4=\"y\",getScoreFactor(\"Program\",BI$2),\"\")","v":""},{"$f":"IF(ItineraryPrograms!AN4=\"y\",getScoreFactor(\"Program\",BJ$2),\"\")","v":""},{"$f":"IF(ItineraryPrograms!AO4=\"y\",getScoreFactor(\"Program\",BK$2),\"\")","v":""},{"$f":"IF(ItineraryPrograms!AP4=\"y\",getScoreFactor(\"Program\",BL$2),\"\")","v":202.5},{"$f":"IF(ItineraryPrograms!AQ4=\"y\",getScoreFactor(\"Program\",BM$2),\"\")","v":""},{"$f":"IF(ItineraryPrograms!AR4=\"y\",getScoreFactor(\"Program\",BN$2),\"\")","v":207}]
[{"$f":"Itineraries!A5","v":"7-3"},9805.5,{"$f":"getScoreFactor(C$2,itineraryCamps!C6)","v":4000},{"$f":"getScoreFactor(D$2,\"Miles\") *itineraryCamps!D6","v":2700},{"$f":"getScoreFactor(E$2,Itineraries!B5)","v":40},{"$f":"getScoreFactor(F$2,Itineraries!C5)","v":80},{"$f":"getScoreFactor(G$2,Itineraries!E5)","v":25},{"$f":"getScoreFactor(H$2,Itineraries!H5)","v":300},{"$f":"getScoreFactor(I$2,Itineraries!G5)","v":80},{"$f":"getScoreFactor(J$2,Itineraries!J5)","v":50},{"$f":"getScoreFactor(K$2,Itineraries!K5)","v":50},{"$f":"getScoreFactor(L$2,Itineraries!L5)","v":100},{"$f":"IF(INDEX(startingTA,numericItinerary($A5))=$M$2,getScoreFactor(M$2,\"y\"),getScoreFactor(M$2,\"n\"))","v":0},{"$f":"IF(INDEX(startingTA,numericItinerary($A5))=$M$2,getScoreFactor(N$2,\"y\"),getScoreFactor(N$2,\"n\"))","v":0},{"$f":"IF(INDEX(baldyMountainHike,numericItinerary($A5))=\"\",\"\",getPeakScore(O$2))","v":564},{"$f":"IF(INDEX(mountPhillipsHike,numericItinerary($A5))=\"\",\"\",getPeakScore(P$2))","v":""},{"$f":"IF(INDEX(toothOfTimeHike,numericItinerary($A5))=\"\",\"\",getPeakScore(Q$2))","v":""},{"$f":"IF(INDEX(trailPeakHike,numericItinerary($A5))=\"\",\"\",getPeakScore(R$2))","v":""},{"$f":"IF(INDEX(mountaineeringHike,numericItinerary($A5))=\"\",\"\",getPeakScore(S$2))","v":""},{"$f":"IF(areaImportant<>\"y\",\"\",IF(Itineraries!P5<>\"Y\",\"\",getareascore(T$2)))","v":""},{"$f":"IF(areaImportant<>\"y\",\"\",IF(Itineraries!Q5<>\"Y\",\"\",getareascore(U$2)))","v":""},{"$f":"IF(areaImportant<>\"y\",\"\",IF(Itineraries!R5<>\"Y\",\"\",getareascore(V$2)))","v":""},{"$f":"IF(areaImportant<>\"y\",\"\",IF(Itineraries!S5<>\"Y\",\"\",getareascore(W$2)))","v":""},{"$f":"IF(ItineraryPrograms!B5=\"y\",getScoreFactor(\"Program\",X$2),\"\")","v":""},{"$f":"IF(ItineraryPrograms!C5=\"y\",getScoreFactor(\"Program\",Y$2),\"\")","v":""},{"$f":"IF(ItineraryPrograms!D5=\"y\",getScoreFactor(\"Program\",Z$2),\"\")","v":""},{"$f":"IF(ItineraryPrograms!E5=\"y\",getScoreFactor(\"Program\",AA$2),\"\")","v":282},{"$f":"IF(ItineraryPrograms!F5=\"y\",getScoreFactor(\"Program\",AB$2),\"\")","v":""},{"$f":"IF(ItineraryPrograms!G5=\"y\",getScoreFactor(\"Program\",AC$2),\"\")","v":""},{"$f":"IF(ItineraryPrograms!H5=\"y\",getScoreFactor(\"Program\",AD$2),\"\")","v":""},{"$f":"IF(ItineraryPrograms!I5=\"y\",getScoreFactor(\"Program\",AE$2),\"\")","v":126},{"$f":"IF(ItineraryPrograms!J5=\"y\",getScoreFactor(\"Program\",AF$2),\"\")","v":130.5},{"$f":"IF(ItineraryPrograms!K5=\"y\",getScoreFactor(\"Program\",AG$2),\"\")","v":""},{"$f":"IF(ItineraryPrograms!L5=\"y\",getScoreFactor(\"Program\",AH$2),\"\")","v":""},{"$f":"IF(ItineraryPrograms!M5=\"y\",getScoreFactor(\"Program\",AI$2),\"\")","v":""},{"$f":"IF(ItineraryPrograms!N5=\"y\",getScoreFactor(\"Program\",AJ$2),\"\")","v":""},{"$f":"IF(ItineraryPrograms!O5=\"y\",getScoreFactor(\"Program\",AK$2),\"\")","v":""},{"$f":"IF(ItineraryPrograms!P5=\"y\",getScoreFactor(\"Program\",AL$2),\"\")","v":123},{"$f":"IF(ItineraryPrograms!Q5=\"y\",getScoreFactor(\"Program\",AM$2),\"\")","v":126},{"$f":"IF(ItineraryPrograms!R5=\"y\",getScoreFactor(\"Program\",AN$2),\"\")","v":""},{"$f":"IF(ItineraryPrograms!S5=\"y\",getScoreFactor(\"Program\",AO$2),\"\")","v":""},{"$f":"IF(ItineraryPrograms!T5=\"y\",getScoreFactor(\"Program\",AP$2),\"\")","v":""},{"$f":"IF(ItineraryPrograms!U5=\"y\",getScoreFactor(\"Program\",AQ$2),\"\")","v":""},{"$f":"IF(ItineraryPrograms!V5=\"y\",getScoreFactor(\"Program\",AR$2),\"\")","v":""},{"$f":"IF(ItineraryPrograms!W5=\"y\",getScoreFactor(\"Program\",AS$2),\"\")","v":""},{"$f":"IF(ItineraryPrograms!X5=\"y\",getScoreFactor(\"Program\",AT$2),\"\")","v":""},{"$f":"IF(ItineraryPrograms!Y5=\"y\",getScoreFactor(\"Program\",AU$2),\"\")","v":""},{"$f":"IF(ItineraryPrograms!Z5=\"y\",getScoreFactor(\"Program\",AV$2),\"\")","v":""},{"$f":"IF(ItineraryPrograms!AA5=\"y\",getScoreFactor(\"Program\",AW$2),\"\")","v":""},{"$f":"IF(ItineraryPrograms!AB5=\"y\",getScoreFactor(\"Program\",AX$2),\"\")","v":220.5},{"$f":"IF(ItineraryPrograms!AC5=\"y\",getScoreFactor(\"Program\",AY$2),\"\")","v":210},{"$f":"IF(ItineraryPrograms!AD5=\"y\",getScoreFactor(\"Program\",AZ$2),\"\")","v":255},{"$f":"IF(ItineraryPrograms!AE5=\"y\",getScoreFactor(\"Program\",BA$2),\"\")","v":""},{"$f":"IF(ItineraryPrograms!AF5=\"y\",getScoreFactor(\"Program\",BB$2),\"\")","v":""},{"$f":"IF(ItineraryPrograms!AG5=\"y\",getScoreFactor(\"Program\",BC$2),\"\")","v":""},{"$f":"IF(ItineraryPrograms!AH5=\"y\",getScoreFactor(\"Program\",BD$2),\"\")","v":""},{"$f":"IF(ItineraryPrograms!AI5=\"y\",getScoreFactor(\"Program\",BE$2),\"\")","v":""},{"$f":"IF(ItineraryPrograms!AJ5=\"y\",getScoreFactor(\"Program\",BF$2),\"\")","v":""},{"$f":"IF(ItineraryPrograms!AK5=\"y\",getScoreFactor(\"Program\",BG$2),\"\")","v":""},{"$f":"IF(ItineraryPrograms!AL5=\"y\",getScoreFactor(\"Program\",BH$2),\"\")","v":""},{"$f":"IF(ItineraryPrograms!AM5=\"y\",getScoreFactor(\"Program\",BI$2),\"\")","v":""},{"$f":"IF(ItineraryPrograms!AN5=\"y\",getScoreFactor(\"Program\",BJ$2),\"\")","v":""},{"$f":"IF(ItineraryPrograms!AO5=\"y\",getScoreFactor(\"Program\",BK$2),\"\")","v":136.5},{"$f":"IF(ItineraryPrograms!AP5=\"y\",getScoreFactor(\"Program\",BL$2),\"\")","v":""},{"$f":"IF(ItineraryPrograms!AQ5=\"y\",getScoreFactor(\"Program\",BM$2),\"\")","v":""},{"$f":"IF(ItineraryPrograms!AR5=\"y\",getScoreFactor(\"Program\",BN$2),\"\")","v":207}]
[{"$f":"Itineraries!A6","v":"7-4"},10010.666666666666,{"$f":"getScoreFactor(C$2,itineraryCamps!C7)","v":3166.6666666666665},{"$f":"getScoreFactor(D$2,\"Miles\") *itineraryCamps!D7","v":3200},{"$f":"getScoreFactor(E$2,Itineraries!B6)","v":30},{"$f":"getScoreFactor(F$2,Itineraries!C6)","v":90},{"$f":"getScoreFactor(G$2,Itineraries!E6)","v":50},{"$f":"getScoreFactor(H$2,Itineraries!H6)","v":250},{"$f":"getScoreFactor(I$2,Itineraries!G6)","v":80},{"$f":"getScoreFactor(J$2,Itineraries!J6)","v":60},{"$f":"getScoreFactor(K$2,Itineraries!K6)","v":60},{"$f":"getScoreFactor(L$2,Itineraries!L6)","v":300},{"$f":"IF(INDEX(startingTA,numericItinerary($A6))=$M$2,getScoreFactor(M$2,\"y\"),getScoreFactor(M$2,\"n\"))","v":0},{"$f":"IF(INDEX(startingTA,numericItinerary($A6))=$M$2,getScoreFactor(N$2,\"y\"),getScoreFactor(N$2,\"n\"))","v":0},{"$f":"IF(INDEX(baldyMountainHike,numericItinerary($A6))=\"\",\"\",getPeakScore(O$2))","v":564},{"$f":"IF(INDEX(mountPhillipsHike,numericItinerary($A6))=\"\",\"\",getPeakScore(P$2))","v":""},{"$f":"IF(INDEX(toothOfTimeHike,numericItinerary($A6))=\"\",\"\",getPeakScore(Q$2))","v":""},{"$f":"IF(INDEX(trailPeakHike,numericItinerary($A6))=\"\",\"\",getPeakScore(R$2))","v":""},{"$f":"IF(INDEX(mountaineeringHike,numericItinerary($A6))=\"\",\"\",getPeakScore(S$2))","v":""},{"$f":"IF(areaImportant<>\"y\",\"\",IF(Itineraries!P6<>\"Y\",\"\",getareascore(T$2)))","v":""},{"$f":"IF(areaImportant<>\"y\",\"\",IF(Itineraries!Q6<>\"Y\",\"\",getareascore(U$2)))","v":""},{"$f":"IF(areaImportant<>\"y\",\"\",IF(Itineraries!R6<>\"Y\",\"\",getareascore(V$2)))","v":""},{"$f":"IF(areaImportant<>\"y\",\"\",IF(Itineraries!S6<>\"Y\",\"\",getareascore(W$2)))","v":""},{"$f":"IF(ItineraryPrograms!B6=\"y\",getScoreFactor(\"Program\",X$2),\"\")","v":""},{"$f":"IF(ItineraryPrograms!C6=\"y\",getScoreFactor(\"Program\",Y$2),\"\")","v":""},{"$f":"IF(ItineraryPrograms!D6=\"y\",getScoreFactor(\"Program\",Z$2),\"\")","v":""},{"$f":"IF(ItineraryPrograms!E6=\"y\",getScoreFactor(\"Program\",AA$2),\"\")","v":282},{"$f":"IF(ItineraryPrograms!F6=\"y\",getScoreFactor(\"Program\",AB$2),\"\")","v":162},{"$f":"IF(ItineraryPrograms!G6=\"y\",getScoreFactor(\"Program\",AC$2),\"\")","v":""},{"$f":"IF(ItineraryPrograms!H6=\"y\",getScoreFactor(\"Program\",AD$2),\"\")","v":""},{"$f":"IF(ItineraryPrograms!I6=\"y\",getScoreFactor(\"Program\",AE$2),\"\")","v":126},{"$f":"IF(ItineraryPrograms!J6=\"y\",getScoreFactor(\"Program\",AF$2),\"\")","v":130.5},{"$f":"IF(ItineraryPrograms!K6=\"y\",getScoreFactor(\"Program\",AG$2),\"\")","v":""},{"$f":"IF(ItineraryPrograms!L6=\"y\",getScoreFactor(\"Program\",AH$2),\"\")","v":""},{"$f":"IF(ItineraryPrograms!M6=\"y\",getScoreFactor(\"Program\",AI$2),\"\")","v":""},{"$f":"IF(ItineraryPrograms!N6=\"y\",getScoreFactor(\"Program\",AJ$2),\"\")","v":""},{"$f":"IF(ItineraryPrograms!O6=\"y\",getScoreFactor(\"Program\",AK$2),\"\")","v":""},{"$f":"IF(ItineraryPrograms!P6=\"y\",getScoreFactor(\"Program\",AL$2),\"\")","v":123},{"$f":"IF(ItineraryPrograms!Q6=\"y\",getScoreFactor(\"Program\",AM$2),\"\")","v":126},{"$f":"IF(ItineraryPrograms!R6=\"y\",getScoreFactor(\"Program\",AN$2),\"\")","v":""},{"$f":"IF(ItineraryPrograms!S6=\"y\",getScoreFactor(\"Program\",AO$2),\"\")","v":""},{"$f":"IF(ItineraryPrograms!T6=\"y\",getScoreFactor(\"Program\",AP$2),\"\")","v":""},{"$f":"IF(ItineraryPrograms!U6=\"y\",getScoreFactor(\"Program\",AQ$2),\"\")","v":""},{"$f":"IF(ItineraryPrograms!V6=\"y\",getScoreFactor(\"Program\",AR$2),\"\")","v":""},{"$f":"IF(ItineraryPrograms!W6=\"y\",getScoreFactor(\"Program\",AS$2),\"\")","v":""},{"$f":"IF(ItineraryPrograms!X6=\"y\",getScoreFactor(\"Program\",AT$2),\"\")","v":""},{"$f":"IF(ItineraryPrograms!Y6=\"y\",getScoreFactor(\"Program\",AU$2),\"\")","v":""},{"$f":"IF(ItineraryPrograms!Z6=\"y\",getScoreFactor(\"Program\",AV$2),\"\")","v":""},{"$f":"IF(ItineraryPrograms!AA6=\"y\",getScoreFactor(\"Program\",AW$2),\"\")","v":181.5},{"$f":"IF(ItineraryPrograms!AB6=\"y\",getScoreFactor(\"Program\",AX$2),\"\")","v":220.5},{"$f":"IF(ItineraryPrograms!AC6=\"y\",getScoreFactor(\"Program\",AY$2),\"\")","v":210},{"$f":"IF(ItineraryPrograms!AD6=\"y\",getScoreFactor(\"Program\",AZ$2),\"\")","v":255},{"$f":"IF(ItineraryPrograms!AE6=\"y\",getScoreFactor(\"Program\",BA$2),\"\")","v":""},{"$f":"IF(ItineraryPrograms!AF6=\"y\",getScoreFactor(\"Program\",BB$2),\"\")","v":""},{"$f":"IF(ItineraryPrograms!AG6=\"y\",getScoreFactor(\"Program\",BC$2),\"\")","v":""},{"$f":"IF(ItineraryPrograms!AH6=\"y\",getScoreFactor(\"Program\",BD$2),\"\")","v":""},{"$f":"IF(ItineraryPrograms!AI6=\"y\",getScoreFactor(\"Program\",BE$2),\"\")","v":""},{"$f":"IF(ItineraryPrograms!AJ6=\"y\",getScoreFactor(\"Program\",BF$2),\"\")","v":""},{"$f":"IF(ItineraryPrograms!AK6=\"y\",getScoreFactor(\"Program\",BG$2),\"\")","v":""},{"$f":"IF(ItineraryPrograms!AL6=\"y\",getScoreFactor(\"Program\",BH$2),\"\")","v":""},{"$f":"IF(ItineraryPrograms!AM6=\"y\",getScoreFactor(\"Program\",BI$2),\"\")","v":""},{"$f":"IF(ItineraryPrograms!AN6=\"y\",getScoreFactor(\"Program\",BJ$2),\"\")","v":""},{"$f":"IF(ItineraryPrograms!AO6=\"y\",getScoreFactor(\"Program\",BK$2),\"\")","v":136.5},{"$f":"IF(ItineraryPrograms!AP6=\"y\",getScoreFactor(\"Program\",BL$2),\"\")","v":""},{"$f":"IF(ItineraryPrograms!AQ6=\"y\",getScoreFactor(\"Program\",BM$2),\"\")","v":""},{"$f":"IF(ItineraryPrograms!AR6=\"y\",getScoreFactor(\"Program\",BN$2),\"\")","v":207}]
[{"$f":"Itineraries!A7","v":"7-5"},8844,{"$f":"getScoreFactor(C$2,itineraryCamps!C8)","v":4000},{"$f":"getScoreFactor(D$2,\"Miles\") *itineraryCamps!D8","v":3100},{"$f":"getScoreFactor(E$2,Itineraries!B7)","v":30},{"$f":"getScoreFactor(F$2,Itineraries!C7)","v":90},{"$f":"getScoreFactor(G$2,Itineraries!E7)","v":50},{"$f":"getScoreFactor(H$2,Itineraries!H7)","v":300},{"$f":"getScoreFactor(I$2,Itineraries!G7)","v":90},{"$f":"getScoreFactor(J$2,Itineraries!J7)","v":20},{"$f":"getScoreFactor(K$2,Itineraries!K7)","v":40},{"$f":"getScoreFactor(L$2,Itineraries!L7)","v":50},{"$f":"IF(INDEX(startingTA,numericItinerary($A7))=$M$2,getScoreFactor(M$2,\"y\"),getScoreFactor(M$2,\"n\"))","v":0},{"$f":"IF(INDEX(startingTA,numericItinerary($A7))=$M$2,getScoreFactor(N$2,\"y\"),getScoreFactor(N$2,\"n\"))","v":0},{"$f":"IF(INDEX(baldyMountainHike,numericItinerary($A7))=\"\",\"\",getPeakScore(O$2))","v":""},{"$f":"IF(INDEX(mountPhillipsHike,numericItinerary($A7))=\"\",\"\",getPeakScore(P$2))","v":""},{"$f":"IF(INDEX(toothOfTimeHike,numericItinerary($A7))=\"\",\"\",getPeakScore(Q$2))","v":""},{"$f":"IF(INDEX(trailPeakHike,numericItinerary($A7))=\"\",\"\",getPeakScore(R$2))","v":""},{"$f":"IF(INDEX(mountaineeringHike,numericItinerary($A7))=\"\",\"\",getPeakScore(S$2))","v":0},{"$f":"IF(areaImportant<>\"y\",\"\",IF(Itineraries!P7<>\"Y\",\"\",getareascore(T$2)))","v":""},{"$f":"IF(areaImportant<>\"y\",\"\",IF(Itineraries!Q7<>\"Y\",\"\",getareascore(U$2)))","v":""},{"$f":"IF(areaImportant<>\"y\",\"\",IF(Itineraries!R7<>\"Y\",\"\",getareascore(V$2)))","v":""},{"$f":"IF(areaImportant<>\"y\",\"\",IF(Itineraries!S7<>\"Y\",\"\",getareascore(W$2)))","v":""},{"$f":"IF(ItineraryPrograms!B7=\"y\",getScoreFactor(\"Program\",X$2),\"\")","v":""},{"$f":"IF(ItineraryPrograms!C7=\"y\",getScoreFactor(\"Program\",Y$2),\"\")","v":""},{"$f":"IF(ItineraryPrograms!D7=\"y\",getScoreFactor(\"Program\",Z$2),\"\")","v":""},{"$f":"IF(ItineraryPrograms!E7=\"y\",getScoreFactor(\"Program\",AA$2),\"\")","v":""},{"$f":"IF(ItineraryPrograms!F7=\"y\",getScoreFactor(\"Program\",AB$2),\"\")","v":""},{"$f":"IF(ItineraryPrograms!G7=\"y\",getScoreFactor(\"Program\",AC$2),\"\")","v":""},{"$f":"IF(ItineraryPrograms!H7=\"y\",getScoreFactor(\"Program\",AD$2),\"\")","v":166.5},{"$f":"IF(ItineraryPrograms!I7=\"y\",getScoreFactor(\"Program\",AE$2),\"\")","v":""},{"$f":"IF(ItineraryPrograms!J7=\"y\",getScoreFactor(\"Program\",AF$2),\"\")","v":130.5},{"$f":"IF(ItineraryPrograms!K7=\"y\",getScoreFactor(\"Program\",AG$2),\"\")","v":""},{"$f":"IF(ItineraryPrograms!L7=\"y\",getScoreFactor(\"Program\",AH$2),\"\")","v":""},{"$f":"IF(ItineraryPrograms!M7=\"y\",getScoreFactor(\"Program\",AI$2),\"\")","v":""},{"$f":"IF(ItineraryPrograms!N7=\"y\",getScoreFactor(\"Program\",AJ$2),\"\")","v":""},{"$f":"IF(ItineraryPrograms!O7=\"y\",getScoreFactor(\"Program\",AK$2),\"\")","v":""},{"$f":"IF(ItineraryPrograms!P7=\"y\",getScoreFactor(\"Program\",AL$2),\"\")","v":""},{"$f":"IF(ItineraryPrograms!Q7=\"y\",getScoreFactor(\"Program\",AM$2),\"\")","v":""},{"$f":"IF(ItineraryPrograms!R7=\"y\",getScoreFactor(\"Program\",AN$2),\"\")","v":""},{"$f":"IF(ItineraryPrograms!S7=\"y\",getScoreFactor(\"Program\",AO$2),\"\")","v":""},{"$f":"IF(ItineraryPrograms!T7=\"y\",getScoreFactor(\"Program\",AP$2),\"\")","v":""},{"$f":"IF(ItineraryPrograms!U7=\"y\",getScoreFactor(\"Program\",AQ$2),\"\")","v":""},{"$f":"IF(ItineraryPrograms!V7=\"y\",getScoreFactor(\"Program\",AR$2),\"\")","v":114},{"$f":"IF(ItineraryPrograms!W7=\"y\",getScoreFactor(\"Program\",AS$2),\"\")","v":""},{"$f":"IF(ItineraryPrograms!X7=\"y\",getScoreFactor(\"Program\",AT$2),\"\")","v":""},{"$f":"IF(ItineraryPrograms!Y7=\"y\",getScoreFactor(\"Program\",AU$2),\"\")","v":""},{"$f":"IF(ItineraryPrograms!Z7=\"y\",getScoreFactor(\"Program\",AV$2),\"\")","v":""},{"$f":"IF(ItineraryPrograms!AA7=\"y\",getScoreFactor(\"Program\",AW$2),\"\")","v":""},{"$f":"IF(ItineraryPrograms!AB7=\"y\",getScoreFactor(\"Program\",AX$2),\"\")","v":""},{"$f":"IF(ItineraryPrograms!AC7=\"y\",getScoreFactor(\"Program\",AY$2),\"\")","v":""},{"$f":"IF(ItineraryPrograms!AD7=\"y\",getScoreFactor(\"Program\",AZ$2),\"\")","v":""},{"$f":"IF(ItineraryPrograms!AE7=\"y\",getScoreFactor(\"Program\",BA$2),\"\")","v":""},{"$f":"IF(ItineraryPrograms!AF7=\"y\",getScoreFactor(\"Program\",BB$2),\"\")","v":""},{"$f":"IF(ItineraryPrograms!AG7=\"y\",getScoreFactor(\"Program\",BC$2),\"\")","v":""},{"$f":"IF(ItineraryPrograms!AH7=\"y\",getScoreFactor(\"Program\",BD$2),\"\")","v":""},{"$f":"IF(ItineraryPrograms!AI7=\"y\",getScoreFactor(\"Program\",BE$2),\"\")","v":220.5},{"$f":"IF(ItineraryPrograms!AJ7=\"y\",getScoreFactor(\"Program\",BF$2),\"\")","v":""},{"$f":"IF(ItineraryPrograms!AK7=\"y\",getScoreFactor(\"Program\",BG$2),\"\")","v":""},{"$f":"IF(ItineraryPrograms!AL7=\"y\",getScoreFactor(\"Program\",BH$2),\"\")","v":235.5},{"$f":"IF(ItineraryPrograms!AM7=\"y\",getScoreFactor(\"Program\",BI$2),\"\")","v":""},{"$f":"IF(ItineraryPrograms!AN7=\"y\",getScoreFactor(\"Program\",BJ$2),\"\")","v":""},{"$f":"IF(ItineraryPrograms!AO7=\"y\",getScoreFactor(\"Program\",BK$2),\"\")","v":""},{"$f":"IF(ItineraryPrograms!AP7=\"y\",getScoreFactor(\"Program\",BL$2),\"\")","v":""},{"$f":"IF(ItineraryPrograms!AQ7=\"y\",getScoreFactor(\"Program\",BM$2),\"\")","v":""},{"$f":"IF(ItineraryPrograms!AR7=\"y\",getScoreFactor(\"Program\",BN$2),\"\")","v":207}]
[{"$f":"Itineraries!A8","v":"7-6"},9674.6666666666661,{"$f":"getScoreFactor(C$2,itineraryCamps!C9)","v":3166.6666666666665},{"$f":"getScoreFactor(D$2,\"Miles\") *itineraryCamps!D9","v":3500},{"$f":"getScoreFactor(E$2,Itineraries!B8)","v":30},{"$f":"getScoreFactor(F$2,Itineraries!C8)","v":90},{"$f":"getScoreFactor(G$2,Itineraries!E8)","v":50},{"$f":"getScoreFactor(H$2,Itineraries!H8)","v":250},{"$f":"getScoreFactor(I$2,Itineraries!G8)","v":90},{"$f":"getScoreFactor(J$2,Itineraries!J8)","v":20},{"$f":"getScoreFactor(K$2,Itineraries!K8)","v":40},{"$f":"getScoreFactor(L$2,Itineraries!L8)","v":50},{"$f":"IF(INDEX(startingTA,numericItinerary($A8))=$M$2,getScoreFactor(M$2,\"y\"),getScoreFactor(M$2,\"n\"))","v":0},{"$f":"IF(INDEX(startingTA,numericItinerary($A8))=$M$2,getScoreFactor(N$2,\"y\"),getScoreFactor(N$2,\"n\"))","v":0},{"$f":"IF(INDEX(baldyMountainHike,numericItinerary($A8))=\"\",\"\",getPeakScore(O$2))","v":""},{"$f":"IF(INDEX(mountPhillipsHike,numericItinerary($A8))=\"\",\"\",getPeakScore(P$2))","v":""},{"$f":"IF(INDEX(toothOfTimeHike,numericItinerary($A8))=\"\",\"\",getPeakScore(Q$2))","v":""},{"$f":"IF(INDEX(trailPeakHike,numericItinerary($A8))=\"\",\"\",getPeakScore(R$2))","v":""},{"$f":"IF(INDEX(mountaineeringHike,numericItinerary($A8))=\"\",\"\",getPeakScore(S$2))","v":0},{"$f":"IF(areaImportant<>\"y\",\"\",IF(Itineraries!P8<>\"Y\",\"\",getareascore(T$2)))","v":""},{"$f":"IF(areaImportant<>\"y\",\"\",IF(Itineraries!Q8<>\"Y\",\"\",getareascore(U$2)))","v":""},{"$f":"IF(areaImportant<>\"y\",\"\",IF(Itineraries!R8<>\"Y\",\"\",getareascore(V$2)))","v":""},{"$f":"IF(areaImportant<>\"y\",\"\",IF(Itineraries!S8<>\"Y\",\"\",getareascore(W$2)))","v":""},{"$f":"IF(ItineraryPrograms!B8=\"y\",getScoreFactor(\"Program\",X$2),\"\")","v":""},{"$f":"IF(ItineraryPrograms!C8=\"y\",getScoreFactor(\"Program\",Y$2),\"\")","v":337.5},{"$f":"IF(ItineraryPrograms!D8=\"y\",getScoreFactor(\"Program\",Z$2),\"\")","v":""},{"$f":"IF(ItineraryPrograms!E8=\"y\",getScoreFactor(\"Program\",AA$2),\"\")","v":""},{"$f":"IF(ItineraryPrograms!F8=\"y\",getScoreFactor(\"Program\",AB$2),\"\")","v":""},{"$f":"IF(ItineraryPrograms!G8=\"y\",getScoreFactor(\"Program\",AC$2),\"\")","v":""},{"$f":"IF(ItineraryPrograms!H8=\"y\",getScoreFactor(\"Program\",AD$2),\"\")","v":166.5},{"$f":"IF(ItineraryPrograms!I8=\"y\",getScoreFactor(\"Program\",AE$2),\"\")","v":126},{"$f":"IF(ItineraryPrograms!J8=\"y\",getScoreFactor(\"Program\",AF$2),\"\")","v":130.5},{"$f":"IF(ItineraryPrograms!K8=\"y\",getScoreFactor(\"Program\",AG$2),\"\")","v":91.5},{"$f":"IF(ItineraryPrograms!L8=\"y\",getScoreFactor(\"Program\",AH$2),\"\")","v":109.5},{"$f":"IF(ItineraryPrograms!M8=\"y\",getScoreFactor(\"Program\",AI$2),\"\")","v":""},{"$f":"IF(ItineraryPrograms!N8=\"y\",getScoreFactor(\"Program\",AJ$2),\"\")","v":""},{"$f":"IF(ItineraryPrograms!O8=\"y\",getScoreFactor(\"Program\",AK$2),\"\")","v":""},{"$f":"IF(ItineraryPrograms!P8=\"y\",getScoreFactor(\"Program\",AL$2),\"\")","v":""},{"$f":"IF(ItineraryPrograms!Q8=\"y\",getScoreFactor(\"Program\",AM$2),\"\")","v":""},{"$f":"IF(ItineraryPrograms!R8=\"y\",getScoreFactor(\"Program\",AN$2),\"\")","v":""},{"$f":"IF(ItineraryPrograms!S8=\"y\",getScoreFactor(\"Program\",AO$2),\"\")","v":""},{"$f":"IF(ItineraryPrograms!T8=\"y\",getScoreFactor(\"Program\",AP$2),\"\")","v":93},{"$f":"IF(ItineraryPrograms!U8=\"y\",getScoreFactor(\"Program\",AQ$2),\"\")","v":""},{"$f":"IF(ItineraryPrograms!V8=\"y\",getScoreFactor(\"Program\",AR$2),\"\")","v":""},{"$f":"IF(ItineraryPrograms!W8=\"y\",getScoreFactor(\"Program\",AS$2),\"\")","v":129},{"$f":"IF(ItineraryPrograms!X8=\"y\",getScoreFactor(\"Program\",AT$2),\"\")","v":103.5},{"$f":"IF(ItineraryPrograms!Y8=\"y\",getScoreFactor(\"Program\",AU$2),\"\")","v":202.5},{"$f":"IF(ItineraryPrograms!Z8=\"y\",getScoreFactor(\"Program\",AV$2),\"\")","v":""},{"$f":"IF(ItineraryPrograms!AA8=\"y\",getScoreFactor(\"Program\",AW$2),\"\")","v":""},{"$f":"IF(ItineraryPrograms!AB8=\"y\",getScoreFactor(\"Program\",AX$2),\"\")","v":""},{"$f":"IF(ItineraryPrograms!AC8=\"y\",getScoreFactor(\"Program\",AY$2),\"\")","v":210},{"$f":"IF(ItineraryPrograms!AD8=\"y\",getScoreFactor(\"Program\",AZ$2),\"\")","v":""},{"$f":"IF(ItineraryPrograms!AE8=\"y\",getScoreFactor(\"Program\",BA$2),\"\")","v":""},{"$f":"IF(ItineraryPrograms!AF8=\"y\",getScoreFactor(\"Program\",BB$2),\"\")","v":""},{"$f":"IF(ItineraryPrograms!AG8=\"y\",getScoreFactor(\"Program\",BC$2),\"\")","v":""},{"$f":"IF(ItineraryPrograms!AH8=\"y\",getScoreFactor(\"Program\",BD$2),\"\")","v":""},{"$f":"IF(ItineraryPrograms!AI8=\"y\",getScoreFactor(\"Program\",BE$2),\"\")","v":""},{"$f":"IF(ItineraryPrograms!AJ8=\"y\",getScoreFactor(\"Program\",BF$2),\"\")","v":""},{"$f":"IF(ItineraryPrograms!AK8=\"y\",getScoreFactor(\"Program\",BG$2),\"\")","v":""},{"$f":"IF(ItineraryPrograms!AL8=\"y\",getScoreFactor(\"Program\",BH$2),\"\")","v":""},{"$f":"IF(ItineraryPrograms!AM8=\"y\",getScoreFactor(\"Program\",BI$2),\"\")","v":193.5},{"$f":"IF(ItineraryPrograms!AN8=\"y\",getScoreFactor(\"Program\",BJ$2),\"\")","v":151.5},{"$f":"IF(ItineraryPrograms!AO8=\"y\",getScoreFactor(\"Program\",BK$2),\"\")","v":136.5},{"$f":"IF(ItineraryPrograms!AP8=\"y\",getScoreFactor(\"Program\",BL$2),\"\")","v":""},{"$f":"IF(ItineraryPrograms!AQ8=\"y\",getScoreFactor(\"Program\",BM$2),\"\")","v":""},{"$f":"IF(ItineraryPrograms!AR8=\"y\",getScoreFactor(\"Program\",BN$2),\"\")","v":207}]
[{"$f":"Itineraries!A9","v":"7-7"},9697.4166666666661,{"$f":"getScoreFactor(C$2,itineraryCamps!C10)","v":3166.6666666666665},{"$f":"getScoreFactor(D$2,\"Miles\") *itineraryCamps!D10","v":3300},{"$f":"getScoreFactor(E$2,Itineraries!B9)","v":30},{"$f":"getScoreFactor(F$2,Itineraries!C9)","v":90},{"$f":"getScoreFactor(G$2,Itineraries!E9)","v":25},{"$f":"getScoreFactor(H$2,Itineraries!H9)","v":225},{"$f":"getScoreFactor(I$2,Itineraries!G9)","v":90},{"$f":"getScoreFactor(J$2,Itineraries!J9)","v":50},{"$f":"getScoreFactor(K$2,Itineraries!K9)","v":50},{"$f":"getScoreFactor(L$2,Itineraries!L9)","v":300},{"$f":"IF(INDEX(startingTA,numericItinerary($A9))=$M$2,getScoreFactor(M$2,\"y\"),getScoreFactor(M$2,\"n\"))","v":0},{"$f":"IF(INDEX(startingTA,numericItinerary($A9))=$M$2,getScoreFactor(N$2,\"y\"),getScoreFactor(N$2,\"n\"))","v":0},{"$f":"IF(INDEX(baldyMountainHike,numericItinerary($A9))=\"\",\"\",getPeakScore(O$2))","v":""},{"$f":"IF(INDEX(mountPhillipsHike,numericItinerary($A9))=\"\",\"\",getPeakScore(P$2))","v":""},{"$f":"IF(INDEX(toothOfTimeHike,numericItinerary($A9))=\"\",\"\",getPeakScore(Q$2))","v":303.75},{"$f":"IF(INDEX(trailPeakHike,numericItinerary($A9))=\"\",\"\",getPeakScore(R$2))","v":""},{"$f":"IF(INDEX(mountaineeringHike,numericItinerary($A9))=\"\",\"\",getPeakScore(S$2))","v":0},{"$f":"IF(areaImportant<>\"y\",\"\",IF(Itineraries!P9<>\"Y\",\"\",getareascore(T$2)))","v":""},{"$f":"IF(areaImportant<>\"y\",\"\",IF(Itineraries!Q9<>\"Y\",\"\",getareascore(U$2)))","v":""},{"$f":"IF(areaImportant<>\"y\",\"\",IF(Itineraries!R9<>\"Y\",\"\",getareascore(V$2)))","v":""},{"$f":"IF(areaImportant<>\"y\",\"\",IF(Itineraries!S9<>\"Y\",\"\",getareascore(W$2)))","v":""},{"$f":"IF(ItineraryPrograms!B9=\"y\",getScoreFactor(\"Program\",X$2),\"\")","v":""},{"$f":"IF(ItineraryPrograms!C9=\"y\",getScoreFactor(\"Program\",Y$2),\"\")","v":""},{"$f":"IF(ItineraryPrograms!D9=\"y\",getScoreFactor(\"Program\",Z$2),\"\")","v":""},{"$f":"IF(ItineraryPrograms!E9=\"y\",getScoreFactor(\"Program\",AA$2),\"\")","v":""},{"$f":"IF(ItineraryPrograms!F9=\"y\",getScoreFactor(\"Program\",AB$2),\"\")","v":162},{"$f":"IF(ItineraryPrograms!G9=\"y\",getScoreFactor(\"Program\",AC$2),\"\")","v":""},{"$f":"IF(ItineraryPrograms!H9=\"y\",getScoreFactor(\"Program\",AD$2),\"\")","v":166.5},{"$f":"IF(ItineraryPrograms!I9=\"y\",getScoreFactor(\"Program\",AE$2),\"\")","v":126},{"$f":"IF(ItineraryPrograms!J9=\"y\",getScoreFactor(\"Program\",AF$2),\"\")","v":""},{"$f":"IF(ItineraryPrograms!K9=\"y\",getScoreFactor(\"Program\",AG$2),\"\")","v":91.5},{"$f":"IF(ItineraryPrograms!L9=\"y\",getScoreFactor(\"Program\",AH$2),\"\")","v":""},{"$f":"IF(ItineraryPrograms!M9=\"y\",getScoreFactor(\"Program\",AI$2),\"\")","v":""},{"$f":"IF(ItineraryPrograms!N9=\"y\",getScoreFactor(\"Program\",AJ$2),\"\")","v":""},{"$f":"IF(ItineraryPrograms!O9=\"y\",getScoreFactor(\"Program\",AK$2),\"\")","v":""},{"$f":"IF(ItineraryPrograms!P9=\"y\",getScoreFactor(\"Program\",AL$2),\"\")","v":""},{"$f":"IF(ItineraryPrograms!Q9=\"y\",getScoreFactor(\"Program\",AM$2),\"\")","v":""},{"$f":"IF(ItineraryPrograms!R9=\"y\",getScoreFactor(\"Program\",AN$2),\"\")","v":""},{"$f":"IF(ItineraryPrograms!S9=\"y\",getScoreFactor(\"Program\",AO$2),\"\")","v":""},{"$f":"IF(ItineraryPrograms!T9=\"y\",getScoreFactor(\"Program\",AP$2),\"\")","v":""},{"$f":"IF(ItineraryPrograms!U9=\"y\",getScoreFactor(\"Program\",AQ$2),\"\")","v":156},{"$f":"IF(ItineraryPrograms!V9=\"y\",getScoreFactor(\"Program\",AR$2),\"\")","v":""},{"$f":"IF(ItineraryPrograms!W9=\"y\",getScoreFactor(\"Program\",AS$2),\"\")","v":""},{"$f":"IF(ItineraryPrograms!X9=\"y\",getScoreFactor(\"Program\",AT$2),\"\")","v":103.5},{"$f":"IF(ItineraryPrograms!Y9=\"y\",getScoreFactor(\"Program\",AU$2),\"\")","v":""},{"$f":"IF(ItineraryPrograms!Z9=\"y\",getScoreFactor(\"Program\",AV$2),\"\")","v":""},{"$f":"IF(ItineraryPrograms!AA9=\"y\",getScoreFactor(\"Program\",AW$2),\"\")","v":""},{"$f":"IF(ItineraryPrograms!AB9=\"y\",getScoreFactor(\"Program\",AX$2),\"\")","v":""},{"$f":"IF(ItineraryPrograms!AC9=\"y\",getScoreFactor(\"Program\",AY$2),\"\")","v":210},{"$f":"IF(ItineraryPrograms!AD9=\"y\",getScoreFactor(\"Program\",AZ$2),\"\")","v":255},{"$f":"IF(ItineraryPrograms!AE9=\"y\",getScoreFactor(\"Program\",BA$2),\"\")","v":235.5},{"$f":"IF(ItineraryPrograms!AF9=\"y\",getScoreFactor(\"Program\",BB$2),\"\")","v":""},{"$f":"IF(ItineraryPrograms!AG9=\"y\",getScoreFactor(\"Program\",BC$2),\"\")","v":151.5},{"$f":"IF(ItineraryPrograms!AH9=\"y\",getScoreFactor(\"Program\",BD$2),\"\")","v":""},{"$f":"IF(ItineraryPrograms!AI9=\"y\",getScoreFactor(\"Program\",BE$2),\"\")","v":""},{"$f":"IF(ItineraryPrograms!AJ9=\"y\",getScoreFactor(\"Program\",BF$2),\"\")","v":""},{"$f":"IF(ItineraryPrograms!AK9=\"y\",getScoreFactor(\"Program\",BG$2),\"\")","v":""},{"$f":"IF(ItineraryPrograms!AL9=\"y\",getScoreFactor(\"Program\",BH$2),\"\")","v":""},{"$f":"IF(ItineraryPrograms!AM9=\"y\",getScoreFactor(\"Program\",BI$2),\"\")","v":""},{"$f":"IF(ItineraryPrograms!AN9=\"y\",getScoreFactor(\"Program\",BJ$2),\"\")","v":""},{"$f":"IF(ItineraryPrograms!AO9=\"y\",getScoreFactor(\"Program\",BK$2),\"\")","v":""},{"$f":"IF(ItineraryPrograms!AP9=\"y\",getScoreFactor(\"Program\",BL$2),\"\")","v":202.5},{"$f":"IF(ItineraryPrograms!AQ9=\"y\",getScoreFactor(\"Program\",BM$2),\"\")","v":""},{"$f":"IF(ItineraryPrograms!AR9=\"y\",getScoreFactor(\"Program\",BN$2),\"\")","v":207}]
[{"$f":"Itineraries!A10","v":"7-8"},9487.4166666666661,{"$f":"getScoreFactor(C$2,itineraryCamps!C11)","v":3166.6666666666665},{"$f":"getScoreFactor(D$2,\"Miles\") *itineraryCamps!D11","v":3400},{"$f":"getScoreFactor(E$2,Itineraries!B10)","v":40},{"$f":"getScoreFactor(F$2,Itineraries!C10)","v":80},{"$f":"getScoreFactor(G$2,Itineraries!E10)","v":25},{"$f":"getScoreFactor(H$2,Itineraries!H10)","v":300},{"$f":"getScoreFactor(I$2,Itineraries!G10)","v":90},{"$f":"getScoreFactor(J$2,Itineraries!J10)","v":70},{"$f":"getScoreFactor(K$2,Itineraries!K10)","v":80},{"$f":"getScoreFactor(L$2,Itineraries!L10)","v":300},{"$f":"IF(INDEX(startingTA,numericItinerary($A10))=$M$2,getScoreFactor(M$2,\"y\"),getScoreFactor(M$2,\"n\"))","v":0},{"$f":"IF(INDEX(startingTA,numericItinerary($A10))=$M$2,getScoreFactor(N$2,\"y\"),getScoreFactor(N$2,\"n\"))","v":0},{"$f":"IF(INDEX(baldyMountainHike,numericItinerary($A10))=\"\",\"\",getPeakScore(O$2))","v":""},{"$f":"IF(INDEX(mountPhillipsHike,numericItinerary($A10))=\"\",\"\",getPeakScore(P$2))","v":330.75},{"$f":"IF(INDEX(toothOfTimeHike,numericItinerary($A10))=\"\",\"\",getPeakScore(Q$2))","v":""},{"$f":"IF(INDEX(trailPeakHike,numericItinerary($A10))=\"\",\"\",getPeakScore(R$2))","v":""},{"$f":"IF(INDEX(mountaineeringHike,numericItinerary($A10))=\"\",\"\",getPeakScore(S$2))","v":""},{"$f":"IF(areaImportant<>\"y\",\"\",IF(Itineraries!P10<>\"Y\",\"\",getareascore(T$2)))","v":""},{"$f":"IF(areaImportant<>\"y\",\"\",IF(Itineraries!Q10<>\"Y\",\"\",getareascore(U$2)))","v":""},{"$f":"IF(areaImportant<>\"y\",\"\",IF(Itineraries!R10<>\"Y\",\"\",getareascore(V$2)))","v":""},{"$f":"IF(areaImportant<>\"y\",\"\",IF(Itineraries!S10<>\"Y\",\"\",getareascore(W$2)))","v":""},{"$f":"IF(ItineraryPrograms!B10=\"y\",getScoreFactor(\"Program\",X$2),\"\")","v":""},{"$f":"IF(ItineraryPrograms!C10=\"y\",getScoreFactor(\"Program\",Y$2),\"\")","v":""},{"$f":"IF(ItineraryPrograms!D10=\"y\",getScoreFactor(\"Program\",Z$2),\"\")","v":""},{"$f":"IF(ItineraryPrograms!E10=\"y\",getScoreFactor(\"Program\",AA$2),\"\")","v":""},{"$f":"IF(ItineraryPrograms!F10=\"y\",getScoreFactor(\"Program\",AB$2),\"\")","v":""},{"$f":"IF(ItineraryPrograms!G10=\"y\",getScoreFactor(\"Program\",AC$2),\"\")","v":""},{"$f":"IF(ItineraryPrograms!H10=\"y\",getScoreFactor(\"Program\",AD$2),\"\")","v":166.5},{"$f":"IF(ItineraryPrograms!I10=\"y\",getScoreFactor(\"Program\",AE$2),\"\")","v":126},{"$f":"IF(ItineraryPrograms!J10=\"y\",getScoreFactor(\"Program\",AF$2),\"\")","v":""},{"$f":"IF(ItineraryPrograms!K10=\"y\",getScoreFactor(\"Program\",AG$2),\"\")","v":91.5},{"$f":"IF(ItineraryPrograms!L10=\"y\",getScoreFactor(\"Program\",AH$2),\"\")","v":""},{"$f":"IF(ItineraryPrograms!M10=\"y\",getScoreFactor(\"Program\",AI$2),\"\")","v":""},{"$f":"IF(ItineraryPrograms!N10=\"y\",getScoreFactor(\"Program\",AJ$2),\"\")","v":""},{"$f":"IF(ItineraryPrograms!O10=\"y\",getScoreFactor(\"Program\",AK$2),\"\")","v":""},{"$f":"IF(ItineraryPrograms!P10=\"y\",getScoreFactor(\"Program\",AL$2),\"\")","v":""},{"$f":"IF(ItineraryPrograms!Q10=\"y\",getScoreFactor(\"Program\",AM$2),\"\")","v":""},{"$f":"IF(ItineraryPrograms!R10=\"y\",getScoreFactor(\"Program\",AN$2),\"\")","v":""},{"$f":"IF(ItineraryPrograms!S10=\"y\",getScoreFactor(\"Program\",AO$2),\"\")","v":""},{"$f":"IF(ItineraryPrograms!T10=\"y\",getScoreFactor(\"Program\",AP$2),\"\")","v":93},{"$f":"IF(ItineraryPrograms!U10=\"y\",getScoreFactor(\"Program\",AQ$2),\"\")","v":""},{"$f":"IF(ItineraryPrograms!V10=\"y\",getScoreFactor(\"Program\",AR$2),\"\")","v":""},{"$f":"IF(ItineraryPrograms!W10=\"y\",getScoreFactor(\"Program\",AS$2),\"\")","v":""},{"$f":"IF(ItineraryPrograms!X10=\"y\",getScoreFactor(\"Program\",AT$2),\"\")","v":""},{"$f":"IF(ItineraryPrograms!Y10=\"y\",getScoreFactor(\"Program\",AU$2),\"\")","v":""},{"$f":"IF(ItineraryPrograms!Z10=\"y\",getScoreFactor(\"Program\",AV$2),\"\")","v":""},{"$f":"IF(ItineraryPrograms!AA10=\"y\",getScoreFactor(\"Program\",AW$2),\"\")","v":""},{"$f":"IF(ItineraryPrograms!AB10=\"y\",getScoreFactor(\"Program\",AX$2),\"\")","v":220.5},{"$f":"IF(ItineraryPrograms!AC10=\"y\",getScoreFactor(\"Program\",AY$2),\"\")","v":""},{"$f":"IF(ItineraryPrograms!AD10=\"y\",getScoreFactor(\"Program\",AZ$2),\"\")","v":255},{"$f":"IF(ItineraryPrograms!AE10=\"y\",getScoreFactor(\"Program\",BA$2),\"\")","v":235.5},{"$f":"IF(ItineraryPrograms!AF10=\"y\",getScoreFactor(\"Program\",BB$2),\"\")","v":""},{"$f":"IF(ItineraryPrograms!AG10=\"y\",getScoreFactor(\"Program\",BC$2),\"\")","v":""},{"$f":"IF(ItineraryPrograms!AH10=\"y\",getScoreFactor(\"Program\",BD$2),\"\")","v":""},{"$f":"IF(ItineraryPrograms!AI10=\"y\",getScoreFactor(\"Program\",BE$2),\"\")","v":""},{"$f":"IF(ItineraryPrograms!AJ10=\"y\",getScoreFactor(\"Program\",BF$2),\"\")","v":210},{"$f":"IF(ItineraryPrograms!AK10=\"y\",getScoreFactor(\"Program\",BG$2),\"\")","v":""},{"$f":"IF(ItineraryPrograms!AL10=\"y\",getScoreFactor(\"Program\",BH$2),\"\")","v":""},{"$f":"IF(ItineraryPrograms!AM10=\"y\",getScoreFactor(\"Program\",BI$2),\"\")","v":""},{"$f":"IF(ItineraryPrograms!AN10=\"y\",getScoreFactor(\"Program\",BJ$2),\"\")","v":""},{"$f":"IF(ItineraryPrograms!AO10=\"y\",getScoreFactor(\"Program\",BK$2),\"\")","v":""},{"$f":"IF(ItineraryPrograms!AP10=\"y\",getScoreFactor(\"Program\",BL$2),\"\")","v":""},{"$f":"IF(ItineraryPrograms!AQ10=\"y\",getScoreFactor(\"Program\",BM$2),\"\")","v":""},{"$f":"IF(ItineraryPrograms!AR10=\"y\",getScoreFactor(\"Program\",BN$2),\"\")","v":207}]
[{"$f":"Itineraries!A11","v":"7-9"},10635.916666666666,{"$f":"getScoreFactor(C$2,itineraryCamps!C12)","v":3166.6666666666665},{"$f":"getScoreFactor(D$2,\"Miles\") *itineraryCamps!D12","v":3500},{"$f":"getScoreFactor(E$2,Itineraries!B11)","v":40},{"$f":"getScoreFactor(F$2,Itineraries!C11)","v":80},{"$f":"getScoreFactor(G$2,Itineraries!E11)","v":50},{"$f":"getScoreFactor(H$2,Itineraries!H11)","v":225},{"$f":"getScoreFactor(I$2,Itineraries!G11)","v":90},{"$f":"getScoreFactor(J$2,Itineraries!J11)","v":20},{"$f":"getScoreFactor(K$2,Itineraries!K11)","v":50},{"$f":"getScoreFactor(L$2,Itineraries!L11)","v":300},{"$f":"IF(INDEX(startingTA,numericItinerary($A11))=$M$2,getScoreFactor(M$2,\"y\"),getScoreFactor(M$2,\"n\"))","v":500},{"$f":"IF(INDEX(startingTA,numericItinerary($A11))=$M$2,getScoreFactor(N$2,\"y\"),getScoreFactor(N$2,\"n\"))","v":500},{"$f":"IF(INDEX(baldyMountainHike,numericItinerary($A11))=\"\",\"\",getPeakScore(O$2))","v":""},{"$f":"IF(INDEX(mountPhillipsHike,numericItinerary($A11))=\"\",\"\",getPeakScore(P$2))","v":""},{"$f":"IF(INDEX(toothOfTimeHike,numericItinerary($A11))=\"\",\"\",getPeakScore(Q$2))","v":303.75},{"$f":"IF(INDEX(trailPeakHike,numericItinerary($A11))=\"\",\"\",getPeakScore(R$2))","v":""},{"$f":"IF(INDEX(mountaineeringHike,numericItinerary($A11))=\"\",\"\",getPeakScore(S$2))","v":0},{"$f":"IF(areaImportant<>\"y\",\"\",IF(Itineraries!P11<>\"Y\",\"\",getareascore(T$2)))","v":""},{"$f":"IF(areaImportant<>\"y\",\"\",IF(Itineraries!Q11<>\"Y\",\"\",getareascore(U$2)))","v":""},{"$f":"IF(areaImportant<>\"y\",\"\",IF(Itineraries!R11<>\"Y\",\"\",getareascore(V$2)))","v":""},{"$f":"IF(areaImportant<>\"y\",\"\",IF(Itineraries!S11<>\"Y\",\"\",getareascore(W$2)))","v":""},{"$f":"IF(ItineraryPrograms!B11=\"y\",getScoreFactor(\"Program\",X$2),\"\")","v":""},{"$f":"IF(ItineraryPrograms!C11=\"y\",getScoreFactor(\"Program\",Y$2),\"\")","v":""},{"$f":"IF(ItineraryPrograms!D11=\"y\",getScoreFactor(\"Program\",Z$2),\"\")","v":""},{"$f":"IF(ItineraryPrograms!E11=\"y\",getScoreFactor(\"Program\",AA$2),\"\")","v":""},{"$f":"IF(ItineraryPrograms!F11=\"y\",getScoreFactor(\"Program\",AB$2),\"\")","v":""},{"$f":"IF(ItineraryPrograms!G11=\"y\",getScoreFactor(\"Program\",AC$2),\"\")","v":""},{"$f":"IF(ItineraryPrograms!H11=\"y\",getScoreFactor(\"Program\",AD$2),\"\")","v":166.5},{"$f":"IF(ItineraryPrograms!I11=\"y\",getScoreFactor(\"Program\",AE$2),\"\")","v":126},{"$f":"IF(ItineraryPrograms!J11=\"y\",getScoreFactor(\"Program\",AF$2),\"\")","v":""},{"$f":"IF(ItineraryPrograms!K11=\"y\",getScoreFactor(\"Program\",AG$2),\"\")","v":91.5},{"$f":"IF(ItineraryPrograms!L11=\"y\",getScoreFactor(\"Program\",AH$2),\"\")","v":""},{"$f":"IF(ItineraryPrograms!M11=\"y\",getScoreFactor(\"Program\",AI$2),\"\")","v":""},{"$f":"IF(ItineraryPrograms!N11=\"y\",getScoreFactor(\"Program\",AJ$2),\"\")","v":""},{"$f":"IF(ItineraryPrograms!O11=\"y\",getScoreFactor(\"Program\",AK$2),\"\")","v":""},{"$f":"IF(ItineraryPrograms!P11=\"y\",getScoreFactor(\"Program\",AL$2),\"\")","v":""},{"$f":"IF(ItineraryPrograms!Q11=\"y\",getScoreFactor(\"Program\",AM$2),\"\")","v":""},{"$f":"IF(ItineraryPrograms!R11=\"y\",getScoreFactor(\"Program\",AN$2),\"\")","v":""},{"$f":"IF(ItineraryPrograms!S11=\"y\",getScoreFactor(\"Program\",AO$2),\"\")","v":""},{"$f":"IF(ItineraryPrograms!T11=\"y\",getScoreFactor(\"Program\",AP$2),\"\")","v":""},{"$f":"IF(ItineraryPrograms!U11=\"y\",getScoreFactor(\"Program\",AQ$2),\"\")","v":156},{"$f":"IF(ItineraryPrograms!V11=\"y\",getScoreFactor(\"Program\",AR$2),\"\")","v":""},{"$f":"IF(ItineraryPrograms!W11=\"y\",getScoreFactor(\"Program\",AS$2),\"\")","v":""},{"$f":"IF(ItineraryPrograms!X11=\"y\",getScoreFactor(\"Program\",AT$2),\"\")","v":103.5},{"$f":"IF(ItineraryPrograms!Y11=\"y\",getScoreFactor(\"Program\",AU$2),\"\")","v":""},{"$f":"IF(ItineraryPrograms!Z11=\"y\",getScoreFactor(\"Program\",AV$2),\"\")","v":91.5},{"$f":"IF(ItineraryPrograms!AA11=\"y\",getScoreFactor(\"Program\",AW$2),\"\")","v":""},{"$f":"IF(ItineraryPrograms!AB11=\"y\",getScoreFactor(\"Program\",AX$2),\"\")","v":""},{"$f":"IF(ItineraryPrograms!AC11=\"y\",getScoreFactor(\"Program\",AY$2),\"\")","v":210},{"$f":"IF(ItineraryPrograms!AD11=\"y\",getScoreFactor(\"Program\",AZ$2),\"\")","v":""},{"$f":"IF(ItineraryPrograms!AE11=\"y\",getScoreFactor(\"Program\",BA$2),\"\")","v":235.5},{"$f":"IF(ItineraryPrograms!AF11=\"y\",getScoreFactor(\"Program\",BB$2),\"\")","v":""},{"$f":"IF(ItineraryPrograms!AG11=\"y\",getScoreFactor(\"Program\",BC$2),\"\")","v":""},{"$f":"IF(ItineraryPrograms!AH11=\"y\",getScoreFactor(\"Program\",BD$2),\"\")","v":""},{"$f":"IF(ItineraryPrograms!AI11=\"y\",getScoreFactor(\"Program\",BE$2),\"\")","v":220.5},{"$f":"IF(ItineraryPrograms!AJ11=\"y\",getScoreFactor(\"Program\",BF$2),\"\")","v":""},{"$f":"IF(ItineraryPrograms!AK11=\"y\",getScoreFactor(\"Program\",BG$2),\"\")","v":""},{"$f":"IF(ItineraryPrograms!AL11=\"y\",getScoreFactor(\"Program\",BH$2),\"\")","v":""},{"$f":"IF(ItineraryPrograms!AM11=\"y\",getScoreFactor(\"Program\",BI$2),\"\")","v":""},{"$f":"IF(ItineraryPrograms!AN11=\"y\",getScoreFactor(\"Program\",BJ$2),\"\")","v":""},{"$f":"IF(ItineraryPrograms!AO11=\"y\",getScoreFactor(\"Program\",BK$2),\"\")","v":""},{"$f":"IF(ItineraryPrograms!AP11=\"y\",getScoreFactor(\"Program\",BL$2),\"\")","v":202.5},{"$f":"IF(ItineraryPrograms!AQ11=\"y\",getScoreFactor(\"Program\",BM$2),\"\")","v":""},{"$f":"IF(ItineraryPrograms!AR11=\"y\",getScoreFactor(\"Program\",BN$2),\"\")","v":207}]
[{"$f":"Itineraries!A12","v":"7-10"},9196.9166666666661,{"$f":"getScoreFactor(C$2,itineraryCamps!C13)","v":3166.6666666666665},{"$f":"getScoreFactor(D$2,\"Miles\") *itineraryCamps!D13","v":3400},{"$f":"getScoreFactor(E$2,Itineraries!B12)","v":40},{"$f":"getScoreFactor(F$2,Itineraries!C12)","v":80},{"$f":"getScoreFactor(G$2,Itineraries!E12)","v":25},{"$f":"getScoreFactor(H$2,Itineraries!H12)","v":250},{"$f":"getScoreFactor(I$2,Itineraries!G12)","v":90},{"$f":"getScoreFactor(J$2,Itineraries!J12)","v":20},{"$f":"getScoreFactor(K$2,Itineraries!K12)","v":50},{"$f":"getScoreFactor(L$2,Itineraries!L12)","v":300},{"$f":"IF(INDEX(startingTA,numericItinerary($A12))=$M$2,getScoreFactor(M$2,\"y\"),getScoreFactor(M$2,\"n\"))","v":0},{"$f":"IF(INDEX(startingTA,numericItinerary($A12))=$M$2,getScoreFactor(N$2,\"y\"),getScoreFactor(N$2,\"n\"))","v":0},{"$f":"IF(INDEX(baldyMountainHike,numericItinerary($A12))=\"\",\"\",getPeakScore(O$2))","v":""},{"$f":"IF(INDEX(mountPhillipsHike,numericItinerary($A12))=\"\",\"\",getPeakScore(P$2))","v":""},{"$f":"IF(INDEX(toothOfTimeHike,numericItinerary($A12))=\"\",\"\",getPeakScore(Q$2))","v":303.75},{"$f":"IF(INDEX(trailPeakHike,numericItinerary($A12))=\"\",\"\",getPeakScore(R$2))","v":0},{"$f":"IF(INDEX(mountaineeringHike,numericItinerary($A12))=\"\",\"\",getPeakScore(S$2))","v":""},{"$f":"IF(areaImportant<>\"y\",\"\",IF(Itineraries!P12<>\"Y\",\"\",getareascore(T$2)))","v":""},{"$f":"IF(areaImportant<>\"y\",\"\",IF(Itineraries!Q12<>\"Y\",\"\",getareascore(U$2)))","v":""},{"$f":"IF(areaImportant<>\"y\",\"\",IF(Itineraries!R12<>\"Y\",\"\",getareascore(V$2)))","v":""},{"$f":"IF(areaImportant<>\"y\",\"\",IF(Itineraries!S12<>\"Y\",\"\",getareascore(W$2)))","v":""},{"$f":"IF(ItineraryPrograms!B12=\"y\",getScoreFactor(\"Program\",X$2),\"\")","v":""},{"$f":"IF(ItineraryPrograms!C12=\"y\",getScoreFactor(\"Program\",Y$2),\"\")","v":""},{"$f":"IF(ItineraryPrograms!D12=\"y\",getScoreFactor(\"Program\",Z$2),\"\")","v":""},{"$f":"IF(ItineraryPrograms!E12=\"y\",getScoreFactor(\"Program\",AA$2),\"\")","v":""},{"$f":"IF(ItineraryPrograms!F12=\"y\",getScoreFactor(\"Program\",AB$2),\"\")","v":""},{"$f":"IF(ItineraryPrograms!G12=\"y\",getScoreFactor(\"Program\",AC$2),\"\")","v":""},{"$f":"IF(ItineraryPrograms!H12=\"y\",getScoreFactor(\"Program\",AD$2),\"\")","v":""},{"$f":"IF(ItineraryPrograms!I12=\"y\",getScoreFactor(\"Program\",AE$2),\"\")","v":126},{"$f":"IF(ItineraryPrograms!J12=\"y\",getScoreFactor(\"Program\",AF$2),\"\")","v":""},{"$f":"IF(ItineraryPrograms!K12=\"y\",getScoreFactor(\"Program\",AG$2),\"\")","v":""},{"$f":"IF(ItineraryPrograms!L12=\"y\",getScoreFactor(\"Program\",AH$2),\"\")","v":""},{"$f":"IF(ItineraryPrograms!M12=\"y\",getScoreFactor(\"Program\",AI$2),\"\")","v":""},{"$f":"IF(ItineraryPrograms!N12=\"y\",getScoreFactor(\"Program\",AJ$2),\"\")","v":111},{"$f":"IF(ItineraryPrograms!O12=\"y\",getScoreFactor(\"Program\",AK$2),\"\")","v":114},{"$f":"IF(ItineraryPrograms!P12=\"y\",getScoreFactor(\"Program\",AL$2),\"\")","v":""},{"$f":"IF(ItineraryPrograms!Q12=\"y\",getScoreFactor(\"Program\",AM$2),\"\")","v":""},{"$f":"IF(ItineraryPrograms!R12=\"y\",getScoreFactor(\"Program\",AN$2),\"\")","v":""},{"$f":"IF(ItineraryPrograms!S12=\"y\",getScoreFactor(\"Program\",AO$2),\"\")","v":""},{"$f":"IF(ItineraryPrograms!T12=\"y\",getScoreFactor(\"Program\",AP$2),\"\")","v":""},{"$f":"IF(ItineraryPrograms!U12=\"y\",getScoreFactor(\"Program\",AQ$2),\"\")","v":""},{"$f":"IF(ItineraryPrograms!V12=\"y\",getScoreFactor(\"Program\",AR$2),\"\")","v":""},{"$f":"IF(ItineraryPrograms!W12=\"y\",getScoreFactor(\"Program\",AS$2),\"\")","v":""},{"$f":"IF(ItineraryPrograms!X12=\"y\",getScoreFactor(\"Program\",AT$2),\"\")","v":103.5},{"$f":"IF(ItineraryPrograms!Y12=\"y\",getScoreFactor(\"Program\",AU$2),\"\")","v":""},{"$f":"IF(ItineraryPrograms!Z12=\"y\",getScoreFactor(\"Program\",AV$2),\"\")","v":""},{"$f":"IF(ItineraryPrograms!AA12=\"y\",getScoreFactor(\"Program\",AW$2),\"\")","v":""},{"$f":"IF(ItineraryPrograms!AB12=\"y\",getScoreFactor(\"Program\",AX$2),\"\")","v":""},{"$f":"IF(ItineraryPrograms!AC12=\"y\",getScoreFactor(\"Program\",AY$2),\"\")","v":""},{"$f":"IF(ItineraryPrograms!AD12=\"y\",getScoreFactor(\"Program\",AZ$2),\"\")","v":""},{"$f":"IF(ItineraryPrograms!AE12=\"y\",getScoreFactor(\"Program\",BA$2),\"\")","v":235.5},{"$f":"IF(ItineraryPrograms!AF12=\"y\",getScoreFactor(\"Program\",BB$2),\"\")","v":""},{"$f":"IF(ItineraryPrograms!AG12=\"y\",getScoreFactor(\"Program\",BC$2),\"\")","v":""},{"$f":"IF(ItineraryPrograms!AH12=\"y\",getScoreFactor(\"Program\",BD$2),\"\")","v":""},{"$f":"IF(ItineraryPrograms!AI12=\"y\",getScoreFactor(\"Program\",BE$2),\"\")","v":220.5},{"$f":"IF(ItineraryPrograms!AJ12=\"y\",getScoreFactor(\"Program\",BF$2),\"\")","v":""},{"$f":"IF(ItineraryPrograms!AK12=\"y\",getScoreFactor(\"Program\",BG$2),\"\")","v":""},{"$f":"IF(ItineraryPrograms!AL12=\"y\",getScoreFactor(\"Program\",BH$2),\"\")","v":""},{"$f":"IF(ItineraryPrograms!AM12=\"y\",getScoreFactor(\"Program\",BI$2),\"\")","v":""},{"$f":"IF(ItineraryPrograms!AN12=\"y\",getScoreFactor(\"Program\",BJ$2),\"\")","v":151.5},{"$f":"IF(ItineraryPrograms!AO12=\"y\",getScoreFactor(\"Program\",BK$2),\"\")","v":""},{"$f":"IF(ItineraryPrograms!AP12=\"y\",getScoreFactor(\"Program\",BL$2),\"\")","v":202.5},{"$f":"IF(ItineraryPrograms!AQ12=\"y\",getScoreFactor(\"Program\",BM$2),\"\")","v":207},{"$f":"IF(ItineraryPrograms!AR12=\"y\",getScoreFactor(\"Program\",BN$2),\"\")","v":""}]
[{"$f":"Itineraries!A13","v":"7-11"},8505.8333333333321,{"$f":"getScoreFactor(C$2,itineraryCamps!C14)","v":2333.333333333333},{"$f":"getScoreFactor(D$2,\"Miles\") *itineraryCamps!D14","v":3800},{"$f":"getScoreFactor(E$2,Itineraries!B13)","v":30},{"$f":"getScoreFactor(F$2,Itineraries!C13)","v":90},{"$f":"getScoreFactor(G$2,Itineraries!E13)","v":50},{"$f":"getScoreFactor(H$2,Itineraries!H13)","v":250},{"$f":"getScoreFactor(I$2,Itineraries!G13)","v":90},{"$f":"getScoreFactor(J$2,Itineraries!J13)","v":20},{"$f":"getScoreFactor(K$2,Itineraries!K13)","v":40},{"$f":"getScoreFactor(L$2,Itineraries!L13)","v":100},{"$f":"IF(INDEX(startingTA,numericItinerary($A13))=$M$2,getScoreFactor(M$2,\"y\"),getScoreFactor(M$2,\"n\"))","v":0},{"$f":"IF(INDEX(startingTA,numericItinerary($A13))=$M$2,getScoreFactor(N$2,\"y\"),getScoreFactor(N$2,\"n\"))","v":0},{"$f":"IF(INDEX(baldyMountainHike,numericItinerary($A13))=\"\",\"\",getPeakScore(O$2))","v":""},{"$f":"IF(INDEX(mountPhillipsHike,numericItinerary($A13))=\"\",\"\",getPeakScore(P$2))","v":""},{"$f":"IF(INDEX(toothOfTimeHike,numericItinerary($A13))=\"\",\"\",getPeakScore(Q$2))","v":""},{"$f":"IF(INDEX(trailPeakHike,numericItinerary($A13))=\"\",\"\",getPeakScore(R$2))","v":""},{"$f":"IF(INDEX(mountaineeringHike,numericItinerary($A13))=\"\",\"\",getPeakScore(S$2))","v":""},{"$f":"IF(areaImportant<>\"y\",\"\",IF(Itineraries!P13<>\"Y\",\"\",getareascore(T$2)))","v":""},{"$f":"IF(areaImportant<>\"y\",\"\",IF(Itineraries!Q13<>\"Y\",\"\",getareascore(U$2)))","v":""},{"$f":"IF(areaImportant<>\"y\",\"\",IF(Itineraries!R13<>\"Y\",\"\",getareascore(V$2)))","v":""},{"$f":"IF(areaImportant<>\"y\",\"\",IF(Itineraries!S13<>\"Y\",\"\",getareascore(W$2)))","v":""},{"$f":"IF(ItineraryPrograms!B13=\"y\",getScoreFactor(\"Program\",X$2),\"\")","v":""},{"$f":"IF(ItineraryPrograms!C13=\"y\",getScoreFactor(\"Program\",Y$2),\"\")","v":""},{"$f":"IF(ItineraryPrograms!D13=\"y\",getScoreFactor(\"Program\",Z$2),\"\")","v":""},{"$f":"IF(ItineraryPrograms!E13=\"y\",getScoreFactor(\"Program\",AA$2),\"\")","v":""},{"$f":"IF(ItineraryPrograms!F13=\"y\",getScoreFactor(\"Program\",AB$2),\"\")","v":162},{"$f":"IF(ItineraryPrograms!G13=\"y\",getScoreFactor(\"Program\",AC$2),\"\")","v":166.5},{"$f":"IF(ItineraryPrograms!H13=\"y\",getScoreFactor(\"Program\",AD$2),\"\")","v":166.5},{"$f":"IF(ItineraryPrograms!I13=\"y\",getScoreFactor(\"Program\",AE$2),\"\")","v":126},{"$f":"IF(ItineraryPrograms!J13=\"y\",getScoreFactor(\"Program\",AF$2),\"\")","v":130.5},{"$f":"IF(ItineraryPrograms!K13=\"y\",getScoreFactor(\"Program\",AG$2),\"\")","v":""},{"$f":"IF(ItineraryPrograms!L13=\"y\",getScoreFactor(\"Program\",AH$2),\"\")","v":""},{"$f":"IF(ItineraryPrograms!M13=\"y\",getScoreFactor(\"Program\",AI$2),\"\")","v":""},{"$f":"IF(ItineraryPrograms!N13=\"y\",getScoreFactor(\"Program\",AJ$2),\"\")","v":""},{"$f":"IF(ItineraryPrograms!O13=\"y\",getScoreFactor(\"Program\",AK$2),\"\")","v":""},{"$f":"IF(ItineraryPrograms!P13=\"y\",getScoreFactor(\"Program\",AL$2),\"\")","v":""},{"$f":"IF(ItineraryPrograms!Q13=\"y\",getScoreFactor(\"Program\",AM$2),\"\")","v":""},{"$f":"IF(ItineraryPrograms!R13=\"y\",getScoreFactor(\"Program\",AN$2),\"\")","v":""},{"$f":"IF(ItineraryPrograms!S13=\"y\",getScoreFactor(\"Program\",AO$2),\"\")","v":145.5},{"$f":"IF(ItineraryPrograms!T13=\"y\",getScoreFactor(\"Program\",AP$2),\"\")","v":93},{"$f":"IF(ItineraryPrograms!U13=\"y\",getScoreFactor(\"Program\",AQ$2),\"\")","v":""},{"$f":"IF(ItineraryPrograms!V13=\"y\",getScoreFactor(\"Program\",AR$2),\"\")","v":""},{"$f":"IF(ItineraryPrograms!W13=\"y\",getScoreFactor(\"Program\",AS$2),\"\")","v":""},{"$f":"IF(ItineraryPrograms!X13=\"y\",getScoreFactor(\"Program\",AT$2),\"\")","v":103.5},{"$f":"IF(ItineraryPrograms!Y13=\"y\",getScoreFactor(\"Program\",AU$2),\"\")","v":""},{"$f":"IF(ItineraryPrograms!Z13=\"y\",getScoreFactor(\"Program\",AV$2),\"\")","v":""},{"$f":"IF(ItineraryPrograms!AA13=\"y\",getScoreFactor(\"Program\",AW$2),\"\")","v":""},{"$f":"IF(ItineraryPrograms!AB13=\"y\",getScoreFactor(\"Program\",AX$2),\"\")","v":""},{"$f":"IF(ItineraryPrograms!AC13=\"y\",getScoreFactor(\"Program\",AY$2),\"\")","v":""},{"$f":"IF(ItineraryPrograms!AD13=\"y\",getScoreFactor(\"Program\",AZ$2),\"\")","v":""},{"$f":"IF(ItineraryPrograms!AE13=\"y\",getScoreFactor(\"Program\",BA$2),\"\")","v":""},{"$f":"IF(ItineraryPrograms!AF13=\"y\",getScoreFactor(\"Program\",BB$2),\"\")","v":""},{"$f":"IF(ItineraryPrograms!AG13=\"y\",getScoreFactor(\"Program\",BC$2),\"\")","v":""},{"$f":"IF(ItineraryPrograms!AH13=\"y\",getScoreFactor(\"Program\",BD$2),\"\")","v":181.5},{"$f":"IF(ItineraryPrograms!AI13=\"y\",getScoreFactor(\"Program\",BE$2),\"\")","v":220.5},{"$f":"IF(ItineraryPrograms!AJ13=\"y\",getScoreFactor(\"Program\",BF$2),\"\")","v":""},{"$f":"IF(ItineraryPrograms!AK13=\"y\",getScoreFactor(\"Program\",BG$2),\"\")","v":""},{"$f":"IF(ItineraryPrograms!AL13=\"y\",getScoreFactor(\"Program\",BH$2),\"\")","v":""},{"$f":"IF(ItineraryPrograms!AM13=\"y\",getScoreFactor(\"Program\",BI$2),\"\")","v":""},{"$f":"IF(ItineraryPrograms!AN13=\"y\",getScoreFactor(\"Program\",BJ$2),\"\")","v":""},{"$f":"IF(ItineraryPrograms!AO13=\"y\",getScoreFactor(\"Program\",BK$2),\"\")","v":""},{"$f":"IF(ItineraryPrograms!AP13=\"y\",getScoreFactor(\"Program\",BL$2),\"\")","v":""},{"$f":"IF(ItineraryPrograms!AQ13=\"y\",getScoreFactor(\"Program\",BM$2),\"\")","v":""},{"$f":"IF(ItineraryPrograms!AR13=\"y\",getScoreFactor(\"Program\",BN$2),\"\")","v":207}]
[{"$f":"Itineraries!A14","v":"7-12"},8867.3333333333321,{"$f":"getScoreFactor(C$2,itineraryCamps!C15)","v":2333.333333333333},{"$f":"getScoreFactor(D$2,\"Miles\") *itineraryCamps!D15","v":3900},{"$f":"getScoreFactor(E$2,Itineraries!B14)","v":40},{"$f":"getScoreFactor(F$2,Itineraries!C14)","v":80},{"$f":"getScoreFactor(G$2,Itineraries!E14)","v":25},{"$f":"getScoreFactor(H$2,Itineraries!H14)","v":250},{"$f":"getScoreFactor(I$2,Itineraries!G14)","v":90},{"$f":"getScoreFactor(J$2,Itineraries!J14)","v":20},{"$f":"getScoreFactor(K$2,Itineraries!K14)","v":40},{"$f":"getScoreFactor(L$2,Itineraries!L14)","v":100},{"$f":"IF(INDEX(startingTA,numericItinerary($A14))=$M$2,getScoreFactor(M$2,\"y\"),getScoreFactor(M$2,\"n\"))","v":0},{"$f":"IF(INDEX(startingTA,numericItinerary($A14))=$M$2,getScoreFactor(N$2,\"y\"),getScoreFactor(N$2,\"n\"))","v":0},{"$f":"IF(INDEX(baldyMountainHike,numericItinerary($A14))=\"\",\"\",getPeakScore(O$2))","v":""},{"$f":"IF(INDEX(mountPhillipsHike,numericItinerary($A14))=\"\",\"\",getPeakScore(P$2))","v":""},{"$f":"IF(INDEX(toothOfTimeHike,numericItinerary($A14))=\"\",\"\",getPeakScore(Q$2))","v":""},{"$f":"IF(INDEX(trailPeakHike,numericItinerary($A14))=\"\",\"\",getPeakScore(R$2))","v":""},{"$f":"IF(INDEX(mountaineeringHike,numericItinerary($A14))=\"\",\"\",getPeakScore(S$2))","v":""},{"$f":"IF(areaImportant<>\"y\",\"\",IF(Itineraries!P14<>\"Y\",\"\",getareascore(T$2)))","v":""},{"$f":"IF(areaImportant<>\"y\",\"\",IF(Itineraries!Q14<>\"Y\",\"\",getareascore(U$2)))","v":""},{"$f":"IF(areaImportant<>\"y\",\"\",IF(Itineraries!R14<>\"Y\",\"\",getareascore(V$2)))","v":""},{"$f":"IF(areaImportant<>\"y\",\"\",IF(Itineraries!S14<>\"Y\",\"\",getareascore(W$2)))","v":""},{"$f":"IF(ItineraryPrograms!B14=\"y\",getScoreFactor(\"Program\",X$2),\"\")","v":228},{"$f":"IF(ItineraryPrograms!C14=\"y\",getScoreFactor(\"Program\",Y$2),\"\")","v":""},{"$f":"IF(ItineraryPrograms!D14=\"y\",getScoreFactor(\"Program\",Z$2),\"\")","v":114},{"$f":"IF(ItineraryPrograms!E14=\"y\",getScoreFactor(\"Program\",AA$2),\"\")","v":""},{"$f":"IF(ItineraryPrograms!F14=\"y\",getScoreFactor(\"Program\",AB$2),\"\")","v":162},{"$f":"IF(ItineraryPrograms!G14=\"y\",getScoreFactor(\"Program\",AC$2),\"\")","v":""},{"$f":"IF(ItineraryPrograms!H14=\"y\",getScoreFactor(\"Program\",AD$2),\"\")","v":166.5},{"$f":"IF(ItineraryPrograms!I14=\"y\",getScoreFactor(\"Program\",AE$2),\"\")","v":126},{"$f":"IF(ItineraryPrograms!J14=\"y\",getScoreFactor(\"Program\",AF$2),\"\")","v":130.5},{"$f":"IF(ItineraryPrograms!K14=\"y\",getScoreFactor(\"Program\",AG$2),\"\")","v":""},{"$f":"IF(ItineraryPrograms!L14=\"y\",getScoreFactor(\"Program\",AH$2),\"\")","v":""},{"$f":"IF(ItineraryPrograms!M14=\"y\",getScoreFactor(\"Program\",AI$2),\"\")","v":""},{"$f":"IF(ItineraryPrograms!N14=\"y\",getScoreFactor(\"Program\",AJ$2),\"\")","v":""},{"$f":"IF(ItineraryPrograms!O14=\"y\",getScoreFactor(\"Program\",AK$2),\"\")","v":""},{"$f":"IF(ItineraryPrograms!P14=\"y\",getScoreFactor(\"Program\",AL$2),\"\")","v":""},{"$f":"IF(ItineraryPrograms!Q14=\"y\",getScoreFactor(\"Program\",AM$2),\"\")","v":""},{"$f":"IF(ItineraryPrograms!R14=\"y\",getScoreFactor(\"Program\",AN$2),\"\")","v":""},{"$f":"IF(ItineraryPrograms!S14=\"y\",getScoreFactor(\"Program\",AO$2),\"\")","v":""},{"$f":"IF(ItineraryPrograms!T14=\"y\",getScoreFactor(\"Program\",AP$2),\"\")","v":93},{"$f":"IF(ItineraryPrograms!U14=\"y\",getScoreFactor(\"Program\",AQ$2),\"\")","v":""},{"$f":"IF(ItineraryPrograms!V14=\"y\",getScoreFactor(\"Program\",AR$2),\"\")","v":""},{"$f":"IF(ItineraryPrograms!W14=\"y\",getScoreFactor(\"Program\",AS$2),\"\")","v":""},{"$f":"IF(ItineraryPrograms!X14=\"y\",getScoreFactor(\"Program\",AT$2),\"\")","v":103.5},{"$f":"IF(ItineraryPrograms!Y14=\"y\",getScoreFactor(\"Program\",AU$2),\"\")","v":202.5},{"$f":"IF(ItineraryPrograms!Z14=\"y\",getScoreFactor(\"Program\",AV$2),\"\")","v":""},{"$f":"IF(ItineraryPrograms!AA14=\"y\",getScoreFactor(\"Program\",AW$2),\"\")","v":""},{"$f":"IF(ItineraryPrograms!AB14=\"y\",getScoreFactor(\"Program\",AX$2),\"\")","v":""},{"$f":"IF(ItineraryPrograms!AC14=\"y\",getScoreFactor(\"Program\",AY$2),\"\")","v":""},{"$f":"IF(ItineraryPrograms!AD14=\"y\",getScoreFactor(\"Program\",AZ$2),\"\")","v":""},{"$f":"IF(ItineraryPrograms!AE14=\"y\",getScoreFactor(\"Program\",BA$2),\"\")","v":""},{"$f":"IF(ItineraryPrograms!AF14=\"y\",getScoreFactor(\"Program\",BB$2),\"\")","v":193.5},{"$f":"IF(ItineraryPrograms!AG14=\"y\",getScoreFactor(\"Program\",BC$2),\"\")","v":""},{"$f":"IF(ItineraryPrograms!AH14=\"y\",getScoreFactor(\"Program\",BD$2),\"\")","v":181.5},{"$f":"IF(ItineraryPrograms!AI14=\"y\",getScoreFactor(\"Program\",BE$2),\"\")","v":""},{"$f":"IF(ItineraryPrograms!AJ14=\"y\",getScoreFactor(\"Program\",BF$2),\"\")","v":""},{"$f":"IF(ItineraryPrograms!AK14=\"y\",getScoreFactor(\"Program\",BG$2),\"\")","v":""},{"$f":"IF(ItineraryPrograms!AL14=\"y\",getScoreFactor(\"Program\",BH$2),\"\")","v":""},{"$f":"IF(ItineraryPrograms!AM14=\"y\",getScoreFactor(\"Program\",BI$2),\"\")","v":""},{"$f":"IF(ItineraryPrograms!AN14=\"y\",getScoreFactor(\"Program\",BJ$2),\"\")","v":151.5},{"$f":"IF(ItineraryPrograms!AO14=\"y\",getScoreFactor(\"Program\",BK$2),\"\")","v":136.5},{"$f":"IF(ItineraryPrograms!AP14=\"y\",getScoreFactor(\"Program\",BL$2),\"\")","v":""},{"$f":"IF(ItineraryPrograms!AQ14=\"y\",getScoreFactor(\"Program\",BM$2),\"\")","v":""},{"$f":"IF(ItineraryPrograms!AR14=\"y\",getScoreFactor(\"Program\",BN$2),\"\")","v":""}]
[{"$f":"Itineraries!A15","v":"7-13"},8968.5833333333321,{"$f":"getScoreFactor(C$2,itineraryCamps!C16)","v":2333.333333333333},{"$f":"getScoreFactor(D$2,\"Miles\") *itineraryCamps!D16","v":3900},{"$f":"getScoreFactor(E$2,Itineraries!B15)","v":30},{"$f":"getScoreFactor(F$2,Itineraries!C15)","v":90},{"$f":"getScoreFactor(G$2,Itineraries!E15)","v":0},{"$f":"getScoreFactor(H$2,Itineraries!H15)","v":250},{"$f":"getScoreFactor(I$2,Itineraries!G15)","v":90},{"$f":"getScoreFactor(J$2,Itineraries!J15)","v":110},{"$f":"getScoreFactor(K$2,Itineraries!K15)","v":90},{"$f":"getScoreFactor(L$2,Itineraries!L15)","v":0},{"$f":"IF(INDEX(startingTA,numericItinerary($A15))=$M$2,getScoreFactor(M$2,\"y\"),getScoreFactor(M$2,\"n\"))","v":0},{"$f":"IF(INDEX(startingTA,numericItinerary($A15))=$M$2,getScoreFactor(N$2,\"y\"),getScoreFactor(N$2,\"n\"))","v":0},{"$f":"IF(INDEX(baldyMountainHike,numericItinerary($A15))=\"\",\"\",getPeakScore(O$2))","v":""},{"$f":"IF(INDEX(mountPhillipsHike,numericItinerary($A15))=\"\",\"\",getPeakScore(P$2))","v":330.75},{"$f":"IF(INDEX(toothOfTimeHike,numericItinerary($A15))=\"\",\"\",getPeakScore(Q$2))","v":""},{"$f":"IF(INDEX(trailPeakHike,numericItinerary($A15))=\"\",\"\",getPeakScore(R$2))","v":""},{"$f":"IF(INDEX(mountaineeringHike,numericItinerary($A15))=\"\",\"\",getPeakScore(S$2))","v":0},{"$f":"IF(areaImportant<>\"y\",\"\",IF(Itineraries!P15<>\"Y\",\"\",getareascore(T$2)))","v":""},{"$f":"IF(areaImportant<>\"y\",\"\",IF(Itineraries!Q15<>\"Y\",\"\",getareascore(U$2)))","v":""},{"$f":"IF(areaImportant<>\"y\",\"\",IF(Itineraries!R15<>\"Y\",\"\",getareascore(V$2)))","v":""},{"$f":"IF(areaImportant<>\"y\",\"\",IF(Itineraries!S15<>\"Y\",\"\",getareascore(W$2)))","v":""},{"$f":"IF(ItineraryPrograms!B15=\"y\",getScoreFactor(\"Program\",X$2),\"\")","v":""},{"$f":"IF(ItineraryPrograms!C15=\"y\",getScoreFactor(\"Program\",Y$2),\"\")","v":""},{"$f":"IF(ItineraryPrograms!D15=\"y\",getScoreFactor(\"Program\",Z$2),\"\")","v":""},{"$f":"IF(ItineraryPrograms!E15=\"y\",getScoreFactor(\"Program\",AA$2),\"\")","v":""},{"$f":"IF(ItineraryPrograms!F15=\"y\",getScoreFactor(\"Program\",AB$2),\"\")","v":162},{"$f":"IF(ItineraryPrograms!G15=\"y\",getScoreFactor(\"Program\",AC$2),\"\")","v":""},{"$f":"IF(ItineraryPrograms!H15=\"y\",getScoreFactor(\"Program\",AD$2),\"\")","v":166.5},{"$f":"IF(ItineraryPrograms!I15=\"y\",getScoreFactor(\"Program\",AE$2),\"\")","v":""},{"$f":"IF(ItineraryPrograms!J15=\"y\",getScoreFactor(\"Program\",AF$2),\"\")","v":""},{"$f":"IF(ItineraryPrograms!K15=\"y\",getScoreFactor(\"Program\",AG$2),\"\")","v":""},{"$f":"IF(ItineraryPrograms!L15=\"y\",getScoreFactor(\"Program\",AH$2),\"\")","v":""},{"$f":"IF(ItineraryPrograms!M15=\"y\",getScoreFactor(\"Program\",AI$2),\"\")","v":109.5},{"$f":"IF(ItineraryPrograms!N15=\"y\",getScoreFactor(\"Program\",AJ$2),\"\")","v":""},{"$f":"IF(ItineraryPrograms!O15=\"y\",getScoreFactor(\"Program\",AK$2),\"\")","v":""},{"$f":"IF(ItineraryPrograms!P15=\"y\",getScoreFactor(\"Program\",AL$2),\"\")","v":""},{"$f":"IF(ItineraryPrograms!Q15=\"y\",getScoreFactor(\"Program\",AM$2),\"\")","v":126},{"$f":"IF(ItineraryPrograms!R15=\"y\",getScoreFactor(\"Program\",AN$2),\"\")","v":""},{"$f":"IF(ItineraryPrograms!S15=\"y\",getScoreFactor(\"Program\",AO$2),\"\")","v":""},{"$f":"IF(ItineraryPrograms!T15=\"y\",getScoreFactor(\"Program\",AP$2),\"\")","v":""},{"$f":"IF(ItineraryPrograms!U15=\"y\",getScoreFactor(\"Program\",AQ$2),\"\")","v":""},{"$f":"IF(ItineraryPrograms!V15=\"y\",getScoreFactor(\"Program\",AR$2),\"\")","v":""},{"$f":"IF(ItineraryPrograms!W15=\"y\",getScoreFactor(\"Program\",AS$2),\"\")","v":""},{"$f":"IF(ItineraryPrograms!X15=\"y\",getScoreFactor(\"Program\",AT$2),\"\")","v":103.5},{"$f":"IF(ItineraryPrograms!Y15=\"y\",getScoreFactor(\"Program\",AU$2),\"\")","v":""},{"$f":"IF(ItineraryPrograms!Z15=\"y\",getScoreFactor(\"Program\",AV$2),\"\")","v":""},{"$f":"IF(ItineraryPrograms!AA15=\"y\",getScoreFactor(\"Program\",AW$2),\"\")","v":181.5},{"$f":"IF(ItineraryPrograms!AB15=\"y\",getScoreFactor(\"Program\",AX$2),\"\")","v":220.5},{"$f":"IF(ItineraryPrograms!AC15=\"y\",getScoreFactor(\"Program\",AY$2),\"\")","v":210},{"$f":"IF(ItineraryPrograms!AD15=\"y\",getScoreFactor(\"Program\",AZ$2),\"\")","v":""},{"$f":"IF(ItineraryPrograms!AE15=\"y\",getScoreFactor(\"Program\",BA$2),\"\")","v":""},{"$f":"IF(ItineraryPrograms!AF15=\"y\",getScoreFactor(\"Program\",BB$2),\"\")","v":""},{"$f":"IF(ItineraryPrograms!AG15=\"y\",getScoreFactor(\"Program\",BC$2),\"\")","v":""},{"$f":"IF(ItineraryPrograms!AH15=\"y\",getScoreFactor(\"Program\",BD$2),\"\")","v":""},{"$f":"IF(ItineraryPrograms!AI15=\"y\",getScoreFactor(\"Program\",BE$2),\"\")","v":""},{"$f":"IF(ItineraryPrograms!AJ15=\"y\",getScoreFactor(\"Program\",BF$2),\"\")","v":210},{"$f":"IF(ItineraryPrograms!AK15=\"y\",getScoreFactor(\"Program\",BG$2),\"\")","v":255},{"$f":"IF(ItineraryPrograms!AL15=\"y\",getScoreFactor(\"Program\",BH$2),\"\")","v":""},{"$f":"IF(ItineraryPrograms!AM15=\"y\",getScoreFactor(\"Program\",BI$2),\"\")","v":""},{"$f":"IF(ItineraryPrograms!AN15=\"y\",getScoreFactor(\"Program\",BJ$2),\"\")","v":""},{"$f":"IF(ItineraryPrograms!AO15=\"y\",getScoreFactor(\"Program\",BK$2),\"\")","v":""},{"$f":"IF(ItineraryPrograms!AP15=\"y\",getScoreFactor(\"Program\",BL$2),\"\")","v":""},{"$f":"IF(ItineraryPrograms!AQ15=\"y\",getScoreFactor(\"Program\",BM$2),\"\")","v":""},{"$f":"IF(ItineraryPrograms!AR15=\"y\",getScoreFactor(\"Program\",BN$2),\"\")","v":""}]
[{"$f":"Itineraries!A16","v":"7-14"},8488.25,{"$f":"getScoreFactor(C$2,itineraryCamps!C17)","v":1500},{"$f":"getScoreFactor(D$2,\"Miles\") *itineraryCamps!D17","v":4000},{"$f":"getScoreFactor(E$2,Itineraries!B16)","v":30},{"$f":"getScoreFactor(F$2,Itineraries!C16)","v":90},{"$f":"getScoreFactor(G$2,Itineraries!E16)","v":25},{"$f":"getScoreFactor(H$2,Itineraries!H16)","v":250},{"$f":"getScoreFactor(I$2,Itineraries!G16)","v":90},{"$f":"getScoreFactor(J$2,Itineraries!J16)","v":110},{"$f":"getScoreFactor(K$2,Itineraries!K16)","v":90},{"$f":"getScoreFactor(L$2,Itineraries!L16)","v":0},{"$f":"IF(INDEX(startingTA,numericItinerary($A16))=$M$2,getScoreFactor(M$2,\"y\"),getScoreFactor(M$2,\"n\"))","v":0},{"$f":"IF(INDEX(startingTA,numericItinerary($A16))=$M$2,getScoreFactor(N$2,\"y\"),getScoreFactor(N$2,\"n\"))","v":0},{"$f":"IF(INDEX(baldyMountainHike,numericItinerary($A16))=\"\",\"\",getPeakScore(O$2))","v":""},{"$f":"IF(INDEX(mountPhillipsHike,numericItinerary($A16))=\"\",\"\",getPeakScore(P$2))","v":330.75},{"$f":"IF(INDEX(toothOfTimeHike,numericItinerary($A16))=\"\",\"\",getPeakScore(Q$2))","v":""},{"$f":"IF(INDEX(trailPeakHike,numericItinerary($A16))=\"\",\"\",getPeakScore(R$2))","v":""},{"$f":"IF(INDEX(mountaineeringHike,numericItinerary($A16))=\"\",\"\",getPeakScore(S$2))","v":0},{"$f":"IF(areaImportant<>\"y\",\"\",IF(Itineraries!P16<>\"Y\",\"\",getareascore(T$2)))","v":""},{"$f":"IF(areaImportant<>\"y\",\"\",IF(Itineraries!Q16<>\"Y\",\"\",getareascore(U$2)))","v":""},{"$f":"IF(areaImportant<>\"y\",\"\",IF(Itineraries!R16<>\"Y\",\"\",getareascore(V$2)))","v":""},{"$f":"IF(areaImportant<>\"y\",\"\",IF(Itineraries!S16<>\"Y\",\"\",getareascore(W$2)))","v":""},{"$f":"IF(ItineraryPrograms!B16=\"y\",getScoreFactor(\"Program\",X$2),\"\")","v":""},{"$f":"IF(ItineraryPrograms!C16=\"y\",getScoreFactor(\"Program\",Y$2),\"\")","v":""},{"$f":"IF(ItineraryPrograms!D16=\"y\",getScoreFactor(\"Program\",Z$2),\"\")","v":""},{"$f":"IF(ItineraryPrograms!E16=\"y\",getScoreFactor(\"Program\",AA$2),\"\")","v":""},{"$f":"IF(ItineraryPrograms!F16=\"y\",getScoreFactor(\"Program\",AB$2),\"\")","v":162},{"$f":"IF(ItineraryPrograms!G16=\"y\",getScoreFactor(\"Program\",AC$2),\"\")","v":""},{"$f":"IF(ItineraryPrograms!H16=\"y\",getScoreFactor(\"Program\",AD$2),\"\")","v":""},{"$f":"IF(ItineraryPrograms!I16=\"y\",getScoreFactor(\"Program\",AE$2),\"\")","v":126},{"$f":"IF(ItineraryPrograms!J16=\"y\",getScoreFactor(\"Program\",AF$2),\"\")","v":""},{"$f":"IF(ItineraryPrograms!K16=\"y\",getScoreFactor(\"Program\",AG$2),\"\")","v":91.5},{"$f":"IF(ItineraryPrograms!L16=\"y\",getScoreFactor(\"Program\",AH$2),\"\")","v":""},{"$f":"IF(ItineraryPrograms!M16=\"y\",getScoreFactor(\"Program\",AI$2),\"\")","v":109.5},{"$f":"IF(ItineraryPrograms!N16=\"y\",getScoreFactor(\"Program\",AJ$2),\"\")","v":111},{"$f":"IF(ItineraryPrograms!O16=\"y\",getScoreFactor(\"Program\",AK$2),\"\")","v":114},{"$f":"IF(ItineraryPrograms!P16=\"y\",getScoreFactor(\"Program\",AL$2),\"\")","v":""},{"$f":"IF(ItineraryPrograms!Q16=\"y\",getScoreFactor(\"Program\",AM$2),\"\")","v":126},{"$f":"IF(ItineraryPrograms!R16=\"y\",getScoreFactor(\"Program\",AN$2),\"\")","v":""},{"$f":"IF(ItineraryPrograms!S16=\"y\",getScoreFactor(\"Program\",AO$2),\"\")","v":""},{"$f":"IF(ItineraryPrograms!T16=\"y\",getScoreFactor(\"Program\",AP$2),\"\")","v":""},{"$f":"IF(ItineraryPrograms!U16=\"y\",getScoreFactor(\"Program\",AQ$2),\"\")","v":156},{"$f":"IF(ItineraryPrograms!V16=\"y\",getScoreFactor(\"Program\",AR$2),\"\")","v":""},{"$f":"IF(ItineraryPrograms!W16=\"y\",getScoreFactor(\"Program\",AS$2),\"\")","v":""},{"$f":"IF(ItineraryPrograms!X16=\"y\",getScoreFactor(\"Program\",AT$2),\"\")","v":103.5},{"$f":"IF(ItineraryPrograms!Y16=\"y\",getScoreFactor(\"Program\",AU$2),\"\")","v":""},{"$f":"IF(ItineraryPrograms!Z16=\"y\",getScoreFactor(\"Program\",AV$2),\"\")","v":""},{"$f":"IF(ItineraryPrograms!AA16=\"y\",getScoreFactor(\"Program\",AW$2),\"\")","v":""},{"$f":"IF(ItineraryPrograms!AB16=\"y\",getScoreFactor(\"Program\",AX$2),\"\")","v":220.5},{"$f":"IF(ItineraryPrograms!AC16=\"y\",getScoreFactor(\"Program\",AY$2),\"\")","v":210},{"$f":"IF(ItineraryPrograms!AD16=\"y\",getScoreFactor(\"Program\",AZ$2),\"\")","v":""},{"$f":"IF(ItineraryPrograms!AE16=\"y\",getScoreFactor(\"Program\",BA$2),\"\")","v":235.5},{"$f":"IF(ItineraryPrograms!AF16=\"y\",getScoreFactor(\"Program\",BB$2),\"\")","v":""},{"$f":"IF(ItineraryPrograms!AG16=\"y\",getScoreFactor(\"Program\",BC$2),\"\")","v":""},{"$f":"IF(ItineraryPrograms!AH16=\"y\",getScoreFactor(\"Program\",BD$2),\"\")","v":""},{"$f":"IF(ItineraryPrograms!AI16=\"y\",getScoreFactor(\"Program\",BE$2),\"\")","v":""},{"$f":"IF(ItineraryPrograms!AJ16=\"y\",getScoreFactor(\"Program\",BF$2),\"\")","v":""},{"$f":"IF(ItineraryPrograms!AK16=\"y\",getScoreFactor(\"Program\",BG$2),\"\")","v":""},{"$f":"IF(ItineraryPrograms!AL16=\"y\",getScoreFactor(\"Program\",BH$2),\"\")","v":""},{"$f":"IF(ItineraryPrograms!AM16=\"y\",getScoreFactor(\"Program\",BI$2),\"\")","v":""},{"$f":"IF(ItineraryPrograms!AN16=\"y\",getScoreFactor(\"Program\",BJ$2),\"\")","v":""},{"$f":"IF(ItineraryPrograms!AO16=\"y\",getScoreFactor(\"Program\",BK$2),\"\")","v":""},{"$f":"IF(ItineraryPrograms!AP16=\"y\",getScoreFactor(\"Program\",BL$2),\"\")","v":""},{"$f":"IF(ItineraryPrograms!AQ16=\"y\",getScoreFactor(\"Program\",BM$2),\"\")","v":""},{"$f":"IF(ItineraryPrograms!AR16=\"y\",getScoreFactor(\"Program\",BN$2),\"\")","v":207}]
[{"$f":"Itineraries!A17","v":"7-15"},8568.25,{"$f":"getScoreFactor(C$2,itineraryCamps!C18)","v":1500},{"$f":"getScoreFactor(D$2,\"Miles\") *itineraryCamps!D18","v":4100},{"$f":"getScoreFactor(E$2,Itineraries!B17)","v":30},{"$f":"getScoreFactor(F$2,Itineraries!C17)","v":90},{"$f":"getScoreFactor(G$2,Itineraries!E17)","v":50},{"$f":"getScoreFactor(H$2,Itineraries!H17)","v":300},{"$f":"getScoreFactor(I$2,Itineraries!G17)","v":90},{"$f":"getScoreFactor(J$2,Itineraries!J17)","v":40},{"$f":"getScoreFactor(K$2,Itineraries!K17)","v":50},{"$f":"getScoreFactor(L$2,Itineraries!L17)","v":300},{"$f":"IF(INDEX(startingTA,numericItinerary($A17))=$M$2,getScoreFactor(M$2,\"y\"),getScoreFactor(M$2,\"n\"))","v":0},{"$f":"IF(INDEX(startingTA,numericItinerary($A17))=$M$2,getScoreFactor(N$2,\"y\"),getScoreFactor(N$2,\"n\"))","v":0},{"$f":"IF(INDEX(baldyMountainHike,numericItinerary($A17))=\"\",\"\",getPeakScore(O$2))","v":""},{"$f":"IF(INDEX(mountPhillipsHike,numericItinerary($A17))=\"\",\"\",getPeakScore(P$2))","v":""},{"$f":"IF(INDEX(toothOfTimeHike,numericItinerary($A17))=\"\",\"\",getPeakScore(Q$2))","v":303.75},{"$f":"IF(INDEX(trailPeakHike,numericItinerary($A17))=\"\",\"\",getPeakScore(R$2))","v":""},{"$f":"IF(INDEX(mountaineeringHike,numericItinerary($A17))=\"\",\"\",getPeakScore(S$2))","v":0},{"$f":"IF(areaImportant<>\"y\",\"\",IF(Itineraries!P17<>\"Y\",\"\",getareascore(T$2)))","v":""},{"$f":"IF(areaImportant<>\"y\",\"\",IF(Itineraries!Q17<>\"Y\",\"\",getareascore(U$2)))","v":""},{"$f":"IF(areaImportant<>\"y\",\"\",IF(Itineraries!R17<>\"Y\",\"\",getareascore(V$2)))","v":""},{"$f":"IF(areaImportant<>\"y\",\"\",IF(Itineraries!S17<>\"Y\",\"\",getareascore(W$2)))","v":""},{"$f":"IF(ItineraryPrograms!B17=\"y\",getScoreFactor(\"Program\",X$2),\"\")","v":""},{"$f":"IF(ItineraryPrograms!C17=\"y\",getScoreFactor(\"Program\",Y$2),\"\")","v":""},{"$f":"IF(ItineraryPrograms!D17=\"y\",getScoreFactor(\"Program\",Z$2),\"\")","v":""},{"$f":"IF(ItineraryPrograms!E17=\"y\",getScoreFactor(\"Program\",AA$2),\"\")","v":""},{"$f":"IF(ItineraryPrograms!F17=\"y\",getScoreFactor(\"Program\",AB$2),\"\")","v":""},{"$f":"IF(ItineraryPrograms!G17=\"y\",getScoreFactor(\"Program\",AC$2),\"\")","v":""},{"$f":"IF(ItineraryPrograms!H17=\"y\",getScoreFactor(\"Program\",AD$2),\"\")","v":166.5},{"$f":"IF(ItineraryPrograms!I17=\"y\",getScoreFactor(\"Program\",AE$2),\"\")","v":""},{"$f":"IF(ItineraryPrograms!J17=\"y\",getScoreFactor(\"Program\",AF$2),\"\")","v":""},{"$f":"IF(ItineraryPrograms!K17=\"y\",getScoreFactor(\"Program\",AG$2),\"\")","v":91.5},{"$f":"IF(ItineraryPrograms!L17=\"y\",getScoreFactor(\"Program\",AH$2),\"\")","v":""},{"$f":"IF(ItineraryPrograms!M17=\"y\",getScoreFactor(\"Program\",AI$2),\"\")","v":""},{"$f":"IF(ItineraryPrograms!N17=\"y\",getScoreFactor(\"Program\",AJ$2),\"\")","v":""},{"$f":"IF(ItineraryPrograms!O17=\"y\",getScoreFactor(\"Program\",AK$2),\"\")","v":""},{"$f":"IF(ItineraryPrograms!P17=\"y\",getScoreFactor(\"Program\",AL$2),\"\")","v":""},{"$f":"IF(ItineraryPrograms!Q17=\"y\",getScoreFactor(\"Program\",AM$2),\"\")","v":126},{"$f":"IF(ItineraryPrograms!R17=\"y\",getScoreFactor(\"Program\",AN$2),\"\")","v":""},{"$f":"IF(ItineraryPrograms!S17=\"y\",getScoreFactor(\"Program\",AO$2),\"\")","v":""},{"$f":"IF(ItineraryPrograms!T17=\"y\",getScoreFactor(\"Program\",AP$2),\"\")","v":""},{"$f":"IF(ItineraryPrograms!U17=\"y\",getScoreFactor(\"Program\",AQ$2),\"\")","v":""},{"$f":"IF(ItineraryPrograms!V17=\"y\",getScoreFactor(\"Program\",AR$2),\"\")","v":""},{"$f":"IF(ItineraryPrograms!W17=\"y\",getScoreFactor(\"Program\",AS$2),\"\")","v":""},{"$f":"IF(ItineraryPrograms!X17=\"y\",getScoreFactor(\"Program\",AT$2),\"\")","v":""},{"$f":"IF(ItineraryPrograms!Y17=\"y\",getScoreFactor(\"Program\",AU$2),\"\")","v":""},{"$f":"IF(ItineraryPrograms!Z17=\"y\",getScoreFactor(\"Program\",AV$2),\"\")","v":""},{"$f":"IF(ItineraryPrograms!AA17=\"y\",getScoreFactor(\"Program\",AW$2),\"\")","v":""},{"$f":"IF(ItineraryPrograms!AB17=\"y\",getScoreFactor(\"Program\",AX$2),\"\")","v":""},{"$f":"IF(ItineraryPrograms!AC17=\"y\",getScoreFactor(\"Program\",AY$2),\"\")","v":210},{"$f":"IF(ItineraryPrograms!AD17=\"y\",getScoreFactor(\"Program\",AZ$2),\"\")","v":""},{"$f":"IF(ItineraryPrograms!AE17=\"y\",getScoreFactor(\"Program\",BA$2),\"\")","v":""},{"$f":"IF(ItineraryPrograms!AF17=\"y\",getScoreFactor(\"Program\",BB$2),\"\")","v":""},{"$f":"IF(ItineraryPrograms!AG17=\"y\",getScoreFactor(\"Program\",BC$2),\"\")","v":""},{"$f":"IF(ItineraryPrograms!AH17=\"y\",getScoreFactor(\"Program\",BD$2),\"\")","v":""},{"$f":"IF(ItineraryPrograms!AI17=\"y\",getScoreFactor(\"Program\",BE$2),\"\")","v":220.5},{"$f":"IF(ItineraryPrograms!AJ17=\"y\",getScoreFactor(\"Program\",BF$2),\"\")","v":""},{"$f":"IF(ItineraryPrograms!AK17=\"y\",getScoreFactor(\"Program\",BG$2),\"\")","v":255},{"$f":"IF(ItineraryPrograms!AL17=\"y\",getScoreFactor(\"Program\",BH$2),\"\")","v":235.5},{"$f":"IF(ItineraryPrograms!AM17=\"y\",getScoreFactor(\"Program\",BI$2),\"\")","v":""},{"$f":"IF(ItineraryPrograms!AN17=\"y\",getScoreFactor(\"Program\",BJ$2),\"\")","v":""},{"$f":"IF(ItineraryPrograms!AO17=\"y\",getScoreFactor(\"Program\",BK$2),\"\")","v":""},{"$f":"IF(ItineraryPrograms!AP17=\"y\",getScoreFactor(\"Program\",BL$2),\"\")","v":202.5},{"$f":"IF(ItineraryPrograms!AQ17=\"y\",getScoreFactor(\"Program\",BM$2),\"\")","v":""},{"$f":"IF(ItineraryPrograms!AR17=\"y\",getScoreFactor(\"Program\",BN$2),\"\")","v":207}]
[{"$f":"Itineraries!A18","v":"7-16"},9316.75,{"$f":"getScoreFactor(C$2,itineraryCamps!C19)","v":1500},{"$f":"getScoreFactor(D$2,\"Miles\") *itineraryCamps!D19","v":4200},{"$f":"getScoreFactor(E$2,Itineraries!B18)","v":40},{"$f":"getScoreFactor(F$2,Itineraries!C18)","v":80},{"$f":"getScoreFactor(G$2,Itineraries!E18)","v":50},{"$f":"getScoreFactor(H$2,Itineraries!H18)","v":250},{"$f":"getScoreFactor(I$2,Itineraries!G18)","v":90},{"$f":"getScoreFactor(J$2,Itineraries!J18)","v":50},{"$f":"getScoreFactor(K$2,Itineraries!K18)","v":50},{"$f":"getScoreFactor(L$2,Itineraries!L18)","v":300},{"$f":"IF(INDEX(startingTA,numericItinerary($A18))=$M$2,getScoreFactor(M$2,\"y\"),getScoreFactor(M$2,\"n\"))","v":0},{"$f":"IF(INDEX(startingTA,numericItinerary($A18))=$M$2,getScoreFactor(N$2,\"y\"),getScoreFactor(N$2,\"n\"))","v":0},{"$f":"IF(INDEX(baldyMountainHike,numericItinerary($A18))=\"\",\"\",getPeakScore(O$2))","v":""},{"$f":"IF(INDEX(mountPhillipsHike,numericItinerary($A18))=\"\",\"\",getPeakScore(P$2))","v":""},{"$f":"IF(INDEX(toothOfTimeHike,numericItinerary($A18))=\"\",\"\",getPeakScore(Q$2))","v":303.75},{"$f":"IF(INDEX(trailPeakHike,numericItinerary($A18))=\"\",\"\",getPeakScore(R$2))","v":0},{"$f":"IF(INDEX(mountaineeringHike,numericItinerary($A18))=\"\",\"\",getPeakScore(S$2))","v":0},{"$f":"IF(areaImportant<>\"y\",\"\",IF(Itineraries!P18<>\"Y\",\"\",getareascore(T$2)))","v":""},{"$f":"IF(areaImportant<>\"y\",\"\",IF(Itineraries!Q18<>\"Y\",\"\",getareascore(U$2)))","v":""},{"$f":"IF(areaImportant<>\"y\",\"\",IF(Itineraries!R18<>\"Y\",\"\",getareascore(V$2)))","v":""},{"$f":"IF(areaImportant<>\"y\",\"\",IF(Itineraries!S18<>\"Y\",\"\",getareascore(W$2)))","v":""},{"$f":"IF(ItineraryPrograms!B18=\"y\",getScoreFactor(\"Program\",X$2),\"\")","v":""},{"$f":"IF(ItineraryPrograms!C18=\"y\",getScoreFactor(\"Program\",Y$2),\"\")","v":""},{"$f":"IF(ItineraryPrograms!D18=\"y\",getScoreFactor(\"Program\",Z$2),\"\")","v":""},{"$f":"IF(ItineraryPrograms!E18=\"y\",getScoreFactor(\"Program\",AA$2),\"\")","v":""},{"$f":"IF(ItineraryPrograms!F18=\"y\",getScoreFactor(\"Program\",AB$2),\"\")","v":""},{"$f":"IF(ItineraryPrograms!G18=\"y\",getScoreFactor(\"Program\",AC$2),\"\")","v":""},{"$f":"IF(ItineraryPrograms!H18=\"y\",getScoreFactor(\"Program\",AD$2),\"\")","v":166.5},{"$f":"IF(ItineraryPrograms!I18=\"y\",getScoreFactor(\"Program\",AE$2),\"\")","v":""},{"$f":"IF(ItineraryPrograms!J18=\"y\",getScoreFactor(\"Program\",AF$2),\"\")","v":""},{"$f":"IF(ItineraryPrograms!K18=\"y\",getScoreFactor(\"Program\",AG$2),\"\")","v":91.5},{"$f":"IF(ItineraryPrograms!L18=\"y\",getScoreFactor(\"Program\",AH$2),\"\")","v":""},{"$f":"IF(ItineraryPrograms!M18=\"y\",getScoreFactor(\"Program\",AI$2),\"\")","v":""},{"$f":"IF(ItineraryPrograms!N18=\"y\",getScoreFactor(\"Program\",AJ$2),\"\")","v":""},{"$f":"IF(ItineraryPrograms!O18=\"y\",getScoreFactor(\"Program\",AK$2),\"\")","v":""},{"$f":"IF(ItineraryPrograms!P18=\"y\",getScoreFactor(\"Program\",AL$2),\"\")","v":""},{"$f":"IF(ItineraryPrograms!Q18=\"y\",getScoreFactor(\"Program\",AM$2),\"\")","v":""},{"$f":"IF(ItineraryPrograms!R18=\"y\",getScoreFactor(\"Program\",AN$2),\"\")","v":106.5},{"$f":"IF(ItineraryPrograms!S18=\"y\",getScoreFactor(\"Program\",AO$2),\"\")","v":""},{"$f":"IF(ItineraryPrograms!T18=\"y\",getScoreFactor(\"Program\",AP$2),\"\")","v":""},{"$f":"IF(ItineraryPrograms!U18=\"y\",getScoreFactor(\"Program\",AQ$2),\"\")","v":""},{"$f":"IF(ItineraryPrograms!V18=\"y\",getScoreFactor(\"Program\",AR$2),\"\")","v":""},{"$f":"IF(ItineraryPrograms!W18=\"y\",getScoreFactor(\"Program\",AS$2),\"\")","v":""},{"$f":"IF(ItineraryPrograms!X18=\"y\",getScoreFactor(\"Program\",AT$2),\"\")","v":103.5},{"$f":"IF(ItineraryPrograms!Y18=\"y\",getScoreFactor(\"Program\",AU$2),\"\")","v":""},{"$f":"IF(ItineraryPrograms!Z18=\"y\",getScoreFactor(\"Program\",AV$2),\"\")","v":""},{"$f":"IF(ItineraryPrograms!AA18=\"y\",getScoreFactor(\"Program\",AW$2),\"\")","v":""},{"$f":"IF(ItineraryPrograms!AB18=\"y\",getScoreFactor(\"Program\",AX$2),\"\")","v":""},{"$f":"IF(ItineraryPrograms!AC18=\"y\",getScoreFactor(\"Program\",AY$2),\"\")","v":210},{"$f":"IF(ItineraryPrograms!AD18=\"y\",getScoreFactor(\"Program\",AZ$2),\"\")","v":255},{"$f":"IF(ItineraryPrograms!AE18=\"y\",getScoreFactor(\"Program\",BA$2),\"\")","v":""},{"$f":"IF(ItineraryPrograms!AF18=\"y\",getScoreFactor(\"Program\",BB$2),\"\")","v":""},{"$f":"IF(ItineraryPrograms!AG18=\"y\",getScoreFactor(\"Program\",BC$2),\"\")","v":151.5},{"$f":"IF(ItineraryPrograms!AH18=\"y\",getScoreFactor(\"Program\",BD$2),\"\")","v":""},{"$f":"IF(ItineraryPrograms!AI18=\"y\",getScoreFactor(\"Program\",BE$2),\"\")","v":220.5},{"$f":"IF(ItineraryPrograms!AJ18=\"y\",getScoreFactor(\"Program\",BF$2),\"\")","v":""},{"$f":"IF(ItineraryPrograms!AK18=\"y\",getScoreFactor(\"Program\",BG$2),\"\")","v":""},{"$f":"IF(ItineraryPrograms!AL18=\"y\",getScoreFactor(\"Program\",BH$2),\"\")","v":""},{"$f":"IF(ItineraryPrograms!AM18=\"y\",getScoreFactor(\"Program\",BI$2),\"\")","v":193.5},{"$f":"IF(ItineraryPrograms!AN18=\"y\",getScoreFactor(\"Program\",BJ$2),\"\")","v":151.5},{"$f":"IF(ItineraryPrograms!AO18=\"y\",getScoreFactor(\"Program\",BK$2),\"\")","v":136.5},{"$f":"IF(ItineraryPrograms!AP18=\"y\",getScoreFactor(\"Program\",BL$2),\"\")","v":202.5},{"$f":"IF(ItineraryPrograms!AQ18=\"y\",getScoreFactor(\"Program\",BM$2),\"\")","v":207},{"$f":"IF(ItineraryPrograms!AR18=\"y\",getScoreFactor(\"Program\",BN$2),\"\")","v":207}]
[]
[]
[]
[]
[]
[]
[]
[]
[]
[]
[]
[]
[]
[]
[]
[]
[]
[]
[]
[null,null,{"$f":"\"Distances \"  & MAX(D3:D36)/mileageFactor & \" to \" & MIN(D3:D36)/mileageFactor& \" miles\"","v":"Distances 42 to 27 miles"}]
[]
["Custom Properties"]
["revision","2024_1-0"]
["trekYear","2024"]
["nDays",7]
["nItineraries",16]
["itineraryNoPrefix","7-"]

{"sheet":"Itineraries","index":14,"n_rows":39,"n_cols":19,"rows_kept":39,"cut":false,"hidden":true,"merged":[[0,12,0,14],[0,15,0,18],[37,0,38,0]]}
[null,null,null,null,null,null,null,null,null,null,null,null,"Maps",null,null,"Region"]
["Itinerary","Days Food from Base","Max Days Food","Staffed Camps","Trail Camps","Layovers","Total Camps","Dry Camps","Min Altitude","Max Altitude","Total Gain","Average Daily Change","South","North","Valle Vidal","South","Central","North","Valle Vidal"]
[{"$f":"itineraryCamps!A4","v":"7-1"},{"$f":"itineraryCamps!DL4","v":2},{"$f":"itineraryCamps!DM4","v":2},{"$f":"countcamps(itineraryStaff,numericItinerary($A3))","v":2},{"$f":"countcamps(itineraryTrail,numericItinerary($A3))","v":8},{"$f":"countcamps(itineraryLayover,numericItinerary($A3))","v":4},{"$f":"D3+E3-F3","v":6},{"$f":"countcamps(itineraryDry,numericItinerary($A3))","v":0},{"$f":"MIN(itineraryCamps!AK4:AT4)","v":6979},{"$f":"MAX(itineraryCamps!AK4:AT4)","v":9635},{"$f":"J3-I3","v":2656},{"$f":"AVERAGE(itineraryCamps!AU4:BC4)","v":903.5},{"$f":"contains(M$2,numericItinerary($A3),itineraryMaps)","v":""},{"$f":"contains(N$2,numericItinerary($A3),itineraryMaps)","v":"Y"},{"$f":"contains(O$2,numericItinerary($A3),itineraryMaps)","v":""},{"$f":"contains(P$2,numericItinerary($A3),itineraryCountry)","v":""},{"$f":"contains(Q$2,numericItinerary($A3),itineraryCountry)","v":""},{"$f":"contains(R$2,numericItinerary($A3),itineraryCountry)","v":"Y"},{"$f":"contains(S$2,numericItinerary($A3),itineraryCountry)","v":""}]
[{"$f":"itineraryCamps!A5","v":"7-2"},{"$f":"itineraryCamps!DL5","v":2},{"$f":"itineraryCamps!DM5","v":2},{"$f":"countcamps(itineraryStaff,numericItinerary($A4))","v":3},{"$f":"countcamps(itineraryTrail,numericItinerary($A4))","v":7},{"$f":"countcamps(itineraryLayover,numericItinerary($A4))","v":4},{"$f":"D4+E4-F4","v":6},{"$f":"countcamps(itineraryDry,numericItinerary($A4))","v":1},{"$f":"MIN(itineraryCamps!AK5:AT5)","v":7515},{"$f":"MAX(itineraryCamps!AK5:AT5)","v":8724},{"$f":"J4-I4","v":1209},{"$f":"AVERAGE(itineraryCamps!AU5:BC5)","v":561.25},{"$f":"contains(M$2,numericItinerary($A4),itineraryMaps)","v":"Y"},{"$f":"contains(N$2,numericItinerary($A4),itineraryMaps)","v":""},{"$f":"contains(O$2,numericItinerary($A4),itineraryMaps)","v":""},{"$f":"contains(P$2,numericItinerary($A4),itineraryCountry)","v":"Y"},{"$f":"contains(Q$2,numericItinerary($A4),itineraryCountry)","v":"Y"},{"$f":"contains(R$2,numericItinerary($A4),itineraryCountry)","v":""},{"$f":"contains(S$2,numericItinerary($A4),itineraryCountry)","v":""}]
[{"$f":"itineraryCamps!A6","v":"7-3"},{"$f":"itineraryCamps!DL6","v":3},{"$f":"itineraryCamps!DM6","v":3},{"$f":"countcamps(itineraryStaff,numericItinerary($A5))","v":2},{"$f":"countcamps(itineraryTrail,numericItinerary($A5))","v":8},{"$f":"countcamps(itineraryLayover,numericItinerary($A5))","v":5},5,{"$f":"countcamps(itineraryDry,numericItinerary($A5))","v":0},{"$f":"MIN(itineraryCamps!AK6:AT6)","v":7715},{"$f":"MAX(itineraryCamps!AK6:AT6)","v":9373},1658,{"$f":"AVERAGE(itineraryCamps!AU6:BC6)","v":533.25},{"$f":"contains(M$2,numericItinerary($A5),itineraryMaps)","v":""},{"$f":"contains(N$2,numericItinerary($A5),itineraryMaps)","v":"Y"},{"$f":"contains(O$2,numericItinerary($A5),itineraryMaps)","v":""},{"$f":"contains(P$2,numericItinerary($A5),itineraryCountry)","v":""},{"$f":"contains(Q$2,numericItinerary($A5),itineraryCountry)","v":""},{"$f":"contains(R$2,numericItinerary($A5),itineraryCountry)","v":"Y"},{"$f":"contains(S$2,numericItinerary($A5),itineraryCountry)","v":""}]
[{"$f":"itineraryCamps!A7","v":"7-4"},{"$f":"itineraryCamps!DL7","v":2},{"$f":"itineraryCamps!DM7","v":2},{"$f":"countcamps(itineraryStaff,numericItinerary($A6))","v":3},{"$f":"countcamps(itineraryTrail,numericItinerary($A6))","v":7},{"$f":"countcamps(itineraryLayover,numericItinerary($A6))","v":5},5,{"$f":"countcamps(itineraryDry,numericItinerary($A6))","v":1},{"$f":"MIN(itineraryCamps!AK7:AT7)","v":7495},{"$f":"MAX(itineraryCamps!AK7:AT7)","v":9851},2356,{"$f":"AVERAGE(itineraryCamps!AU7:BC7)","v":827.25},{"$f":"contains(M$2,numericItinerary($A6),itineraryMaps)","v":""},{"$f":"contains(N$2,numericItinerary($A6),itineraryMaps)","v":"Y"},{"$f":"contains(O$2,numericItinerary($A6),itineraryMaps)","v":""},{"$f":"contains(P$2,numericItinerary($A6),itineraryCountry)","v":""},{"$f":"contains(Q$2,numericItinerary($A6),itineraryCountry)","v":""},{"$f":"contains(R$2,numericItinerary($A6),itineraryCountry)","v":"Y"},{"$f":"contains(S$2,numericItinerary($A6),itineraryCountry)","v":""}]
[{"$f":"itineraryCamps!A8","v":"7-5"},{"$f":"itineraryCamps!DL8","v":2},{"$f":"itineraryCamps!DM8","v":2},{"$f":"countcamps(itineraryStaff,numericItinerary($A7))","v":3},{"$f":"countcamps(itineraryTrail,numericItinerary($A7))","v":7},{"$f":"countcamps(itineraryLayover,numericItinerary($A7))","v":4},6,{"$f":"countcamps(itineraryDry,numericItinerary($A7))","v":0},{"$f":"MIN(itineraryCamps!AK8:AT8)","v":7550},{"$f":"MAX(itineraryCamps!AK8:AT8)","v":7977},427,{"$f":"AVERAGE(itineraryCamps!AU8:BC8)","v":133.5},{"$f":"contains(M$2,numericItinerary($A7),itineraryMaps)","v":"Y"},{"$f":"contains(N$2,numericItinerary($A7),itineraryMaps)","v":""},{"$f":"contains(O$2,numericItinerary($A7),itineraryMaps)","v":""},{"$f":"contains(P$2,numericItinerary($A7),itineraryCountry)","v":"Y"},{"$f":"contains(Q$2,numericItinerary($A7),itineraryCountry)","v":"Y"},{"$f":"contains(R$2,numericItinerary($A7),itineraryCountry)","v":""},{"$f":"contains(S$2,numericItinerary($A7),itineraryCountry)","v":""}]
[{"$f":"itineraryCamps!A9","v":"7-6"},{"$f":"itineraryCamps!DL9","v":2},{"$f":"itineraryCamps!DM9","v":2},{"$f":"countcamps(itineraryStaff,numericItinerary($A8))","v":3},{"$f":"countcamps(itineraryTrail,numericItinerary($A8))","v":7},{"$f":"countcamps(itineraryLayover,numericItinerary($A8))","v":4},6,{"$f":"countcamps(itineraryDry,numericItinerary($A8))","v":1},{"$f":"MIN(itineraryCamps!AK9:AT9)","v":7105},{"$f":"MAX(itineraryCamps!AK9:AT9)","v":8211},1106,{"$f":"AVERAGE(itineraryCamps!AU9:BC9)","v":276.5},{"$f":"contains(M$2,numericItinerary($A8),itineraryMaps)","v":""},{"$f":"contains(N$2,numericItinerary($A8),itineraryMaps)","v":"Y"},{"$f":"contains(O$2,numericItinerary($A8),itineraryMaps)","v":""},{"$f":"contains(P$2,numericItinerary($A8),itineraryCountry)","v":""},{"$f":"contains(Q$2,numericItinerary($A8),itineraryCountry)","v":""},{"$f":"contains(R$2,numericItinerary($A8),itineraryCountry)","v":"Y"},{"$f":"contains(S$2,numericItinerary($A8),itineraryCountry)","v":"Y"}]
[{"$f":"itineraryCamps!A10","v":"7-7"},{"$f":"itineraryCamps!DL10","v":2},{"$f":"itineraryCamps!DM10","v":2},{"$f":"countcamps(itineraryStaff,numericItinerary($A9))","v":2},{"$f":"countcamps(itineraryTrail,numericItinerary($A9))","v":8},{"$f":"countcamps(itineraryLayover,numericItinerary($A9))","v":4},6,{"$f":"countcamps(itineraryDry,numericItinerary($A9))","v":2},{"$f":"MIN(itineraryCamps!AK10:AT10)","v":7359},{"$f":"MAX(itineraryCamps!AK10:AT10)","v":9330},1971,{"$f":"AVERAGE(itineraryCamps!AU10:BC10)","v":644.25},{"$f":"contains(M$2,numericItinerary($A9),itineraryMaps)","v":"Y"},{"$f":"contains(N$2,numericItinerary($A9),itineraryMaps)","v":""},{"$f":"contains(O$2,numericItinerary($A9),itineraryMaps)","v":""},{"$f":"contains(P$2,numericItinerary($A9),itineraryCountry)","v":"Y"},{"$f":"contains(Q$2,numericItinerary($A9),itineraryCountry)","v":"Y"},{"$f":"contains(R$2,numericItinerary($A9),itineraryCountry)","v":""},{"$f":"contains(S$2,numericItinerary($A9),itineraryCountry)","v":""}]
[{"$f":"itineraryCamps!A11","v":"7-8"},{"$f":"itineraryCamps!DL11","v":3},{"$f":"itineraryCamps!DM11","v":3},{"$f":"countcamps(itineraryStaff,numericItinerary($A10))","v":2},{"$f":"countcamps(itineraryTrail,numericItinerary($A10))","v":8},{"$f":"countcamps(itineraryLayover,numericItinerary($A10))","v":4},6,{"$f":"countcamps(itineraryDry,numericItinerary($A10))","v":0},{"$f":"MIN(itineraryCamps!AK11:AT11)","v":7375},{"$f":"MAX(itineraryCamps!AK11:AT11)","v":10420},3045,{"$f":"AVERAGE(itineraryCamps!AU11:BC11)","v":806.25},{"$f":"contains(M$2,numericItinerary($A10),itineraryMaps)","v":"Y"},{"$f":"contains(N$2,numericItinerary($A10),itineraryMaps)","v":""},{"$f":"contains(O$2,numericItinerary($A10),itineraryMaps)","v":""},{"$f":"contains(P$2,numericItinerary($A10),itineraryCountry)","v":"Y"},{"$f":"contains(Q$2,numericItinerary($A10),itineraryCountry)","v":"Y"},{"$f":"contains(R$2,numericItinerary($A10),itineraryCountry)","v":""},{"$f":"contains(S$2,numericItinerary($A10),itineraryCountry)","v":""}]
[{"$f":"itineraryCamps!A12","v":"7-9"},{"$f":"itineraryCamps!DL12","v":3},{"$f":"itineraryCamps!DM12","v":3},{"$f":"countcamps(itineraryStaff,numericItinerary($A11))","v":3},{"$f":"countcamps(itineraryTrail,numericItinerary($A11))","v":7},{"$f":"countcamps(itineraryLayover,numericItinerary($A11))","v":4},6,{"$f":"countcamps(itineraryDry,numericItinerary($A11))","v":2},{"$f":"MIN(itineraryCamps!AK12:AT12)","v":7085},{"$f":"MAX(itineraryCamps!AK12:AT12)","v":8724},1639,{"$f":"AVERAGE(itineraryCamps!AU12:BC12)","v":786.5},{"$f":"contains(M$2,numericItinerary($A11),itineraryMaps)","v":"Y"},{"$f":"contains(N$2,numericItinerary($A11),itineraryMaps)","v":""},{"$f":"contains(O$2,numericItinerary($A11),itineraryMaps)","v":""},{"$f":"contains(P$2,numericItinerary($A11),itineraryCountry)","v":"Y"},{"$f":"contains(Q$2,numericItinerary($A11),itineraryCountry)","v":"Y"},{"$f":"contains(R$2,numericItinerary($A11),itineraryCountry)","v":""},{"$f":"contains(S$2,numericItinerary($A11),itineraryCountry)","v":""}]
[{"$f":"itineraryCamps!A13","v":"7-10"},{"$f":"itineraryCamps!DL13","v":3},{"$f":"itineraryCamps!DM13","v":3},{"$f":"countcamps(itineraryStaff,numericItinerary($A12))","v":2},{"$f":"countcamps(itineraryTrail,numericItinerary($A12))","v":8},{"$f":"countcamps(itineraryLayover,numericItinerary($A12))","v":4},6,{"$f":"countcamps(itineraryDry,numericItinerary($A12))","v":1},{"$f":"MIN(itineraryCamps!AK13:AT13)","v":7375},{"$f":"MAX(itineraryCamps!AK13:AT13)","v":8962},1587,{"$f":"AVERAGE(itineraryCamps!AU13:BC13)","v":757.5},{"$f":"contains(M$2,numericItinerary($A12),itineraryMaps)","v":"Y"},{"$f":"contains(N$2,numericItinerary($A12),itineraryMaps)","v":""},{"$f":"contains(O$2,numericItinerary($A12),itineraryMaps)","v":""},{"$f":"contains(P$2,numericItinerary($A12),itineraryCountry)","v":"Y"},{"$f":"contains(Q$2,numericItinerary($A12),itineraryCountry)","v":""},{"$f":"contains(R$2,numericItinerary($A12),itineraryCountry)","v":""},{"$f":"contains(S$2,numericItinerary($A12),itineraryCountry)","v":""}]
[{"$f":"itineraryCamps!A14","v":"7-11"},{"$f":"itineraryCamps!DL14","v":2},{"$f":"itineraryCamps!DM14","v":2},{"$f":"countcamps(itineraryStaff,numericItinerary($A13))","v":3},{"$f":"countcamps(itineraryTrail,numericItinerary($A13))","v":7},{"$f":"countcamps(itineraryLayover,numericItinerary($A13))","v":4},6,{"$f":"countcamps(itineraryDry,numericItinerary($A13))","v":1},{"$f":"MIN(itineraryCamps!AK14:AT14)","v":7177},{"$f":"MAX(itineraryCamps!AK14:AT14)","v":7967},790,{"$f":"AVERAGE(itineraryCamps!AU14:BC14)","v":454.5},{"$f":"contains(M$2,numericItinerary($A13),itineraryMaps)","v":""},{"$f":"contains(N$2,numericItinerary($A13),itineraryMaps)","v":"Y"},{"$f":"contains(O$2,numericItinerary($A13),itineraryMaps)","v":""},{"$f":"contains(P$2,numericItinerary($A13),itineraryCountry)","v":""},{"$f":"contains(Q$2,numericItinerary($A13),itineraryCountry)","v":""},{"$f":"contains(R$2,numericItinerary($A13),itineraryCountry)","v":"Y"},{"$f":"contains(S$2,numericItinerary($A13),itineraryCountry)","v":""}]
[{"$f":"itineraryCamps!A15","v":"7-12"},{"$f":"itineraryCamps!DL15","v":3},{"$f":"itineraryCamps!DM15","v":3},{"$f":"countcamps(itineraryStaff,numericItinerary($A14))","v":2},{"$f":"countcamps(itineraryTrail,numericItinerary($A14))","v":8},{"$f":"countcamps(itineraryLayover,numericItinerary($A14))","v":4},6,{"$f":"countcamps(itineraryDry,numericItinerary($A14))","v":1},{"$f":"MIN(itineraryCamps!AK15:AT15)","v":7157},{"$f":"MAX(itineraryCamps!AK15:AT15)","v":8496},1339,{"$f":"AVERAGE(itineraryCamps!AU15:BC15)","v":560.07900000000018},{"$f":"contains(M$2,numericItinerary($A14),itineraryMaps)","v":""},{"$f":"contains(N$2,numericItinerary($A14),itineraryMaps)","v":"Y"},{"$f":"contains(O$2,numericItinerary($A14),itineraryMaps)","v":""},{"$f":"contains(P$2,numericItinerary($A14),itineraryCountry)","v":""},{"$f":"contains(Q$2,numericItinerary($A14),itineraryCountry)","v":""},{"$f":"contains(R$2,numericItinerary($A14),itineraryCountry)","v":"Y"},{"$f":"contains(S$2,numericItinerary($A14),itineraryCountry)","v":"Y"}]
[{"$f":"itineraryCamps!A16","v":"7-13"},{"$f":"itineraryCamps!DL16","v":2},{"$f":"itineraryCamps!DM16","v":2},{"$f":"countcamps(itineraryStaff,numericItinerary($A15))","v":1},{"$f":"countcamps(itineraryTrail,numericItinerary($A15))","v":9},{"$f":"countcamps(itineraryLayover,numericItinerary($A15))","v":4},6,{"$f":"countcamps(itineraryDry,numericItinerary($A15))","v":1},{"$f":"MIN(itineraryCamps!AK16:AT16)","v":7776},{"$f":"MAX(itineraryCamps!AK16:AT16)","v":11650},3874,{"$f":"AVERAGE(itineraryCamps!AU16:BC16)","v":1576.25},{"$f":"contains(M$2,numericItinerary($A15),itineraryMaps)","v":"Y"},{"$f":"contains(N$2,numericItinerary($A15),itineraryMaps)","v":""},{"$f":"contains(O$2,numericItinerary($A15),itineraryMaps)","v":""},{"$f":"contains(P$2,numericItinerary($A15),itineraryCountry)","v":"Y"},{"$f":"contains(Q$2,numericItinerary($A15),itineraryCountry)","v":"Y"},{"$f":"contains(R$2,numericItinerary($A15),itineraryCountry)","v":""},{"$f":"contains(S$2,numericItinerary($A15),itineraryCountry)","v":""}]
[{"$f":"itineraryCamps!A17","v":"7-14"},{"$f":"itineraryCamps!DL17","v":2},{"$f":"itineraryCamps!DM17","v":2},{"$f":"countcamps(itineraryStaff,numericItinerary($A16))","v":2},{"$f":"countcamps(itineraryTrail,numericItinerary($A16))","v":8},{"$f":"countcamps(itineraryLayover,numericItinerary($A16))","v":4},6,{"$f":"countcamps(itineraryDry,numericItinerary($A16))","v":1},{"$f":"MIN(itineraryCamps!AK17:AT17)","v":7375},{"$f":"MAX(itineraryCamps!AK17:AT17)","v":11070},3695,{"$f":"AVERAGE(itineraryCamps!AU17:BC17)","v":1747.25},{"$f":"contains(M$2,numericItinerary($A16),itineraryMaps)","v":"Y"},{"$f":"contains(N$2,numericItinerary($A16),itineraryMaps)","v":""},{"$f":"contains(O$2,numericItinerary($A16),itineraryMaps)","v":""},{"$f":"contains(P$2,numericItinerary($A16),itineraryCountry)","v":"Y"},{"$f":"contains(Q$2,numericItinerary($A16),itineraryCountry)","v":"Y"},{"$f":"contains(R$2,numericItinerary($A16),itineraryCountry)","v":""},{"$f":"contains(S$2,numericItinerary($A16),itineraryCountry)","v":""}]
[{"$f":"itineraryCamps!A18","v":"7-15"},{"$f":"itineraryCamps!DL18","v":2},{"$f":"itineraryCamps!DM18","v":2},{"$f":"countcamps(itineraryStaff,numericItinerary($A17))","v":3},{"$f":"countcamps(itineraryTrail,numericItinerary($A17))","v":7},{"$f":"countcamps(itineraryLayover,numericItinerary($A17))","v":4},6,{"$f":"countcamps(itineraryDry,numericItinerary($A17))","v":0},{"$f":"MIN(itineraryCamps!AK18:AT18)","v":7415},{"$f":"MAX(itineraryCamps!AK18:AT18)","v":9193},1778,{"$f":"AVERAGE(itineraryCamps!AU18:BC18)","v":864},{"$f":"contains(M$2,numericItinerary($A17),itineraryMaps)","v":"Y"},{"$f":"contains(N$2,numericItinerary($A17),itineraryMaps)","v":""},{"$f":"contains(O$2,numericItinerary($A17),itineraryMaps)","v":""},{"$f":"contains(P$2,numericItinerary($A17),itineraryCountry)","v":""},{"$f":"contains(Q$2,numericItinerary($A17),itineraryCountry)","v":"Y"},{"$f":"contains(R$2,numericItinerary($A17),itineraryCountry)","v":""},{"$f":"contains(S$2,numericItinerary($A17),itineraryCountry)","v":""}]
[{"$f":"itineraryCamps!A19","v":"7-16"},{"$f":"itineraryCamps!DL19","v":3},{"$f":"itineraryCamps!DM19","v":3},{"$f":"countcamps(itineraryStaff,numericItinerary($A18))","v":3},{"$f":"countcamps(itineraryTrail,numericItinerary($A18))","v":7},{"$f":"countcamps(itineraryLayover,numericItinerary($A18))","v":4},6,{"$f":"countcamps(itineraryDry,numericItinerary($A18))","v":1},{"$f":"MIN(itineraryCamps!AK19:AT19)","v":7465},{"$f":"MAX(itineraryCamps!AK19:AT19)","v":9419},1954,{"$f":"AVERAGE(itineraryCamps!AU19:BC19)","v":849},{"$f":"contains(M$2,numericItinerary($A18),itineraryMaps)","v":"Y"},{"$f":"contains(N$2,numericItinerary($A18),itineraryMaps)","v":""},{"$f":"contains(O$2,numericItinerary($A18),itineraryMaps)","v":""},{"$f":"contains(P$2,numericItinerary($A18),itineraryCountry)","v":"Y"},{"$f":"contains(Q$2,numericItinerary($A18),itineraryCountry)","v":""},{"$f":"contains(R$2,numericItinerary($A18),itineraryCountry)","v":""},{"$f":"contains(S$2,numericItinerary($A18),itineraryCountry)","v":""}]
[]
[]
[]
[]
[]
[]
[]
[]
[]
[]
[]
[]
[]
[]
[]
[]
[]
[]
[]
["Min/Max nCamps",{"$f":"MIN(B3:B36)","v":2},2,1,7,4,5,0]
[null,{"$f":"MAX(B3:B36)","v":3},3,3,9,5,6,2]

{"sheet":"Programs","index":15,"n_rows":44,"n_cols":5,"rows_kept":44,"cut":false,"hidden":true,"merged":[]}
["#","Programs",null,"nPrograms",{"$f":"MAX(A:A)","v":43}]
[{"$f":"ROW()-1","v":1},"Archaeology"]
[{"$f":"ROW()-1","v":2},"Archery - 3 Dimensional"]
[3,"Atlatl (Dart-throwing)"]
[4,"Baldy Mountain"]
[5,"Blacksmithing"]
[6,"Bouldering"]
[7,"Campfire (evening)"]
[8,"Cantina"]
[9,"Challenge Events"]
[10,"Chuckwagon Dinner"]
[11,"Cowboy Action Shooting"]
[12,"Demonstration Forest"]
[13,"Fishing"]
[14,"Fly Tying"]
[15,"Fur Trapper Rendezvous"]
[16,"Gold Mining & Panning"]
[17,"High Ropes & Climbing Tower"]
[18,"Historic Chase Ranch"]
[19,"Homesteading"]
[20,"Horse Rides"]
[21,"Inspiration Point Hike"]
[22,"Laser Shot Shooting Range"]
[23,"Lodge/Cabin Tours"]
[24,"Low Impact Camping"]
[25,"Mexican Dinner"]
[26,"Mine Tour"]
[27,"Mount Phillips"]
[28,"Mountaineering"]
[29,"Muzzle Loading Rifle"]
[30,"New Mexico Homestead"]
[31,"Petroglyph Tour"]
[32,"Post Civil War Encampment"]
[33,"Railroading"]
[34,"Rock Climbing & Rappelling"]
[35,"Rocky Mountain Fur Co."]
[36,"Shooting/Reloading - .30-06"]
[37,"Shotgun Shooting/Reloading - 12 Gauge"]
[38,"Spar Pole Climbing"]
[39,"Tie Making & Crosscut Saws"]
[40,"Tomahawk Throwing"]
[41,"Tooth of Time"]
[42,"Trail Peak"]
[43,"Western Lore/Branding"]

{"sheet":"Camp Programs","index":16,"n_rows":53,"n_cols":52,"rows_kept":53,"cut":false,"hidden":true,"merged":[[0,0,1,0],[0,1,1,1]]}
["These are the programs available at camps.  Used to create the default programs for itineraries in itineraryPrograms worksheet.\n\n\nStaffed Camp","# Programs",1,{"$f":"C1+1","v":2},{"$f":"D1+1","v":3},4,5,6,7,8,9,10,11,12,13,14,15,16,17,18,19,20,21,22,23,24,25,26,27,28,29,30,31,32,33,{"$f":"AI1+1","v":34},35,36,37,38,39,40,41,42,43,{"$f":"AS1+1","v":44},45,{"$f":"AU1+1","v":46},{"$f":"AV1+1","v":47},{"$f":"AW1+1","v":48},{"$f":"AX1+1","v":49},50]
[null,null,{"$f":"INDEX(program_table,C1)","v":"Archaeology"},{"$f":"INDEX(program_table,D1)","v":"Archery - 3 Dimensional"},{"$f":"INDEX(program_table,E1)","v":"Atlatl (Dart-throwing)"},{"$f":"INDEX(program_table,F1)","v":"Baldy Mountain"},{"$f":"INDEX(program_table,G1)","v":"Blacksmithing"},{"$f":"INDEX(program_table,H1)","v":"Bouldering"},{"$f":"INDEX(program_table,I1)","v":"Campfire (evening)"},{"$f":"INDEX(program_table,J1)","v":"Cantina"},{"$f":"INDEX(program_table,K1)","v":"Challenge Events"},{"$f":"INDEX(program_table,L1)","v":"Chuckwagon Dinner"},{"$f":"INDEX(program_table,M1)","v":"Cowboy Action Shooting"},{"$f":"INDEX(program_table,N1)","v":"Demonstration Forest"},{"$f":"INDEX(program_table,O1)","v":"Fishing"},{"$f":"INDEX(program_table,P1)","v":"Fly Tying"},{"$f":"INDEX(program_table,Q1)","v":"Fur Trapper Rendezvous"},{"$f":"INDEX(program_table,R1)","v":"Gold Mining & Panning"},{"$f":"INDEX(program_table,S1)","v":"High Ropes & Climbing Tower"},{"$f":"INDEX(program_table,T1)","v":"Historic Chase Ranch"},{"$f":"INDEX(program_table,U1)","v":"Homesteading"},{"$f":"INDEX(program_table,V1)","v":"Horse Rides"},{"$f":"INDEX(program_table,W1)","v":"Inspiration Point Hike"},{"$f":"INDEX(program_table,X1)","v":"Laser Shot Shooting Range"},{"$f":"INDEX(program_table,Y1)","v":"Lodge/Cabin Tours"},{"$f":"INDEX(program_table,Z1)","v":"Low Impact Camping"},{"$f":"INDEX(program_table,AA1)","v":"Mexican Dinner"},{"$f":"INDEX(program_table,AB1)","v":"Mine Tour"},{"$f":"INDEX(program_table,AC1)","v":"Mount Phillips"},{"$f":"INDEX(program_table,AD1)","v":"Mountaineering"},{"$f":"INDEX(program_table,AE1)","v":"Muzzle Loading Rifle"},{"$f":"INDEX(program_table,AF1)","v":"New Mexico Homestead"},{"$f":"INDEX(program_table,AG1)","v":"Petroglyph Tour"},{"$f":"INDEX(program_table,AH1)","v":"Post Civil War Encampment"},{"$f":"INDEX(program_table,AI1)","v":"Railroading"},{"$f":"INDEX(program_table,AJ1)","v":"Rock Climbing & Rappelling"},{"$f":"INDEX(program_table,AK1)","v":"Rocky Mountain Fur Co."},{"$f":"INDEX(program_table,AL1)","v":"Shooting/Reloading - .30-06"},{"$f":"INDEX(program_table,AM1)","v":"Shotgun Shooting/Reloading - 12 Gauge"},{"$f":"INDEX(program_table,AN1)","v":"Spar Pole Climbing"},{"$f":"INDEX(program_table,AO1)","v":"Tie Making & Crosscut Saws"},{"$f":"INDEX(program_table,AP1)","v":"Tomahawk Throwing"},{"$f":"INDEX(program_table,AQ1)","v":"Tooth of Time"},{"$f":"INDEX(program_table,AR1)","v":"Trail Peak"},{"$f":"INDEX(program_table,AS1)","v":"Western Lore/Branding"},{"$f":"INDEX(program_table,AT1)","v":{"$error":"#REF!"}},{"$f":"INDEX(program_table,AU1)","v":{"$error":"#REF!"}},{"$f":"INDEX(program_table,AV1)","v":{"$error":"#REF!"}},{"$f":"INDEX(program_table,AW1)","v":{"$error":"#REF!"}},{"$f":"INDEX(program_table,AX1)","v":{"$error":"#REF!"}},{"$f":"INDEX(program_table,AY1)","v":{"$error":"#REF!"}},{"$f":"INDEX(program_table,AZ1)","v":{"$error":"#REF!"}}]
["Abreu",{"$f":"COUNTIF(C3:AZ3,\"y\")","v":4},null,null,null,null,null,null,null,null,null,"y",null,null,null,null,null,null,null,null,null,null,null,null,null,null,null,null,null,"y",null,"y",null,null,null,null,null,"y"]
["Anasazi",0]
["Apache Springs",2,null,"y",null,null,null,null,null,null,null,null,null,null,null,null,null,null,null,null,null,null,null,null,null,null,"y"]
["Baldy Town",0]
["Beaubien",4,null,null,null,null,null,null,null,null,"y",null,null,"y",null,null,null,null,null,null,null,null,null,"y",null,null,null,null,null,null,null,null,null,null,null,null,null,null,null,null,null,null,null,null,null,null,null,null,null,null,null,"y"]
["Beatty Lakes",1,null,null,null,null,null,null,null,null,null,null,null,null,null,null,null,null,null,null,null,null,null,null,null,null,null,null,null,null,"y"]
["Black Mountain",3,null,null,null,null,null,"y",null,null,null,null,null,null,null,null,null,null,null,null,null,null,null,null,null,null,null,null,null,null,null,null,null,null,null,null,"y",null,null,"y"]
["Carson Meadows",2,null,null,null,null,null,null,null,null,null,null,null,null,null,null,null,null,"y",null,null,null,null,null,null,null,null,null,null,null,null,null,null,null,null,null,null,null,null,null,null,null,null,"y"]
["Chase Cow",2,null,null,null,null,null,null,"y",null,null,null,null,null,null,null,null,null,null,null,null,null,null,null,null,null,null,null,null,null,null,null,null,null,null,null,null,null,null,null,null,"y"]
["Chase Ranch",1,null,null,null,null,null,null,null,null,null,null,null,null,null,null,null,null,null,null,null,"y"]
["Cimarroncita",3,null,"y",null,null,null,null,null,null,null,null,null,null,null,null,null,null,null,null,null,null,null,null,"y",null,null,null,"y"]
["Cimarroncito",1,null,null,null,null,null,null,null,null,null,null,null,null,null,null,null,null,null,null,null,null,null,null,null,null,null,null,null,null,null,null,null,null,null,null,null,null,null,null,null,"y"]
["Clarks Fork",4,null,null,null,null,null,null,null,null,"y",null,null,"y",null,null,null,null,null,null,null,null,null,"y",null,null,null,null,null,null,null,null,null,null,null,null,null,null,null,null,null,null,null,null,null,null,null,null,null,null,null,"y"]
["Clear Creek",3,null,null,null,null,null,null,null,null,null,null,null,null,null,null,null,null,null,null,null,null,null,null,null,null,null,null,null,null,null,null,null,null,null,null,"y",null,null,null,null,null,"y",null,null,null,null,null,"y"]
["COPE Course",1,null,null,null,null,null,null,null,null,null,null,null,null,null,null,null,null,null,null,"y"]
["Crater Lake",3,null,null,null,null,null,null,null,null,"y",null,null,null,null,null,null,null,null,null,null,null,null,null,null,null,null,null,null,null,null,null,null,null,null,null,null,null,null,null,null,null,null,null,null,null,"y","y"]
["Crooked Creek",2,null,null,null,null,null,null,null,null,null,null,null,null,null,null,null,null,null,null,null,null,"y",null,null,null,null,null,null,"y"]
["Cyphers Mine",4,null,null,null,null,null,"y",null,null,"y",null,null,null,null,null,null,null,null,"y",null,null,null,null,null,null,null,null,null,null,null,null,"y"]
["Dan Beard",1,null,null,null,null,null,null,null,null,null,null,"y"]
["Dean Cow",0]
["Demonstration Forest",1,null,null,null,null,null,null,null,null,null,null,null,null,null,"y"]
["Fish Camp",3,null,null,null,null,null,null,null,null,null,null,null,null,null,null,"y","y",null,null,null,null,null,null,null,null,null,null,null,"y"]
["French Henry",3,null,null,null,null,null,"y",null,null,null,null,null,null,null,null,null,null,null,"y",null,null,null,null,null,null,null,null,null,null,null,null,"y"]
["Garcia Cow",0]
["Greenwood Canyon",1,null,null,null,null,null,null,null,null,null,null,null,null,null,null,null,null,null,null,null,null,null,null,null,null,null,null,null,null,"y"]
["Harlan",1,null,null,null,null,null,null,null,null,null,null,null,null,null,null,null,null,null,null,null,null,null,null,null,null,null,null,null,null,null,null,null,null,null,null,null,null,null,null,null,null,null,null,null,"y"]
["Head of Dean",1,null,null,null,null,null,null,null,null,null,null,"y"]
["Hunting Lodge",2,null,null,null,null,null,null,null,null,null,null,null,null,null,null,"y",null,null,null,null,null,null,null,null,null,null,null,null,"y"]
["Indian Writings",3,"y",null,null,"y",null,null,null,null,null,null,null,null,null,null,null,null,null,null,null,null,null,null,null,null,null,null,null,null,null,null,null,null,null,null,null,null,"y"]
["Iris Park",1,null,null,null,null,null,null,null,null,null,null,null,null,null,null,null,null,null,null,null,null,null,null,null,null,null,null,null,null,"y"]
["Kit Carson",0]
["Little Costilla",1,null,null,null,null,null,null,null,null,null,null,null,null,null,null,null,null,null,null,null,null,null,null,null,null,null,null,null,null,"y"]
["Miners Park",{"$f":"COUNTIF(C35:AZ35,\"y\")","v":1},null,null,null,null,null,null,null,null,null,null,null,null,null,null,null,null,null,null,null,null,null,null,null,null,null,null,null,null,null,null,null,null,null,null,null,null,null,null,null,"y"]
["Metcalf Station",3,null,null,null,null,null,"y",null,null,"y",null,null,null,null,null,null,null,null,null,null,null,null,null,null,null,null,null,null,null,null,null,null,null,null,null,null,null,null,null,"y"]
["Middle Ponil",1,null,null,null,null,null,null,null,null,null,null,null,null,null,null,null,null,null,null,null,null,null,null,null,null,null,null,null,null,"y"]
["Miranda",3,null,null,null,null,null,null,null,"y",null,null,null,null,null,null,null,null,null,null,null,null,null,null,null,null,null,null,null,null,null,null,null,null,null,null,"y",null,null,null,null,null,null,null,null,null,null,null,"y"]
["Phillips Junction",1,null,null,null,null,null,null,null,null,null,null,null,null,null,null,null,null,null,null,null,null,null,null,null,null,null,null,null,null,"y"]
["Ponil",7,null,null,null,null,null,null,null,"y","y","y",null,"y","y",null,null,null,null,null,null,null,null,"y",null,null,null,null,null,null,null,null,null,null,null,null,null,null,null,null,null,null,null,null,null,null,null,null,null,null,null,"y"]
["Pueblano",3,null,null,null,null,null,null,null,null,"y",null,null,null,null,null,null,null,null,null,null,null,null,null,null,null,null,null,null,null,null,null,null,null,null,null,null,null,null,null,null,null,null,null,null,null,"y","y"]
["Rayado",3,null,null,null,null,null,"y",null,null,null,null,null,null,null,null,null,null,null,null,null,null,null,null,null,null,null,"y",null,null,null,null,null,null,null,null,null,null,null,null,null,null,null,null,null,null,null,null,"y"]
["Rich Cabins",4,null,null,null,null,null,null,null,null,"y",null,null,null,null,null,null,null,null,null,null,null,"y",null,null,null,null,null,null,"y","y"]
["Ring Place",3,null,null,"y",null,null,null,null,null,null,null,null,null,null,null,null,null,null,null,null,null,null,null,null,null,null,null,null,null,"y",null,null,null,"y"]
["Santa Claus",0]
["Sawmill",1,null,null,null,null,null,null,null,null,null,null,null,null,null,null,null,null,null,null,null,null,null,null,null,null,null,null,null,null,null,null,null,null,null,null,null,null,null,null,null,null,null,null,"y"]
["Seally Canyon",0]
["Upper Greenwood",1,null,null,null,null,null,null,null,null,null,null,null,null,null,null,null,null,null,null,null,null,null,null,null,null,null,null,null,null,"y"]
["Urraca",3,null,null,null,null,null,null,null,null,"y",null,"y",null,null,null,null,null,null,null,null,null,null,null,null,"y"]
["Ute Gulch",0]
["Whiteman Vega",0]
["Zastrow",0]
[null,null,{"$f":"COUNTIF(C3:C52,\"y\")","v":1},{"$f":"COUNTIF(D3:D52,\"y\")","v":2},1,1,0,5,1,2,9,2,3,3,1,1,2,1,1,2,1,1,2,3,1,1,1,1,1,5,9,1,2,0,1,0,3,1,1,1,1,3,1,1,1,1,2,2,3,0,0,3]

{"sheet":"Camp Elevations","index":17,"n_rows":171,"n_cols":14,"rows_kept":171,"cut":false,"hidden":true,"merged":[[170,3,170,12],[103,13,104,13]]}
["Added","CAMP NAME","Country","Easting","Northing","ELEVATION ","Commissary","Trading Post","Staffed","Trail Camp","Dry Camp","Showers","campMap"]
[null,"Abreu","South",498586,4025999,7217,"","","Y","","","Y","South"]
[null,"Agua Fria","South",488935,4026589,8726,"","","","Y","","","South"]
[null,"Aguila","South",497862,4028279,8282,"","","","Y","","","South"]
[2019,"American Creek","South",481557.83,4035889.24,9815,null,null,"","Y","",null,"South"]
[null,"Anasazi","North",501736,4051171,6911,"","","","Y","","","North"]
[null,"Apache Springs","South",487072,4026937,9409,"Y","","Y","","","","South"]
[2019,"Arrowhead","South",496899.66,4035172.06,7644,null,null,"","Y","Y",null,"South"]
[null,"Aspen Springs","Central",494588,4039845,7912,"","","","Y","","","South"]
[2021,"Azurite","North",482386.37579999998,4054351.6874000002,10640,null,null,"","Y","Y",null,"North"]
[null,"Backache Springs","South",502047,4027556,7688,"","","","Y","","","South"]
[null,"Baldy Skyline","North",487283.46,4052136.12,9140,"","","","Y","","","North"]
[null,"Baldy Town","North",482894,4053456,9851,"Y","Y","Y","","","Y","North"]
[null,"Base","Central",503848,4034364,6696,"","","","Y","","","South"]
[null,"Bear Canyon","South",487881,4028169,9288,"","","","Y","","","South"]
[null,"Bear Caves","South",496976,4028855,8423,"","","","Y","","","South"]
[2021,"Bear Creek",{"$f":"C15","v":"South"},{"$f":"D15","v":487881},4028169,9288,"","","","Y","","","South","Renamed from Bear Canyon"]
[null,"Beatty Lakes","Valle Vidal",489314.61,4064668.2415999998,8178.6580000000004,"","","","Y","Y","","North"]
[null,"Beaubien","South",490738,4030941,9330,"","","Y","","","Y","South"]
[null,"Bent","North",494100,4054501,7319,"","","","Y","","","North"]
[null,"Black Horse","North",483104,4051686,9619,"","","","Y","","","North"]
[2021,"Black Horse Creek",{"$f":"C21","v":"North"},{"$f":"D21","v":483104},4051686,9619,"","","","Y","","","North","Renamed from Black Horse"]
[2021,"Black Horse Mine","North",482367.65720000002,4052309.574,10750,null,null,"","Y","Y",null,"North"]
[null,"Black Jacks","North",496177,4047265,8211,"","","","Y","","","North"]
[null,"Black Mountain","South",491634,4033045,8991,"","","Y","","","","South"]
[2022,"Bluestem","North",495101.6764,4051329.0962,7495,null,null,"","Y","Y",null,"North"]
[null,"Bonita Cow","South",null,null,9120,"","","","Y","","","South"]
[null,"Buck Creek","South",488296,4029577,9131,"","","","Y","","","South"]
[null,"Camping HQ",{"$f":"C14","v":"Central"},{"$f":"D14","v":503848},4034364,6696,"","","","Y","","","South","Same as BASE"]
[null,"Campos Heck","North",502454,4047467,7081,"","","","Y","","","North"]
[null,"Carson Meadows","South",497851,4024826,7758,"","","Y","","","","South"]
[null,"Cathedral Rock","Central",495619,4037883,7550,"","","","Y","","","South"]
[null,"Chase Canyon","North",503643,4053267,7192,"","","","Y","","","North"]
[2019,"Chase Cow","North",504488.58,4052426.91,7177,null,null,"Y","","",null,"North"]
[null,"Chase Ranch","North",506771,4045397,6552,"","","Y","","Y","","North"]
[null,"Cimarron River","Central",494007,4046488,7282,"","","","Y","","","South"]
[2021,"Cimarroncita","Central",492337.15110000002,4045746.6666999999,7373,null,null,"Y","","",null,"North & South"]
[null,"Cimarroncito","Central",494139,4039271,8137,"","","Y","","","Y","South"]
[null,"Clarks Fork","Central",495699,4035985.55,7515,"","","Y","","","Y","South"]
[null,"Clear Creek","Central",483477,4036332,10240,"","","Y","","","","South"]
[null,"Comanche Creek","South",485656.75,4033365.26,9600,"","","","Y","","","South"]
[null,"Comanche Peak","Central",487608,4037237,11070,"","","","Y","Y","","South"]
[null,"Cook Canyon","North",494194,4058460,7731,"","","","Y","","","North"]
[null,"Copper Park","North",481903,4055101,10530,"","","","Y","","","North"]
[null,"Cottonwood","North",500105,4056884,7373,"","","","Y","","","North"]
[2023,"Coyote Howl","North",500561.82,4054185.0869999998,7560.52,"","","","Y","","","North"]
[null,"Crags","South",494334,4024631,8058,"","","","Y","","","South"]
[null,"Crater Lake","South",495609,4028935,8398,"","","Y","","","","South"]
[null,"Crooked Creek","South",486794,4031067,9360,"","","Y","","","","South"]
[null,"Cyphers Mine","Central",489568,4037662,9302,"","","Y","","","Y","South"]
[null,"Dan Beard","North",492056,4059215,7896,"","","Y","","","","North"]
[2019,"Daves Lake","South",491347.09,4025665.43,9453,null,null,"","Y","",null,"South"]
[null,"Dean Cow","North",500102,4046769,7232,"","","Y","","","Y","North"]
[null,"Dean Cutoff","North",495546.39,4052340.91,7320,"","","","Y","","","North"]
[null,"Dean Heck","North",504413,4044305,6758,"","","","Y","","","North"]
[2019,"Dean Skyline","North",495667.97,4051680.85,7967,null,null,"","Y","Y",null,"North"]
[null,"Deer Lake","Central",497685,4040333,8280,"","","","Y","","","South"]
[null,"Deer Lake Mesa","Central",495433,4042810,8324,"","","","Y","","","South"]
[null,"Demonstration Forest","South",494670,4037285,7720,"","","","Y","Y","","South"]
[null,"Devil's Wash Basin","Central",494932,4042281,8515,"","","","Y","Y","","South"]
[2020,"Divide","South",488258.43,4036088.88,10509,null,null,"","Y","Y",null,"South"]
[null,"Elkhorn","North",492424,4051874,8496,"","","","Y","","","North"]
[null,"Ewells Park","North",484643,4053169,9373,"","","","Y","","","North"]
[null,"Fish Camp","South",490787,4026964,8564,"","","Y","","","","South"]
[null,"Flume Canyon","North",492186,4053281,7715,"","","","Y","","","North"]
[null,"French Henry","North",483471,4054519,9635,"","","Y","","","","North"]
[2019,"Garcia Cow","South",483495.8,4027944.67,9855,null,null,"Y","","",null,"South"]
[null,"Greenwood Canyon","Valle Vidal",483891.64,4061375.92,8300,"","","","Y","","","North"]
[null,"Harlan","Central",498402,4041184,7550,"","","Y","","","","South"]
[null,"Hawkeye","Central",494791,4046280,7586,"","","","Y","Y","","South"]
[null,"Head of Dean","North",489268,4051641,8754,"","","Y","","","","North"]
[2021,"Heck Meadow","South",498379.26270000002,4035918.4079,7085,null,null,"","Y","Y",null,"South"]
[null,"Hells Fire Canyon","North",506048,4049722,6837,"","","","Y","","","North"]
[2020,"Herradura","South",498970.27,4030120,7465,"","","","Y","Y","","South"]
[null,"Horse Canyon","North",494604,4057016,8128,"","","","Y","","","North"]
[null,"House Canyon","North",502969,4051149,7157,"","","","Y","","","North"]
[null,"Hunting Lodge","Central",494338,4037841,7776,"","","N","y","","","South"]
[null,"Indian Writings","North",500421,4053139,6979,"","","Y","","","Y","North"]
[null,"Iris Park","Valle Vidal",486124,4064630,8571,"","","","Y","","","North"]
[null,"Kit Carson","South",506169.3798,4024627.3322999999,6466,"","","Y","","","","South"]
[null,"Lamberts Mine","Central",490260,4037034,8957,"","","","Y","","","South"]
[2021,"Line",{"$f":"C83","v":"South"},{"$f":"D83","v":498199.67},4023525.53,8125,"","","","Y","","","South","Renamed from Line Camp"]
[null,"Line Camp","South",498199.67,4023525.53,8125,"","","","Y","","","South"]
[null,"Little Costilla","Valle Vidal",480285.29,4072995.57,10200.69,"","","","Y","","","North"]
[2019,"Little Twin","North",505391.65330000001,4049985.7826999999,7258.9650430000002,null,null,"","Y","Y",null,"North"]
[null,"Lookout Meadow","South",493728,4026401,9419,"","","","Y","","","South"]
[null,"Lost Cabins","South",487827,4026491,9205,"","","","Y","","","South"]
[null,"Lost Gap","Central",496635,4040475,8413,"","","","Y","Y","","South"]
[2019,"Lovato","South",487595.97,4023654.22,9523,null,null,"","Y","",null,"South"]
[null,"Lovers Leap","South",498474,4030533,7469,"","","","Y","","","South"]
[null,"Lower Bonito","South",493583,4027520,8962,"","","","Y","","","South"]
[null,"Lower Sawmill","Central",493143,4041628,8308,"","","","Y","","","South"]
[2021,"Magpie","South",501032.30530000001,4031514.3975,7385,null,null,"","Y","Y",null,"South"]
[null,"Martinez Springs","Central",496880,4043340,7494,"","","","Y","","","South"]
[null,"Maxwell","North",486238,4050954,8498,"","","","Y","","","North"]
[null,"McBride Canyon","North",500499,4050410,7105,"","","","Y","Y","","North"]
[null,"McCrystal Creek","Valle Vidal",486857.99619999999,4073297.6935000001,8538,"","","","Y","","","North"]
[null,"Metcalf Station","North",497635,4057295,7220,"","","Y","","","","North"]
[null,"Middle Ponil","Valle Vidal",482410,4068284,9118,"","","","Y","","","North"]
[null,"Miners Park","South",496250,4030958,7977,"Y","","Y","","","Y","South"]
[null,"Minnette Meadows","Central",492417.2,4044351,7703,"","","","Y","Y","","South"]
[null,"Miranda","North",484666,4051561,8898,"","","Y","","","","North"]
[2021,"Mistletoe","Central",493459.07990000001,4048688.4183999998,8295,null,null,"","Y","Y",null,"North & South"]
[null,"Mount Phillips","Central",486031.29960000003,4036786.3292,11650,"","","","Y","Y","","South","2023 Different spellings for same camp"]
[null,"Mt Phillips","Central",486031.29960000003,4036786.3292,11650,"","","","Y","Y","","South"]
[null,"New Dean","North",495733,4049734,7724,"","","","Y","","","North"]
[null,"North Fork Urraca","South",496228,4032333,7961,"","","","Y","","","South"]
[2019,"North Ponil","North",495945.07,4058676.11,7706,null,null,"","Y","",null,"North"]
[null,"Old Abreu","South",497636,4025768,7375,"","","","Y","","","South"]
[null,"Old Camp","Valle Vidal",null,null,null,"","","","Y","","","North"]
[null,"Olympia","South",502788,4025183,6731,"","","","Y","","","South"]
[null,"Phillips Junction","South",489389,4030051,8921,"Y","Y","Y","","","Y","South"]
[null,"Pinyon Flats","South",501236,4024353,6924,"","","","Y","","","South"]
[2023,"Placer","North",4836526.0779999997,4052601.3470000001,9483.43,"","","","Y","","","North"]
[null,"Ponderosa Park","Central",495827,4034966,8004,"","","","Y","Y","","South"]
[null,"Ponil","North",496696.54700000002,4053001.2755,7150,"Y","Y","Y","","","Y","North"]
[null,"Porcupine","South",488353,4030881,9152,"","","","Y","","","South"]
[null,"Pueblano","North",489738,4053274,8069,"","","Y","","","","North"]
[null,"Pueblano Ruins","North",487758,4053694,8359,"","","","Y","","","North"]
[2020,"Rabbit Ear","North",492496.72,4059396.86,8115,null,null,"","Y","Y",null,"North"]
[null,"Rayado","South",506169.3798,4024627.3322999999,6518,"","","","Y","","","South"]
[null,"Rayado Ridge","South",505371,4024604,6655,"","","","Y","","Y","South"]
[null,"Rayado River","South",499286,4025697,7079,"","","","Y","","","South"]
[null,"Red Hills","South",487476,4035642,10280,"","","","Y","","","South"]
[null,"Rich Cabins","Valle Vidal",489694,4058261,7728,"Y","","Y","","","","North"]
[null,"Rimrock Park","South",498366,4025625,7359,"","","","Y","Y","","South"]
[null,"Ring Place","Valle Vidal",489152,4069608,8124,"Y","","Y","","","","North"]
[2021,"Ringtail","North",487012.16409999999,4051328.0446000001,8600,null,null,"","Y","Y",null,"North"]
[null,"RMSC","South",500770,4032043,7080,"","","","Y","","","South"]
[null,"Rock Springs","Central",496880,4043340,7491,"","","","Y","","","South"]
[2019,"Saladon","South",482203.13,4032785.4142999998,9874.788998,null,null,"","Y","",null,"South"]
[null,"Santa Claus","North",491849,4049566,8438,"","","Y","","","","North"]
[null,"Sawmill","Central",490259,4041146,9193,"","","Y","","","Y","South"]
[null,"Seally Canyon","Valle Vidal",490997,4067420,8037,"","","","Y","Y","","North"]
[null,"Shaefers Pass","Central",495940,4033735,8724,"","","","Y","Y","","South"]
[null,"Shuree Cabin","Valle Vidal",480498,4070514,9647,"","","","Y","","","North"]
[null,"Shuree Lodge","Valle Vidal",482669,4069480,9277,"","","","Y","","","North"]
[null,"Sioux","North",495001,4053225,7382,"","","","Y","","","North"]
[null,"Six Mile Gate","North",503191.76,4049062.91,6710,"","","","Y","","","North"]
[null,"Slate Hill Heck","North",502409,4043124,7722,"","","","Y","Y","","North"]
[null,"Stockade","South",500015,4032275,7254,"","","","Y","","","South"]
[null,"Stockade Ridge","South",499296,4032487,7519,"","","","Y","Y","","South"]
[null,"Thunder Ridge","Central",488492.89939999999,4038824.1444999999,10490,"","","","Y","Y","","South"]
[2019,"Tolby Headwaters","South",480146.81,4038306.99,9219,null,null,"","Y","",null,"South"]
[null,"Tooth Ridge","Central",500029.67,4033924.75,8240,"","","","Y","Y","","South"]
[null,"Toothache Springs","South",500750,4028216,7870,"","","","Y","","","South"]
[2021,"Touch-Me-Not Creek","North",484936.67660000001,4050860.9983999999,8855,null,null,"","Y","",null,"North"]
[null,"Trail Canyon","North",499226,4049865,7070,"","","","Y","","","North"]
[null,"Turkey Creek","North",498097,4046582,7569,"","","","Y","","","North"]
[null,"Upper Bench","Central",494832,4043955,8161,"","","","Y","Y","","South"]
[null,"Upper Clarks Fork","Central",495583,4034947,7902,"","","","Y","Y","","South"]
[null,"Upper Dean Cow","North",492036,4050785,8254,"","","","Y","","","North"]
[null,"Upper Greenwood","Valle Vidal",479874.12530000001,4056510.7667999999,10262.665999999999,"","","","Y","","","North"]
[null,"Upper Sawmill","Central",491866.71,4041590,8611,"","","","Y","","","South"]
[2022,"Upper Webster Park","Central",492935.53470000002,4039576.3048999999,8764,null,null,"","Y","",null,"South","2023 Combined Upper & Lower Webster Parks"]
[null,"Urraca","South",500851,4029314,7968,"","","Y","","","","South"]
[null,"Ute Gulch","Central",494653,4041249,7866,"Y","Y","Y","","","","South"]
[null,"Ute Meadows","North",483892,4052643,9164,"","","","Y","","","North"]
[null,"Ute Park Pass","Central",493784,4042291,8258,"","","","Y","","","South"]
[null,"Ute Springs","Central",495177,4040114,7689,"","","","Y","","","South"]
[null,"Vaca","Central",499148,4041252,7415,"","","","Y","","","South"]
[null,"Visto Grande","Central",493983,4045668,7782,"","","","Y","","","South"]
[null,"Webster Lake","Central",497835,4037406,7122,"","","","Y","","","South"]
[null,"Webster Parks","Central",492939.82,4039509.952,8611.1200000000008,"","","","Y","Y","","South","2023 Combined Upper & Lower Webster Parks"]
[null,"Whistle Punk","Central",489586.4,4039243.3,10052,"","","","Y","","","South"]
[null,"Whiteman Vega","Valle Vidal",490820,4072011,8061,"","","Y","","","","North"]
[null,"Wild Horse","South",484174,4032864,10420,"","","","Y","","","South"]
[2019,"Wild Horse Park","South",481273.93,4030849.05,9883,null,null,"","Y","",null,"North"]
[null,"Window Rock","Central",null,null,8312,"","","","Y","Y","","South"]
[null,"Zastrow","South",500378,4025857,6946,"Y","","Y","","","Y","South"]
[null,null,null,"NOTE:  Coordinates/elevations  from 2017 Philmont's 2017 UTM.xlsm file.  These do not agree with Philmont's .kmz Google Earth file."]

{"sheet":"UteParkPassAlternatives","index":18,"n_rows":40,"n_cols":9,"rows_kept":40,"cut":false,"hidden":true,"merged":[[1,6,13,6],[14,6,26,6],[27,6,39,6]]}
["Itinerary","Day","Plan A\n(Original Itinerary)","Plan B\n(Delay)","Plan C\n(Change Direction)","Plan D\n(Alternate Itinerary)",null,null,"Note:  Line Return will be removed for uppPlans form selection"]
["12-29",1,"BASE","BASE","BASE","BASE","Southbound"]
["12-29",2,{"$f":"INDEX(campsByItinerary,RIGHT($A3,LEN($A3)-3),$B3-1)","v":0},"Bluestem","Bluestem","Bluestem"]
["12-29",3,{"$f":"INDEX(campsByItinerary,RIGHT($A4,LEN($A4)-3),$B4-1)","v":0},"Pueblano Ruins","Pueblano Ruins","Pueblano Ruins"]
["12-29",4,{"$f":"INDEX(campsByItinerary,RIGHT($A5,LEN($A5)-3),$B5-1)","v":0},"Baldy Town","Baldy Town","Baldy Town"]
["12-29",5,{"$f":"INDEX(campsByItinerary,RIGHT($A6,LEN($A6)-3),$B6-1)","v":0},"Baldy Town","Baldy Town","Baldy Town"]
["12-29",6,{"$f":"INDEX(campsByItinerary,RIGHT($A7,LEN($A7)-3),$B7-1)","v":0},"Mistletoe","Mistletoe","Mistletoe"]
["12-29",7,{"$f":"INDEX(campsByItinerary,RIGHT($A8,LEN($A8)-3),$B8-1)","v":0},"Cimarroncita","Cimarroncita","Cimarroncita"]
["12-29",8,{"$f":"INDEX(campsByItinerary,RIGHT($A9,LEN($A9)-3),$B9-1)","v":0},"Cimarroncita","Cimarroncita","New Dean"]
["12-29",9,{"$f":"INDEX(campsByItinerary,RIGHT($A10,LEN($A10)-3),$B10-1)","v":0},"Sawmill","Upper Dean Cow","Pueblano"]
["12-29",10,{"$f":"INDEX(campsByItinerary,RIGHT($A11,LEN($A11)-3),$B11-1)","v":0},"Lamberts Mine","Rich Cabins","Rich Cabins"]
["12-29",11,{"$f":"INDEX(campsByItinerary,RIGHT($A12,LEN($A12)-3),$B12-1)","v":0},"Shaefers Pass","Ponil","Ponil"]
["12-29",12,"BASE","BASE","BASE","BASE"]
["12-29","Return","Hike In","Hike In","Hike In","Hike In"]
["12-30",1,"BASE","BASE","BASE","BASE","Northbound"]
["12-30",2,{"$f":"INDEX(campsByItinerary,RIGHT($A16,LEN($A16)-3),$B16-1)","v":0},"Heck Meadow","Heck Meadow","Heck Meadow"]
["12-30",3,{"$f":"INDEX(campsByItinerary,RIGHT($A17,LEN($A17)-3),$B17-1)","v":0},"Clarks Fork","Clarks Fork","Clarks Fork"]
["12-30",4,{"$f":"INDEX(campsByItinerary,RIGHT($A18,LEN($A18)-3),$B18-1)","v":0},"Clarks Fork","Clarks Fork","Clarks Fork"]
["12-30",5,{"$f":"INDEX(campsByItinerary,RIGHT($A19,LEN($A19)-3),$B19-1)","v":0},"Lamberts Mine","Lamberts Mine","Lamberts Mine"]
["12-30",6,{"$f":"INDEX(campsByItinerary,RIGHT($A20,LEN($A20)-3),$B20-1)","v":0},"Sawmill","Sawmill","Sawmill"]
["12-30",7,{"$f":"INDEX(campsByItinerary,RIGHT($A21,LEN($A21)-3),$B21-1)","v":0},"Sawmill","Sawmill","Mt Phillips"]
["12-30",8,{"$f":"INDEX(campsByItinerary,RIGHT($A22,LEN($A22)-3),$B22-1)","v":0},"Cimarroncita","Mt Phillips","Crooked Creek"]
["12-30",9,{"$f":"INDEX(campsByItinerary,RIGHT($A23,LEN($A23)-3),$B23-1)","v":0},"Santa Claus","Fish Camp","Fish Camp"]
["12-30",10,{"$f":"INDEX(campsByItinerary,RIGHT($A24,LEN($A24)-3),$B24-1)","v":0},"Ewells Park","Crater Lake","Crater Lake"]
["12-30",11,{"$f":"INDEX(campsByItinerary,RIGHT($A25,LEN($A25)-3),$B25-1)","v":0},"Ewells Park","Rimrock Park","Rimrock Park"]
["12-30",12,"BASE","BASE","BASE","BASE"]
["12-30","Return","Hike In","Hike In","Hike In","Hike In"]
["12-32",1,"BASE","BASE","BASE","BASE","Southbound"]
["12-32",2,{"$f":"INDEX(campsByItinerary,RIGHT($A29,LEN($A29)-3),$B29-1)","v":0},"Sioux","Sioux","Sioux"]
["12-32",3,{"$f":"INDEX(campsByItinerary,RIGHT($A30,LEN($A30)-3),$B30-1)","v":0},"Rich Cabins","Rich Cabins","Rich Cabins"]
["12-32",4,{"$f":"INDEX(campsByItinerary,RIGHT($A31,LEN($A31)-3),$B31-1)","v":0},"Head of Dean","Head of Dean","Head of Dean"]
["12-32",5,{"$f":"INDEX(campsByItinerary,RIGHT($A32,LEN($A32)-3),$B32-1)","v":0},"Copper Park","Copper Park","Copper Park"]
["12-32",6,{"$f":"INDEX(campsByItinerary,RIGHT($A33,LEN($A33)-3),$B33-1)","v":0},"Copper Park","Copper Park","Copper Park"]
["12-32",7,{"$f":"INDEX(campsByItinerary,RIGHT($A34,LEN($A34)-3),$B34-1)","v":0},"Santa Claus","Santa Claus","Santa Claus"]
["12-32",8,{"$f":"INDEX(campsByItinerary,RIGHT($A35,LEN($A35)-3),$B35-1)","v":0},"Cimarroncita","Cimarroncita","Cimarroncita"]
["12-32",9,{"$f":"INDEX(campsByItinerary,RIGHT($A36,LEN($A36)-3),$B36-1)","v":0},"Cimarroncita","Cimarroncita","Santa Claus"]
["12-32",10,{"$f":"INDEX(campsByItinerary,RIGHT($A37,LEN($A37)-3),$B37-1)","v":0},"Cimarroncito","Miranda","Miranda"]
["12-32",11,{"$f":"INDEX(campsByItinerary,RIGHT($A38,LEN($A38)-3),$B38-1)","v":0},"Clarks Fork","Miranda","Miranda"]
["12-32",12,"BASE","BASE","BASE","BASE"]
["12-32","Return","Ponil","Ponil","Ponil","Ponil"]